Workbook

Sheet Summary Data
C1: Reach (User) | D1: Reach (Pageviews) | E1: Reach | F1: Search Engine Shoppers | G1: Search Engine Shoppers | H1: Search % | I1: Monthly Unique Visitors | J1: Monthly Unique Visitors | K1: Unique Visitors | L1: Unique visitors (cookies) | M1: Unique visitors (users) | N1: People per Month | O1: Avg visits per visitor | P1: New Shoppers | Q1: Monthly Visits | R1: Monthly Visits | S1: Visits | T1: Total Visits | U1: Visits per Month | V1: Bounce % | W1: Daily Pageviews/Users | X1: Page views | Y1: Time on Site (minutes) | Z1: Avg time on site | AA1: Conversion Rate | AB1: Conversion Rate | AC1: Average Ticket | AD1: Average Ticket | AE1: Online Revenue | AF1: Online Revenue
B2: Maximum | C2: =SUBTOTAL(4,C$12:C$1011) ->  | D2: =SUBTOTAL(4,D$12:D$1011) ->  | E2: 0 | F2: 0 | G2: 0 | I2: 0 | J2: 0 | K2: 2089956 | L2: 1800000 | M2: 510000 | N2: 1304539 | O2: 5.6 | P2: 0 | Q2: 0 | R2: 0 | S2: 3408920 | T2: 2900000 | U2: 3048382 | W2: 22.6 | X2: 38000000 | Y2: 7.63167 | AA2: 0 | AB2: 0 | AC2: 0 | AD2: 0 | AE2: 0 | AF2: 0
B3: 3rd Quartile | C3: =PERCENTILE(IF(SUBTOTAL(3,OFFSET(C$12:C$1011,ROW(C$12:C$1011)-MIN(ROW(C$12:C$1011)),,1)),C$12:C$1011),0.75) ->  | D3: =PERCENTILE(IF(SUBTOTAL(3,OFFSET(D$12:D$1011,ROW(D$12:D$1011)-MIN(ROW(D$12:D$1011)),,1)),D$12:D$1011),0.75) ->  | E3: 0 | K3: 2089956 | L3: 1320000 | M3: 365000 | N3: 497351.5 | O3: 5.6 | S3: 3408920 | T3: 2000000 | U3: 1120436.25 | W3: 22.6 | X3: 25000000 | Y3: 7.63167
B4: Average | C4: =SUBTOTAL(1, C$12:C$1011) ->  | D4: =SUBTOTAL(1, D$12:D$1011) ->  | E4: 0 | K4: 2089956 | L4: 1020000 | M4: 280000 | N4: 420030.8333 | O4: 5.4 | S4: 3408920 | T4: 1540000 | U4: 972719 | W4: 22.6 | X4: 19133333.33 | Y4: 7.63167
B5: Medium | C5: =MEDIAN(IF(SUBTOTAL(3,OFFSET(C$12:C$1011,ROW(C$12:C$1011)-MIN(ROW(C$12:C$1011)),,1)),C$12:C$1011)) ->  | D5: =MEDIAN(IF(SUBTOTAL(3,OFFSET(D$12:D$1011,ROW(D$12:D$1011)-MIN(ROW(D$12:D$1011)),,1)),D$12:D$1011)) ->  | E5: 0 | K5: 2089956 | L5: 840000 | M5: 220000 | N5: 244159.5 | O5: 5.6 | S5: 3408920 | T5: 1100000 | U5: 610543.5 | W5: 22.6 | X5: 12000000 | Y5: 7.63167
B6: 1st Quartile | C6: =PERCENTILE(IF(SUBTOTAL(3,OFFSET(C$12:C$1011,ROW(C$12:C$1011)-MIN(ROW(C$12:C$1011)),,1)),C$12:C$1011),0.25) ->  | D6: =PERCENTILE(IF(SUBTOTAL(3,OFFSET(D$12:D$1011,ROW(D$12:D$1011)-MIN(ROW(D$12:D$1011)),,1)),D$12:D$1011),0.25) ->  | E6: 0 | K6: 2089956 | L6: 630000 | M6: 165000 | N6: 158621.75 | O6: 5.3 | S6: 3408920 | T6: 860000 | U6: 352536.75 | W6: 22.6 | X6: 9700000 | Y6: 7.63167
B7: Minimum | C7: =SUBTOTAL(5,C$12:C$1011) ->  | D7: =SUBTOTAL(5,D$12:D$1011) ->  | E7: 0 | F7: 0 | G7: 0 | I7: 0 | J7: 0 | K7: 2089956 | L7: 420000 | M7: 110000 | N7: 15469 | O7: 5 | P7: 0 | Q7: 0 | R7: 0 | S7: 3408920 | T7: 620000 | U7: 9910 | W7: 22.6 | X7: 7400000 | Y7: 7.63167 | AA7: 0 | AB7: 0 | AC7: 0 | AD7: 0 | AE7: 0 | AF7: 0
B8: Metric | C8: Reach | D8: Reach | E8: Reach | F8: Search Traffic % | G8: Search Traffic % | H8: Search Traffic % | I8: Visitors | J8: Visitors | K8: Visitors | L8: Visitors (Cookies) | M8: Visitors | N8: Visitors | O8: Visits per Visitor | P8: New Shoppers | Q8: Visits | R8: Visits | S8: Visits | T8: Visits | U8: Visits | V8: Bounce % | W8: Pageviews/Users | X8: Page Views | Y8: Average Minutes | Z8: Average Minutes | AA8: Conversion Rate | AB8: Conversion Rate | AC8: Average Ticket | AD8: Average Ticket | AE8: Online Revenue | AF8: Online Revenue
B9: Source > | C9: Alexa | D9: Alexa | E9: doubleckick ad planner | F9: Internet Retailer | G9: Internet Retailer | H9: Alexa | I9: Internet Retailer | J9: Internet Retailer | K9: Compete.com | L9: doubleckick ad planner | M9: doubleckick ad planner | N9: quantcast | O9: doubleckick ad planner | P9: Internet Retailer | Q9: Internet Retailer | R9: Internet Retailer | S9: Compete.com | T9: doubleckick ad planner | U9: quantcast | V9: Alexa | W9: Alexa | X9: doubleckick ad planner | Y9: Alexa | Z9: doubleckick ad planner | AA9: Internet Retailer | AB9: Internet Retailer | AC9: Internet Retailer | AD9: Internet Retailer | AE9: Internet Retailer | AF9: Internet Retailer
B10: Pull Date > | C10: =VLOOKUP($A$12,'Formatted Web Traffic Data'!$A:$Y,3,FALSE) -> 2010-12-22 | D10: =VLOOKUP($A$12,'Formatted Web Traffic Data'!$A:$Y,3,FALSE) -> 2010-12-22 | E10: =VLOOKUP($A$12,'Formatted Web Traffic Data'!$A:$Y,3,FALSE) -> 2010-12-22 | F10: 2009 | G10: 2008 | H10: =VLOOKUP($A$12,'Formatted Web Traffic Data'!$A:$Y,3,FALSE) -> 2010-12-22 | I10: 2009 | J10: 2008 | K10: =VLOOKUP($A$12,'Formatted Web Traffic Data'!$A:$Y,3,FALSE) -> 2010-12-22 | L10: =VLOOKUP($A$12,'Formatted Web Traffic Data'!$A:$Y,3,FALSE) -> 2010-12-22 | M10: =VLOOKUP($A$12,'Formatted Web Traffic Data'!$A:$Y,3,FALSE) -> 2010-12-22 | N10: =VLOOKUP($A$12,'Formatted Web Traffic Data'!$A:$Y,3,FALSE) -> 2010-12-22 | O10: =VLOOKUP($A$12,'Formatted Web Traffic Data'!$A:$Y,3,FALSE) -> 2010-12-22 | P10: 2009 | Q10: 2009 | R10: 2008 | S10: =VLOOKUP($A$12,'Formatted Web Traffic Data'!$A:$Y,3,FALSE) -> 2010-12-22 | T10: =VLOOKUP($A$12,'Formatted Web Traffic Data'!$A:$Y,3,FALSE) -> 2010-12-22 | U10: =VLOOKUP($A$12,'Formatted Web Traffic Data'!$A:$Y,3,FALSE) -> 2010-12-22 | V10: =VLOOKUP($A$12,'Formatted Web Traffic Data'!$A:$Y,3,FALSE) -> 2010-12-22 | W10: =VLOOKUP($A$12,'Formatted Web Traffic Data'!$A:$Y,3,FALSE) -> 2010-12-22 | X10: =VLOOKUP($A$12,'Formatted Web Traffic Data'!$A:$Y,3,FALSE) -> 2010-12-22 | Y10: =VLOOKUP($A$12,'Formatted Web Traffic Data'!$A:$Y,3,FALSE) -> 2010-12-22 | Z10: =VLOOKUP($A$12,'Formatted Web Traffic Data'!$A:$Y,3,FALSE) -> 2010-12-22 | AA10: 2009 | AB10: 2008 | AC10: 2009 | AD10: 2008 | AE10: 2009 | AF10: 2008
A11: Domain | B11: Full Company Name | C11: Reach (User) | D11: Reach (Pageviews) | E11: Reach | F11: Search Engine Shoppers | G11: Search Engine Shoppers | H11: Search % | I11: Monthly Unique Visitors | J11: Monthly Unique Visitors | K11: Unique Visitors | L11: Unique visitors (cookies) | M11: Unique visitors (users) | N11: People per Month | O11: Avg visits per visitor | P11: New Shoppers | Q11: Monthly Visits | R11: Monthly Visits | S11: Visits | T11: Total Visits | U11: Visits per Month | V11: Bounce % | W11: Daily Pageviews/Users | X11: Page views | Y11: Time on Site (minutes) | Z11: Avg time on site | AA11: Conversion Rate | AB11: Conversion Rate | AC11: Average Ticket | AD11: Average Ticket | AE11: Online Revenue | AF11: Online Revenue
A12: NFLShop.com | B12: =VLOOKUP(A12,Domains!A:B,2,FALSE) -> National Football League | C12: =VLOOKUP($A12,'Formatted Web Traffic Data'!$A:$Y,6,FALSE) -> 2.06e-05 | D12: =VLOOKUP($A12,'Formatted Web Traffic Data'!$A:$Y,7,FALSE) -> 0.000208 | E12: =VLOOKUP($A12,'Formatted Web Traffic Data'!$A:$Y,18,FALSE) -> NA | F12: =VLOOKUP($B12,'2009 Internet Retailer Data'!$C$1:$AQ$502,39,FALSE) -> NA | G12: =VLOOKUP($B12,'2009 Internet Retailer Data'!$C$1:$AQ$502,40,FALSE) -> NA | H12: =VLOOKUP($A12,'Formatted Web Traffic Data'!$A:$Y,11,FALSE) -> 0.169 | I12: =VLOOKUP($B12,'2009 Internet Retailer Data'!$C$1:$AQ$502,14,FALSE) -> NA | J12: =VLOOKUP($B12,'2009 Internet Retailer Data'!$C$1:$AQ$502,15,FALSE) -> NA | K12: =VLOOKUP($A12,'Formatted Web Traffic Data'!$A:$Y,13,FALSE) -> 2089956 | L12: =VLOOKUP($A12,'Formatted Web Traffic Data'!$A:$Y,16,FALSE) -> Error or No AdPlanner Data for NFLShopco00000 | M12: =VLOOKUP($A12,'Formatted Web Traffic Data'!$A:$Y,17,FALSE) -> NA | N12: =VLOOKUP($A12,'Formatted Web Traffic Data'!$A:$Y,25,FALSE) -> 1304539 | O12: =VLOOKUP($A12,'Formatted Web Traffic Data'!$A:$Y,21,FALSE) -> NA | P12: =VLOOKUP($B12,'2009 Internet Retailer Data'!$C$1:$AQ$502,41,FALSE) -> NA | Q12: =VLOOKUP($B12,'2009 Internet Retailer Data'!$C$1:$AQ$502,16,FALSE) -> NA | R12: =VLOOKUP($B12,'2009 Internet Retailer Data'!$C$1:$AQ$502,17,FALSE) -> NA | S12: =VLOOKUP($A12,'Formatted Web Traffic Data'!$A:$Y,14,FALSE) -> 3408920 | T12: =VLOOKUP($A12,'Formatted Web Traffic Data'!$A:$Y,20,FALSE) -> NA | U12: =VLOOKUP($A12,'Formatted Web Traffic Data'!$A:$Y,24,FALSE) -> 3048382 | V12: =VLOOKUP($A12,'Formatted Web Traffic Data'!$A:$Y,9,FALSE) -> 0.103 | W12: =VLOOKUP($A12,'Formatted Web Traffic Data'!$A:$Y,8,FALSE) -> 22.6 | X12: =VLOOKUP($A12,'Formatted Web Traffic Data'!$A:$Y,19,FALSE) -> NA | Y12: =VLOOKUP($A12,'Formatted Web Traffic Data'!$A:$Y,10,FALSE) -> 7.63167 | Z12: =VLOOKUP($A12,'Formatted Web Traffic Data'!$A:$Y,22,FALSE) ->  | AA12: =VLOOKUP($B12,'2009 Internet Retailer Data'!$C$1:$AQ$502,18,FALSE) -> NA | AB12: =VLOOKUP($B12,'2009 Internet Retailer Data'!$C$1:$AQ$502,19,FALSE) -> NA | AC12: =VLOOKUP($B12,'2009 Internet Retailer Data'!$C$1:$AQ$502,20,FALSE) -> NA | AD12: =VLOOKUP($B12,'2009 Internet Retailer Data'!$C$1:$AQ$502,21,FALSE) -> NA | AE12: =VLOOKUP($B12,'2009 Internet Retailer Data'!$C$1:$AQ$502,7,FALSE) -> NA | AF12: =VLOOKUP($B12,'2009 Internet Retailer Data'!$C$1:$AQ$502,8,FALSE) -> NA
A13: Shop.MLB.com | B13: =VLOOKUP(A13,Domains!A:B,2,FALSE) -> MLB Advanced Media | C13: =VLOOKUP($A13,'Formatted Web Traffic Data'!$A:$Y,6,FALSE) ->  | D13: =VLOOKUP($A13,'Formatted Web Traffic Data'!$A:$Y,7,FALSE) ->  | E13: =VLOOKUP($A13,'Formatted Web Traffic Data'!$A:$Y,18,FALSE) -> 0 | F13: =VLOOKUP($B13,'2009 Internet Retailer Data'!$C$1:$AQ$502,39,FALSE) -> NA | G13: =VLOOKUP($B13,'2009 Internet Retailer Data'!$C$1:$AQ$502,40,FALSE) -> NA | H13: =VLOOKUP($A13,'Formatted Web Traffic Data'!$A:$Y,11,FALSE) ->  | I13: =VLOOKUP($B13,'2009 Internet Retailer Data'!$C$1:$AQ$502,14,FALSE) -> NA | J13: =VLOOKUP($B13,'2009 Internet Retailer Data'!$C$1:$AQ$502,15,FALSE) -> NA | K13: =VLOOKUP($A13,'Formatted Web Traffic Data'!$A:$Y,13,FALSE) -> NA | L13: =VLOOKUP($A13,'Formatted Web Traffic Data'!$A:$Y,16,FALSE) -> 1800000 | M13: =VLOOKUP($A13,'Formatted Web Traffic Data'!$A:$Y,17,FALSE) -> 510000 | N13: =VLOOKUP($A13,'Formatted Web Traffic Data'!$A:$Y,25,FALSE) -> 560088 | O13: =VLOOKUP($A13,'Formatted Web Traffic Data'!$A:$Y,21,FALSE) -> 5.6 | P13: =VLOOKUP($B13,'2009 Internet Retailer Data'!$C$1:$AQ$502,41,FALSE) -> NA | Q13: =VLOOKUP($B13,'2009 Internet Retailer Data'!$C$1:$AQ$502,16,FALSE) -> NA | R13: =VLOOKUP($B13,'2009 Internet Retailer Data'!$C$1:$AQ$502,17,FALSE) -> NA | S13: =VLOOKUP($A13,'Formatted Web Traffic Data'!$A:$Y,14,FALSE) -> NA | T13: =VLOOKUP($A13,'Formatted Web Traffic Data'!$A:$Y,20,FALSE) -> 2900000 | U13: =VLOOKUP($A13,'Formatted Web Traffic Data'!$A:$Y,24,FALSE) -> 1221786 | V13: =VLOOKUP($A13,'Formatted Web Traffic Data'!$A:$Y,9,FALSE) ->  | W13: =VLOOKUP($A13,'Formatted Web Traffic Data'!$A:$Y,8,FALSE) -> NA | X13: =VLOOKUP($A13,'Formatted Web Traffic Data'!$A:$Y,19,FALSE) -> 38000000 | Y13: =VLOOKUP($A13,'Formatted Web Traffic Data'!$A:$Y,10,FALSE) -> NA | Z13: =VLOOKUP($A13,'Formatted Web Traffic Data'!$A:$Y,22,FALSE) -> 8 | AA13: =VLOOKUP($B13,'2009 Internet Retailer Data'!$C$1:$AQ$502,18,FALSE) -> NA | AB13: =VLOOKUP($B13,'2009 Internet Retailer Data'!$C$1:$AQ$502,19,FALSE) -> NA | AC13: =VLOOKUP($B13,'2009 Internet Retailer Data'!$C$1:$AQ$502,20,FALSE) -> NA | AD13: =VLOOKUP($B13,'2009 Internet Retailer Data'!$C$1:$AQ$502,21,FALSE) -> NA | AE13: =VLOOKUP($B13,'2009 Internet Retailer Data'!$C$1:$AQ$502,7,FALSE) -> NA | AF13: =VLOOKUP($B13,'2009 Internet Retailer Data'!$C$1:$AQ$502,8,FALSE) -> NA
A14: Shop.NHL.com | B14: =VLOOKUP(A14,Domains!A:B,2,FALSE) -> National Hockey League | C14: =VLOOKUP($A14,'Formatted Web Traffic Data'!$A:$Y,6,FALSE) ->  | D14: =VLOOKUP($A14,'Formatted Web Traffic Data'!$A:$Y,7,FALSE) ->  | E14: =VLOOKUP($A14,'Formatted Web Traffic Data'!$A:$Y,18,FALSE) -> 0 | F14: =VLOOKUP($B14,'2009 Internet Retailer Data'!$C$1:$AQ$502,39,FALSE) -> NA | G14: =VLOOKUP($B14,'2009 Internet Retailer Data'!$C$1:$AQ$502,40,FALSE) -> NA | H14: =VLOOKUP($A14,'Formatted Web Traffic Data'!$A:$Y,11,FALSE) ->  | I14: =VLOOKUP($B14,'2009 Internet Retailer Data'!$C$1:$AQ$502,14,FALSE) -> NA | J14: =VLOOKUP($B14,'2009 Internet Retailer Data'!$C$1:$AQ$502,15,FALSE) -> NA | K14: =VLOOKUP($A14,'Formatted Web Traffic Data'!$A:$Y,13,FALSE) -> NA | L14: =VLOOKUP($A14,'Formatted Web Traffic Data'!$A:$Y,16,FALSE) -> 840000 | M14: =VLOOKUP($A14,'Formatted Web Traffic Data'!$A:$Y,17,FALSE) -> 220000 | N14: =VLOOKUP($A14,'Formatted Web Traffic Data'!$A:$Y,25,FALSE) -> 179177 | O14: =VLOOKUP($A14,'Formatted Web Traffic Data'!$A:$Y,21,FALSE) -> 5 | P14: =VLOOKUP($B14,'2009 Internet Retailer Data'!$C$1:$AQ$502,41,FALSE) -> NA | Q14: =VLOOKUP($B14,'2009 Internet Retailer Data'!$C$1:$AQ$502,16,FALSE) -> NA | R14: =VLOOKUP($B14,'2009 Internet Retailer Data'!$C$1:$AQ$502,17,FALSE) -> NA | S14: =VLOOKUP($A14,'Formatted Web Traffic Data'!$A:$Y,14,FALSE) -> NA | T14: =VLOOKUP($A14,'Formatted Web Traffic Data'!$A:$Y,20,FALSE) -> 1100000 | U14: =VLOOKUP($A14,'Formatted Web Traffic Data'!$A:$Y,24,FALSE) -> 335149 | V14: =VLOOKUP($A14,'Formatted Web Traffic Data'!$A:$Y,9,FALSE) ->  | W14: =VLOOKUP($A14,'Formatted Web Traffic Data'!$A:$Y,8,FALSE) -> NA | X14: =VLOOKUP($A14,'Formatted Web Traffic Data'!$A:$Y,19,FALSE) -> 12000000 | Y14: =VLOOKUP($A14,'Formatted Web Traffic Data'!$A:$Y,10,FALSE) -> NA | Z14: =VLOOKUP($A14,'Formatted Web Traffic Data'!$A:$Y,22,FALSE) -> 8.166666667 | AA14: =VLOOKUP($B14,'2009 Internet Retailer Data'!$C$1:$AQ$502,18,FALSE) -> NA | AB14: =VLOOKUP($B14,'2009 Internet Retailer Data'!$C$1:$AQ$502,19,FALSE) -> NA | AC14: =VLOOKUP($B14,'2009 Internet Retailer Data'!$C$1:$AQ$502,20,FALSE) -> NA | AD14: =VLOOKUP($B14,'2009 Internet Retailer Data'!$C$1:$AQ$502,21,FALSE) -> NA | AE14: =VLOOKUP($B14,'2009 Internet Retailer Data'!$C$1:$AQ$502,7,FALSE) -> NA | AF14: =VLOOKUP($B14,'2009 Internet Retailer Data'!$C$1:$AQ$502,8,FALSE) -> NA
A15: Store.NASCAR.com | B15: =VLOOKUP(A15,Domains!A:B,2,FALSE) -> NASCAR.com Superstore | C15: =VLOOKUP($A15,'Formatted Web Traffic Data'!$A:$Y,6,FALSE) ->  | D15: =VLOOKUP($A15,'Formatted Web Traffic Data'!$A:$Y,7,FALSE) ->  | E15: =VLOOKUP($A15,'Formatted Web Traffic Data'!$A:$Y,18,FALSE) -> 0 | F15: =VLOOKUP($B15,'2009 Internet Retailer Data'!$C$1:$AQ$502,39,FALSE) -> NA | G15: =VLOOKUP($B15,'2009 Internet Retailer Data'!$C$1:$AQ$502,40,FALSE) -> NA | H15: =VLOOKUP($A15,'Formatted Web Traffic Data'!$A:$Y,11,FALSE) ->  | I15: =VLOOKUP($B15,'2009 Internet Retailer Data'!$C$1:$AQ$502,14,FALSE) -> NA | J15: =VLOOKUP($B15,'2009 Internet Retailer Data'!$C$1:$AQ$502,15,FALSE) -> NA | K15: =VLOOKUP($A15,'Formatted Web Traffic Data'!$A:$Y,13,FALSE) -> NA | L15: =VLOOKUP($A15,'Formatted Web Traffic Data'!$A:$Y,16,FALSE) -> 420000 | M15: =VLOOKUP($A15,'Formatted Web Traffic Data'!$A:$Y,17,FALSE) -> 110000 | N15: =VLOOKUP($A15,'Formatted Web Traffic Data'!$A:$Y,25,FALSE) -> 309142 | O15: =VLOOKUP($A15,'Formatted Web Traffic Data'!$A:$Y,21,FALSE) -> 5.6 | P15: =VLOOKUP($B15,'2009 Internet Retailer Data'!$C$1:$AQ$502,41,FALSE) -> NA | Q15: =VLOOKUP($B15,'2009 Internet Retailer Data'!$C$1:$AQ$502,16,FALSE) -> NA | R15: =VLOOKUP($B15,'2009 Internet Retailer Data'!$C$1:$AQ$502,17,FALSE) -> NA | S15: =VLOOKUP($A15,'Formatted Web Traffic Data'!$A:$Y,14,FALSE) -> NA | T15: =VLOOKUP($A15,'Formatted Web Traffic Data'!$A:$Y,20,FALSE) -> 620000 | U15: =VLOOKUP($A15,'Formatted Web Traffic Data'!$A:$Y,24,FALSE) -> 816387 | V15: =VLOOKUP($A15,'Formatted Web Traffic Data'!$A:$Y,9,FALSE) ->  | W15: =VLOOKUP($A15,'Formatted Web Traffic Data'!$A:$Y,8,FALSE) -> NA | X15: =VLOOKUP($A15,'Formatted Web Traffic Data'!$A:$Y,19,FALSE) -> 7400000 | Y15: =VLOOKUP($A15,'Formatted Web Traffic Data'!$A:$Y,10,FALSE) -> NA | Z15: =VLOOKUP($A15,'Formatted Web Traffic Data'!$A:$Y,22,FALSE) -> 9.833333333 | AA15: =VLOOKUP($B15,'2009 Internet Retailer Data'!$C$1:$AQ$502,18,FALSE) -> NA | AB15: =VLOOKUP($B15,'2009 Internet Retailer Data'!$C$1:$AQ$502,19,FALSE) -> NA | AC15: =VLOOKUP($B15,'2009 Internet Retailer Data'!$C$1:$AQ$502,20,FALSE) -> NA | AD15: =VLOOKUP($B15,'2009 Internet Retailer Data'!$C$1:$AQ$502,21,FALSE) -> NA | AE15: =VLOOKUP($B15,'2009 Internet Retailer Data'!$C$1:$AQ$502,7,FALSE) -> NA | AF15: =VLOOKUP($B15,'2009 Internet Retailer Data'!$C$1:$AQ$502,8,FALSE) -> NA
A16: Store.NBA.com | B16: =VLOOKUP(A16,Domains!A:B,2,FALSE) -> NBA Media Ventures LLC | C16: =VLOOKUP($A16,'Formatted Web Traffic Data'!$A:$Y,6,FALSE) ->  | D16: =VLOOKUP($A16,'Formatted Web Traffic Data'!$A:$Y,7,FALSE) ->  | E16: =VLOOKUP($A16,'Formatted Web Traffic Data'!$A:$Y,18,FALSE) -> NA | F16: =VLOOKUP($B16,'2009 Internet Retailer Data'!$C$1:$AQ$502,39,FALSE) -> NA | G16: =VLOOKUP($B16,'2009 Internet Retailer Data'!$C$1:$AQ$502,40,FALSE) -> NA | H16: =VLOOKUP($A16,'Formatted Web Traffic Data'!$A:$Y,11,FALSE) ->  | I16: =VLOOKUP($B16,'2009 Internet Retailer Data'!$C$1:$AQ$502,14,FALSE) -> NA | J16: =VLOOKUP($B16,'2009 Internet Retailer Data'!$C$1:$AQ$502,15,FALSE) -> NA | K16: =VLOOKUP($A16,'Formatted Web Traffic Data'!$A:$Y,13,FALSE) -> NA | L16: =VLOOKUP($A16,'Formatted Web Traffic Data'!$A:$Y,16,FALSE) -> Error or No AdPlanner Data for StoreN000000000Aco00000 | M16: =VLOOKUP($A16,'Formatted Web Traffic Data'!$A:$Y,17,FALSE) -> NA | N16: =VLOOKUP($A16,'Formatted Web Traffic Data'!$A:$Y,25,FALSE) -> 151770 | O16: =VLOOKUP($A16,'Formatted Web Traffic Data'!$A:$Y,21,FALSE) -> NA | P16: =VLOOKUP($B16,'2009 Internet Retailer Data'!$C$1:$AQ$502,41,FALSE) -> NA | Q16: =VLOOKUP($B16,'2009 Internet Retailer Data'!$C$1:$AQ$502,16,FALSE) -> NA | R16: =VLOOKUP($B16,'2009 Internet Retailer Data'!$C$1:$AQ$502,17,FALSE) -> NA | S16: =VLOOKUP($A16,'Formatted Web Traffic Data'!$A:$Y,14,FALSE) -> NA | T16: =VLOOKUP($A16,'Formatted Web Traffic Data'!$A:$Y,20,FALSE) -> NA | U16: =VLOOKUP($A16,'Formatted Web Traffic Data'!$A:$Y,24,FALSE) -> 404700 | V16: =VLOOKUP($A16,'Formatted Web Traffic Data'!$A:$Y,9,FALSE) ->  | W16: =VLOOKUP($A16,'Formatted Web Traffic Data'!$A:$Y,8,FALSE) -> NA | X16: =VLOOKUP($A16,'Formatted Web Traffic Data'!$A:$Y,19,FALSE) -> NA | Y16: =VLOOKUP($A16,'Formatted Web Traffic Data'!$A:$Y,10,FALSE) -> NA | Z16: =VLOOKUP($A16,'Formatted Web Traffic Data'!$A:$Y,22,FALSE) ->  | AA16: =VLOOKUP($B16,'2009 Internet Retailer Data'!$C$1:$AQ$502,18,FALSE) -> NA | AB16: =VLOOKUP($B16,'2009 Internet Retailer Data'!$C$1:$AQ$502,19,FALSE) -> NA | AC16: =VLOOKUP($B16,'2009 Internet Retailer Data'!$C$1:$AQ$502,20,FALSE) -> NA | AD16: =VLOOKUP($B16,'2009 Internet Retailer Data'!$C$1:$AQ$502,21,FALSE) -> NA | AE16: =VLOOKUP($B16,'2009 Internet Retailer Data'!$C$1:$AQ$502,7,FALSE) -> NA | AF16: =VLOOKUP($B16,'2009 Internet Retailer Data'!$C$1:$AQ$502,8,FALSE) -> NA
A17: Store.NCAAFootball.com | B17: =VLOOKUP(A17,Domains!A:B,2,FALSE) -> FansEdge Inc. | C17: =VLOOKUP($A17,'Formatted Web Traffic Data'!$A:$Y,6,FALSE) ->  | D17: =VLOOKUP($A17,'Formatted Web Traffic Data'!$A:$Y,7,FALSE) ->  | E17: =VLOOKUP($A17,'Formatted Web Traffic Data'!$A:$Y,18,FALSE) -> NA | F17: =VLOOKUP($B17,'2009 Internet Retailer Data'!$C$1:$AQ$502,39,FALSE) -> NA | G17: =VLOOKUP($B17,'2009 Internet Retailer Data'!$C$1:$AQ$502,40,FALSE) -> NA | H17: =VLOOKUP($A17,'Formatted Web Traffic Data'!$A:$Y,11,FALSE) ->  | I17: =VLOOKUP($B17,'2009 Internet Retailer Data'!$C$1:$AQ$502,14,FALSE) -> NA | J17: =VLOOKUP($B17,'2009 Internet Retailer Data'!$C$1:$AQ$502,15,FALSE) -> NA | K17: =VLOOKUP($A17,'Formatted Web Traffic Data'!$A:$Y,13,FALSE) -> NA | L17: =VLOOKUP($A17,'Formatted Web Traffic Data'!$A:$Y,16,FALSE) -> Error or No AdPlanner Data for StoreNCAAFoot000000000allco00000 | M17: =VLOOKUP($A17,'Formatted Web Traffic Data'!$A:$Y,17,FALSE) -> NA | N17: =VLOOKUP($A17,'Formatted Web Traffic Data'!$A:$Y,25,FALSE) -> 15469 | O17: =VLOOKUP($A17,'Formatted Web Traffic Data'!$A:$Y,21,FALSE) -> NA | P17: =VLOOKUP($B17,'2009 Internet Retailer Data'!$C$1:$AQ$502,41,FALSE) -> NA | Q17: =VLOOKUP($B17,'2009 Internet Retailer Data'!$C$1:$AQ$502,16,FALSE) -> NA | R17: =VLOOKUP($B17,'2009 Internet Retailer Data'!$C$1:$AQ$502,17,FALSE) -> NA | S17: =VLOOKUP($A17,'Formatted Web Traffic Data'!$A:$Y,14,FALSE) -> NA | T17: =VLOOKUP($A17,'Formatted Web Traffic Data'!$A:$Y,20,FALSE) -> NA | U17: =VLOOKUP($A17,'Formatted Web Traffic Data'!$A:$Y,24,FALSE) -> 9910 | V17: =VLOOKUP($A17,'Formatted Web Traffic Data'!$A:$Y,9,FALSE) ->  | W17: =VLOOKUP($A17,'Formatted Web Traffic Data'!$A:$Y,8,FALSE) -> NA | X17: =VLOOKUP($A17,'Formatted Web Traffic Data'!$A:$Y,19,FALSE) -> NA | Y17: =VLOOKUP($A17,'Formatted Web Traffic Data'!$A:$Y,10,FALSE) -> NA | Z17: =VLOOKUP($A17,'Formatted Web Traffic Data'!$A:$Y,22,FALSE) ->  | AA17: =VLOOKUP($B17,'2009 Internet Retailer Data'!$C$1:$AQ$502,18,FALSE) -> NA | AB17: =VLOOKUP($B17,'2009 Internet Retailer Data'!$C$1:$AQ$502,19,FALSE) -> NA | AC17: =VLOOKUP($B17,'2009 Internet Retailer Data'!$C$1:$AQ$502,20,FALSE) -> NA | AD17: =VLOOKUP($B17,'2009 Internet Retailer Data'!$C$1:$AQ$502,21,FALSE) -> NA | AE17: =VLOOKUP($B17,'2009 Internet Retailer Data'!$C$1:$AQ$502,7,FALSE) -> NA | AF17: =VLOOKUP($B17,'2009 Internet Retailer Data'!$C$1:$AQ$502,8,FALSE) -> NA

Sheet Distribution Charts
B2: Internet Retailer | C2: Compete.com | D2: doubleckick ad planner | E2: quantcast | M2: 2009 | N2: 2008 | X2: 2009 | Y2: 2008 | AI2: 2009 | AJ2: 2008
A3: Maximum | B3: ='Summary Data'!Q2 -> 0 | C3: ='Summary Data'!S2 -> 3408920 | D3: ='Summary Data'!T2 -> 2900000 | E3: ='Summary Data'!U2 -> 3048382 | G3: =B3-B6 ->  | H3: =C3-C6 -> 0 | I3: 1800000 | J3: 2437838.5 | L3: Maximum | M3: ='Summary Data'!AA2 -> 0 | N3: ='Summary Data'!AB2 -> 0 | R3: =M3-M6 ->  | S3: =N3-N6 ->  | W3: Maximum | X3: ='Summary Data'!AC2 -> 0 | Y3: ='Summary Data'!AD2 -> 0 | AC3: =X3-X6 ->  | AD3: =Y3-Y6 ->  | AH3: Maximum | AI3: ='Summary Data'!AE2 -> 0 | AJ3: ='Summary Data'!AF2 -> 0 | AN3: =AI3-AI6 ->  | AO3: =AJ3-AJ6 -> 
A4: 3rd Quartile | B4: ='Summary Data'!Q3 ->  | C4: ='Summary Data'!S3 -> 3408920 | D4: ='Summary Data'!T3 -> 2000000 | E4: ='Summary Data'!U3 -> 1120436.25 | G4: =B4-B6 ->  | H4: =C4-C6 -> 0 | I4: 900000 | J4: 509892.75 | L4: 3rd Quartile | M4: ='Summary Data'!AA3 ->  | N4: ='Summary Data'!AB3 ->  | R4: =M4-M6 ->  | S4: =N4-N6 ->  | W4: 3rd Quartile | X4: ='Summary Data'!AC3 ->  | Y4: ='Summary Data'!AD3 ->  | AC4: =X4-X6 ->  | AD4: =Y4-Y6 ->  | AH4: 3rd Quartile | AI4: ='Summary Data'!AE3 ->  | AJ4: ='Summary Data'!AF3 ->  | AN4: =AI4-AI6 ->  | AO4: =AJ4-AJ6 -> 
A5: Average | B5: ='Summary Data'!Q4 ->  | C5: ='Summary Data'!S4 -> 3408920 | D5: ='Summary Data'!T4 -> 1540000 | E5: ='Summary Data'!U4 -> 972719 | G5: =B5 ->  | H5: =C5 -> 3408920 | I5: 1540000 | J5: 972719 | L5: Average | M5: ='Summary Data'!AA4 ->  | N5: ='Summary Data'!AB4 ->  | R5: =M5 ->  | S5: =N5 ->  | W5: Average | X5: ='Summary Data'!AC4 ->  | Y5: ='Summary Data'!AD4 ->  | AC5: =X5 ->  | AD5: =Y5 ->  | AH5: Average | AI5: ='Summary Data'!AE4 ->  | AJ5: ='Summary Data'!AF4 ->  | AN5: =AI5 ->  | AO5: =AJ5 -> 
A6: Medium | B6: ='Summary Data'!Q5 ->  | C6: ='Summary Data'!S5 -> 3408920 | D6: ='Summary Data'!T5 -> 1100000 | E6: ='Summary Data'!U5 -> 610543.5 | G6: =B6-B7 ->  | H6: =C6-C7 -> 0 | I6: 240000 | J6: 258006.75 | L6: Medium | M6: ='Summary Data'!AA5 ->  | N6: ='Summary Data'!AB5 ->  | R6: =M6-M7 ->  | S6: =N6-N7 ->  | W6: Medium | X6: ='Summary Data'!AC5 ->  | Y6: ='Summary Data'!AD5 ->  | AC6: =X6-X7 ->  | AD6: =Y6-Y7 ->  | AH6: Medium | AI6: ='Summary Data'!AE5 ->  | AJ6: ='Summary Data'!AF5 ->  | AN6: =AI6-AI7 ->  | AO6: =AJ6-AJ7 -> 
A7: 1st Quartile | B7: ='Summary Data'!Q6 ->  | C7: ='Summary Data'!S6 -> 3408920 | D7: ='Summary Data'!T6 -> 860000 | E7: ='Summary Data'!U6 -> 352536.75 | G7: =B7 ->  | H7: =C7 -> 3408920 | I7: 860000 | J7: 352536.75 | L7: 1st Quartile | M7: ='Summary Data'!AA6 ->  | N7: ='Summary Data'!AB6 ->  | R7: =M7 ->  | S7: =N7 ->  | W7: 1st Quartile | X7: ='Summary Data'!AC6 ->  | Y7: ='Summary Data'!AD6 ->  | AC7: =X7 ->  | AD7: =Y7 ->  | AH7: 1st Quartile | AI7: ='Summary Data'!AE6 ->  | AJ7: ='Summary Data'!AF6 ->  | AN7: =AI7 ->  | AO7: =AJ7 -> 
A8: Minimum | B8: ='Summary Data'!Q7 -> 0 | C8: ='Summary Data'!S7 -> 3408920 | D8: ='Summary Data'!T7 -> 620000 | E8: ='Summary Data'!U7 -> 9910 | G8: =B6-B8 ->  | H8: =C6-C8 -> 0 | I8: 480000 | J8: 600633.5 | L8: Minimum | M8: ='Summary Data'!AA7 -> 0 | N8: ='Summary Data'!AB7 -> 0 | R8: =M6-M8 ->  | S8: =N6-N8 ->  | W8: Minimum | X8: ='Summary Data'!AC7 -> 0 | Y8: ='Summary Data'!AD7 -> 0 | AC8: =X6-X8 ->  | AD8: =Y6-Y8 ->  | AH8: Minimum | AI8: ='Summary Data'!AE7 -> 0 | AJ8: ='Summary Data'!AF7 -> 0 | AN8: =AI6-AI8 ->  | AO8: =AJ6-AJ8 -> 

Sheet Formatted Web Traffic Data
C1: Source | D1: Alexa | E1: Alexa | F1: Alexa | G1: Alexa | H1: Alexa | I1: Alexa | J1: Alexa | K1: Alexa | L1: Compete.com | M1: Compete.com | N1: Compete.com | O1: doubleckick ad planner | P1: doubleckick ad planner | Q1: doubleckick ad planner | R1: doubleckick ad planner | S1: doubleckick ad planner | T1: doubleckick ad planner | U1: doubleckick ad planner | V1: doubleckick ad planner | W1: quantcast | X1: quantcast | Y1: quantcast
C2: Metric | D2: Time Period | E2: Rank | F2: Reach | G2: Reach | H2: Pageviews/Users | I2: Bounce % | J2: Average Minutes | K2: Search Traffic % | L2: Time Period | M2: Visitors | N2: Visits | O2: Time Period | P2: Visitors (Cookies) | Q2: Visitors | R2: Reach | S2: Page Views | T2: Visits | U2: Average Visits per Visitor | V2: Average Minutes | W2: Time Period | X2: Visits | Y2: Visitors
A3: Domain | B3: Full Company Name | C3: Date/Description | D3: Time Period | E3: Traffic Rank | F3: Reach (User) | G3: Reach (Pageviews) | H3: Daily Pageviews/Users | I3: Bounce % | J3: Time on Site (minutes) | K3: Search % | L3: Time Period | M3: Unique Visitors | N3: Visits | O3: Time Period | P3: Unique visitors (cookies) | Q3: Unique visitors (users) | R3: Reach | S3: Page views | T3: Total Visits | U3: Avg visits per visitor | V3: Avg time on site | W3: Time Period | X3: Visits per Month | Y3: People per Month
A4: NFLShop.com | B4: National Football League | C4: 2010-12-22 | D4: 1 month | E4: 5713 | F4: 2.06e-05 | G4: 0.000208 | H4: 22.6 | I4: 0.103 | J4: 7.63167 | K4: 0.169 | L4: 2010-11-01 | M4: 2089956 | N4: 3408920 | O4: NA | P4: Error or No AdPlanner Data for NFLShopco00000 | Q4: NA | R4: NA | S4: NA | T4: NA | U4: NA | W4: 40513 | X4: 3048382 | Y4: 1304539
A5: Shop.MLB.com | B5: MLB Advanced Media | C5: 2010-12-22 | D5: NA | E5: Error or No Alexa Data for Shop.MLB.com | H5: NA | J5: NA | L5: Error or No Compete.com Data for Shop.MLB.com | M5: NA | N5: NA | O5: 2010-11-01 | P5: 1800000 | Q5: 510000 | R5: 0 | S5: 38000000 | T5: 2900000 | U5: 5.6 | V5: 8 | W5: 40513 | X5: 1221786 | Y5: 560088
A6: Shop.NHL.com | B6: National Hockey League | C6: 2010-12-22 | D6: NA | E6: Error or No Alexa Data for Shop.NHL.com | H6: NA | J6: NA | L6: Error or No Compete.com Data for Shop.NHL.com | M6: NA | N6: NA | O6: 2010-11-01 | P6: 840000 | Q6: 220000 | R6: 0 | S6: 12000000 | T6: 1100000 | U6: 5 | V6: 8.166666667 | W6: 40513 | X6: 335149 | Y6: 179177
A7: Store.NASCAR.com | B7: NASCAR.com Superstore | C7: 2010-12-22 | D7: NA | E7: Error or No Alexa Data for Store.NASCAR.com | H7: NA | J7: NA | L7: Error or No Compete.com Data for Store.NASCAR.com | M7: NA | N7: NA | O7: 2010-11-01 | P7: 420000 | Q7: 110000 | R7: 0 | S7: 7400000 | T7: 620000 | U7: 5.6 | V7: 9.833333333 | W7: 40513 | X7: 816387 | Y7: 309142
A8: Store.NBA.com | B8: NBA Media Ventures LLC | C8: 2010-12-22 | D8: NA | E8: Error or No Alexa Data for Store.NBA.com | H8: NA | J8: NA | L8: Error or No Compete.com Data for Store.NBA.com | M8: NA | N8: NA | O8: NA | P8: Error or No AdPlanner Data for StoreN000000000Aco00000 | Q8: NA | R8: NA | S8: NA | T8: NA | U8: NA | W8: 40513 | X8: 404700 | Y8: 151770
A9: Store.NCAAFootball.com | B9: FansEdge Inc. | C9: 2010-12-22 | D9: NA | E9: Error or No Alexa Data for Store.NCAAFootball.com | H9: NA | J9: NA | L9: Error or No Compete.com Data for Store.NCAAFootball.com | M9: NA | N9: NA | O9: NA | P9: Error or No AdPlanner Data for StoreNCAAFoot000000000allco00000 | Q9: NA | R9: NA | S9: NA | T9: NA | U9: NA | W9: 40513 | X9: 9910 | Y9: 15469
A10: Aeropostale.com | B10: AÃ©ropostale Inc. | C10: 2010-12-08 | D10: 1 month | E10: 3463 | F10: 3.41e-05 | G10: 0.000325 | H10: 16.1 | I10: 0.109 | J10: 7.32167 | K10: 0.154 | L10: 2010-11-01 | M10: 4242698 | N10: 8959778 | O10: 2010-11-01 | P10: Error or No AdPlanner Data for Aeropostaleco00000 | Q10: 160000 | R10: 0 | S10: 6100000 | T10: 1100000 | U10: 6.8 | V10: 7.5 | W10: Nov 2010 Delayed - | X10: 4436014 | Y10: 1425010
A11: Abercrombie.com | B11: Abercrombie & Fitch Co. | C11: 2010-12-08 | D11: 1 month | E11: 4277 | F11: 2.38e-05 | G11: 0.00028 | H11: 18.2 | I11: 0.089 | J11: 5.04333 | K11: 0.244 | L11: 2010-11-01 | M11: 1603040 | N11: 2778195 | O11: 2010-11-01 | P11: Error or No AdPlanner Data for A000000000ercro000000000000000ieco00000 | Q11: 2000000 | R11: 0.001 | S11: 130000000 | T11: 13000000 | U11: 6.6 | V11: 9 | W11: Nov 2010 Delayed - | X11: 2188721 | Y11: 662799
A12: AbercrombieKids.com | B12: Abercrombie & Fitch Co. | C12: 2010-12-08 | D12: 12 month | E12: 24136 | F12: 5.1e-06 | G12: 5.5e-05 | H12: 14.9 | I12: 0.098 | J12: 5.93833 | K12: 0.131 | L12: 2010-10-01 | M12: 322091 | N12: 629710 | O12: 2010-11-01 | P12: 1200000 | Q12: 360000 | R12: 0 | S12: 31000000 | T12: 1900000 | U12: 5.4 | V12: 9.166666667 | W12: Nov 2010 Delayed - | X12: 899758 | Y12: 168180
A13: GillyHicks.com | B13: Abercrombie & Fitch Co. | C13: 2010-12-08 | D13: 13 month | E13: 99521 | F13: 1.3e-06 | G13: 1.32e-05 | H13: 15 | I13: 0.1 | J13: 3.81833 | K13: 0.179 | L13: 2010-10-01 | M13: 65286 | N13: 121744 | O13: 2010-11-01 | P13: 240000 | Q13: 63000 | R13: 0 | S13: 4100000 | T13: 350000 | U13: 5.5 | V13: 7.5 | W13: Nov 2010 Delayed - | X13: 17443 | Y13: 15042
A14: HollisterCo.com | B14: Abercrombie & Fitch Co. | C14: 2010-12-08 | D14: 14 month | E14: 6372 | F14: 1.64e-05 | G14: 0.000194 | H14: 16.1 | I14: 0.088 | J14: 6.18667 | K14: 0.232 | L14: 2010-10-01 | M14: 1829694 | N14: 3505466 | O14: 2010-11-01 | P14: 4600000 | Q14: 1100000 | R14: 0.001 | S14: 72000000 | T14: 7500000 | U14: 6.8 | V14: 8.833333333 | W14: Nov 2010 Delayed - | X14: 3601042 | Y14: 895277
A15: Ruehl.com | B15: Abercrombie & Fitch Co. | C15: 2010-12-08 | D15: 15 month | E15: 1060280 | G15: 1.6e-06 | H15: 54.5 | I15: 0.015 | J15: 1.33667 | K15: 0.455 | L15: 2010-10-01 | M15: 5800 | N15: 6454 | O15: 2010-11-01 | P15: 27000 | Q15: 10000 | R15: 0 | S15: 77000 | T15: 27000 | U15: 2.6 | V15: 1.65 | W15: Error or No Quantcast Data for Ruehl.com | X15: Error or No Quantcast Data for Ruehl.com | Y15: NA
A16: Abt.com | B16: Abt Electronics Inc. | C16: 2010-12-08 | D16: 10 month | E16: 18747 | F16: 2.5e-06 | G16: 9.7e-05 | H16: 50.9 | I16: 0.0265 | J16: 2.77 | K16: 0.265 | L16: 2010-10-01 | M16: 344923 | N16: 470558 | O16: 2010-11-01 | P16: 1000000 | Q16: 290000 | R16: 0 | S16: 5100000 | T16: 1200000 | U16: 4.2 | V16: 5.5 | W16: Nov 2010 Delayed - | X16: 455131 | Y16: 231479
A17: AceHardware.com | B17: Ace Hardware Corp. | C17: 2010-12-08 | D17: 9 month | E17: 11033 | F17: 5e-06 | G17: 0.000148 | H17: 37.8 | I17: 0.035 | J17: 2.52833 | K17: 0.38 | L17: 2010-10-01 | M17: 1679784 | N17: 2060382 | O17: 2010-11-01 | P17: 2400000 | Q17: 690000 | R17: 0 | S17: 14000000 | T17: 2900000 | U17: 4.2 | V17: 5 | W17: Nov 2010 Delayed - | X17: 1863611 | Y17: 1281661
A18: AdoramaPix.com | B18: Adorama Camera Inc. | C18: 2010-12-08 | D18: 8 month | E18: 94350 | F18: 7e-07 | G18: 1.69e-05 | H18: 26.7 | I18: 0.044 | J18: 5.00333 | K18: 0.076 | L18: 2010-10-01 | M18: 39480 | N18: 83513 | O18: 2010-11-01 | P18: 140000 | Q18: 36000 | R18: 0 | S18: 1800000 | T18: 270000 | U18: 7.5 | V18: 11.83333333 | W18: Error or No Quantcast Data for AdoramaPix.com | X18: Error or No Quantcast Data for AdoramaPix.com | Y18: NA
A19: Aeropostale.com | B19: Aeropostale Inc. | C19: 2010-12-08 | D19: 16 month | E19: 3533 | F19: 3.33e-05 | G19: 0.000318 | H19: 15.5 | I19: 0.109 | J19: 7.11833 | K19: 0.149 | L19: 2010-10-01 | M19: 2897773 | N19: 5738592 | O19: 2010-11-01 | P19: 6100000 | Q19: 1500000 | R19: 0.001 | S19: 160000000 | T19: 11000000 | U19: 7.3 | V19: 10 | W19: Nov 2010 Delayed - | X19: 4436014 | Y19: 1425010
A20: Amazon.ca | B20: Amazon.com Inc. | C20: 2010-12-08 | D20: 1 month | E20: 1924 | F20: 3.77e-05 | G20: 0.00062 | H20: 28.5 | I20: 0.0631 | J20: 4.96833 | K20: 0.172 | L20: 2010-11-01 | M20: 313594 | N20: 474899 | O20: 2010-11-01 | P20: 4700000 | Q20: 1500000 | R20: 0.001 | S20: 74000000 | T20: 8100000 | U20: 5.5 | V20: 8.333333333 | W20: 40513 | X20: 2565590 | Y20: 952101
A21: Amazon.cn | B21: Amazon.com Inc. | C21: 2010-12-08 | D21: 1 month | E21: 459 | F21: 0.000172 | G21: 0.00213 | H21: 30.2 | I21: 0.0839 | J21: 6.27167 | K21: 0.125 | L21: 2010-11-01 | M21: 21957 | N21: 27355 | O21: 2010-11-01 | P21: 15000000 | Q21: 6700000 | R21: 0.004 | S21: 140000000 | T21: 24000000 | U21: 3.5 | V21: 7.333333333 | W21: 40513 | X21: 706 | Y21: 12307
A22: Amazon.co.jp | B22: Amazon.com Inc. | C22: 2010-12-08 | D22: 1 month | E22: 104 | F22: 0.0005657 | G22: 0.00869 | H22: 34.5 | I22: 0.0676 | J22: 5.66167 | K22: 0.317 | L22: 2010-11-01 | M22: 144619 | N22: 381432 | O22: 2010-11-01 | P22: 38000000 | Q22: 34000000 | R22: 0.022 | S22: 1300000000 | T22: 160000000 | U22: 4.6 | V22: 9.166666667 | W22: 40513 | X22: 832087 | Y22: 113066
A23: Amazon.co.uk | B23: Amazon.com Inc. | C23: 2010-12-08 | D23: 1 month | E23: 98 | F23: 0.0007959 | G23: 0.00839 | H23: 27.1 | I23: 0.0985 | J23: 8.62667 | K23: 0.199 | L23: 2010-11-01 | M23: 1451049 | N23: 1976011 | O23: 2010-11-01 | P23: 54000000 | Q23: 17000000 | R23: 0.011 | S23: 1600000000 | T23: 140000000 | U23: 8.1 | V23: 11.16666667 | W23: 40513 | X23: 6273909 | Y23: 2967866
A24: Amazon.com | B24: Amazon.com Inc. | C24: 2010-12-08 | D24: 1 month | E24: 13 | F24: 0.004521 | G24: 0.04854 | H24: 29.1 | I24: 0.0971 | J24: 9.19 | K24: 0.175 | L24: 2010-10-01 | M24: 71383975 | N24: 264011651 | O24: 2010-11-01 | P24: 230000000 | Q24: 74000000 | R24: 0.048 | S24: 5900000000 | T24: 650000000 | U24: 8.8 | V24: 10 | W24: Nov 2010 Delayed - | X24: 551650703 | Y24: 72697386
A25: Amazon.de | B25: Amazon.com Inc. | C25: 2010-12-08 | D25: 1 month | E25: 78 | F25: 0.0010714 | G25: 0.01014 | H25: 25 | I25: 0.1097 | J25: 9.16833 | K25: 0.142 | L25: 2010-11-01 | M25: 153820 | N25: 255018 | O25: 2010-11-01 | P25: 45000000 | Q25: 18000000 | R25: 0.011 | S25: 1400000000 | T25: 150000000 | U25: 8.2 | V25: 10.66666667 | W25: 40513 | X25: 1988166 | Y25: 678574
A26: Amazon.fr | B26: Amazon.com Inc. | C26: 2010-12-08 | D26: 1 month | E26: 526 | F26: 0.0001305 | G26: 0.002008 | H26: 32.3 | I26: 0.0675 | J26: 5.48167 | K26: 0.24 | L26: 2010-11-01 | M26: 138322 | N26: 203208 | O26: 2010-11-01 | P26: 18000000 | Q26: 5600000 | R26: 0.004 | S26: 330000000 | T26: 37000000 | U26: 6.6 | V26: 8.166666667 | W26: 40513 | X26: 7042862 | Y26: 554014
A27: AE.com | B27: American Eagle Outfitters Inc. | C27: 2010-12-08 | D27: 1 month | E27: 2548 | F27: 3.58e-05 | G27: 0.000449 | H27: 23.9 | I27: 0.0829 | J27: 6.23833 | K27: 0.17 | L27: 2010-11-01 | M27: 4168409 | N27: 8251051 | O27: 2010-11-01 | P27: 7500000 | Q27: 2000000 | R27: 0.001 | S27: 130000000 | T27: 13000000 | U27: 6.6 | V27: 9 | W27: Nov 2010 Delayed - | X27: 4714065 | Y27: 1890403
A28: AmwayGlobal.com | B28: Amway Global | C28: 2010-12-08 | D28: 1 month | E28: 7065640 | G28: 2e-07 | H28: - | I28: 0.01 | J28: 0.025 | L28: 2010-11-01 | M28: 10144 | N28: 18840 | O28: NA | P28: Error or No AdPlanner Data for A000000wayGlo000000000alco00000 | Q28: 0 | R28: NA | S28: 0 | T28: 0 | U28: NA | V28: 0 | W28: Error or No Quantcast Data for AmwayGlobal.com | X28: NA | Y28: NA
A29: AnnTaylor.com | B29: Ann Taylor Stores Corp. | C29: 2010-12-08 | D29: 1 month | E29: 10335 | F29: 1.11e-05 | G29: 0.000124 | H29: 21.2 | I29: 0.093 | J29: 4.965 | K29: 0.174 | L29: 2010-11-01 | M29: 866949 | N29: 1390673 | O29: 2010-11-01 | P29: 2600000 | Q29: 690000 | R29: 0 | S29: 51000000 | T29: 3800000 | U29: 5.5 | V29: 8.166666667 | W29: 40513 | X29: 670526 | Y29: 452451
A30: Store.Apple.com | B30: Apple Inc. | C30: 2010-12-08 | D30: NA | E30: Error or No Alexa Data for Store.Apple.com | H30: NA | J30: NA | L30: Error or No Compete.com Data for Store.Apple.com | M30: NA | N30: NA | O30: 2010-11-01 | P30: 51000000 | Q30: 19000000 | R30: 0.012 | S30: 280000000 | T30: 74000000 | U30: 3.8 | V30: 6 | W30: 40513 | X30: 3468438 | Y30: 2363548
A31: BassPro.com | B31: Bass Pro Outdoor Online LLC | C31: 2010-12-08 | D31: 1 month | E31: 4854 | F31: 1.77e-05 | G31: 0.000263 | H31: 27.2 | I31: 0.0701 | J31: 6.30167 | K31: 0.288 | L31: 2010-11-01 | M31: 3497855 | N31: 6022330 | O31: 2010-11-01 | P31: 5000000 | Q31: 1200000 | R31: 0.001 | S31: 81000000 | T31: 7400000 | U31: 6.1 | V31: 10 | W31: Nov 2010 Delayed - | X31: 6321640 | Y31: 2346371
A32: BestBuy.com | B32: Best Buy Co. | C32: 2010-12-08 | D32: 1 month | E32: 167 | F32: 0.0003925 | G32: 0.00555 | H32: 23 | I32: 0.0737 | J32: 5.43333 | K32: 0.189 | L32: 2010-11-01 | M32: 33072607 | N32: 68215048 | O32: 2010-11-01 | P32: 61000000 | Q32: 16M | R32: 0.01 | S32: 870M | T32: 110M | U32: 6.7 | V32: 09:10:00 | W32: Nov 2010 Delayed - | X32: 38260967 | Y32: 9700333
A33: Buy.com | B33: Best Buy Co. | C33: 2010-12-08 | D33: 1 month | E33: 709 | F33: 6.65e-05 | G33: 0.001737 | H33: 47.8 | I33: 0.0397 | J33: 3.85667 | K33: 0.213 | L33: 2010-11-01 | M33: 5615667 | N33: 9570299 | O33: 2010-11-01 | P33: 12000000 | Q33: 3500000 | R33: 0.002 | S33: 80000000 | T33: 19000000 | U33: 5.5 | V33: 5.666666667 | W33: 40513 | X33: 7489907 | Y33: 3599646
A34: BJs.com | B34: BJ's Wholesale Club | C34: 2010-12-08 | D34: 1 month | E34: 6853 | F34: 1.03e-05 | G34: 0.000207 | H34: 24.6 | I34: 0.0517 | J34: 4.18833 | K34: 0.211 | L34: 2010-11-01 | M34: 1886508 | N34: 3417114 | O34: 2010-11-01 | P34: 3400000 | Q34: 920000 | R34: 0.001 | S34: 38000000 | T34: 5600000 | U34: 6.1 | V34: 6.666666667 | W34: Nov 2010 Delayed - | X34: 1615389 | Y34: 662093
A35: CDW.com | B35: CDW Corp. | C35: 2010-12-08 | D35: 1 month | E35: 13943 | F35: 5e-06 | G35: 0.000111 | H35: 39.6 | I35: 0.047 | J35: 3.85833 | K35: 0.197 | L35: 2010-11-01 | M35: 366571 | N35: 595269 | O35: 2010-11-01 | P35: 1000000 | Q35: 290000 | R35: 0 | S35: 12000000 | T35: 1600000 | U35: 5.5 | V35: 10 | W35: Nov 2010 Delayed - | X35: 248390 | Y35: 208839
A36: Costco.com | B36: Costco Wholesale Corp. | C36: 2010-12-08 | D36: 0 month | E36: 656 | F36: 9.54e-05 | G36: 0.001681 | H36: 19.2 | I36: 0.0592 | J36: 4.68833 | K36: 0.176 | L36: 2010-11-01 | M36: 8192955 | N36: 16033155 | O36: 2010-11-01 | P36: 21000000 | Q36: 6100000 | R36: 0.004 | S36: 280000000 | T36: 38000000 | U36: 6.3 | V36: 7.5 | W36: Nov 2010 Delayed - | X36: 9393357 | Y36: 3824967
A37: eBags.com | B37: eBags.com | C37: 2010-12-08 | D37: 1 month | E37: 5563 | F37: 1.65e-05 | G37: 0.000229 | H37: 31.8 | I37: 0.075 | J37: 6.75833 | K37: 0.196 | L37: 2010-11-01 | M37: 985730 | N37: 1548385 | O37: 2010-11-01 | P37: 2200000 | Q37: 620000 | R37: 0 | S37: 29000000 | T37: 2900000 | U37: 4.7 | V37: 9 | W37: 40513 | X37: 971252 | Y37: 516890
A38: facebook.com | B38: Facebook | C38: 2010-12-08 | D38: 7 month | E38: 2 | F38: 0.047925 | G38: 0.3804 | H38: 14.6 | I38: 0.1313 | J38: 31.86667 | K38: 0.065 | L38: 2010-10-01 | M38: 133541892 | N38: 3541659918 | O38: 2010-11-01 | P38: 1700000000 | Q38: 590000000 | R38: 0.382 | S38: 750000000000 | T38: 22000000000 | U38: 38 | V38: 11.33333333 | W38: Nov 2010 Delayed - | X38: 8688807902 | Y38: 136862073
A39: Forever21.com | B39: Forever 21 | C39: 2010-12-08 | D39: 1 month | E39: 1894 | F39: 6.97e-05 | G39: 0.00053 | H39: 15.9 | I39: 0.137 | J39: 9.04 | K39: 0.143 | L39: 2010-11-01 | M39: 3195498 | N39: 7837298 | O39: NA | P39: Error or No AdPlanner Data for Forever21co00000 | Q39: NA | R39: NA | S39: NA | T39: NA | U39: NA | V39: 0 | W39: Nov 2010 Delayed - | X39: 3712994 | Y39: 1298070
A40: Frys.com | B40: Frys.com | C40: 2010-12-08 | D40: 1 month | E40: 2011 | F40: 3.97e-05 | G40: 0.000573 | H40: 19.2 | I40: 0.0719 | J40: 4.84833 | K40: 0.194 | L40: 2010-11-01 | M40: 1793555 | N40: 3391502 | O40: 2010-11-01 | P40: 4100000 | Q40: 1200000 | R40: 0.001 | S40: 54000000 | T40: 6800000 | U40: 5.6 | V40: 8 | W40: 40513 | X40: 3346366 | Y40: 1199226
A41: GameFly.com | B41: GameFly Inc. | C41: 2010-12-08 | D41: 1 month | E41: 4316 | F41: 1.55e-05 | G41: 0.000318 | H41: 42.2 | I41: 0.0507 | J41: 3.86167 | K41: 0.074 | L41: 2010-11-01 | M41: 2163767 | N41: 4127539 | O41: NA | P41: Error or No AdPlanner Data for Ga000000eFlyco00000 | Q41: NA | R41: NA | S41: NA | T41: NA | U41: NA | V41: NA | W41: 2010-12-01 | X41: 7351865 | Y41: 1864030
A42: BananaRepublic.com | B42: Gap Inc. Direct | C42: 2010-12-08 | D42: 1 month | E42: 21845 | F42: 1.5e-06 | G42: 0.000102 | H42: 65.3 | I42: 0.0152 | J42: 0.37333 | K42: 0.267 | L42: 2010-11-01 | M42: 499218 | N42: 672086 | O42: 2010-11-01 | P42: 1800000 | Q42: 520000 | R42: 0 | S42: 4200000 | T42: 2400000 | U42: 4.6 | V42: 1.083333333 | W42: 40513 | X42: 229627 | Y42: 187571
A43: Gap.com | B43: Gap Inc. Direct | C43: 2010-12-08 | D43: 1 month | E43: 553 | F43: 0.0001611 | G43: 0.00178 | H43: 22.3 | I43: 0.0939 | J43: 6.76 | K43: 0.087 | L43: 2010-11-01 | M43: 11226693 | N43: 22891456 | O43: 2010-11-01 | P43: 28000000 | Q43: 7500000 | R43: 0.005 | S43: 540000000 | T43: 50000000 | U43: 6.6 | V43: 10.83333333 | W43: 40513 | X43: 15020492 | Y43: 5700645
A44: GapBody.com | B44: Gap Inc. Direct | C44: 2010-12-08 | D44: NA | E44: Error or No Alexa Data for GapBody.com | H44: x | J44: x | L44: 2010-11-01 | M44: 269 | N44: 269 | O44: 2010-11-01 | P44: 28000000 | Q44: 7500000 | R44: 0.005 | S44: 540000000 | T44: 50000000 | U44: 6.6 | V44: 10.83333333 | W44: Error or No Quantcast Data for GapBody.com | X44: x | Y44: x
A45: GapMaternity.com | B45: Gap Inc. Direct | C45: 2010-12-08 | D45: NA | E45: Error or No Alexa Data for GapMaternity.com | F45: 0 | G45: 0 | H45: NA | I45: 0 | J45: NA | K45: 0 | L45: 2010-11-01 | M45: 220 | N45: 220 | O45: 2010-11-01 | P45: 28000000 | Q45: 7500000 | R45: 0.005 | S45: 540000000 | T45: 50000000 | U45: 6.6 | V45: 10.83333333 | W45: Error or No Quantcast Data for GapMaternity.com | X45: NA | Y45: NA
A46: OldNavy.com | B46: Gap Inc. Direct | C46: 2010-12-08 | D46: 1 month | E46: 6634 | F46: 4.5e-06 | G46: 0.000308 | H46: 59.7 | I46: 0.0152 | J46: 0.43833 | K46: 0.346 | L46: 2010-11-01 | M46: 4180642 | N46: 6679900 | O46: 2010-11-01 | P46: 9000000 | Q46: 2200000 | R46: 0.001 | S46: 21000000 | T46: 13000000 | U46: 6.1 | V46: 1.35 | W46: 40513 | X46: 4179603 | Y46: 2295725
A47: google.com | B47: Google | C47: 2010-12-08 | D47: 6 month | E47: 1 | F47: 0.052218 | G47: 0.4504 | H47: 26.5 | I47: 0.1208 | J47: 13.30167 | K47: 0.03 | L47: 2010-10-01 | M47: 146069780 | N47: 3184441871 | O47: NA | P47: Error or No AdPlanner Data for googleco00000 | Q47: NA | R47: NA | S47: NA | T47: NA | U47: NA | V47: NA | W47: Nov 2010 Delayed - | X47: 4929817318 | Y47: 161385235
A48: Guess.com | B48: Guess? Inc. | C48: 2010-12-08 | D48: 1 month | E48: 11582 | F48: 7.2e-06 | G48: 0.000123 | H48: 27.9 | I48: 0.061 | J48: 3.945 | K48: 0.209 | L48: 2010-11-01 | M48: 670362 | N48: 1143136 | O48: 2010-11-01 | P48: 1800000 | Q48: 510000 | R48: 0 | S48: 28000000 | T48: 2600000 | U48: 5.1 | V48: 8.166666667 | W48: 40513 | X48: 554936 | Y48: 227495
A49: HSN.com | B49: HSN Inc. | C49: 2010-12-08 | D49: 1 month | E49: 1508 | F49: 5.41e-05 | G49: 0.000751 | H49: 28.9 | I49: 0.0751 | J49: 8.185 | K49: 0.172 | L49: 2010-11-01 | M49: 6983334 | N49: 18301369 | O49: 2010-11-01 | P49: 8900000 | Q49: 2600000 | R49: 0.002 | S49: 230000000 | T49: 21000000 | U49: 8 | V49: 10.66666667 | W49: Nov 2010 Delayed - | X49: 14308169 | Y49: 2120261
A50: JCrew.com | B50: J. Crew Group Inc. | C50: 2010-12-08 | D50: 1 month | E50: 2467 | F50: 4.93e-05 | G50: 0.000426 | H50: 17.4 | I50: 0.12 | J50: 6.46667 | K50: 0.16 | L50: 2010-11-01 | M50: 1288784 | N50: 2795797 | O50: 2010-11-01 | P50: 5100000 | Q50: 1300000 | R50: 0.001 | S50: 120000000 | T50: 9000000 | U50: 6.7 | V50: 9.833333333 | W50: 40513 | X50: 2654089 | Y50: 699363
A51: Newegg.ca | B51: Newegg Inc. | C51: 2010-12-08 | D51: 1 month | E51: 14211 | F51: 6.2e-06 | G51: 0.000101 | H51: 32.9 | I51: 0.064 | J51: 5.265 | K51: 0.098 | L51: 2010-11-01 | M51: 21453 | N51: 28682 | O51: 2010-11-01 | P51: 470000 | Q51: 160000 | R51: 0 | S51: 6100000 | T51: 1100000 | U51: 6.8 | V51: 7.5 | W51: Error or No Quantcast Data for Newegg.ca | X51: 14308169 | Y51: 2120261
A52: Newegg.com | B52: Newegg Inc. | C52: 2010-12-08 | D52: 1 month | E52: 280 | F52: 0.0002541 | G52: 0.00354 | H52: 34.2 | I52: 0.0748 | J52: 6.36167 | K52: 0.132 | L52: 2010-11-01 | M52: 5622548 | N52: 16529932 | O52: 2010-11-01 | P52: Error or No AdPlanner Data for Neweggco00000 | Q52: 290000 | R52: 0 | S52: 12000000 | T52: 1600000 | U52: 5.5 | V52: 10 | W52: Nov 2010 Delayed - | X52: 15645740 | Y52: 2697334
A53: NeweggBusiness.com | B53: Newegg Inc. | C53: 2010-12-08 | D53: 1 month | E53: 53697 | F53: 1.9e-06 | G53: 2.7e-05 | H53: 30.7 | I53: 0.075 | J53: 5.23667 | K53: 0.106 | L53: 2010-11-01 | M53: 52379 | N53: 70753 | O53: NA | P53: Error or No AdPlanner Data for Newegg000000000usinessco00000 | Q53: NA | R53: NA | S53: NA | T53: NA | U53: NA | V53: NA | W53: Error or No Quantcast Data for NeweggBusiness.com | X53: NA | Y53: NA
A54: OfficeDepot.com | B54: Office Depot Inc. | C54: 2010-12-08 | D54: 1 month | E54: 1534 | F54: 3.68e-05 | G54: 0.000835 | H54: 35.1 | I54: 0.0458 | J54: 3.995 | K54: 0.185 | L54: 2010-11-01 | M54: 5472477 | N54: 9166459 | O54: 2010-11-01 | P54: 10000000 | Q54: 2600000 | R54: 0.002 | S54: 110000000 | T54: 15000000 | U54: 5.6 | V54: 8.166666667 | W54: 40513 | X54: 5077907 | Y54: 2924323
A55: OfficeMax.com | B55: OfficeMax Inc. | C55: 2010-12-08 | D55: 1 month | E55: 2974 | F55: 1.98e-05 | G55: 0.000461 | H55: 32.3 | I55: 0.0445 | J55: 3.44667 | K55: 0.218 | L55: 2010-11-01 | M55: 3459629 | N55: 5048666 | O55: 2010-11-01 | P55: 5600000 | Q55: 1500000 | R55: 0.001 | S55: 49000000 | T55: 7500000 | U55: 5 | V55: 6.833333333 | W55: 40513 | X55: 1711864 | Y55: 1048931
A56: RadioShack.com | B56: RadioShack Corp. | C56: 2010-12-08 | D56: 1 month | E56: 2438 | F56: 2.16e-05 | G56: 0.000559 | H56: 32.2 | I56: 0.0401 | J56: 3.25833 | K56: 0.258 | L56: 2010-11-01 | M56: 5790084 | N56: 8255816 | O56: 2010-11-01 | P56: 7400000 | Q56: 1900000 | R56: 0.001 | S56: 56000000 | T56: 10000000 | U56: 5.2 | V56: 6.166666667 | W56: 40513 | X56: 3523952 | Y56: 2062689
A57: RalphLauren.com | B57: Ralph Lauren Media LLC | C57: 2010-12-08 | D57: NA | E57: Error or No Alexa Data for RalphLauren.com | F57: NA | G57: NA | H57: NA | I57: NA | J57: NA | K57: NA | L57: 2010-11-01 | M57: 1551117 | N57: 2745768 | O57: 2010-11-01 | P57: 4200000 | Q57: 1200000 | R57: 0.001 | S57: 80000000 | T57: 6100000 | U57: 5.1 | V57: 12.16666667 | W57: 40513 | X57: 1403747 | Y57: 648877
A58: Kmart.com | B58: Sears Holdings Corp. | C58: 2010-12-08 | D58: 1 month | E58: 939 | F58: 7.4e-05 | G58: 0.001175 | H58: 26.6 | I58: 0.0654 | J58: 5.39833 | K58: 0.227 | L58: 2010-11-01 | M58: 15720106 | N58: 27918328 | O58: 2010-11-01 | P58: 20000000 | Q58: 5100000 | R58: 0.003 | S58: 250000000 | T58: 28000000 | U58: 5.5 | V58: 9 | W58: 40513 | X58: 20755195 | Y58: 8913201
A59: Staples.com | B59: Staples Inc. | C59: 2010-12-08 | D59: 1 month | E59: 836 | F59: 6.16e-05 | G59: 0.001444 | H59: 34.2 | I59: 0.0443 | J59: 4.17833 | K59: 0.156 | L59: 2010-11-01 | M59: 9542401 | N59: 17411663 | O59: 2010-11-01 | P59: 16000000 | Q59: 4600000 | R59: 0.003 | S59: 140000000 | T59: 26000000 | U59: 5.6 | V59: 7.333333333 | W59: 40513 | X59: 13491272 | Y59: 5720808
A60: TigerDirect.com | B60: Systemax Inc. | C60: 2010-12-08 | D60: 1 month | E60: 683 | F60: 8.34e-05 | G60: 0.00168 | H60: 38.2 | I60: 0.0517 | J60: 4.97333 | K60: 0.131 | L60: 2010-11-01 | M60: 4366775 | N60: 10738580 | O60: 2010-11-01 | P60: 9800000 | Q60: 2.9M | R60: 0.002 | S60: 120M | T60: 18M | U60: 6.1 | V60: 08:10:00 | W60: Nov 2010 Delayed - | X60: 11519289 | Y60: 2065993
A61: Target.com | B61: Target Corporation | C61: 2010-12-08 | D61: 3 month | E61: 185 | F61: 0.0002664 | G61: 0.00543 | H61: 31.6 | I61: 0.0511 | J61: 4.57833 | K61: 0.225 | L61: 2010-10-01 | M61: 36593836 | N61: 66514757 | O61: 2010-11-01 | P61: 79000000 | Q61: 21000000 | R61: 0.014 | S61: 950000000 | T61: 150000000 | U61: 6.8 | V61: 7.333333333 | W61: Nov 2010 Delayed - | X61: 34784365 | Y61: 16166264
A62: Buckle.com | B62: The Buckle Inc. | C62: 2010-12-08 | D62: 1 month | E62: 15189 | F62: 9.1e-06 | G62: 8.3e-05 | H62: 23.1 | I62: 0.115 | J62: 5.61833 | K62: 0.207 | L62: 2010-11-01 | M62: 785672 | N62: 1438364 | O62: 2010-11-01 | P62: 1500000 | Q62: 320000 | R62: 0 | S62: 50000000 | T62: 2400000 | U62: 7.4 | V62: 10 | W62: 40513 | X62: 1251911 | Y62: 426463
A63: Timberland.com | B63: The Timberland Co. | C63: 2010-12-08 | D63: 1 month | E63: 10184 | F63: 8.2e-06 | G63: 0.000138 | H63: 22.8 | I63: 0.062 | J63: 4.595 | K63: 0.25 | L63: 2010-11-01 | M63: 525235 | N63: 762092 | O63: 2010-11-01 | P63: 1500000 | Q63: 470000 | R63: 0 | S63: 16000000 | T63: 1900000 | U63: 4.2 | V63: 7.5 | W63: 40513 | X63: 395432 | Y63: 248793
A64: Toys.com | B64: Toys 'R' Us Inc. | C64: 2010-12-08 | D64: 1 month | E64: 149565 | F64: 2e-07 | G64: 1.44e-05 | H64: 55.4 | I64: 0.015 | J64: 1.23 | K64: 0.096 | L64: 2010-11-01 | M64: 121101 | N64: 132226 | O64: 2010-11-01 | P64: 150000 | Q64: 39000 | R64: 0 | S64: 350000 | T64: 160000 | U64: 4.2 | V64: 1.616666667 | W64: 40513 | X64: 282830 | Y64: 316330
A65: Toysrus.com | B65: Toys 'R' Us Inc. | C65: 2010-12-08 | D65: 1 month | E65: 433 | F65: 0.0001885 | G65: 0.002247 | H65: 22.9 | I65: 0.0871 | J65: 7.115 | K65: 0.208 | L65: 2010-11-01 | M65: 18796999 | N65: 41332502 | O65: 2010-11-01 | P65: 31000000 | Q65: 8300000 | R65: 0.005 | S65: 660000000 | T65: 56000000 | U65: 6.8 | V65: 11.83333333 | W65: 40513 | X65: 27018556 | Y65: 9511381
A66: USToy.com | B66: U.S. Toy Co. Inc. | C66: 2010-12-08 | D66: 1 month | E66: 311836 | F66: 2e-07 | G66: 4.6e-06 | H66: 23.2 | I66: 0.048 | J66: 2.38 | K66: 0.286 | L66: 2010-11-01 | M66: 44906 | N66: 58654 | O66: 2010-11-01 | P66: 63000 | Q66: 18000 | R66: 0 | S66: 390000 | T66: 76000 | U66: 4.2 | V66: 4.166666667 | W66: 40513 | X66: 25548 | Y66: 33139
A67: Anthropologie.com | B67: Urban Outfitters Inc. | C67: 2010-12-08 | D67: 1 month | E67: 4795 | F67: 2.83e-05 | G67: 0.000234 | H67: 18.6 | I67: 0.126 | J67: 7.25833 | K67: 0.152 | L67: 2010-11-01 | M67: 648308 | N67: 1415646 | O67: 2010-11-01 | P67: 2400000 | Q67: 620000 | R67: 0 | S67: 61000000 | T67: 4600000 | U67: 7.5 | V67: 10.66666667 | W67: 40513 | X67: 1045790 | Y67: 395317
A68: Walmart.com | B68: Walmart.com | C68: 2010-12-08 | D68: 2 month | E68: 130 | F68: 0.0004677 | G68: 0.00721 | H68: 21.7 | I68: 0.0677 | J68: 6.59833 | K68: 0.202 | L68: 2010-10-01 | M68: 43309922 | N68: 91872996 | O68: 2010-11-01 | P68: 98000000 | Q68: 25000000 | R68: 0.016 | S68: 1700000000 | T68: 190000000 | U68: 7.5 | V68: 11 | W68: Nov 2010 Delayed - | X68: 90558281 | Y68: 26787610
A69: 0 | B69: 0 | C69: 0 | D69: NA | E69: 0 | F69: 0 | G69: 0 | H69: 0 | I69: 0 | J69: 0 | K69: 0 | L69: 0 | M69: 0 | N69: 0 | O69: 0 | P69: 0 | Q69: 0 | R69: 0 | S69: 0 | T69: 0 | U69: 0 | V69: 0 | W69: 0 | X69: 0 | Y69: 0

Sheet 2009 Internet Retailer Data
A1: URL = "number" | B1: Profile | C1: Full Company Name | D1: Company | E1: Company Overview | F1: 2009 Rank | G1: Financial | H1: 2009 Online Revenue Growth | I1: 2009 Online Revenue | J1: 2008 Online Revenue | K1: 2007 Online Revenue | L1: 2006 Online Revenue | M1: 2005 Online Revenue | N1: 2004 Online Revenue | O1: Operations | P1: 2009 Monthly Unique Visitors | Q1: 2008 Monthly Unique Visitors | R1: 2009 Monthly Visits | S1: 2008 Monthly Visits | T1: 2009 Conversion Rate | U1: 2008 Conversion Rate | V1: 2009 Average Ticket | W1: 2008 Average Ticket | X1: Total SKUs on Web | Y1: Number of States Sales Tax Collected in | Z1: Web Site Summary | AA1: URL | AB1: Year Launched | AC1: Merchandise Category | AD1: Merchant Type | AE1: Parent Company | AF1: Customer Satisfaction | AG1: Browser Satisfaction: Top 100 Only | AH1: Multichannel Web Value Index: Top 100 Only | AI1: Purchase Intent Score: Top 100 Only | AJ1: Performance | AK1: Response Time | AL1: Site Availability | AM1: Consistency | AN1: Marketing | AO1: Search Engine Shoppers 2009 | AP1: Search Engine Shoppers 2008 | AQ1: New Shoppers 2009 | AR1: Return Shoppers 2009 | AS1: Monthly E-Mail Campaigns | AT1: E-Mails With Incentives | AU1: E-Mails With Links to Social Networks | AV1: To which social networks | AW1: 2009 Rank In Category | AX1: 2008 Rank In Category | AY1: 2007 Rank In Category | AZ1: 2006 Rank in Category | BA1: 2005 Rank in Category | BB1: 2009 Share In Category | BC1: 2008 Share In Category | BD1: 2007 Share In Category | BE1: 2006 Share in Category | BF1: Number of Affiliates | BG1: SEO Effectiveness | BH1: 2009 Share of all Top 500 Sales | BI1: 2008 Share of all Top 500 Sales | BJ1: 2009 Share of all E-Commerce Sales | BK1: 2008 Share of all E-Commerce Sales | BL1: Shopper Profile | BM1: Female | BN1: Male | BO1: Age 25 or less | BP1: Age 26 to 34 | BQ1: Age 35 to 44 | BR1: Age 45 to 54 | BS1: Age 55 and up | BT1: Annual Household Income $30,000 or less | BU1: Annual Household Income $30,001 to $60,000 | BV1: Annual Household Income $60,001 to $100,000 | BW1: Annual Household Income More Than $100,000 | BX1: Corporate Information | BY1: Executives | BZ1: Executives | CA1: Executives | CB1: Executives | CC1: Executives | CD1: Executives | CE1: Executives | CF1: Executives | CG1: Executives | CH1: Executives | CI1: Executives | CJ1: Executives | CK1: Street Address | CL1: City | CM1: State/Province | CN1: Zip/Postal Code | CO1: Phone Number | CP1: Vendors | CQ1: Adobe Omniture Only | CR1: Adobe Omniture & Adobe Scene7 | CS1: Adobe Scene7 Only | CT1: Adobe Flash | CU1: Affiliate Marketing | CV1: Comparison Engine Feeds | CW1: Content Delivery | CX1: Content Management | CY1: CRM | CZ1: Customer Reviews & Forums | DA1: Customer Service Software | DB1: E-Commerce Platform | DC1: E-Mail Marketing | DD1: Fulfillment | DE1: Live Chat / Click-To-Call | DF1: Mobile Commerce Platform | DG1: Order Management | DH1: Payment Security | DI1: Payment Systems | DJ1: Personalization | DK1: Rich Media | DL1: Search Engine Marketing | DM1: Security Certification | DN1: Shipping Carrier | DO1: Site Design | DP1: Site Search | DQ1: Web Analytics | DR1: Web Hosting | DS1: Web Performance Monitoring | DT1: Sources | DU1: Order | DV1: Web Site Features & Functions | DW1: 360 Degree Spin | DX1: Affiliate Program | DY1: Auction | DZ1: Blogs | EA1: Catalog Quick Order | EB1: Color Swatching | EC1: Coupons / Rebates | ED1: Customer Reviews | EE1: Daily / Seasonal Specials | EF1: Dynamic Imaging | EG1: E-Mail A Friend | EH1: Enlarged Product View | EI1: Frequent Buyer Program | EJ1: Frequently Asked Questions | EK1: Gadgets | EL1: Guided Navigation | EM1: Interactive Catalog | EN1: Interactive Kiosks | EO1: Mapping | EP1: Mash-ups | EQ1: Microsites | ER1: Mobile Commerce | ES1: Mouse Over | ET1: Online Circular | EU1: Online Gift Certificates | EV1: Outlet Center | EW1: Pre-Orders | EX1: Product Comparisons | EY1: Product Customization | EZ1: Product Ratings | FA1: Product Recommendations | FB1: Product Wikis | FC1: Registry | FD1: RSS Feeds | FE1: Site Personalization | FF1: Social Networking | FG1: Store Locator | FH1: Syndicated Content | FI1: Top Sellers | FJ1: Videocasts | FK1: What's New | FL1: Widgets | FM1: Wish List | FN1: Zoom | FO1: Payment Systems | FP1: American Express | FQ1: Bill Me Later | FR1: Deferred Payment | FS1: Discover | FT1: eBillme | FU1: eLayaway | FV1: Electronic Check | FW1: Google Checkout | FX1: MasterCard | FY1: PayPal | FZ1: PayPal Express Checkout | GA1: Private Label Credit Card | GB1: RevolutionCard | GC1: Stored Value Cards | GD1: Visa | GE1: Site Search | GF1: Advanced Search | GG1: Best Sellers | GH1: Brand | GI1: Category / Department / Product Type | GJ1: Color | GK1: Gender | GL1: Item Number | GM1: Keyword Search | GN1: Price Range | GO1: Price: High to Low | GP1: Price: Low to High | GQ1: Recently Viewed Items / Saved Results | GR1: Recommended Items | GS1: Refine Results | GT1: Related Links / Products / Searches | GU1: Relevancy | GV1: Reviewer Tags | GW1: Reviews / Ratings | GX1: Size | GY1: Specialized Filters / Facets | GZ1: What's New | HA1: Social Networks | HB1: Facebook | HC1: MySpace | HD1: Twitter | HE1: YouTube | HF1: Order | HG1: Customer Service | HH1: Account Status / History | HI1: Buy Online / Pickup In-Store | HJ1: Click to Call / Click to Talk | HK1: Currency Converter | HL1: Estimated Shipping Date | HM1: Express Checkout | HN1: Live Chat / E-Mail | HO1: Free Return Shipping | HP1: Order Confirmation | HQ1: Order Status | HR1: Rain Checks | HS1: Real-Time Inventory Check | HT1: Pre-Paid Labels | HU1: Shipping Cost Calculator | HV1: Shipment Tracking | HW1: Toll-Free Number | HX1: Ship to Multiple Addresses | HY1: Shopping Engines & Marketplaces | HZ1: Amazon | IA1: Bing | IB1: eBay | IC1: Google Product Search | ID1: Yahoo Shopping | IE1: News | IF1: News | IG1: News | IH1: News | II1: See More News | IJ1: See More News | IK1: See More News | IL1: See More News | IM1: See More News | IN1: See More News
A2: NA | B2: NA | C2: Amazon.com Inc. | D2: Amazon.com | E2: NA | F2: NA | G2: Financial | H2: NA | I2: NA | J2: NA | K2: NA | L2: NA | M2: NA | N2: NA | O2: Operations | P2: NA | Q2: NA | R2: NA | S2: NA | T2: NA | U2: NA | V2: NA | W2: NA | X2: NA | Y2: NA | Z2: Web Site Summary | AA2: NA | AB2: NA | AC2: NA | AD2: NA | AE2: NA | AF2: Customer Satisfaction5 | AG2: NA | AH2: NA | AI2: NA | AJ2: Performance6 | AK2: NA | AL2: NA | AM2: NA | AN2: Marketing | AO2: NA | AP2: NA | AQ2: NA | AR2: NA | AS2: NA | AT2: NA | AU2: NA | AV2: NA | AW2: NA | AX2: NA | AY2: NA | AZ2: NA | BA2: NA | BB2: NA | BC2: NA | BD2: NA | BE2: NA | BF2: NA | BG2: NA | BH2: NA | BI2: NA | BJ2: NA | BK2: NA | BL2: NA | BM2: NA | BN2: NA | BO2: NA | BP2: NA | BQ2: NA | BR2: NA | BS2: NA | BT2: NA | BU2: NA | BV2: NA | BW2: NA | BX2: Corporate Information | BY2: NA | BZ2: NA | CA2: NA | CB2: NA | CC2: NA | CD2: NA | CE2: NA | CF2: NA | CG2: NA | CH2: NA | CI2: NA | CJ2: NA | CK2: NA | CL2: NA | CM2: NA | CN2: NA | CO2: NA | CP2: NA | CQ2: NA | CR2: NA | CS2: NA | CT2: NA | CU2: NA | CV2: NA | CW2: NA | CX2: NA | CY2: NA | CZ2: NA | DA2: NA | DB2: NA | DC2: NA | DD2: NA | DE2: NA | DF2: NA | DG2: NA | DH2: NA | DI2: NA | DJ2: NA | DK2: NA | DL2: NA | DM2: NA | DN2: NA | DO2: NA | DP2: NA | DQ2: NA | DR2: NA | DS2: NA | DT2: NA | DU2: NA | DV2: NA | DW2: NA | DX2: NA | DY2: NA | DZ2: NA | EA2: NA | EB2: NA | EC2: NA | ED2: NA | EE2: NA | EF2: NA | EG2: NA | EH2: NA | EI2: NA | EJ2: NA | EK2: NA | EL2: NA | EM2: NA | EN2: NA | EO2: NA | EP2: NA | EQ2: NA | ER2: NA | ES2: NA | ET2: NA | EU2: NA | EV2: NA | EW2: NA | EX2: NA | EY2: NA | EZ2: NA | FA2: NA | FB2: NA | FC2: NA | FD2: NA | FE2: NA | FF2: NA | FG2: NA | FH2: NA | FI2: NA | FJ2: NA | FK2: NA | FL2: NA | FM2: NA | FN2: NA | FO2: NA | FP2: NA | FQ2: NA | FR2: NA | FS2: NA | FT2: NA | FU2: NA | FV2: NA | FW2: NA | FX2: NA | FY2: NA | FZ2: NA | GA2: NA | GB2: NA | GC2: NA | GD2: NA | GE2: NA | GF2: NA | GG2: NA | GH2: NA | GI2: NA | GJ2: NA | GK2: NA | GL2: NA | GM2: NA | GN2: NA | GO2: NA | GP2: NA | GQ2: NA | GR2: NA | GS2: NA | GT2: NA | GU2: NA | GV2: NA | GW2: NA | GX2: NA | GY2: NA | GZ2: NA | HA2: NA | HB2: NA | HC2: NA | HD2: NA | HE2: NA | HF2: NA | HG2: NA | HH2: NA | HI2: NA | HJ2: NA | HK2: NA | HL2: NA | HM2: NA | HN2: NA | HO2: NA | HP2: NA | HQ2: NA | HR2: NA | HS2: NA | HT2: NA | HU2: NA | HV2: NA | HW2: NA | HX2: NA | HY2: NA | HZ2: NA | IA2: NA | IB2: NA | IC2: NA | ID2: NA | IE2: NA | IF2: NA | IG2: NA | IH2: NA | II2: NA | IJ2: NA | IK2: NA | IL2: NA | IM2: NA | IN2: NA | IO2: NA | IP2: NA | IQ2: NA | IR2: NA | IS2: NA | IT2: NA | IU2: NA | IV2: NA | IW2: NA | IX2: NA | IY2: NA | IZ2: NA | JA2: NA | JB2: NA | JC2: NA
A3: NA | B3: NA | C3: Staples Inc. | D3: Staples | E3: NA | F3: NA | G3: Financial | H3: NA | I3: NA | J3: NA | K3: NA | L3: NA | M3: NA | N3: NA | O3: Operations | P3: NA | Q3: NA | R3: NA | S3: NA | T3: NA | U3: NA | V3: NA | W3: NA | X3: NA | Y3: NA | Z3: Web Site Summary | AA3: NA | AB3: NA | AC3: NA | AD3: NA | AE3: NA | AF3: Customer Satisfaction5 | AG3: NA | AH3: NA | AI3: NA | AJ3: Performance6 | AK3: NA | AL3: NA | AM3: NA | AN3: Marketing | AO3: NA | AP3: NA | AQ3: NA | AR3: NA | AS3: NA | AT3: NA | AU3: NA | AV3: NA | AW3: NA | AX3: NA | AY3: NA | AZ3: NA | BA3: NA | BB3: NA | BC3: NA | BD3: NA | BE3: NA | BF3: NA | BG3: NA | BH3: NA | BI3: NA | BJ3: NA | BK3: NA | BL3: NA | BM3: NA | BN3: NA | BO3: NA | BP3: NA | BQ3: NA | BR3: NA | BS3: NA | BT3: NA | BU3: NA | BV3: NA | BW3: NA | BX3: Corporate Information | BY3: NA | BZ3: NA | CA3: NA | CB3: NA | CC3: NA | CD3: NA | CE3: NA | CF3: NA | CG3: NA | CH3: NA | CI3: NA | CJ3: NA | CK3: NA | CL3: NA | CM3: NA | CN3: NA | CO3: NA | CP3: NA | CQ3: NA | CR3: NA | CS3: NA | CT3: NA | CU3: NA | CV3: NA | CW3: NA | CX3: NA | CY3: NA | CZ3: NA | DA3: NA | DB3: NA | DC3: NA | DD3: NA | DE3: NA | DF3: NA | DG3: NA | DH3: NA | DI3: NA | DJ3: NA | DK3: NA | DL3: NA | DM3: NA | DN3: NA | DO3: NA | DP3: NA | DQ3: NA | DR3: NA | DS3: NA | DT3: NA | DU3: NA | DV3: NA | DW3: NA | DX3: NA | DY3: NA | DZ3: NA | EA3: NA | EB3: NA | EC3: NA | ED3: NA | EE3: NA | EF3: NA | EG3: NA | EH3: NA | EI3: NA | EJ3: NA | EK3: NA | EL3: NA | EM3: NA | EN3: NA | EO3: NA | EP3: NA | EQ3: NA | ER3: NA | ES3: NA | ET3: NA | EU3: NA | EV3: NA | EW3: NA | EX3: NA | EY3: NA | EZ3: NA | FA3: NA | FB3: NA | FC3: NA | FD3: NA | FE3: NA | FF3: NA | FG3: NA | FH3: NA | FI3: NA | FJ3: NA | FK3: NA | FL3: NA | FM3: NA | FN3: NA | FO3: NA | FP3: NA | FQ3: NA | FR3: NA | FS3: NA | FT3: NA | FU3: NA | FV3: NA | FW3: NA | FX3: NA | FY3: NA | FZ3: NA | GA3: NA | GB3: NA | GC3: NA | GD3: NA | GE3: NA | GF3: NA | GG3: NA | GH3: NA | GI3: NA | GJ3: NA | GK3: NA | GL3: NA | GM3: NA | GN3: NA | GO3: NA | GP3: NA | GQ3: NA | GR3: NA | GS3: NA | GT3: NA | GU3: NA | GV3: NA | GW3: NA | GX3: NA | GY3: NA | GZ3: NA | HA3: NA | HB3: NA | HC3: NA | HD3: NA | HE3: NA | HF3: NA | HG3: NA | HH3: NA | HI3: NA | HJ3: NA | HK3: NA | HL3: NA | HM3: NA | HN3: NA | HO3: NA | HP3: NA | HQ3: NA | HR3: NA | HS3: NA | HT3: NA | HU3: NA | HV3: NA | HW3: NA | HX3: NA | HY3: NA | HZ3: NA | IA3: NA | IB3: NA | IC3: NA | ID3: NA | IE3: NA | IF3: NA | IG3: NA | IH3: NA | II3: NA | IJ3: NA | IK3: NA | IL3: NA | IM3: NA | IN3: NA | IO3: NA | IP3: NA | IQ3: NA | IR3: NA | IS3: NA | IT3: NA | IU3: NA | IV3: NA | IW3: NA | IX3: NA | IY3: NA | IZ3: NA | JA3: NA | JB3: NA | JC3: NA
A4: NA | B4: NA | C4: Dell Inc. | D4: Dell | E4: NA | F4: NA | G4: Financial | H4: NA | I4: NA | J4: NA | K4: NA | L4: NA | M4: NA | N4: NA | O4: Operations | P4: NA | Q4: NA | R4: NA | S4: NA | T4: NA | U4: NA | V4: NA | W4: NA | X4: NA | Y4: NA | Z4: Web Site Summary | AA4: NA | AB4: NA | AC4: NA | AD4: NA | AE4: NA | AF4: Customer Satisfaction5 | AG4: NA | AH4: NA | AI4: NA | AJ4: Performance6 | AK4: NA | AL4: NA | AM4: NA | AN4: Marketing | AO4: NA | AP4: NA | AQ4: NA | AR4: NA | AS4: NA | AT4: NA | AU4: NA | AV4: NA | AW4: NA | AX4: NA | AY4: NA | AZ4: NA | BA4: NA | BB4: NA | BC4: NA | BD4: NA | BE4: NA | BF4: NA | BG4: NA | BH4: NA | BI4: NA | BJ4: NA | BK4: NA | BL4: NA | BM4: NA | BN4: NA | BO4: NA | BP4: NA | BQ4: NA | BR4: NA | BS4: NA | BT4: NA | BU4: NA | BV4: NA | BW4: NA | BX4: Corporate Information | BY4: NA | BZ4: NA | CA4: NA | CB4: NA | CC4: NA | CD4: NA | CE4: NA | CF4: NA | CG4: NA | CH4: NA | CI4: NA | CJ4: NA | CK4: NA | CL4: NA | CM4: NA | CN4: NA | CO4: NA | CP4: NA | CQ4: NA | CR4: NA | CS4: NA | CT4: NA | CU4: NA | CV4: NA | CW4: NA | CX4: NA | CY4: NA | CZ4: NA | DA4: NA | DB4: NA | DC4: NA | DD4: NA | DE4: NA | DF4: NA | DG4: NA | DH4: NA | DI4: NA | DJ4: NA | DK4: NA | DL4: NA | DM4: NA | DN4: NA | DO4: NA | DP4: NA | DQ4: NA | DR4: NA | DS4: NA | DT4: NA | DU4: NA | DV4: NA | DW4: NA | DX4: NA | DY4: NA | DZ4: NA | EA4: NA | EB4: NA | EC4: NA | ED4: NA | EE4: NA | EF4: NA | EG4: NA | EH4: NA | EI4: NA | EJ4: NA | EK4: NA | EL4: NA | EM4: NA | EN4: NA | EO4: NA | EP4: NA | EQ4: NA | ER4: NA | ES4: NA | ET4: NA | EU4: NA | EV4: NA | EW4: NA | EX4: NA | EY4: NA | EZ4: NA | FA4: NA | FB4: NA | FC4: NA | FD4: NA | FE4: NA | FF4: NA | FG4: NA | FH4: NA | FI4: NA | FJ4: NA | FK4: NA | FL4: NA | FM4: NA | FN4: NA | FO4: NA | FP4: NA | FQ4: NA | FR4: NA | FS4: NA | FT4: NA | FU4: NA | FV4: NA | FW4: NA | FX4: NA | FY4: NA | FZ4: NA | GA4: NA | GB4: NA | GC4: NA | GD4: NA | GE4: NA | GF4: NA | GG4: NA | GH4: NA | GI4: NA | GJ4: NA | GK4: NA | GL4: NA | GM4: NA | GN4: NA | GO4: NA | GP4: NA | GQ4: NA | GR4: NA | GS4: NA | GT4: NA | GU4: NA | GV4: NA | GW4: NA | GX4: NA | GY4: NA | GZ4: NA | HA4: NA | HB4: NA | HC4: NA | HD4: NA | HE4: NA | HF4: NA | HG4: NA | HH4: NA | HI4: NA | HJ4: NA | HK4: NA | HL4: NA | HM4: NA | HN4: NA | HO4: NA | HP4: NA | HQ4: NA | HR4: NA | HS4: NA | HT4: NA | HU4: NA | HV4: NA | HW4: NA | HX4: NA | HY4: NA | HZ4: NA | IA4: NA | IB4: NA | IC4: NA | ID4: NA | IE4: NA | IF4: NA | IG4: NA | IH4: NA | II4: NA | IJ4: NA | IK4: NA | IL4: NA | IM4: NA | IN4: NA | IO4: NA | IP4: NA | IQ4: NA | IR4: NA | IS4: NA | IT4: NA | IU4: NA | IV4: NA | IW4: NA | IX4: NA | IY4: NA | IZ4: NA | JA4: NA | JB4: NA | JC4: NA
A5: NA | B5: NA | C5: Apple Inc. | D5: Apple | E5: NA | F5: NA | G5: Financial | H5: NA | I5: NA | J5: NA | K5: NA | L5: NA | M5: NA | N5: NA | O5: Operations | P5: NA | Q5: NA | R5: NA | S5: NA | T5: NA | U5: NA | V5: NA | W5: NA | X5: NA | Y5: NA | Z5: Web Site Summary | AA5: NA | AB5: NA | AC5: NA | AD5: NA | AE5: NA | AF5: Customer Satisfaction5 | AG5: NA | AH5: NA | AI5: NA | AJ5: Performance6 | AK5: NA | AL5: NA | AM5: NA | AN5: Marketing | AO5: NA | AP5: NA | AQ5: NA | AR5: NA | AS5: NA | AT5: NA | AU5: NA | AV5: NA | AW5: NA | AX5: NA | AY5: NA | AZ5: NA | BA5: NA | BB5: NA | BC5: NA | BD5: NA | BE5: NA | BF5: NA | BG5: NA | BH5: NA | BI5: NA | BJ5: NA | BK5: NA | BL5: NA | BM5: NA | BN5: NA | BO5: NA | BP5: NA | BQ5: NA | BR5: NA | BS5: NA | BT5: NA | BU5: NA | BV5: NA | BW5: NA | BX5: Corporate Information | BY5: NA | BZ5: NA | CA5: NA | CB5: NA | CC5: NA | CD5: NA | CE5: NA | CF5: NA | CG5: NA | CH5: NA | CI5: NA | CJ5: NA | CK5: NA | CL5: NA | CM5: NA | CN5: NA | CO5: NA | CP5: NA | CQ5: NA | CR5: NA | CS5: NA | CT5: NA | CU5: NA | CV5: NA | CW5: NA | CX5: NA | CY5: NA | CZ5: NA | DA5: NA | DB5: NA | DC5: NA | DD5: NA | DE5: NA | DF5: NA | DG5: NA | DH5: NA | DI5: NA | DJ5: NA | DK5: NA | DL5: NA | DM5: NA | DN5: NA | DO5: NA | DP5: NA | DQ5: NA | DR5: NA | DS5: NA | DT5: NA | DU5: NA | DV5: NA | DW5: NA | DX5: NA | DY5: NA | DZ5: NA | EA5: NA | EB5: NA | EC5: NA | ED5: NA | EE5: NA | EF5: NA | EG5: NA | EH5: NA | EI5: NA | EJ5: NA | EK5: NA | EL5: NA | EM5: NA | EN5: NA | EO5: NA | EP5: NA | EQ5: NA | ER5: NA | ES5: NA | ET5: NA | EU5: NA | EV5: NA | EW5: NA | EX5: NA | EY5: NA | EZ5: NA | FA5: NA | FB5: NA | FC5: NA | FD5: NA | FE5: NA | FF5: NA | FG5: NA | FH5: NA | FI5: NA | FJ5: NA | FK5: NA | FL5: NA | FM5: NA | FN5: NA | FO5: NA | FP5: NA | FQ5: NA | FR5: NA | FS5: NA | FT5: NA | FU5: NA | FV5: NA | FW5: NA | FX5: NA | FY5: NA | FZ5: NA | GA5: NA | GB5: NA | GC5: NA | GD5: NA | GE5: NA | GF5: NA | GG5: NA | GH5: NA | GI5: NA | GJ5: NA | GK5: NA | GL5: NA | GM5: NA | GN5: NA | GO5: NA | GP5: NA | GQ5: NA | GR5: NA | GS5: NA | GT5: NA | GU5: NA | GV5: NA | GW5: NA | GX5: NA | GY5: NA | GZ5: NA | HA5: NA | HB5: NA | HC5: NA | HD5: NA | HE5: NA | HF5: NA | HG5: NA | HH5: NA | HI5: NA | HJ5: NA | HK5: NA | HL5: NA | HM5: NA | HN5: NA | HO5: NA | HP5: NA | HQ5: NA | HR5: NA | HS5: NA | HT5: NA | HU5: NA | HV5: NA | HW5: NA | HX5: NA | HY5: NA | HZ5: NA | IA5: NA | IB5: NA | IC5: NA | ID5: NA | IE5: NA | IF5: NA | IG5: NA | IH5: NA | II5: NA | IJ5: NA | IK5: NA | IL5: NA | IM5: NA | IN5: NA | IO5: NA | IP5: NA | IQ5: NA | IR5: NA | IS5: NA | IT5: NA | IU5: NA | IV5: NA | IW5: NA | IX5: NA | IY5: NA | IZ5: NA | JA5: NA | JB5: NA | JC5: NA
A6: NA | B6: NA | C6: Office Depot Inc. | D6: Office Depot | E6: NA | F6: NA | G6: Financial | H6: NA | I6: NA | J6: NA | K6: NA | L6: NA | M6: NA | N6: NA | O6: Operations | P6: NA | Q6: NA | R6: NA | S6: NA | T6: NA | U6: NA | V6: NA | W6: NA | X6: NA | Y6: NA | Z6: Web Site Summary | AA6: NA | AB6: NA | AC6: NA | AD6: NA | AE6: NA | AF6: Customer Satisfaction5 | AG6: NA | AH6: NA | AI6: NA | AJ6: Performance6 | AK6: NA | AL6: NA | AM6: NA | AN6: Marketing | AO6: NA | AP6: NA | AQ6: NA | AR6: NA | AS6: NA | AT6: NA | AU6: NA | AV6: NA | AW6: NA | AX6: NA | AY6: NA | AZ6: NA | BA6: NA | BB6: NA | BC6: NA | BD6: NA | BE6: NA | BF6: NA | BG6: NA | BH6: NA | BI6: NA | BJ6: NA | BK6: NA | BL6: NA | BM6: NA | BN6: NA | BO6: NA | BP6: NA | BQ6: NA | BR6: NA | BS6: NA | BT6: NA | BU6: NA | BV6: NA | BW6: NA | BX6: Corporate Information | BY6: NA | BZ6: NA | CA6: NA | CB6: NA | CC6: NA | CD6: NA | CE6: NA | CF6: NA | CG6: NA | CH6: NA | CI6: NA | CJ6: NA | CK6: NA | CL6: NA | CM6: NA | CN6: NA | CO6: NA | CP6: NA | CQ6: NA | CR6: NA | CS6: NA | CT6: NA | CU6: NA | CV6: NA | CW6: NA | CX6: NA | CY6: NA | CZ6: NA | DA6: NA | DB6: NA | DC6: NA | DD6: NA | DE6: NA | DF6: NA | DG6: NA | DH6: NA | DI6: NA | DJ6: NA | DK6: NA | DL6: NA | DM6: NA | DN6: NA | DO6: NA | DP6: NA | DQ6: NA | DR6: NA | DS6: NA | DT6: NA | DU6: NA | DV6: NA | DW6: NA | DX6: NA | DY6: NA | DZ6: NA | EA6: NA | EB6: NA | EC6: NA | ED6: NA | EE6: NA | EF6: NA | EG6: NA | EH6: NA | EI6: NA | EJ6: NA | EK6: NA | EL6: NA | EM6: NA | EN6: NA | EO6: NA | EP6: NA | EQ6: NA | ER6: NA | ES6: NA | ET6: NA | EU6: NA | EV6: NA | EW6: NA | EX6: NA | EY6: NA | EZ6: NA | FA6: NA | FB6: NA | FC6: NA | FD6: NA | FE6: NA | FF6: NA | FG6: NA | FH6: NA | FI6: NA | FJ6: NA | FK6: NA | FL6: NA | FM6: NA | FN6: NA | FO6: NA | FP6: NA | FQ6: NA | FR6: NA | FS6: NA | FT6: NA | FU6: NA | FV6: NA | FW6: NA | FX6: NA | FY6: NA | FZ6: NA | GA6: NA | GB6: NA | GC6: NA | GD6: NA | GE6: NA | GF6: NA | GG6: NA | GH6: NA | GI6: NA | GJ6: NA | GK6: NA | GL6: NA | GM6: NA | GN6: NA | GO6: NA | GP6: NA | GQ6: NA | GR6: NA | GS6: NA | GT6: NA | GU6: NA | GV6: NA | GW6: NA | GX6: NA | GY6: NA | GZ6: NA | HA6: NA | HB6: NA | HC6: NA | HD6: NA | HE6: NA | HF6: NA | HG6: NA | HH6: NA | HI6: NA | HJ6: NA | HK6: NA | HL6: NA | HM6: NA | HN6: NA | HO6: NA | HP6: NA | HQ6: NA | HR6: NA | HS6: NA | HT6: NA | HU6: NA | HV6: NA | HW6: NA | HX6: NA | HY6: NA | HZ6: NA | IA6: NA | IB6: NA | IC6: NA | ID6: NA | IE6: NA | IF6: NA | IG6: NA | IH6: NA | II6: NA | IJ6: NA | IK6: NA | IL6: NA | IM6: NA | IN6: NA | IO6: NA | IP6: NA | IQ6: NA | IR6: NA | IS6: NA | IT6: NA | IU6: NA | IV6: NA | IW6: NA | IX6: NA | IY6: NA | IZ6: NA | JA6: NA | JB6: NA | JC6: NA
A7: NA | B7: NA | C7: Walmart.com | D7: Walmart.com | E7: NA | F7: NA | G7: Financial | H7: NA | I7: NA | J7: NA | K7: NA | L7: NA | M7: NA | N7: NA | O7: Operations | P7: NA | Q7: NA | R7: NA | S7: NA | T7: NA | U7: NA | V7: NA | W7: NA | X7: NA | Y7: NA | Z7: Web Site Summary | AA7: NA | AB7: NA | AC7: NA | AD7: NA | AE7: NA | AF7: Customer Satisfaction5 | AG7: NA | AH7: NA | AI7: NA | AJ7: Performance6 | AK7: NA | AL7: NA | AM7: NA | AN7: Marketing | AO7: NA | AP7: NA | AQ7: NA | AR7: NA | AS7: NA | AT7: NA | AU7: NA | AV7: NA | AW7: NA | AX7: NA | AY7: NA | AZ7: NA | BA7: NA | BB7: NA | BC7: NA | BD7: NA | BE7: NA | BF7: NA | BG7: NA | BH7: NA | BI7: NA | BJ7: NA | BK7: NA | BL7: NA | BM7: NA | BN7: NA | BO7: NA | BP7: NA | BQ7: NA | BR7: NA | BS7: NA | BT7: NA | BU7: NA | BV7: NA | BW7: NA | BX7: Corporate Information | BY7: NA | BZ7: NA | CA7: NA | CB7: NA | CC7: NA | CD7: NA | CE7: NA | CF7: NA | CG7: NA | CH7: NA | CI7: NA | CJ7: NA | CK7: NA | CL7: NA | CM7: NA | CN7: NA | CO7: NA | CP7: NA | CQ7: NA | CR7: NA | CS7: NA | CT7: NA | CU7: NA | CV7: NA | CW7: NA | CX7: NA | CY7: NA | CZ7: NA | DA7: NA | DB7: NA | DC7: NA | DD7: NA | DE7: NA | DF7: NA | DG7: NA | DH7: NA | DI7: NA | DJ7: NA | DK7: NA | DL7: NA | DM7: NA | DN7: NA | DO7: NA | DP7: NA | DQ7: NA | DR7: NA | DS7: NA | DT7: NA | DU7: NA | DV7: NA | DW7: NA | DX7: NA | DY7: NA | DZ7: NA | EA7: NA | EB7: NA | EC7: NA | ED7: NA | EE7: NA | EF7: NA | EG7: NA | EH7: NA | EI7: NA | EJ7: NA | EK7: NA | EL7: NA | EM7: NA | EN7: NA | EO7: NA | EP7: NA | EQ7: NA | ER7: NA | ES7: NA | ET7: NA | EU7: NA | EV7: NA | EW7: NA | EX7: NA | EY7: NA | EZ7: NA | FA7: NA | FB7: NA | FC7: NA | FD7: NA | FE7: NA | FF7: NA | FG7: NA | FH7: NA | FI7: NA | FJ7: NA | FK7: NA | FL7: NA | FM7: NA | FN7: NA | FO7: NA | FP7: NA | FQ7: NA | FR7: NA | FS7: NA | FT7: NA | FU7: NA | FV7: NA | FW7: NA | FX7: NA | FY7: NA | FZ7: NA | GA7: NA | GB7: NA | GC7: NA | GD7: NA | GE7: NA | GF7: NA | GG7: NA | GH7: NA | GI7: NA | GJ7: NA | GK7: NA | GL7: NA | GM7: NA | GN7: NA | GO7: NA | GP7: NA | GQ7: NA | GR7: NA | GS7: NA | GT7: NA | GU7: NA | GV7: NA | GW7: NA | GX7: NA | GY7: NA | GZ7: NA | HA7: NA | HB7: NA | HC7: NA | HD7: NA | HE7: NA | HF7: NA | HG7: NA | HH7: NA | HI7: NA | HJ7: NA | HK7: NA | HL7: NA | HM7: NA | HN7: NA | HO7: NA | HP7: NA | HQ7: NA | HR7: NA | HS7: NA | HT7: NA | HU7: NA | HV7: NA | HW7: NA | HX7: NA | HY7: NA | HZ7: NA | IA7: NA | IB7: NA | IC7: NA | ID7: NA | IE7: NA | IF7: NA | IG7: NA | IH7: NA | II7: NA | IJ7: NA | IK7: NA | IL7: NA | IM7: NA | IN7: NA | IO7: NA | IP7: NA | IQ7: NA | IR7: NA | IS7: NA | IT7: NA | IU7: NA | IV7: NA | IW7: NA | IX7: NA | IY7: NA | IZ7: NA | JA7: NA | JB7: NA | JC7: NA
A8: NA | B8: NA | C8: OfficeMax Inc. | D8: OfficeMax | E8: NA | F8: NA | G8: Financial | H8: NA | I8: NA | J8: NA | K8: NA | L8: NA | M8: NA | N8: NA | O8: Operations | P8: NA | Q8: NA | R8: NA | S8: NA | T8: NA | U8: NA | V8: NA | W8: NA | X8: NA | Y8: NA | Z8: Web Site Summary | AA8: NA | AB8: NA | AC8: NA | AD8: NA | AE8: NA | AF8: Customer Satisfaction5 | AG8: NA | AH8: NA | AI8: NA | AJ8: Performance6 | AK8: NA | AL8: NA | AM8: NA | AN8: Marketing | AO8: NA | AP8: NA | AQ8: NA | AR8: NA | AS8: NA | AT8: NA | AU8: NA | AV8: NA | AW8: NA | AX8: NA | AY8: NA | AZ8: NA | BA8: NA | BB8: NA | BC8: NA | BD8: NA | BE8: NA | BF8: NA | BG8: NA | BH8: NA | BI8: NA | BJ8: NA | BK8: NA | BL8: NA | BM8: NA | BN8: NA | BO8: NA | BP8: NA | BQ8: NA | BR8: NA | BS8: NA | BT8: NA | BU8: NA | BV8: NA | BW8: NA | BX8: Corporate Information | BY8: NA | BZ8: NA | CA8: NA | CB8: NA | CC8: NA | CD8: NA | CE8: NA | CF8: NA | CG8: NA | CH8: NA | CI8: NA | CJ8: NA | CK8: NA | CL8: NA | CM8: NA | CN8: NA | CO8: NA | CP8: NA | CQ8: NA | CR8: NA | CS8: NA | CT8: NA | CU8: NA | CV8: NA | CW8: NA | CX8: NA | CY8: NA | CZ8: NA | DA8: NA | DB8: NA | DC8: NA | DD8: NA | DE8: NA | DF8: NA | DG8: NA | DH8: NA | DI8: NA | DJ8: NA | DK8: NA | DL8: NA | DM8: NA | DN8: NA | DO8: NA | DP8: NA | DQ8: NA | DR8: NA | DS8: NA | DT8: NA | DU8: NA | DV8: NA | DW8: NA | DX8: NA | DY8: NA | DZ8: NA | EA8: NA | EB8: NA | EC8: NA | ED8: NA | EE8: NA | EF8: NA | EG8: NA | EH8: NA | EI8: NA | EJ8: NA | EK8: NA | EL8: NA | EM8: NA | EN8: NA | EO8: NA | EP8: NA | EQ8: NA | ER8: NA | ES8: NA | ET8: NA | EU8: NA | EV8: NA | EW8: NA | EX8: NA | EY8: NA | EZ8: NA | FA8: NA | FB8: NA | FC8: NA | FD8: NA | FE8: NA | FF8: NA | FG8: NA | FH8: NA | FI8: NA | FJ8: NA | FK8: NA | FL8: NA | FM8: NA | FN8: NA | FO8: NA | FP8: NA | FQ8: NA | FR8: NA | FS8: NA | FT8: NA | FU8: NA | FV8: NA | FW8: NA | FX8: NA | FY8: NA | FZ8: NA | GA8: NA | GB8: NA | GC8: NA | GD8: NA | GE8: NA | GF8: NA | GG8: NA | GH8: NA | GI8: NA | GJ8: NA | GK8: NA | GL8: NA | GM8: NA | GN8: NA | GO8: NA | GP8: NA | GQ8: NA | GR8: NA | GS8: NA | GT8: NA | GU8: NA | GV8: NA | GW8: NA | GX8: NA | GY8: NA | GZ8: NA | HA8: NA | HB8: NA | HC8: NA | HD8: NA | HE8: NA | HF8: NA | HG8: NA | HH8: NA | HI8: NA | HJ8: NA | HK8: NA | HL8: NA | HM8: NA | HN8: NA | HO8: NA | HP8: NA | HQ8: NA | HR8: NA | HS8: NA | HT8: NA | HU8: NA | HV8: NA | HW8: NA | HX8: NA | HY8: NA | HZ8: NA | IA8: NA | IB8: NA | IC8: NA | ID8: NA | IE8: NA | IF8: NA | IG8: NA | IH8: NA | II8: NA | IJ8: NA | IK8: NA | IL8: NA | IM8: NA | IN8: NA | IO8: NA | IP8: NA | IQ8: NA | IR8: NA | IS8: NA | IT8: NA | IU8: NA | IV8: NA | IW8: NA | IX8: NA | IY8: NA | IZ8: NA | JA8: NA | JB8: NA | JC8: NA
A9: NA | B9: NA | C9: Sears Holdings Corp. | D9: Sears Holdings | E9: NA | F9: NA | G9: Financial | H9: NA | I9: NA | J9: NA | K9: NA | L9: NA | M9: NA | N9: NA | O9: Operations | P9: NA | Q9: NA | R9: NA | S9: NA | T9: NA | U9: NA | V9: NA | W9: NA | X9: NA | Y9: NA | Z9: Web Site Summary | AA9: NA | AB9: NA | AC9: NA | AD9: NA | AE9: NA | AF9: Customer Satisfaction5 | AG9: NA | AH9: NA | AI9: NA | AJ9: Performance6 | AK9: NA | AL9: NA | AM9: NA | AN9: Marketing | AO9: NA | AP9: NA | AQ9: NA | AR9: NA | AS9: NA | AT9: NA | AU9: NA | AV9: NA | AW9: NA | AX9: NA | AY9: NA | AZ9: NA | BA9: NA | BB9: NA | BC9: NA | BD9: NA | BE9: NA | BF9: NA | BG9: NA | BH9: NA | BI9: NA | BJ9: NA | BK9: NA | BL9: NA | BM9: NA | BN9: NA | BO9: NA | BP9: NA | BQ9: NA | BR9: NA | BS9: NA | BT9: NA | BU9: NA | BV9: NA | BW9: NA | BX9: Corporate Information | BY9: NA | BZ9: NA | CA9: NA | CB9: NA | CC9: NA | CD9: NA | CE9: NA | CF9: NA | CG9: NA | CH9: NA | CI9: NA | CJ9: NA | CK9: NA | CL9: NA | CM9: NA | CN9: NA | CO9: NA | CP9: NA | CQ9: NA | CR9: NA | CS9: NA | CT9: NA | CU9: NA | CV9: NA | CW9: NA | CX9: NA | CY9: NA | CZ9: NA | DA9: NA | DB9: NA | DC9: NA | DD9: NA | DE9: NA | DF9: NA | DG9: NA | DH9: NA | DI9: NA | DJ9: NA | DK9: NA | DL9: NA | DM9: NA | DN9: NA | DO9: NA | DP9: NA | DQ9: NA | DR9: NA | DS9: NA | DT9: NA | DU9: NA | DV9: NA | DW9: NA | DX9: NA | DY9: NA | DZ9: NA | EA9: NA | EB9: NA | EC9: NA | ED9: NA | EE9: NA | EF9: NA | EG9: NA | EH9: NA | EI9: NA | EJ9: NA | EK9: NA | EL9: NA | EM9: NA | EN9: NA | EO9: NA | EP9: NA | EQ9: NA | ER9: NA | ES9: NA | ET9: NA | EU9: NA | EV9: NA | EW9: NA | EX9: NA | EY9: NA | EZ9: NA | FA9: NA | FB9: NA | FC9: NA | FD9: NA | FE9: NA | FF9: NA | FG9: NA | FH9: NA | FI9: NA | FJ9: NA | FK9: NA | FL9: NA | FM9: NA | FN9: NA | FO9: NA | FP9: NA | FQ9: NA | FR9: NA | FS9: NA | FT9: NA | FU9: NA | FV9: NA | FW9: NA | FX9: NA | FY9: NA | FZ9: NA | GA9: NA | GB9: NA | GC9: NA | GD9: NA | GE9: NA | GF9: NA | GG9: NA | GH9: NA | GI9: NA | GJ9: NA | GK9: NA | GL9: NA | GM9: NA | GN9: NA | GO9: NA | GP9: NA | GQ9: NA | GR9: NA | GS9: NA | GT9: NA | GU9: NA | GV9: NA | GW9: NA | GX9: NA | GY9: NA | GZ9: NA | HA9: NA | HB9: NA | HC9: NA | HD9: NA | HE9: NA | HF9: NA | HG9: NA | HH9: NA | HI9: NA | HJ9: NA | HK9: NA | HL9: NA | HM9: NA | HN9: NA | HO9: NA | HP9: NA | HQ9: NA | HR9: NA | HS9: NA | HT9: NA | HU9: NA | HV9: NA | HW9: NA | HX9: NA | HY9: NA | HZ9: NA | IA9: NA | IB9: NA | IC9: NA | ID9: NA | IE9: NA | IF9: NA | IG9: NA | IH9: NA | II9: NA | IJ9: NA | IK9: NA | IL9: NA | IM9: NA | IN9: NA | IO9: NA | IP9: NA | IQ9: NA | IR9: NA | IS9: NA | IT9: NA | IU9: NA | IV9: NA | IW9: NA | IX9: NA | IY9: NA | IZ9: NA | JA9: NA | JB9: NA | JC9: NA
A10: NA | B10: NA | C10: CDW Corp. | D10: CDW | E10: NA | F10: NA | G10: Financial | H10: NA | I10: NA | J10: NA | K10: NA | L10: NA | M10: NA | N10: NA | O10: Operations | P10: NA | Q10: NA | R10: NA | S10: NA | T10: NA | U10: NA | V10: NA | W10: NA | X10: NA | Y10: NA | Z10: Web Site Summary | AA10: NA | AB10: NA | AC10: NA | AD10: NA | AE10: NA | AF10: Customer Satisfaction5 | AG10: NA | AH10: NA | AI10: NA | AJ10: Performance6 | AK10: NA | AL10: NA | AM10: NA | AN10: Marketing | AO10: NA | AP10: NA | AQ10: NA | AR10: NA | AS10: NA | AT10: NA | AU10: NA | AV10: NA | AW10: NA | AX10: NA | AY10: NA | AZ10: NA | BA10: NA | BB10: NA | BC10: NA | BD10: NA | BE10: NA | BF10: NA | BG10: NA | BH10: NA | BI10: NA | BJ10: NA | BK10: NA | BL10: NA | BM10: NA | BN10: NA | BO10: NA | BP10: NA | BQ10: NA | BR10: NA | BS10: NA | BT10: NA | BU10: NA | BV10: NA | BW10: NA | BX10: Corporate Information | BY10: NA | BZ10: NA | CA10: NA | CB10: NA | CC10: NA | CD10: NA | CE10: NA | CF10: NA | CG10: NA | CH10: NA | CI10: NA | CJ10: NA | CK10: NA | CL10: NA | CM10: NA | CN10: NA | CO10: NA | CP10: NA | CQ10: NA | CR10: NA | CS10: NA | CT10: NA | CU10: NA | CV10: NA | CW10: NA | CX10: NA | CY10: NA | CZ10: NA | DA10: NA | DB10: NA | DC10: NA | DD10: NA | DE10: NA | DF10: NA | DG10: NA | DH10: NA | DI10: NA | DJ10: NA | DK10: NA | DL10: NA | DM10: NA | DN10: NA | DO10: NA | DP10: NA | DQ10: NA | DR10: NA | DS10: NA | DT10: NA | DU10: NA | DV10: NA | DW10: NA | DX10: NA | DY10: NA | DZ10: NA | EA10: NA | EB10: NA | EC10: NA | ED10: NA | EE10: NA | EF10: NA | EG10: NA | EH10: NA | EI10: NA | EJ10: NA | EK10: NA | EL10: NA | EM10: NA | EN10: NA | EO10: NA | EP10: NA | EQ10: NA | ER10: NA | ES10: NA | ET10: NA | EU10: NA | EV10: NA | EW10: NA | EX10: NA | EY10: NA | EZ10: NA | FA10: NA | FB10: NA | FC10: NA | FD10: NA | FE10: NA | FF10: NA | FG10: NA | FH10: NA | FI10: NA | FJ10: NA | FK10: NA | FL10: NA | FM10: NA | FN10: NA | FO10: NA | FP10: NA | FQ10: NA | FR10: NA | FS10: NA | FT10: NA | FU10: NA | FV10: NA | FW10: NA | FX10: NA | FY10: NA | FZ10: NA | GA10: NA | GB10: NA | GC10: NA | GD10: NA | GE10: NA | GF10: NA | GG10: NA | GH10: NA | GI10: NA | GJ10: NA | GK10: NA | GL10: NA | GM10: NA | GN10: NA | GO10: NA | GP10: NA | GQ10: NA | GR10: NA | GS10: NA | GT10: NA | GU10: NA | GV10: NA | GW10: NA | GX10: NA | GY10: NA | GZ10: NA | HA10: NA | HB10: NA | HC10: NA | HD10: NA | HE10: NA | HF10: NA | HG10: NA | HH10: NA | HI10: NA | HJ10: NA | HK10: NA | HL10: NA | HM10: NA | HN10: NA | HO10: NA | HP10: NA | HQ10: NA | HR10: NA | HS10: NA | HT10: NA | HU10: NA | HV10: NA | HW10: NA | HX10: NA | HY10: NA | HZ10: NA | IA10: NA | IB10: NA | IC10: NA | ID10: NA | IE10: NA | IF10: NA | IG10: NA | IH10: NA | II10: NA | IJ10: NA | IK10: NA | IL10: NA | IM10: NA | IN10: NA | IO10: NA | IP10: NA | IQ10: NA | IR10: NA | IS10: NA | IT10: NA | IU10: NA | IV10: NA | IW10: NA | IX10: NA | IY10: NA | IZ10: NA | JA10: NA | JB10: NA | JC10: NA
A11: NA | B11: NA | C11: Best Buy Co. | D11: Best Buy | E11: NA | F11: NA | G11: Financial | H11: NA | I11: NA | J11: NA | K11: NA | L11: NA | M11: NA | N11: NA | O11: Operations | P11: NA | Q11: NA | R11: NA | S11: NA | T11: NA | U11: NA | V11: NA | W11: NA | X11: NA | Y11: NA | Z11: Web Site Summary | AA11: NA | AB11: NA | AC11: NA | AD11: NA | AE11: NA | AF11: Customer Satisfaction5 | AG11: NA | AH11: NA | AI11: NA | AJ11: Performance6 | AK11: NA | AL11: NA | AM11: NA | AN11: Marketing | AO11: NA | AP11: NA | AQ11: NA | AR11: NA | AS11: NA | AT11: NA | AU11: NA | AV11: NA | AW11: NA | AX11: NA | AY11: NA | AZ11: NA | BA11: NA | BB11: NA | BC11: NA | BD11: NA | BE11: NA | BF11: NA | BG11: NA | BH11: NA | BI11: NA | BJ11: NA | BK11: NA | BL11: NA | BM11: NA | BN11: NA | BO11: NA | BP11: NA | BQ11: NA | BR11: NA | BS11: NA | BT11: NA | BU11: NA | BV11: NA | BW11: NA | BX11: Corporate Information | BY11: NA | BZ11: NA | CA11: NA | CB11: NA | CC11: NA | CD11: NA | CE11: NA | CF11: NA | CG11: NA | CH11: NA | CI11: NA | CJ11: NA | CK11: NA | CL11: NA | CM11: NA | CN11: NA | CO11: NA | CP11: NA | CQ11: NA | CR11: NA | CS11: NA | CT11: NA | CU11: NA | CV11: NA | CW11: NA | CX11: NA | CY11: NA | CZ11: NA | DA11: NA | DB11: NA | DC11: NA | DD11: NA | DE11: NA | DF11: NA | DG11: NA | DH11: NA | DI11: NA | DJ11: NA | DK11: NA | DL11: NA | DM11: NA | DN11: NA | DO11: NA | DP11: NA | DQ11: NA | DR11: NA | DS11: NA | DT11: NA | DU11: NA | DV11: NA | DW11: NA | DX11: NA | DY11: NA | DZ11: NA | EA11: NA | EB11: NA | EC11: NA | ED11: NA | EE11: NA | EF11: NA | EG11: NA | EH11: NA | EI11: NA | EJ11: NA | EK11: NA | EL11: NA | EM11: NA | EN11: NA | EO11: NA | EP11: NA | EQ11: NA | ER11: NA | ES11: NA | ET11: NA | EU11: NA | EV11: NA | EW11: NA | EX11: NA | EY11: NA | EZ11: NA | FA11: NA | FB11: NA | FC11: NA | FD11: NA | FE11: NA | FF11: NA | FG11: NA | FH11: NA | FI11: NA | FJ11: NA | FK11: NA | FL11: NA | FM11: NA | FN11: NA | FO11: NA | FP11: NA | FQ11: NA | FR11: NA | FS11: NA | FT11: NA | FU11: NA | FV11: NA | FW11: NA | FX11: NA | FY11: NA | FZ11: NA | GA11: NA | GB11: NA | GC11: NA | GD11: NA | GE11: NA | GF11: NA | GG11: NA | GH11: NA | GI11: NA | GJ11: NA | GK11: NA | GL11: NA | GM11: NA | GN11: NA | GO11: NA | GP11: NA | GQ11: NA | GR11: NA | GS11: NA | GT11: NA | GU11: NA | GV11: NA | GW11: NA | GX11: NA | GY11: NA | GZ11: NA | HA11: NA | HB11: NA | HC11: NA | HD11: NA | HE11: NA | HF11: NA | HG11: NA | HH11: NA | HI11: NA | HJ11: NA | HK11: NA | HL11: NA | HM11: NA | HN11: NA | HO11: NA | HP11: NA | HQ11: NA | HR11: NA | HS11: NA | HT11: NA | HU11: NA | HV11: NA | HW11: NA | HX11: NA | HY11: NA | HZ11: NA | IA11: NA | IB11: NA | IC11: NA | ID11: NA | IE11: NA | IF11: NA | IG11: NA | IH11: NA | II11: NA | IJ11: NA | IK11: NA | IL11: NA | IM11: NA | IN11: NA | IO11: NA | IP11: NA | IQ11: NA | IR11: NA | IS11: NA | IT11: NA | IU11: NA | IV11: NA | IW11: NA | IX11: NA | IY11: NA | IZ11: NA | JA11: NA | JB11: NA | JC11: NA
A12: NA | B12: NA | C12: Liberty Media Corp. (QVC) | D12: Liberty Media (QVC) | E12: NA | F12: NA | G12: Financial | H12: NA | I12: NA | J12: NA | K12: NA | L12: NA | M12: NA | N12: NA | O12: Operations | P12: NA | Q12: NA | R12: NA | S12: NA | T12: NA | U12: NA | V12: NA | W12: NA | X12: NA | Y12: NA | Z12: Web Site Summary | AA12: NA | AB12: NA | AC12: NA | AD12: NA | AE12: NA | AF12: Customer Satisfaction5 | AG12: NA | AH12: NA | AI12: NA | AJ12: Performance6 | AK12: NA | AL12: NA | AM12: NA | AN12: Marketing | AO12: NA | AP12: NA | AQ12: NA | AR12: NA | AS12: NA | AT12: NA | AU12: NA | AV12: NA | AW12: NA | AX12: NA | AY12: NA | AZ12: NA | BA12: NA | BB12: NA | BC12: NA | BD12: NA | BE12: NA | BF12: NA | BG12: NA | BH12: NA | BI12: NA | BJ12: NA | BK12: NA | BL12: NA | BM12: NA | BN12: NA | BO12: NA | BP12: NA | BQ12: NA | BR12: NA | BS12: NA | BT12: NA | BU12: NA | BV12: NA | BW12: NA | BX12: Corporate Information | BY12: NA | BZ12: NA | CA12: NA | CB12: NA | CC12: NA | CD12: NA | CE12: NA | CF12: NA | CG12: NA | CH12: NA | CI12: NA | CJ12: NA | CK12: NA | CL12: NA | CM12: NA | CN12: NA | CO12: NA | CP12: NA | CQ12: NA | CR12: NA | CS12: NA | CT12: NA | CU12: NA | CV12: NA | CW12: NA | CX12: NA | CY12: NA | CZ12: NA | DA12: NA | DB12: NA | DC12: NA | DD12: NA | DE12: NA | DF12: NA | DG12: NA | DH12: NA | DI12: NA | DJ12: NA | DK12: NA | DL12: NA | DM12: NA | DN12: NA | DO12: NA | DP12: NA | DQ12: NA | DR12: NA | DS12: NA | DT12: NA | DU12: NA | DV12: NA | DW12: NA | DX12: NA | DY12: NA | DZ12: NA | EA12: NA | EB12: NA | EC12: NA | ED12: NA | EE12: NA | EF12: NA | EG12: NA | EH12: NA | EI12: NA | EJ12: NA | EK12: NA | EL12: NA | EM12: NA | EN12: NA | EO12: NA | EP12: NA | EQ12: NA | ER12: NA | ES12: NA | ET12: NA | EU12: NA | EV12: NA | EW12: NA | EX12: NA | EY12: NA | EZ12: NA | FA12: NA | FB12: NA | FC12: NA | FD12: NA | FE12: NA | FF12: NA | FG12: NA | FH12: NA | FI12: NA | FJ12: NA | FK12: NA | FL12: NA | FM12: NA | FN12: NA | FO12: NA | FP12: NA | FQ12: NA | FR12: NA | FS12: NA | FT12: NA | FU12: NA | FV12: NA | FW12: NA | FX12: NA | FY12: NA | FZ12: NA | GA12: NA | GB12: NA | GC12: NA | GD12: NA | GE12: NA | GF12: NA | GG12: NA | GH12: NA | GI12: NA | GJ12: NA | GK12: NA | GL12: NA | GM12: NA | GN12: NA | GO12: NA | GP12: NA | GQ12: NA | GR12: NA | GS12: NA | GT12: NA | GU12: NA | GV12: NA | GW12: NA | GX12: NA | GY12: NA | GZ12: NA | HA12: NA | HB12: NA | HC12: NA | HD12: NA | HE12: NA | HF12: NA | HG12: NA | HH12: NA | HI12: NA | HJ12: NA | HK12: NA | HL12: NA | HM12: NA | HN12: NA | HO12: NA | HP12: NA | HQ12: NA | HR12: NA | HS12: NA | HT12: NA | HU12: NA | HV12: NA | HW12: NA | HX12: NA | HY12: NA | HZ12: NA | IA12: NA | IB12: NA | IC12: NA | ID12: NA | IE12: NA | IF12: NA | IG12: NA | IH12: NA | II12: NA | IJ12: NA | IK12: NA | IL12: NA | IM12: NA | IN12: NA | IO12: NA | IP12: NA | IQ12: NA | IR12: NA | IS12: NA | IT12: NA | IU12: NA | IV12: NA | IW12: NA | IX12: NA | IY12: NA | IZ12: NA | JA12: NA | JB12: NA | JC12: NA
A13: NA | B13: NA | C13: Newegg Inc. | D13: Newegg | E13: NA | F13: NA | G13: Financial | H13: NA | I13: NA | J13: NA | K13: NA | L13: NA | M13: NA | N13: NA | O13: Operations | P13: NA | Q13: NA | R13: NA | S13: NA | T13: NA | U13: NA | V13: NA | W13: NA | X13: NA | Y13: NA | Z13: Web Site Summary | AA13: NA | AB13: NA | AC13: NA | AD13: NA | AE13: NA | AF13: Customer Satisfaction5 | AG13: NA | AH13: NA | AI13: NA | AJ13: Performance6 | AK13: NA | AL13: NA | AM13: NA | AN13: Marketing | AO13: NA | AP13: NA | AQ13: NA | AR13: NA | AS13: NA | AT13: NA | AU13: NA | AV13: NA | AW13: NA | AX13: NA | AY13: NA | AZ13: NA | BA13: NA | BB13: NA | BC13: NA | BD13: NA | BE13: NA | BF13: NA | BG13: NA | BH13: NA | BI13: NA | BJ13: NA | BK13: NA | BL13: NA | BM13: NA | BN13: NA | BO13: NA | BP13: NA | BQ13: NA | BR13: NA | BS13: NA | BT13: NA | BU13: NA | BV13: NA | BW13: NA | BX13: Corporate Information | BY13: NA | BZ13: NA | CA13: NA | CB13: NA | CC13: NA | CD13: NA | CE13: NA | CF13: NA | CG13: NA | CH13: NA | CI13: NA | CJ13: NA | CK13: NA | CL13: NA | CM13: NA | CN13: NA | CO13: NA | CP13: NA | CQ13: NA | CR13: NA | CS13: NA | CT13: NA | CU13: NA | CV13: NA | CW13: NA | CX13: NA | CY13: NA | CZ13: NA | DA13: NA | DB13: NA | DC13: NA | DD13: NA | DE13: NA | DF13: NA | DG13: NA | DH13: NA | DI13: NA | DJ13: NA | DK13: NA | DL13: NA | DM13: NA | DN13: NA | DO13: NA | DP13: NA | DQ13: NA | DR13: NA | DS13: NA | DT13: NA | DU13: NA | DV13: NA | DW13: NA | DX13: NA | DY13: NA | DZ13: NA | EA13: NA | EB13: NA | EC13: NA | ED13: NA | EE13: NA | EF13: NA | EG13: NA | EH13: NA | EI13: NA | EJ13: NA | EK13: NA | EL13: NA | EM13: NA | EN13: NA | EO13: NA | EP13: NA | EQ13: NA | ER13: NA | ES13: NA | ET13: NA | EU13: NA | EV13: NA | EW13: NA | EX13: NA | EY13: NA | EZ13: NA | FA13: NA | FB13: NA | FC13: NA | FD13: NA | FE13: NA | FF13: NA | FG13: NA | FH13: NA | FI13: NA | FJ13: NA | FK13: NA | FL13: NA | FM13: NA | FN13: NA | FO13: NA | FP13: NA | FQ13: NA | FR13: NA | FS13: NA | FT13: NA | FU13: NA | FV13: NA | FW13: NA | FX13: NA | FY13: NA | FZ13: NA | GA13: NA | GB13: NA | GC13: NA | GD13: NA | GE13: NA | GF13: NA | GG13: NA | GH13: NA | GI13: NA | GJ13: NA | GK13: NA | GL13: NA | GM13: NA | GN13: NA | GO13: NA | GP13: NA | GQ13: NA | GR13: NA | GS13: NA | GT13: NA | GU13: NA | GV13: NA | GW13: NA | GX13: NA | GY13: NA | GZ13: NA | HA13: NA | HB13: NA | HC13: NA | HD13: NA | HE13: NA | HF13: NA | HG13: NA | HH13: NA | HI13: NA | HJ13: NA | HK13: NA | HL13: NA | HM13: NA | HN13: NA | HO13: NA | HP13: NA | HQ13: NA | HR13: NA | HS13: NA | HT13: NA | HU13: NA | HV13: NA | HW13: NA | HX13: NA | HY13: NA | HZ13: NA | IA13: NA | IB13: NA | IC13: NA | ID13: NA | IE13: NA | IF13: NA | IG13: NA | IH13: NA | II13: NA | IJ13: NA | IK13: NA | IL13: NA | IM13: NA | IN13: NA | IO13: NA | IP13: NA | IQ13: NA | IR13: NA | IS13: NA | IT13: NA | IU13: NA | IV13: NA | IW13: NA | IX13: NA | IY13: NA | IZ13: NA | JA13: NA | JB13: NA | JC13: NA
A14: NA | B14: NA | C14: SonyStyle.com | D14: SonyStyle.com | E14: NA | F14: NA | G14: Financial | H14: NA | I14: NA | J14: NA | K14: NA | L14: NA | M14: NA | N14: NA | O14: Operations | P14: NA | Q14: NA | R14: NA | S14: NA | T14: NA | U14: NA | V14: NA | W14: NA | X14: NA | Y14: NA | Z14: Web Site Summary | AA14: NA | AB14: NA | AC14: NA | AD14: NA | AE14: NA | AF14: Customer Satisfaction5 | AG14: NA | AH14: NA | AI14: NA | AJ14: Performance6 | AK14: NA | AL14: NA | AM14: NA | AN14: Marketing | AO14: NA | AP14: NA | AQ14: NA | AR14: NA | AS14: NA | AT14: NA | AU14: NA | AV14: NA | AW14: NA | AX14: NA | AY14: NA | AZ14: NA | BA14: NA | BB14: NA | BC14: NA | BD14: NA | BE14: NA | BF14: NA | BG14: NA | BH14: NA | BI14: NA | BJ14: NA | BK14: NA | BL14: NA | BM14: NA | BN14: NA | BO14: NA | BP14: NA | BQ14: NA | BR14: NA | BS14: NA | BT14: NA | BU14: NA | BV14: NA | BW14: NA | BX14: Corporate Information | BY14: NA | BZ14: NA | CA14: NA | CB14: NA | CC14: NA | CD14: NA | CE14: NA | CF14: NA | CG14: NA | CH14: NA | CI14: NA | CJ14: NA | CK14: NA | CL14: NA | CM14: NA | CN14: NA | CO14: NA | CP14: NA | CQ14: NA | CR14: NA | CS14: NA | CT14: NA | CU14: NA | CV14: NA | CW14: NA | CX14: NA | CY14: NA | CZ14: NA | DA14: NA | DB14: NA | DC14: NA | DD14: NA | DE14: NA | DF14: NA | DG14: NA | DH14: NA | DI14: NA | DJ14: NA | DK14: NA | DL14: NA | DM14: NA | DN14: NA | DO14: NA | DP14: NA | DQ14: NA | DR14: NA | DS14: NA | DT14: NA | DU14: NA | DV14: NA | DW14: NA | DX14: NA | DY14: NA | DZ14: NA | EA14: NA | EB14: NA | EC14: NA | ED14: NA | EE14: NA | EF14: NA | EG14: NA | EH14: NA | EI14: NA | EJ14: NA | EK14: NA | EL14: NA | EM14: NA | EN14: NA | EO14: NA | EP14: NA | EQ14: NA | ER14: NA | ES14: NA | ET14: NA | EU14: NA | EV14: NA | EW14: NA | EX14: NA | EY14: NA | EZ14: NA | FA14: NA | FB14: NA | FC14: NA | FD14: NA | FE14: NA | FF14: NA | FG14: NA | FH14: NA | FI14: NA | FJ14: NA | FK14: NA | FL14: NA | FM14: NA | FN14: NA | FO14: NA | FP14: NA | FQ14: NA | FR14: NA | FS14: NA | FT14: NA | FU14: NA | FV14: NA | FW14: NA | FX14: NA | FY14: NA | FZ14: NA | GA14: NA | GB14: NA | GC14: NA | GD14: NA | GE14: NA | GF14: NA | GG14: NA | GH14: NA | GI14: NA | GJ14: NA | GK14: NA | GL14: NA | GM14: NA | GN14: NA | GO14: NA | GP14: NA | GQ14: NA | GR14: NA | GS14: NA | GT14: NA | GU14: NA | GV14: NA | GW14: NA | GX14: NA | GY14: NA | GZ14: NA | HA14: NA | HB14: NA | HC14: NA | HD14: NA | HE14: NA | HF14: NA | HG14: NA | HH14: NA | HI14: NA | HJ14: NA | HK14: NA | HL14: NA | HM14: NA | HN14: NA | HO14: NA | HP14: NA | HQ14: NA | HR14: NA | HS14: NA | HT14: NA | HU14: NA | HV14: NA | HW14: NA | HX14: NA | HY14: NA | HZ14: NA | IA14: NA | IB14: NA | IC14: NA | ID14: NA | IE14: NA | IF14: NA | IG14: NA | IH14: NA | II14: NA | IJ14: NA | IK14: NA | IL14: NA | IM14: NA | IN14: NA | IO14: NA | IP14: NA | IQ14: NA | IR14: NA | IS14: NA | IT14: NA | IU14: NA | IV14: NA | IW14: NA | IX14: NA | IY14: NA | IZ14: NA | JA14: NA | JB14: NA | JC14: NA
A15: NA | B15: NA | C15: Netflix Inc. | D15: Netflix | E15: NA | F15: NA | G15: Financial | H15: NA | I15: NA | J15: NA | K15: NA | L15: NA | M15: NA | N15: NA | O15: Operations | P15: NA | Q15: NA | R15: NA | S15: NA | T15: NA | U15: NA | V15: NA | W15: NA | X15: NA | Y15: NA | Z15: Web Site Summary | AA15: NA | AB15: NA | AC15: NA | AD15: NA | AE15: NA | AF15: Customer Satisfaction5 | AG15: NA | AH15: NA | AI15: NA | AJ15: Performance6 | AK15: NA | AL15: NA | AM15: NA | AN15: Marketing | AO15: NA | AP15: NA | AQ15: NA | AR15: NA | AS15: NA | AT15: NA | AU15: NA | AV15: NA | AW15: NA | AX15: NA | AY15: NA | AZ15: NA | BA15: NA | BB15: NA | BC15: NA | BD15: NA | BE15: NA | BF15: NA | BG15: NA | BH15: NA | BI15: NA | BJ15: NA | BK15: NA | BL15: NA | BM15: NA | BN15: NA | BO15: NA | BP15: NA | BQ15: NA | BR15: NA | BS15: NA | BT15: NA | BU15: NA | BV15: NA | BW15: NA | BX15: Corporate Information | BY15: NA | BZ15: NA | CA15: NA | CB15: NA | CC15: NA | CD15: NA | CE15: NA | CF15: NA | CG15: NA | CH15: NA | CI15: NA | CJ15: NA | CK15: NA | CL15: NA | CM15: NA | CN15: NA | CO15: NA | CP15: NA | CQ15: NA | CR15: NA | CS15: NA | CT15: NA | CU15: NA | CV15: NA | CW15: NA | CX15: NA | CY15: NA | CZ15: NA | DA15: NA | DB15: NA | DC15: NA | DD15: NA | DE15: NA | DF15: NA | DG15: NA | DH15: NA | DI15: NA | DJ15: NA | DK15: NA | DL15: NA | DM15: NA | DN15: NA | DO15: NA | DP15: NA | DQ15: NA | DR15: NA | DS15: NA | DT15: NA | DU15: NA | DV15: NA | DW15: NA | DX15: NA | DY15: NA | DZ15: NA | EA15: NA | EB15: NA | EC15: NA | ED15: NA | EE15: NA | EF15: NA | EG15: NA | EH15: NA | EI15: NA | EJ15: NA | EK15: NA | EL15: NA | EM15: NA | EN15: NA | EO15: NA | EP15: NA | EQ15: NA | ER15: NA | ES15: NA | ET15: NA | EU15: NA | EV15: NA | EW15: NA | EX15: NA | EY15: NA | EZ15: NA | FA15: NA | FB15: NA | FC15: NA | FD15: NA | FE15: NA | FF15: NA | FG15: NA | FH15: NA | FI15: NA | FJ15: NA | FK15: NA | FL15: NA | FM15: NA | FN15: NA | FO15: NA | FP15: NA | FQ15: NA | FR15: NA | FS15: NA | FT15: NA | FU15: NA | FV15: NA | FW15: NA | FX15: NA | FY15: NA | FZ15: NA | GA15: NA | GB15: NA | GC15: NA | GD15: NA | GE15: NA | GF15: NA | GG15: NA | GH15: NA | GI15: NA | GJ15: NA | GK15: NA | GL15: NA | GM15: NA | GN15: NA | GO15: NA | GP15: NA | GQ15: NA | GR15: NA | GS15: NA | GT15: NA | GU15: NA | GV15: NA | GW15: NA | GX15: NA | GY15: NA | GZ15: NA | HA15: NA | HB15: NA | HC15: NA | HD15: NA | HE15: NA | HF15: NA | HG15: NA | HH15: NA | HI15: NA | HJ15: NA | HK15: NA | HL15: NA | HM15: NA | HN15: NA | HO15: NA | HP15: NA | HQ15: NA | HR15: NA | HS15: NA | HT15: NA | HU15: NA | HV15: NA | HW15: NA | HX15: NA | HY15: NA | HZ15: NA | IA15: NA | IB15: NA | IC15: NA | ID15: NA | IE15: NA | IF15: NA | IG15: NA | IH15: NA | II15: NA | IJ15: NA | IK15: NA | IL15: NA | IM15: NA | IN15: NA | IO15: NA | IP15: NA | IQ15: NA | IR15: NA | IS15: NA | IT15: NA | IU15: NA | IV15: NA | IW15: NA | IX15: NA | IY15: NA | IZ15: NA | JA15: NA | JB15: NA | JC15: NA
A16: NA | B16: NA | C16: Costco Wholesale Corp. | D16: Costco Wholesale | E16: NA | F16: NA | G16: Financial | H16: NA | I16: NA | J16: NA | K16: NA | L16: NA | M16: NA | N16: NA | O16: Operations | P16: NA | Q16: NA | R16: NA | S16: NA | T16: NA | U16: NA | V16: NA | W16: NA | X16: NA | Y16: NA | Z16: Web Site Summary | AA16: NA | AB16: NA | AC16: NA | AD16: NA | AE16: NA | AF16: Customer Satisfaction5 | AG16: NA | AH16: NA | AI16: NA | AJ16: Performance6 | AK16: NA | AL16: NA | AM16: NA | AN16: Marketing | AO16: NA | AP16: NA | AQ16: NA | AR16: NA | AS16: NA | AT16: NA | AU16: NA | AV16: NA | AW16: NA | AX16: NA | AY16: NA | AZ16: NA | BA16: NA | BB16: NA | BC16: NA | BD16: NA | BE16: NA | BF16: NA | BG16: NA | BH16: NA | BI16: NA | BJ16: NA | BK16: NA | BL16: NA | BM16: NA | BN16: NA | BO16: NA | BP16: NA | BQ16: NA | BR16: NA | BS16: NA | BT16: NA | BU16: NA | BV16: NA | BW16: NA | BX16: Corporate Information | BY16: NA | BZ16: NA | CA16: NA | CB16: NA | CC16: NA | CD16: NA | CE16: NA | CF16: NA | CG16: NA | CH16: NA | CI16: NA | CJ16: NA | CK16: NA | CL16: NA | CM16: NA | CN16: NA | CO16: NA | CP16: NA | CQ16: NA | CR16: NA | CS16: NA | CT16: NA | CU16: NA | CV16: NA | CW16: NA | CX16: NA | CY16: NA | CZ16: NA | DA16: NA | DB16: NA | DC16: NA | DD16: NA | DE16: NA | DF16: NA | DG16: NA | DH16: NA | DI16: NA | DJ16: NA | DK16: NA | DL16: NA | DM16: NA | DN16: NA | DO16: NA | DP16: NA | DQ16: NA | DR16: NA | DS16: NA | DT16: NA | DU16: NA | DV16: NA | DW16: NA | DX16: NA | DY16: NA | DZ16: NA | EA16: NA | EB16: NA | EC16: NA | ED16: NA | EE16: NA | EF16: NA | EG16: NA | EH16: NA | EI16: NA | EJ16: NA | EK16: NA | EL16: NA | EM16: NA | EN16: NA | EO16: NA | EP16: NA | EQ16: NA | ER16: NA | ES16: NA | ET16: NA | EU16: NA | EV16: NA | EW16: NA | EX16: NA | EY16: NA | EZ16: NA | FA16: NA | FB16: NA | FC16: NA | FD16: NA | FE16: NA | FF16: NA | FG16: NA | FH16: NA | FI16: NA | FJ16: NA | FK16: NA | FL16: NA | FM16: NA | FN16: NA | FO16: NA | FP16: NA | FQ16: NA | FR16: NA | FS16: NA | FT16: NA | FU16: NA | FV16: NA | FW16: NA | FX16: NA | FY16: NA | FZ16: NA | GA16: NA | GB16: NA | GC16: NA | GD16: NA | GE16: NA | GF16: NA | GG16: NA | GH16: NA | GI16: NA | GJ16: NA | GK16: NA | GL16: NA | GM16: NA | GN16: NA | GO16: NA | GP16: NA | GQ16: NA | GR16: NA | GS16: NA | GT16: NA | GU16: NA | GV16: NA | GW16: NA | GX16: NA | GY16: NA | GZ16: NA | HA16: NA | HB16: NA | HC16: NA | HD16: NA | HE16: NA | HF16: NA | HG16: NA | HH16: NA | HI16: NA | HJ16: NA | HK16: NA | HL16: NA | HM16: NA | HN16: NA | HO16: NA | HP16: NA | HQ16: NA | HR16: NA | HS16: NA | HT16: NA | HU16: NA | HV16: NA | HW16: NA | HX16: NA | HY16: NA | HZ16: NA | IA16: NA | IB16: NA | IC16: NA | ID16: NA | IE16: NA | IF16: NA | IG16: NA | IH16: NA | II16: NA | IJ16: NA | IK16: NA | IL16: NA | IM16: NA | IN16: NA | IO16: NA | IP16: NA | IQ16: NA | IR16: NA | IS16: NA | IT16: NA | IU16: NA | IV16: NA | IW16: NA | IX16: NA | IY16: NA | IZ16: NA | JA16: NA | JB16: NA | JC16: NA
A17: NA | B17: NA | C17: J.C. Penney Co. Inc. | D17: J.C. Penney | E17: NA | F17: NA | G17: Financial | H17: NA | I17: NA | J17: NA | K17: NA | L17: NA | M17: NA | N17: NA | O17: Operations | P17: NA | Q17: NA | R17: NA | S17: NA | T17: NA | U17: NA | V17: NA | W17: NA | X17: NA | Y17: NA | Z17: Web Site Summary | AA17: NA | AB17: NA | AC17: NA | AD17: NA | AE17: NA | AF17: Customer Satisfaction5 | AG17: NA | AH17: NA | AI17: NA | AJ17: Performance6 | AK17: NA | AL17: NA | AM17: NA | AN17: Marketing | AO17: NA | AP17: NA | AQ17: NA | AR17: NA | AS17: NA | AT17: NA | AU17: NA | AV17: NA | AW17: NA | AX17: NA | AY17: NA | AZ17: NA | BA17: NA | BB17: NA | BC17: NA | BD17: NA | BE17: NA | BF17: NA | BG17: NA | BH17: NA | BI17: NA | BJ17: NA | BK17: NA | BL17: NA | BM17: NA | BN17: NA | BO17: NA | BP17: NA | BQ17: NA | BR17: NA | BS17: NA | BT17: NA | BU17: NA | BV17: NA | BW17: NA | BX17: Corporate Information | BY17: NA | BZ17: NA | CA17: NA | CB17: NA | CC17: NA | CD17: NA | CE17: NA | CF17: NA | CG17: NA | CH17: NA | CI17: NA | CJ17: NA | CK17: NA | CL17: NA | CM17: NA | CN17: NA | CO17: NA | CP17: NA | CQ17: NA | CR17: NA | CS17: NA | CT17: NA | CU17: NA | CV17: NA | CW17: NA | CX17: NA | CY17: NA | CZ17: NA | DA17: NA | DB17: NA | DC17: NA | DD17: NA | DE17: NA | DF17: NA | DG17: NA | DH17: NA | DI17: NA | DJ17: NA | DK17: NA | DL17: NA | DM17: NA | DN17: NA | DO17: NA | DP17: NA | DQ17: NA | DR17: NA | DS17: NA | DT17: NA | DU17: NA | DV17: NA | DW17: NA | DX17: NA | DY17: NA | DZ17: NA | EA17: NA | EB17: NA | EC17: NA | ED17: NA | EE17: NA | EF17: NA | EG17: NA | EH17: NA | EI17: NA | EJ17: NA | EK17: NA | EL17: NA | EM17: NA | EN17: NA | EO17: NA | EP17: NA | EQ17: NA | ER17: NA | ES17: NA | ET17: NA | EU17: NA | EV17: NA | EW17: NA | EX17: NA | EY17: NA | EZ17: NA | FA17: NA | FB17: NA | FC17: NA | FD17: NA | FE17: NA | FF17: NA | FG17: NA | FH17: NA | FI17: NA | FJ17: NA | FK17: NA | FL17: NA | FM17: NA | FN17: NA | FO17: NA | FP17: NA | FQ17: NA | FR17: NA | FS17: NA | FT17: NA | FU17: NA | FV17: NA | FW17: NA | FX17: NA | FY17: NA | FZ17: NA | GA17: NA | GB17: NA | GC17: NA | GD17: NA | GE17: NA | GF17: NA | GG17: NA | GH17: NA | GI17: NA | GJ17: NA | GK17: NA | GL17: NA | GM17: NA | GN17: NA | GO17: NA | GP17: NA | GQ17: NA | GR17: NA | GS17: NA | GT17: NA | GU17: NA | GV17: NA | GW17: NA | GX17: NA | GY17: NA | GZ17: NA | HA17: NA | HB17: NA | HC17: NA | HD17: NA | HE17: NA | HF17: NA | HG17: NA | HH17: NA | HI17: NA | HJ17: NA | HK17: NA | HL17: NA | HM17: NA | HN17: NA | HO17: NA | HP17: NA | HQ17: NA | HR17: NA | HS17: NA | HT17: NA | HU17: NA | HV17: NA | HW17: NA | HX17: NA | HY17: NA | HZ17: NA | IA17: NA | IB17: NA | IC17: NA | ID17: NA | IE17: NA | IF17: NA | IG17: NA | IH17: NA | II17: NA | IJ17: NA | IK17: NA | IL17: NA | IM17: NA | IN17: NA | IO17: NA | IP17: NA | IQ17: NA | IR17: NA | IS17: NA | IT17: NA | IU17: NA | IV17: NA | IW17: NA | IX17: NA | IY17: NA | IZ17: NA | JA17: NA | JB17: NA | JC17: NA
A18: NA | B18: NA | C18: HP Home & Home Office Store | D18: HP | E18: NA | F18: NA | G18: Financial | H18: NA | I18: NA | J18: NA | K18: NA | L18: NA | M18: NA | N18: NA | O18: Operations | P18: NA | Q18: NA | R18: NA | S18: NA | T18: NA | U18: NA | V18: NA | W18: NA | X18: NA | Y18: NA | Z18: Web Site Summary | AA18: NA | AB18: NA | AC18: NA | AD18: NA | AE18: NA | AF18: Customer Satisfaction5 | AG18: NA | AH18: NA | AI18: NA | AJ18: Performance6 | AK18: NA | AL18: NA | AM18: NA | AN18: Marketing | AO18: NA | AP18: NA | AQ18: NA | AR18: NA | AS18: NA | AT18: NA | AU18: NA | AV18: NA | AW18: NA | AX18: NA | AY18: NA | AZ18: NA | BA18: NA | BB18: NA | BC18: NA | BD18: NA | BE18: NA | BF18: NA | BG18: NA | BH18: NA | BI18: NA | BJ18: NA | BK18: NA | BL18: NA | BM18: NA | BN18: NA | BO18: NA | BP18: NA | BQ18: NA | BR18: NA | BS18: NA | BT18: NA | BU18: NA | BV18: NA | BW18: NA | BX18: Corporate Information | BY18: NA | BZ18: NA | CA18: NA | CB18: NA | CC18: NA | CD18: NA | CE18: NA | CF18: NA | CG18: NA | CH18: NA | CI18: NA | CJ18: NA | CK18: NA | CL18: NA | CM18: NA | CN18: NA | CO18: NA | CP18: NA | CQ18: NA | CR18: NA | CS18: NA | CT18: NA | CU18: NA | CV18: NA | CW18: NA | CX18: NA | CY18: NA | CZ18: NA | DA18: NA | DB18: NA | DC18: NA | DD18: NA | DE18: NA | DF18: NA | DG18: NA | DH18: NA | DI18: NA | DJ18: NA | DK18: NA | DL18: NA | DM18: NA | DN18: NA | DO18: NA | DP18: NA | DQ18: NA | DR18: NA | DS18: NA | DT18: NA | DU18: NA | DV18: NA | DW18: NA | DX18: NA | DY18: NA | DZ18: NA | EA18: NA | EB18: NA | EC18: NA | ED18: NA | EE18: NA | EF18: NA | EG18: NA | EH18: NA | EI18: NA | EJ18: NA | EK18: NA | EL18: NA | EM18: NA | EN18: NA | EO18: NA | EP18: NA | EQ18: NA | ER18: NA | ES18: NA | ET18: NA | EU18: NA | EV18: NA | EW18: NA | EX18: NA | EY18: NA | EZ18: NA | FA18: NA | FB18: NA | FC18: NA | FD18: NA | FE18: NA | FF18: NA | FG18: NA | FH18: NA | FI18: NA | FJ18: NA | FK18: NA | FL18: NA | FM18: NA | FN18: NA | FO18: NA | FP18: NA | FQ18: NA | FR18: NA | FS18: NA | FT18: NA | FU18: NA | FV18: NA | FW18: NA | FX18: NA | FY18: NA | FZ18: NA | GA18: NA | GB18: NA | GC18: NA | GD18: NA | GE18: NA | GF18: NA | GG18: NA | GH18: NA | GI18: NA | GJ18: NA | GK18: NA | GL18: NA | GM18: NA | GN18: NA | GO18: NA | GP18: NA | GQ18: NA | GR18: NA | GS18: NA | GT18: NA | GU18: NA | GV18: NA | GW18: NA | GX18: NA | GY18: NA | GZ18: NA | HA18: NA | HB18: NA | HC18: NA | HD18: NA | HE18: NA | HF18: NA | HG18: NA | HH18: NA | HI18: NA | HJ18: NA | HK18: NA | HL18: NA | HM18: NA | HN18: NA | HO18: NA | HP18: NA | HQ18: NA | HR18: NA | HS18: NA | HT18: NA | HU18: NA | HV18: NA | HW18: NA | HX18: NA | HY18: NA | HZ18: NA | IA18: NA | IB18: NA | IC18: NA | ID18: NA | IE18: NA | IF18: NA | IG18: NA | IH18: NA | II18: NA | IJ18: NA | IK18: NA | IL18: NA | IM18: NA | IN18: NA | IO18: NA | IP18: NA | IQ18: NA | IR18: NA | IS18: NA | IT18: NA | IU18: NA | IV18: NA | IW18: NA | IX18: NA | IY18: NA | IZ18: NA | JA18: NA | JB18: NA | JC18: NA
A19: NA | B19: NA | C19: Victoria's Secret | D19: Victoria's Secret | E19: NA | F19: NA | G19: Financial | H19: NA | I19: NA | J19: NA | K19: NA | L19: NA | M19: NA | N19: NA | O19: Operations | P19: NA | Q19: NA | R19: NA | S19: NA | T19: NA | U19: NA | V19: NA | W19: NA | X19: NA | Y19: NA | Z19: Web Site Summary | AA19: NA | AB19: NA | AC19: NA | AD19: NA | AE19: NA | AF19: Customer Satisfaction5 | AG19: NA | AH19: NA | AI19: NA | AJ19: Performance6 | AK19: NA | AL19: NA | AM19: NA | AN19: Marketing | AO19: NA | AP19: NA | AQ19: NA | AR19: NA | AS19: NA | AT19: NA | AU19: NA | AV19: NA | AW19: NA | AX19: NA | AY19: NA | AZ19: NA | BA19: NA | BB19: NA | BC19: NA | BD19: NA | BE19: NA | BF19: NA | BG19: NA | BH19: NA | BI19: NA | BJ19: NA | BK19: NA | BL19: NA | BM19: NA | BN19: NA | BO19: NA | BP19: NA | BQ19: NA | BR19: NA | BS19: NA | BT19: NA | BU19: NA | BV19: NA | BW19: NA | BX19: Corporate Information | BY19: NA | BZ19: NA | CA19: NA | CB19: NA | CC19: NA | CD19: NA | CE19: NA | CF19: NA | CG19: NA | CH19: NA | CI19: NA | CJ19: NA | CK19: NA | CL19: NA | CM19: NA | CN19: NA | CO19: NA | CP19: NA | CQ19: NA | CR19: NA | CS19: NA | CT19: NA | CU19: NA | CV19: NA | CW19: NA | CX19: NA | CY19: NA | CZ19: NA | DA19: NA | DB19: NA | DC19: NA | DD19: NA | DE19: NA | DF19: NA | DG19: NA | DH19: NA | DI19: NA | DJ19: NA | DK19: NA | DL19: NA | DM19: NA | DN19: NA | DO19: NA | DP19: NA | DQ19: NA | DR19: NA | DS19: NA | DT19: NA | DU19: NA | DV19: NA | DW19: NA | DX19: NA | DY19: NA | DZ19: NA | EA19: NA | EB19: NA | EC19: NA | ED19: NA | EE19: NA | EF19: NA | EG19: NA | EH19: NA | EI19: NA | EJ19: NA | EK19: NA | EL19: NA | EM19: NA | EN19: NA | EO19: NA | EP19: NA | EQ19: NA | ER19: NA | ES19: NA | ET19: NA | EU19: NA | EV19: NA | EW19: NA | EX19: NA | EY19: NA | EZ19: NA | FA19: NA | FB19: NA | FC19: NA | FD19: NA | FE19: NA | FF19: NA | FG19: NA | FH19: NA | FI19: NA | FJ19: NA | FK19: NA | FL19: NA | FM19: NA | FN19: NA | FO19: NA | FP19: NA | FQ19: NA | FR19: NA | FS19: NA | FT19: NA | FU19: NA | FV19: NA | FW19: NA | FX19: NA | FY19: NA | FZ19: NA | GA19: NA | GB19: NA | GC19: NA | GD19: NA | GE19: NA | GF19: NA | GG19: NA | GH19: NA | GI19: NA | GJ19: NA | GK19: NA | GL19: NA | GM19: NA | GN19: NA | GO19: NA | GP19: NA | GQ19: NA | GR19: NA | GS19: NA | GT19: NA | GU19: NA | GV19: NA | GW19: NA | GX19: NA | GY19: NA | GZ19: NA | HA19: NA | HB19: NA | HC19: NA | HD19: NA | HE19: NA | HF19: NA | HG19: NA | HH19: NA | HI19: NA | HJ19: NA | HK19: NA | HL19: NA | HM19: NA | HN19: NA | HO19: NA | HP19: NA | HQ19: NA | HR19: NA | HS19: NA | HT19: NA | HU19: NA | HV19: NA | HW19: NA | HX19: NA | HY19: NA | HZ19: NA | IA19: NA | IB19: NA | IC19: NA | ID19: NA | IE19: NA | IF19: NA | IG19: NA | IH19: NA | II19: NA | IJ19: NA | IK19: NA | IL19: NA | IM19: NA | IN19: NA | IO19: NA | IP19: NA | IQ19: NA | IR19: NA | IS19: NA | IT19: NA | IU19: NA | IV19: NA | IW19: NA | IX19: NA | IY19: NA | IZ19: NA | JA19: NA | JB19: NA | JC19: NA
A20: NA | B20: NA | C20: W.W. Grainger Inc. | D20: W.W. Grainger | E20: NA | F20: NA | G20: Financial | H20: NA | I20: NA | J20: NA | K20: NA | L20: NA | M20: NA | N20: NA | O20: Operations | P20: NA | Q20: NA | R20: NA | S20: NA | T20: NA | U20: NA | V20: NA | W20: NA | X20: NA | Y20: NA | Z20: Web Site Summary | AA20: NA | AB20: NA | AC20: NA | AD20: NA | AE20: NA | AF20: Customer Satisfaction5 | AG20: NA | AH20: NA | AI20: NA | AJ20: Performance6 | AK20: NA | AL20: NA | AM20: NA | AN20: Marketing | AO20: NA | AP20: NA | AQ20: NA | AR20: NA | AS20: NA | AT20: NA | AU20: NA | AV20: NA | AW20: NA | AX20: NA | AY20: NA | AZ20: NA | BA20: NA | BB20: NA | BC20: NA | BD20: NA | BE20: NA | BF20: NA | BG20: NA | BH20: NA | BI20: NA | BJ20: NA | BK20: NA | BL20: NA | BM20: NA | BN20: NA | BO20: NA | BP20: NA | BQ20: NA | BR20: NA | BS20: NA | BT20: NA | BU20: NA | BV20: NA | BW20: NA | BX20: Corporate Information | BY20: NA | BZ20: NA | CA20: NA | CB20: NA | CC20: NA | CD20: NA | CE20: NA | CF20: NA | CG20: NA | CH20: NA | CI20: NA | CJ20: NA | CK20: NA | CL20: NA | CM20: NA | CN20: NA | CO20: NA | CP20: NA | CQ20: NA | CR20: NA | CS20: NA | CT20: NA | CU20: NA | CV20: NA | CW20: NA | CX20: NA | CY20: NA | CZ20: NA | DA20: NA | DB20: NA | DC20: NA | DD20: NA | DE20: NA | DF20: NA | DG20: NA | DH20: NA | DI20: NA | DJ20: NA | DK20: NA | DL20: NA | DM20: NA | DN20: NA | DO20: NA | DP20: NA | DQ20: NA | DR20: NA | DS20: NA | DT20: NA | DU20: NA | DV20: NA | DW20: NA | DX20: NA | DY20: NA | DZ20: NA | EA20: NA | EB20: NA | EC20: NA | ED20: NA | EE20: NA | EF20: NA | EG20: NA | EH20: NA | EI20: NA | EJ20: NA | EK20: NA | EL20: NA | EM20: NA | EN20: NA | EO20: NA | EP20: NA | EQ20: NA | ER20: NA | ES20: NA | ET20: NA | EU20: NA | EV20: NA | EW20: NA | EX20: NA | EY20: NA | EZ20: NA | FA20: NA | FB20: NA | FC20: NA | FD20: NA | FE20: NA | FF20: NA | FG20: NA | FH20: NA | FI20: NA | FJ20: NA | FK20: NA | FL20: NA | FM20: NA | FN20: NA | FO20: NA | FP20: NA | FQ20: NA | FR20: NA | FS20: NA | FT20: NA | FU20: NA | FV20: NA | FW20: NA | FX20: NA | FY20: NA | FZ20: NA | GA20: NA | GB20: NA | GC20: NA | GD20: NA | GE20: NA | GF20: NA | GG20: NA | GH20: NA | GI20: NA | GJ20: NA | GK20: NA | GL20: NA | GM20: NA | GN20: NA | GO20: NA | GP20: NA | GQ20: NA | GR20: NA | GS20: NA | GT20: NA | GU20: NA | GV20: NA | GW20: NA | GX20: NA | GY20: NA | GZ20: NA | HA20: NA | HB20: NA | HC20: NA | HD20: NA | HE20: NA | HF20: NA | HG20: NA | HH20: NA | HI20: NA | HJ20: NA | HK20: NA | HL20: NA | HM20: NA | HN20: NA | HO20: NA | HP20: NA | HQ20: NA | HR20: NA | HS20: NA | HT20: NA | HU20: NA | HV20: NA | HW20: NA | HX20: NA | HY20: NA | HZ20: NA | IA20: NA | IB20: NA | IC20: NA | ID20: NA | IE20: NA | IF20: NA | IG20: NA | IH20: NA | II20: NA | IJ20: NA | IK20: NA | IL20: NA | IM20: NA | IN20: NA | IO20: NA | IP20: NA | IQ20: NA | IR20: NA | IS20: NA | IT20: NA | IU20: NA | IV20: NA | IW20: NA | IX20: NA | IY20: NA | IZ20: NA | JA20: NA | JB20: NA | JC20: NA
A21: NA | B21: NA | C21: Macy's Inc. | D21: Macy's | E21: NA | F21: NA | G21: Financial | H21: NA | I21: NA | J21: NA | K21: NA | L21: NA | M21: NA | N21: NA | O21: Operations | P21: NA | Q21: NA | R21: NA | S21: NA | T21: NA | U21: NA | V21: NA | W21: NA | X21: NA | Y21: NA | Z21: Web Site Summary | AA21: NA | AB21: NA | AC21: NA | AD21: NA | AE21: NA | AF21: Customer Satisfaction5 | AG21: NA | AH21: NA | AI21: NA | AJ21: Performance6 | AK21: NA | AL21: NA | AM21: NA | AN21: Marketing | AO21: NA | AP21: NA | AQ21: NA | AR21: NA | AS21: NA | AT21: NA | AU21: NA | AV21: NA | AW21: NA | AX21: NA | AY21: NA | AZ21: NA | BA21: NA | BB21: NA | BC21: NA | BD21: NA | BE21: NA | BF21: NA | BG21: NA | BH21: NA | BI21: NA | BJ21: NA | BK21: NA | BL21: NA | BM21: NA | BN21: NA | BO21: NA | BP21: NA | BQ21: NA | BR21: NA | BS21: NA | BT21: NA | BU21: NA | BV21: NA | BW21: NA | BX21: Corporate Information | BY21: NA | BZ21: NA | CA21: NA | CB21: NA | CC21: NA | CD21: NA | CE21: NA | CF21: NA | CG21: NA | CH21: NA | CI21: NA | CJ21: NA | CK21: NA | CL21: NA | CM21: NA | CN21: NA | CO21: NA | CP21: NA | CQ21: NA | CR21: NA | CS21: NA | CT21: NA | CU21: NA | CV21: NA | CW21: NA | CX21: NA | CY21: NA | CZ21: NA | DA21: NA | DB21: NA | DC21: NA | DD21: NA | DE21: NA | DF21: NA | DG21: NA | DH21: NA | DI21: NA | DJ21: NA | DK21: NA | DL21: NA | DM21: NA | DN21: NA | DO21: NA | DP21: NA | DQ21: NA | DR21: NA | DS21: NA | DT21: NA | DU21: NA | DV21: NA | DW21: NA | DX21: NA | DY21: NA | DZ21: NA | EA21: NA | EB21: NA | EC21: NA | ED21: NA | EE21: NA | EF21: NA | EG21: NA | EH21: NA | EI21: NA | EJ21: NA | EK21: NA | EL21: NA | EM21: NA | EN21: NA | EO21: NA | EP21: NA | EQ21: NA | ER21: NA | ES21: NA | ET21: NA | EU21: NA | EV21: NA | EW21: NA | EX21: NA | EY21: NA | EZ21: NA | FA21: NA | FB21: NA | FC21: NA | FD21: NA | FE21: NA | FF21: NA | FG21: NA | FH21: NA | FI21: NA | FJ21: NA | FK21: NA | FL21: NA | FM21: NA | FN21: NA | FO21: NA | FP21: NA | FQ21: NA | FR21: NA | FS21: NA | FT21: NA | FU21: NA | FV21: NA | FW21: NA | FX21: NA | FY21: NA | FZ21: NA | GA21: NA | GB21: NA | GC21: NA | GD21: NA | GE21: NA | GF21: NA | GG21: NA | GH21: NA | GI21: NA | GJ21: NA | GK21: NA | GL21: NA | GM21: NA | GN21: NA | GO21: NA | GP21: NA | GQ21: NA | GR21: NA | GS21: NA | GT21: NA | GU21: NA | GV21: NA | GW21: NA | GX21: NA | GY21: NA | GZ21: NA | HA21: NA | HB21: NA | HC21: NA | HD21: NA | HE21: NA | HF21: NA | HG21: NA | HH21: NA | HI21: NA | HJ21: NA | HK21: NA | HL21: NA | HM21: NA | HN21: NA | HO21: NA | HP21: NA | HQ21: NA | HR21: NA | HS21: NA | HT21: NA | HU21: NA | HV21: NA | HW21: NA | HX21: NA | HY21: NA | HZ21: NA | IA21: NA | IB21: NA | IC21: NA | ID21: NA | IE21: NA | IF21: NA | IG21: NA | IH21: NA | II21: NA | IJ21: NA | IK21: NA | IL21: NA | IM21: NA | IN21: NA | IO21: NA | IP21: NA | IQ21: NA | IR21: NA | IS21: NA | IT21: NA | IU21: NA | IV21: NA | IW21: NA | IX21: NA | IY21: NA | IZ21: NA | JA21: NA | JB21: NA | JC21: NA
A22: NA | B22: NA | C22: Target Corp. | D22: Target | E22: NA | F22: NA | G22: Financial | H22: NA | I22: NA | J22: NA | K22: NA | L22: NA | M22: NA | N22: NA | O22: Operations | P22: NA | Q22: NA | R22: NA | S22: NA | T22: NA | U22: NA | V22: NA | W22: NA | X22: NA | Y22: NA | Z22: Web Site Summary | AA22: NA | AB22: NA | AC22: NA | AD22: NA | AE22: NA | AF22: Customer Satisfaction5 | AG22: NA | AH22: NA | AI22: NA | AJ22: Performance6 | AK22: NA | AL22: NA | AM22: NA | AN22: Marketing | AO22: NA | AP22: NA | AQ22: NA | AR22: NA | AS22: NA | AT22: NA | AU22: NA | AV22: NA | AW22: NA | AX22: NA | AY22: NA | AZ22: NA | BA22: NA | BB22: NA | BC22: NA | BD22: NA | BE22: NA | BF22: NA | BG22: NA | BH22: NA | BI22: NA | BJ22: NA | BK22: NA | BL22: NA | BM22: NA | BN22: NA | BO22: NA | BP22: NA | BQ22: NA | BR22: NA | BS22: NA | BT22: NA | BU22: NA | BV22: NA | BW22: NA | BX22: Corporate Information | BY22: NA | BZ22: NA | CA22: NA | CB22: NA | CC22: NA | CD22: NA | CE22: NA | CF22: NA | CG22: NA | CH22: NA | CI22: NA | CJ22: NA | CK22: NA | CL22: NA | CM22: NA | CN22: NA | CO22: NA | CP22: NA | CQ22: NA | CR22: NA | CS22: NA | CT22: NA | CU22: NA | CV22: NA | CW22: NA | CX22: NA | CY22: NA | CZ22: NA | DA22: NA | DB22: NA | DC22: NA | DD22: NA | DE22: NA | DF22: NA | DG22: NA | DH22: NA | DI22: NA | DJ22: NA | DK22: NA | DL22: NA | DM22: NA | DN22: NA | DO22: NA | DP22: NA | DQ22: NA | DR22: NA | DS22: NA | DT22: NA | DU22: NA | DV22: NA | DW22: NA | DX22: NA | DY22: NA | DZ22: NA | EA22: NA | EB22: NA | EC22: NA | ED22: NA | EE22: NA | EF22: NA | EG22: NA | EH22: NA | EI22: NA | EJ22: NA | EK22: NA | EL22: NA | EM22: NA | EN22: NA | EO22: NA | EP22: NA | EQ22: NA | ER22: NA | ES22: NA | ET22: NA | EU22: NA | EV22: NA | EW22: NA | EX22: NA | EY22: NA | EZ22: NA | FA22: NA | FB22: NA | FC22: NA | FD22: NA | FE22: NA | FF22: NA | FG22: NA | FH22: NA | FI22: NA | FJ22: NA | FK22: NA | FL22: NA | FM22: NA | FN22: NA | FO22: NA | FP22: NA | FQ22: NA | FR22: NA | FS22: NA | FT22: NA | FU22: NA | FV22: NA | FW22: NA | FX22: NA | FY22: NA | FZ22: NA | GA22: NA | GB22: NA | GC22: NA | GD22: NA | GE22: NA | GF22: NA | GG22: NA | GH22: NA | GI22: NA | GJ22: NA | GK22: NA | GL22: NA | GM22: NA | GN22: NA | GO22: NA | GP22: NA | GQ22: NA | GR22: NA | GS22: NA | GT22: NA | GU22: NA | GV22: NA | GW22: NA | GX22: NA | GY22: NA | GZ22: NA | HA22: NA | HB22: NA | HC22: NA | HD22: NA | HE22: NA | HF22: NA | HG22: NA | HH22: NA | HI22: NA | HJ22: NA | HK22: NA | HL22: NA | HM22: NA | HN22: NA | HO22: NA | HP22: NA | HQ22: NA | HR22: NA | HS22: NA | HT22: NA | HU22: NA | HV22: NA | HW22: NA | HX22: NA | HY22: NA | HZ22: NA | IA22: NA | IB22: NA | IC22: NA | ID22: NA | IE22: NA | IF22: NA | IG22: NA | IH22: NA | II22: NA | IJ22: NA | IK22: NA | IL22: NA | IM22: NA | IN22: NA | IO22: NA | IP22: NA | IQ22: NA | IR22: NA | IS22: NA | IT22: NA | IU22: NA | IV22: NA | IW22: NA | IX22: NA | IY22: NA | IZ22: NA | JA22: NA | JB22: NA | JC22: NA
A23: NA | B23: NA | C23: Systemax Inc. | D23: Systemax | E23: NA | F23: NA | G23: Financial | H23: NA | I23: NA | J23: NA | K23: NA | L23: NA | M23: NA | N23: NA | O23: Operations | P23: NA | Q23: NA | R23: NA | S23: NA | T23: NA | U23: NA | V23: NA | W23: NA | X23: NA | Y23: NA | Z23: Web Site Summary | AA23: NA | AB23: NA | AC23: NA | AD23: NA | AE23: NA | AF23: Customer Satisfaction5 | AG23: NA | AH23: NA | AI23: NA | AJ23: Performance6 | AK23: NA | AL23: NA | AM23: NA | AN23: Marketing | AO23: NA | AP23: NA | AQ23: NA | AR23: NA | AS23: NA | AT23: NA | AU23: NA | AV23: NA | AW23: NA | AX23: NA | AY23: NA | AZ23: NA | BA23: NA | BB23: NA | BC23: NA | BD23: NA | BE23: NA | BF23: NA | BG23: NA | BH23: NA | BI23: NA | BJ23: NA | BK23: NA | BL23: NA | BM23: NA | BN23: NA | BO23: NA | BP23: NA | BQ23: NA | BR23: NA | BS23: NA | BT23: NA | BU23: NA | BV23: NA | BW23: NA | BX23: Corporate Information | BY23: NA | BZ23: NA | CA23: NA | CB23: NA | CC23: NA | CD23: NA | CE23: NA | CF23: NA | CG23: NA | CH23: NA | CI23: NA | CJ23: NA | CK23: NA | CL23: NA | CM23: NA | CN23: NA | CO23: NA | CP23: NA | CQ23: NA | CR23: NA | CS23: NA | CT23: NA | CU23: NA | CV23: NA | CW23: NA | CX23: NA | CY23: NA | CZ23: NA | DA23: NA | DB23: NA | DC23: NA | DD23: NA | DE23: NA | DF23: NA | DG23: NA | DH23: NA | DI23: NA | DJ23: NA | DK23: NA | DL23: NA | DM23: NA | DN23: NA | DO23: NA | DP23: NA | DQ23: NA | DR23: NA | DS23: NA | DT23: NA | DU23: NA | DV23: NA | DW23: NA | DX23: NA | DY23: NA | DZ23: NA | EA23: NA | EB23: NA | EC23: NA | ED23: NA | EE23: NA | EF23: NA | EG23: NA | EH23: NA | EI23: NA | EJ23: NA | EK23: NA | EL23: NA | EM23: NA | EN23: NA | EO23: NA | EP23: NA | EQ23: NA | ER23: NA | ES23: NA | ET23: NA | EU23: NA | EV23: NA | EW23: NA | EX23: NA | EY23: NA | EZ23: NA | FA23: NA | FB23: NA | FC23: NA | FD23: NA | FE23: NA | FF23: NA | FG23: NA | FH23: NA | FI23: NA | FJ23: NA | FK23: NA | FL23: NA | FM23: NA | FN23: NA | FO23: NA | FP23: NA | FQ23: NA | FR23: NA | FS23: NA | FT23: NA | FU23: NA | FV23: NA | FW23: NA | FX23: NA | FY23: NA | FZ23: NA | GA23: NA | GB23: NA | GC23: NA | GD23: NA | GE23: NA | GF23: NA | GG23: NA | GH23: NA | GI23: NA | GJ23: NA | GK23: NA | GL23: NA | GM23: NA | GN23: NA | GO23: NA | GP23: NA | GQ23: NA | GR23: NA | GS23: NA | GT23: NA | GU23: NA | GV23: NA | GW23: NA | GX23: NA | GY23: NA | GZ23: NA | HA23: NA | HB23: NA | HC23: NA | HD23: NA | HE23: NA | HF23: NA | HG23: NA | HH23: NA | HI23: NA | HJ23: NA | HK23: NA | HL23: NA | HM23: NA | HN23: NA | HO23: NA | HP23: NA | HQ23: NA | HR23: NA | HS23: NA | HT23: NA | HU23: NA | HV23: NA | HW23: NA | HX23: NA | HY23: NA | HZ23: NA | IA23: NA | IB23: NA | IC23: NA | ID23: NA | IE23: NA | IF23: NA | IG23: NA | IH23: NA | II23: NA | IJ23: NA | IK23: NA | IL23: NA | IM23: NA | IN23: NA | IO23: NA | IP23: NA | IQ23: NA | IR23: NA | IS23: NA | IT23: NA | IU23: NA | IV23: NA | IW23: NA | IX23: NA | IY23: NA | IZ23: NA | JA23: NA | JB23: NA | JC23: NA
A24: NA | B24: NA | C24: Gap Inc. Direct | D24: Gap Direct | E24: NA | F24: NA | G24: Financial | H24: NA | I24: NA | J24: NA | K24: NA | L24: NA | M24: NA | N24: NA | O24: Operations | P24: NA | Q24: NA | R24: NA | S24: NA | T24: NA | U24: NA | V24: NA | W24: NA | X24: NA | Y24: NA | Z24: Web Site Summary | AA24: NA | AB24: NA | AC24: NA | AD24: NA | AE24: NA | AF24: Customer Satisfaction5 | AG24: NA | AH24: NA | AI24: NA | AJ24: Performance6 | AK24: NA | AL24: NA | AM24: NA | AN24: Marketing | AO24: NA | AP24: NA | AQ24: NA | AR24: NA | AS24: NA | AT24: NA | AU24: NA | AV24: NA | AW24: NA | AX24: NA | AY24: NA | AZ24: NA | BA24: NA | BB24: NA | BC24: NA | BD24: NA | BE24: NA | BF24: NA | BG24: NA | BH24: NA | BI24: NA | BJ24: NA | BK24: NA | BL24: NA | BM24: NA | BN24: NA | BO24: NA | BP24: NA | BQ24: NA | BR24: NA | BS24: NA | BT24: NA | BU24: NA | BV24: NA | BW24: NA | BX24: Corporate Information | BY24: NA | BZ24: NA | CA24: NA | CB24: NA | CC24: NA | CD24: NA | CE24: NA | CF24: NA | CG24: NA | CH24: NA | CI24: NA | CJ24: NA | CK24: NA | CL24: NA | CM24: NA | CN24: NA | CO24: NA | CP24: NA | CQ24: NA | CR24: NA | CS24: NA | CT24: NA | CU24: NA | CV24: NA | CW24: NA | CX24: NA | CY24: NA | CZ24: NA | DA24: NA | DB24: NA | DC24: NA | DD24: NA | DE24: NA | DF24: NA | DG24: NA | DH24: NA | DI24: NA | DJ24: NA | DK24: NA | DL24: NA | DM24: NA | DN24: NA | DO24: NA | DP24: NA | DQ24: NA | DR24: NA | DS24: NA | DT24: NA | DU24: NA | DV24: NA | DW24: NA | DX24: NA | DY24: NA | DZ24: NA | EA24: NA | EB24: NA | EC24: NA | ED24: NA | EE24: NA | EF24: NA | EG24: NA | EH24: NA | EI24: NA | EJ24: NA | EK24: NA | EL24: NA | EM24: NA | EN24: NA | EO24: NA | EP24: NA | EQ24: NA | ER24: NA | ES24: NA | ET24: NA | EU24: NA | EV24: NA | EW24: NA | EX24: NA | EY24: NA | EZ24: NA | FA24: NA | FB24: NA | FC24: NA | FD24: NA | FE24: NA | FF24: NA | FG24: NA | FH24: NA | FI24: NA | FJ24: NA | FK24: NA | FL24: NA | FM24: NA | FN24: NA | FO24: NA | FP24: NA | FQ24: NA | FR24: NA | FS24: NA | FT24: NA | FU24: NA | FV24: NA | FW24: NA | FX24: NA | FY24: NA | FZ24: NA | GA24: NA | GB24: NA | GC24: NA | GD24: NA | GE24: NA | GF24: NA | GG24: NA | GH24: NA | GI24: NA | GJ24: NA | GK24: NA | GL24: NA | GM24: NA | GN24: NA | GO24: NA | GP24: NA | GQ24: NA | GR24: NA | GS24: NA | GT24: NA | GU24: NA | GV24: NA | GW24: NA | GX24: NA | GY24: NA | GZ24: NA | HA24: NA | HB24: NA | HC24: NA | HD24: NA | HE24: NA | HF24: NA | HG24: NA | HH24: NA | HI24: NA | HJ24: NA | HK24: NA | HL24: NA | HM24: NA | HN24: NA | HO24: NA | HP24: NA | HQ24: NA | HR24: NA | HS24: NA | HT24: NA | HU24: NA | HV24: NA | HW24: NA | HX24: NA | HY24: NA | HZ24: NA | IA24: NA | IB24: NA | IC24: NA | ID24: NA | IE24: NA | IF24: NA | IG24: NA | IH24: NA | II24: NA | IJ24: NA | IK24: NA | IL24: NA | IM24: NA | IN24: NA | IO24: NA | IP24: NA | IQ24: NA | IR24: NA | IS24: NA | IT24: NA | IU24: NA | IV24: NA | IW24: NA | IX24: NA | IY24: NA | IZ24: NA | JA24: NA | JB24: NA | JC24: NA
A25: NA | B25: NA | C25: L.L. Bean Inc. | D25: L.L. Bean | E25: NA | F25: NA | G25: Financial | H25: NA | I25: NA | J25: NA | K25: NA | L25: NA | M25: NA | N25: NA | O25: Operations | P25: NA | Q25: NA | R25: NA | S25: NA | T25: NA | U25: NA | V25: NA | W25: NA | X25: NA | Y25: NA | Z25: Web Site Summary | AA25: NA | AB25: NA | AC25: NA | AD25: NA | AE25: NA | AF25: Customer Satisfaction5 | AG25: NA | AH25: NA | AI25: NA | AJ25: Performance6 | AK25: NA | AL25: NA | AM25: NA | AN25: Marketing | AO25: NA | AP25: NA | AQ25: NA | AR25: NA | AS25: NA | AT25: NA | AU25: NA | AV25: NA | AW25: NA | AX25: NA | AY25: NA | AZ25: NA | BA25: NA | BB25: NA | BC25: NA | BD25: NA | BE25: NA | BF25: NA | BG25: NA | BH25: NA | BI25: NA | BJ25: NA | BK25: NA | BL25: NA | BM25: NA | BN25: NA | BO25: NA | BP25: NA | BQ25: NA | BR25: NA | BS25: NA | BT25: NA | BU25: NA | BV25: NA | BW25: NA | BX25: Corporate Information | BY25: NA | BZ25: NA | CA25: NA | CB25: NA | CC25: NA | CD25: NA | CE25: NA | CF25: NA | CG25: NA | CH25: NA | CI25: NA | CJ25: NA | CK25: NA | CL25: NA | CM25: NA | CN25: NA | CO25: NA | CP25: NA | CQ25: NA | CR25: NA | CS25: NA | CT25: NA | CU25: NA | CV25: NA | CW25: NA | CX25: NA | CY25: NA | CZ25: NA | DA25: NA | DB25: NA | DC25: NA | DD25: NA | DE25: NA | DF25: NA | DG25: NA | DH25: NA | DI25: NA | DJ25: NA | DK25: NA | DL25: NA | DM25: NA | DN25: NA | DO25: NA | DP25: NA | DQ25: NA | DR25: NA | DS25: NA | DT25: NA | DU25: NA | DV25: NA | DW25: NA | DX25: NA | DY25: NA | DZ25: NA | EA25: NA | EB25: NA | EC25: NA | ED25: NA | EE25: NA | EF25: NA | EG25: NA | EH25: NA | EI25: NA | EJ25: NA | EK25: NA | EL25: NA | EM25: NA | EN25: NA | EO25: NA | EP25: NA | EQ25: NA | ER25: NA | ES25: NA | ET25: NA | EU25: NA | EV25: NA | EW25: NA | EX25: NA | EY25: NA | EZ25: NA | FA25: NA | FB25: NA | FC25: NA | FD25: NA | FE25: NA | FF25: NA | FG25: NA | FH25: NA | FI25: NA | FJ25: NA | FK25: NA | FL25: NA | FM25: NA | FN25: NA | FO25: NA | FP25: NA | FQ25: NA | FR25: NA | FS25: NA | FT25: NA | FU25: NA | FV25: NA | FW25: NA | FX25: NA | FY25: NA | FZ25: NA | GA25: NA | GB25: NA | GC25: NA | GD25: NA | GE25: NA | GF25: NA | GG25: NA | GH25: NA | GI25: NA | GJ25: NA | GK25: NA | GL25: NA | GM25: NA | GN25: NA | GO25: NA | GP25: NA | GQ25: NA | GR25: NA | GS25: NA | GT25: NA | GU25: NA | GV25: NA | GW25: NA | GX25: NA | GY25: NA | GZ25: NA | HA25: NA | HB25: NA | HC25: NA | HD25: NA | HE25: NA | HF25: NA | HG25: NA | HH25: NA | HI25: NA | HJ25: NA | HK25: NA | HL25: NA | HM25: NA | HN25: NA | HO25: NA | HP25: NA | HQ25: NA | HR25: NA | HS25: NA | HT25: NA | HU25: NA | HV25: NA | HW25: NA | HX25: NA | HY25: NA | HZ25: NA | IA25: NA | IB25: NA | IC25: NA | ID25: NA | IE25: NA | IF25: NA | IG25: NA | IH25: NA | II25: NA | IJ25: NA | IK25: NA | IL25: NA | IM25: NA | IN25: NA | IO25: NA | IP25: NA | IQ25: NA | IR25: NA | IS25: NA | IT25: NA | IU25: NA | IV25: NA | IW25: NA | IX25: NA | IY25: NA | IZ25: NA | JA25: NA | JB25: NA | JC25: NA
A26: NA | B26: NA | C26: HSN Inc. | D26: HSN | E26: NA | F26: NA | G26: Financial | H26: NA | I26: NA | J26: NA | K26: NA | L26: NA | M26: NA | N26: NA | O26: Operations | P26: NA | Q26: NA | R26: NA | S26: NA | T26: NA | U26: NA | V26: NA | W26: NA | X26: NA | Y26: NA | Z26: Web Site Summary | AA26: NA | AB26: NA | AC26: NA | AD26: NA | AE26: NA | AF26: Customer Satisfaction5 | AG26: NA | AH26: NA | AI26: NA | AJ26: Performance6 | AK26: NA | AL26: NA | AM26: NA | AN26: Marketing | AO26: NA | AP26: NA | AQ26: NA | AR26: NA | AS26: NA | AT26: NA | AU26: NA | AV26: NA | AW26: NA | AX26: NA | AY26: NA | AZ26: NA | BA26: NA | BB26: NA | BC26: NA | BD26: NA | BE26: NA | BF26: NA | BG26: NA | BH26: NA | BI26: NA | BJ26: NA | BK26: NA | BL26: NA | BM26: NA | BN26: NA | BO26: NA | BP26: NA | BQ26: NA | BR26: NA | BS26: NA | BT26: NA | BU26: NA | BV26: NA | BW26: NA | BX26: Corporate Information | BY26: NA | BZ26: NA | CA26: NA | CB26: NA | CC26: NA | CD26: NA | CE26: NA | CF26: NA | CG26: NA | CH26: NA | CI26: NA | CJ26: NA | CK26: NA | CL26: NA | CM26: NA | CN26: NA | CO26: NA | CP26: NA | CQ26: NA | CR26: NA | CS26: NA | CT26: NA | CU26: NA | CV26: NA | CW26: NA | CX26: NA | CY26: NA | CZ26: NA | DA26: NA | DB26: NA | DC26: NA | DD26: NA | DE26: NA | DF26: NA | DG26: NA | DH26: NA | DI26: NA | DJ26: NA | DK26: NA | DL26: NA | DM26: NA | DN26: NA | DO26: NA | DP26: NA | DQ26: NA | DR26: NA | DS26: NA | DT26: NA | DU26: NA | DV26: NA | DW26: NA | DX26: NA | DY26: NA | DZ26: NA | EA26: NA | EB26: NA | EC26: NA | ED26: NA | EE26: NA | EF26: NA | EG26: NA | EH26: NA | EI26: NA | EJ26: NA | EK26: NA | EL26: NA | EM26: NA | EN26: NA | EO26: NA | EP26: NA | EQ26: NA | ER26: NA | ES26: NA | ET26: NA | EU26: NA | EV26: NA | EW26: NA | EX26: NA | EY26: NA | EZ26: NA | FA26: NA | FB26: NA | FC26: NA | FD26: NA | FE26: NA | FF26: NA | FG26: NA | FH26: NA | FI26: NA | FJ26: NA | FK26: NA | FL26: NA | FM26: NA | FN26: NA | FO26: NA | FP26: NA | FQ26: NA | FR26: NA | FS26: NA | FT26: NA | FU26: NA | FV26: NA | FW26: NA | FX26: NA | FY26: NA | FZ26: NA | GA26: NA | GB26: NA | GC26: NA | GD26: NA | GE26: NA | GF26: NA | GG26: NA | GH26: NA | GI26: NA | GJ26: NA | GK26: NA | GL26: NA | GM26: NA | GN26: NA | GO26: NA | GP26: NA | GQ26: NA | GR26: NA | GS26: NA | GT26: NA | GU26: NA | GV26: NA | GW26: NA | GX26: NA | GY26: NA | GZ26: NA | HA26: NA | HB26: NA | HC26: NA | HD26: NA | HE26: NA | HF26: NA | HG26: NA | HH26: NA | HI26: NA | HJ26: NA | HK26: NA | HL26: NA | HM26: NA | HN26: NA | HO26: NA | HP26: NA | HQ26: NA | HR26: NA | HS26: NA | HT26: NA | HU26: NA | HV26: NA | HW26: NA | HX26: NA | HY26: NA | HZ26: NA | IA26: NA | IB26: NA | IC26: NA | ID26: NA | IE26: NA | IF26: NA | IG26: NA | IH26: NA | II26: NA | IJ26: NA | IK26: NA | IL26: NA | IM26: NA | IN26: NA | IO26: NA | IP26: NA | IQ26: NA | IR26: NA | IS26: NA | IT26: NA | IU26: NA | IV26: NA | IW26: NA | IX26: NA | IY26: NA | IZ26: NA | JA26: NA | JB26: NA | JC26: NA
A27: NA | B27: NA | C27: Williams-Sonoma Inc. | D27: Williams-Sonoma | E27: NA | F27: NA | G27: Financial | H27: NA | I27: NA | J27: NA | K27: NA | L27: NA | M27: NA | N27: NA | O27: Operations | P27: NA | Q27: NA | R27: NA | S27: NA | T27: NA | U27: NA | V27: NA | W27: NA | X27: NA | Y27: NA | Z27: Web Site Summary | AA27: NA | AB27: NA | AC27: NA | AD27: NA | AE27: NA | AF27: Customer Satisfaction5 | AG27: NA | AH27: NA | AI27: NA | AJ27: Performance6 | AK27: NA | AL27: NA | AM27: NA | AN27: Marketing | AO27: NA | AP27: NA | AQ27: NA | AR27: NA | AS27: NA | AT27: NA | AU27: NA | AV27: NA | AW27: NA | AX27: NA | AY27: NA | AZ27: NA | BA27: NA | BB27: NA | BC27: NA | BD27: NA | BE27: NA | BF27: NA | BG27: NA | BH27: NA | BI27: NA | BJ27: NA | BK27: NA | BL27: NA | BM27: NA | BN27: NA | BO27: NA | BP27: NA | BQ27: NA | BR27: NA | BS27: NA | BT27: NA | BU27: NA | BV27: NA | BW27: NA | BX27: Corporate Information | BY27: NA | BZ27: NA | CA27: NA | CB27: NA | CC27: NA | CD27: NA | CE27: NA | CF27: NA | CG27: NA | CH27: NA | CI27: NA | CJ27: NA | CK27: NA | CL27: NA | CM27: NA | CN27: NA | CO27: NA | CP27: NA | CQ27: NA | CR27: NA | CS27: NA | CT27: NA | CU27: NA | CV27: NA | CW27: NA | CX27: NA | CY27: NA | CZ27: NA | DA27: NA | DB27: NA | DC27: NA | DD27: NA | DE27: NA | DF27: NA | DG27: NA | DH27: NA | DI27: NA | DJ27: NA | DK27: NA | DL27: NA | DM27: NA | DN27: NA | DO27: NA | DP27: NA | DQ27: NA | DR27: NA | DS27: NA | DT27: NA | DU27: NA | DV27: NA | DW27: NA | DX27: NA | DY27: NA | DZ27: NA | EA27: NA | EB27: NA | EC27: NA | ED27: NA | EE27: NA | EF27: NA | EG27: NA | EH27: NA | EI27: NA | EJ27: NA | EK27: NA | EL27: NA | EM27: NA | EN27: NA | EO27: NA | EP27: NA | EQ27: NA | ER27: NA | ES27: NA | ET27: NA | EU27: NA | EV27: NA | EW27: NA | EX27: NA | EY27: NA | EZ27: NA | FA27: NA | FB27: NA | FC27: NA | FD27: NA | FE27: NA | FF27: NA | FG27: NA | FH27: NA | FI27: NA | FJ27: NA | FK27: NA | FL27: NA | FM27: NA | FN27: NA | FO27: NA | FP27: NA | FQ27: NA | FR27: NA | FS27: NA | FT27: NA | FU27: NA | FV27: NA | FW27: NA | FX27: NA | FY27: NA | FZ27: NA | GA27: NA | GB27: NA | GC27: NA | GD27: NA | GE27: NA | GF27: NA | GG27: NA | GH27: NA | GI27: NA | GJ27: NA | GK27: NA | GL27: NA | GM27: NA | GN27: NA | GO27: NA | GP27: NA | GQ27: NA | GR27: NA | GS27: NA | GT27: NA | GU27: NA | GV27: NA | GW27: NA | GX27: NA | GY27: NA | GZ27: NA | HA27: NA | HB27: NA | HC27: NA | HD27: NA | HE27: NA | HF27: NA | HG27: NA | HH27: NA | HI27: NA | HJ27: NA | HK27: NA | HL27: NA | HM27: NA | HN27: NA | HO27: NA | HP27: NA | HQ27: NA | HR27: NA | HS27: NA | HT27: NA | HU27: NA | HV27: NA | HW27: NA | HX27: NA | HY27: NA | HZ27: NA | IA27: NA | IB27: NA | IC27: NA | ID27: NA | IE27: NA | IF27: NA | IG27: NA | IH27: NA | II27: NA | IJ27: NA | IK27: NA | IL27: NA | IM27: NA | IN27: NA | IO27: NA | IP27: NA | IQ27: NA | IR27: NA | IS27: NA | IT27: NA | IU27: NA | IV27: NA | IW27: NA | IX27: NA | IY27: NA | IZ27: NA | JA27: NA | JB27: NA | JC27: NA
A28: NA | B28: NA | C28: Amway Global | D28: Amway Global | E28: NA | F28: NA | G28: Financial | H28: NA | I28: NA | J28: NA | K28: NA | L28: NA | M28: NA | N28: NA | O28: Operations | P28: NA | Q28: NA | R28: NA | S28: NA | T28: NA | U28: NA | V28: NA | W28: NA | X28: NA | Y28: NA | Z28: Web Site Summary | AA28: NA | AB28: NA | AC28: NA | AD28: NA | AE28: NA | AF28: Customer Satisfaction5 | AG28: NA | AH28: NA | AI28: NA | AJ28: Performance6 | AK28: NA | AL28: NA | AM28: NA | AN28: Marketing | AO28: NA | AP28: NA | AQ28: NA | AR28: NA | AS28: NA | AT28: NA | AU28: NA | AV28: NA | AW28: NA | AX28: NA | AY28: NA | AZ28: NA | BA28: NA | BB28: NA | BC28: NA | BD28: NA | BE28: NA | BF28: NA | BG28: NA | BH28: NA | BI28: NA | BJ28: NA | BK28: NA | BL28: NA | BM28: NA | BN28: NA | BO28: NA | BP28: NA | BQ28: NA | BR28: NA | BS28: NA | BT28: NA | BU28: NA | BV28: NA | BW28: NA | BX28: Corporate Information | BY28: NA | BZ28: NA | CA28: NA | CB28: NA | CC28: NA | CD28: NA | CE28: NA | CF28: NA | CG28: NA | CH28: NA | CI28: NA | CJ28: NA | CK28: NA | CL28: NA | CM28: NA | CN28: NA | CO28: NA | CP28: NA | CQ28: NA | CR28: NA | CS28: NA | CT28: NA | CU28: NA | CV28: NA | CW28: NA | CX28: NA | CY28: NA | CZ28: NA | DA28: NA | DB28: NA | DC28: NA | DD28: NA | DE28: NA | DF28: NA | DG28: NA | DH28: NA | DI28: NA | DJ28: NA | DK28: NA | DL28: NA | DM28: NA | DN28: NA | DO28: NA | DP28: NA | DQ28: NA | DR28: NA | DS28: NA | DT28: NA | DU28: NA | DV28: NA | DW28: NA | DX28: NA | DY28: NA | DZ28: NA | EA28: NA | EB28: NA | EC28: NA | ED28: NA | EE28: NA | EF28: NA | EG28: NA | EH28: NA | EI28: NA | EJ28: NA | EK28: NA | EL28: NA | EM28: NA | EN28: NA | EO28: NA | EP28: NA | EQ28: NA | ER28: NA | ES28: NA | ET28: NA | EU28: NA | EV28: NA | EW28: NA | EX28: NA | EY28: NA | EZ28: NA | FA28: NA | FB28: NA | FC28: NA | FD28: NA | FE28: NA | FF28: NA | FG28: NA | FH28: NA | FI28: NA | FJ28: NA | FK28: NA | FL28: NA | FM28: NA | FN28: NA | FO28: NA | FP28: NA | FQ28: NA | FR28: NA | FS28: NA | FT28: NA | FU28: NA | FV28: NA | FW28: NA | FX28: NA | FY28: NA | FZ28: NA | GA28: NA | GB28: NA | GC28: NA | GD28: NA | GE28: NA | GF28: NA | GG28: NA | GH28: NA | GI28: NA | GJ28: NA | GK28: NA | GL28: NA | GM28: NA | GN28: NA | GO28: NA | GP28: NA | GQ28: NA | GR28: NA | GS28: NA | GT28: NA | GU28: NA | GV28: NA | GW28: NA | GX28: NA | GY28: NA | GZ28: NA | HA28: NA | HB28: NA | HC28: NA | HD28: NA | HE28: NA | HF28: NA | HG28: NA | HH28: NA | HI28: NA | HJ28: NA | HK28: NA | HL28: NA | HM28: NA | HN28: NA | HO28: NA | HP28: NA | HQ28: NA | HR28: NA | HS28: NA | HT28: NA | HU28: NA | HV28: NA | HW28: NA | HX28: NA | HY28: NA | HZ28: NA | IA28: NA | IB28: NA | IC28: NA | ID28: NA | IE28: NA | IF28: NA | IG28: NA | IH28: NA | II28: NA | IJ28: NA | IK28: NA | IL28: NA | IM28: NA | IN28: NA | IO28: NA | IP28: NA | IQ28: NA | IR28: NA | IS28: NA | IT28: NA | IU28: NA | IV28: NA | IW28: NA | IX28: NA | IY28: NA | IZ28: NA | JA28: NA | JB28: NA | JC28: NA
A29: NA | B29: NA | C29: Overstock.com Inc. | D29: Overstock.com | E29: NA | F29: NA | G29: Financial | H29: NA | I29: NA | J29: NA | K29: NA | L29: NA | M29: NA | N29: NA | O29: Operations | P29: NA | Q29: NA | R29: NA | S29: NA | T29: NA | U29: NA | V29: NA | W29: NA | X29: NA | Y29: NA | Z29: Web Site Summary | AA29: NA | AB29: NA | AC29: NA | AD29: NA | AE29: NA | AF29: Customer Satisfaction5 | AG29: NA | AH29: NA | AI29: NA | AJ29: Performance6 | AK29: NA | AL29: NA | AM29: NA | AN29: Marketing | AO29: NA | AP29: NA | AQ29: NA | AR29: NA | AS29: NA | AT29: NA | AU29: NA | AV29: NA | AW29: NA | AX29: NA | AY29: NA | AZ29: NA | BA29: NA | BB29: NA | BC29: NA | BD29: NA | BE29: NA | BF29: NA | BG29: NA | BH29: NA | BI29: NA | BJ29: NA | BK29: NA | BL29: NA | BM29: NA | BN29: NA | BO29: NA | BP29: NA | BQ29: NA | BR29: NA | BS29: NA | BT29: NA | BU29: NA | BV29: NA | BW29: NA | BX29: Corporate Information | BY29: NA | BZ29: NA | CA29: NA | CB29: NA | CC29: NA | CD29: NA | CE29: NA | CF29: NA | CG29: NA | CH29: NA | CI29: NA | CJ29: NA | CK29: NA | CL29: NA | CM29: NA | CN29: NA | CO29: NA | CP29: NA | CQ29: NA | CR29: NA | CS29: NA | CT29: NA | CU29: NA | CV29: NA | CW29: NA | CX29: NA | CY29: NA | CZ29: NA | DA29: NA | DB29: NA | DC29: NA | DD29: NA | DE29: NA | DF29: NA | DG29: NA | DH29: NA | DI29: NA | DJ29: NA | DK29: NA | DL29: NA | DM29: NA | DN29: NA | DO29: NA | DP29: NA | DQ29: NA | DR29: NA | DS29: NA | DT29: NA | DU29: NA | DV29: NA | DW29: NA | DX29: NA | DY29: NA | DZ29: NA | EA29: NA | EB29: NA | EC29: NA | ED29: NA | EE29: NA | EF29: NA | EG29: NA | EH29: NA | EI29: NA | EJ29: NA | EK29: NA | EL29: NA | EM29: NA | EN29: NA | EO29: NA | EP29: NA | EQ29: NA | ER29: NA | ES29: NA | ET29: NA | EU29: NA | EV29: NA | EW29: NA | EX29: NA | EY29: NA | EZ29: NA | FA29: NA | FB29: NA | FC29: NA | FD29: NA | FE29: NA | FF29: NA | FG29: NA | FH29: NA | FI29: NA | FJ29: NA | FK29: NA | FL29: NA | FM29: NA | FN29: NA | FO29: NA | FP29: NA | FQ29: NA | FR29: NA | FS29: NA | FT29: NA | FU29: NA | FV29: NA | FW29: NA | FX29: NA | FY29: NA | FZ29: NA | GA29: NA | GB29: NA | GC29: NA | GD29: NA | GE29: NA | GF29: NA | GG29: NA | GH29: NA | GI29: NA | GJ29: NA | GK29: NA | GL29: NA | GM29: NA | GN29: NA | GO29: NA | GP29: NA | GQ29: NA | GR29: NA | GS29: NA | GT29: NA | GU29: NA | GV29: NA | GW29: NA | GX29: NA | GY29: NA | GZ29: NA | HA29: NA | HB29: NA | HC29: NA | HD29: NA | HE29: NA | HF29: NA | HG29: NA | HH29: NA | HI29: NA | HJ29: NA | HK29: NA | HL29: NA | HM29: NA | HN29: NA | HO29: NA | HP29: NA | HQ29: NA | HR29: NA | HS29: NA | HT29: NA | HU29: NA | HV29: NA | HW29: NA | HX29: NA | HY29: NA | HZ29: NA | IA29: NA | IB29: NA | IC29: NA | ID29: NA | IE29: NA | IF29: NA | IG29: NA | IH29: NA | II29: NA | IJ29: NA | IK29: NA | IL29: NA | IM29: NA | IN29: NA | IO29: NA | IP29: NA | IQ29: NA | IR29: NA | IS29: NA | IT29: NA | IU29: NA | IV29: NA | IW29: NA | IX29: NA | IY29: NA | IZ29: NA | JA29: NA | JB29: NA | JC29: NA
A30: NA | B30: NA | C30: Nordstrom Inc. | D30: Nordstrom | E30: NA | F30: NA | G30: Financial | H30: NA | I30: NA | J30: NA | K30: NA | L30: NA | M30: NA | N30: NA | O30: Operations | P30: NA | Q30: NA | R30: NA | S30: NA | T30: NA | U30: NA | V30: NA | W30: NA | X30: NA | Y30: NA | Z30: Web Site Summary | AA30: NA | AB30: NA | AC30: NA | AD30: NA | AE30: NA | AF30: Customer Satisfaction5 | AG30: NA | AH30: NA | AI30: NA | AJ30: Performance6 | AK30: NA | AL30: NA | AM30: NA | AN30: Marketing | AO30: NA | AP30: NA | AQ30: NA | AR30: NA | AS30: NA | AT30: NA | AU30: NA | AV30: NA | AW30: NA | AX30: NA | AY30: NA | AZ30: NA | BA30: NA | BB30: NA | BC30: NA | BD30: NA | BE30: NA | BF30: NA | BG30: NA | BH30: NA | BI30: NA | BJ30: NA | BK30: NA | BL30: NA | BM30: NA | BN30: NA | BO30: NA | BP30: NA | BQ30: NA | BR30: NA | BS30: NA | BT30: NA | BU30: NA | BV30: NA | BW30: NA | BX30: Corporate Information | BY30: NA | BZ30: NA | CA30: NA | CB30: NA | CC30: NA | CD30: NA | CE30: NA | CF30: NA | CG30: NA | CH30: NA | CI30: NA | CJ30: NA | CK30: NA | CL30: NA | CM30: NA | CN30: NA | CO30: NA | CP30: NA | CQ30: NA | CR30: NA | CS30: NA | CT30: NA | CU30: NA | CV30: NA | CW30: NA | CX30: NA | CY30: NA | CZ30: NA | DA30: NA | DB30: NA | DC30: NA | DD30: NA | DE30: NA | DF30: NA | DG30: NA | DH30: NA | DI30: NA | DJ30: NA | DK30: NA | DL30: NA | DM30: NA | DN30: NA | DO30: NA | DP30: NA | DQ30: NA | DR30: NA | DS30: NA | DT30: NA | DU30: NA | DV30: NA | DW30: NA | DX30: NA | DY30: NA | DZ30: NA | EA30: NA | EB30: NA | EC30: NA | ED30: NA | EE30: NA | EF30: NA | EG30: NA | EH30: NA | EI30: NA | EJ30: NA | EK30: NA | EL30: NA | EM30: NA | EN30: NA | EO30: NA | EP30: NA | EQ30: NA | ER30: NA | ES30: NA | ET30: NA | EU30: NA | EV30: NA | EW30: NA | EX30: NA | EY30: NA | EZ30: NA | FA30: NA | FB30: NA | FC30: NA | FD30: NA | FE30: NA | FF30: NA | FG30: NA | FH30: NA | FI30: NA | FJ30: NA | FK30: NA | FL30: NA | FM30: NA | FN30: NA | FO30: NA | FP30: NA | FQ30: NA | FR30: NA | FS30: NA | FT30: NA | FU30: NA | FV30: NA | FW30: NA | FX30: NA | FY30: NA | FZ30: NA | GA30: NA | GB30: NA | GC30: NA | GD30: NA | GE30: NA | GF30: NA | GG30: NA | GH30: NA | GI30: NA | GJ30: NA | GK30: NA | GL30: NA | GM30: NA | GN30: NA | GO30: NA | GP30: NA | GQ30: NA | GR30: NA | GS30: NA | GT30: NA | GU30: NA | GV30: NA | GW30: NA | GX30: NA | GY30: NA | GZ30: NA | HA30: NA | HB30: NA | HC30: NA | HD30: NA | HE30: NA | HF30: NA | HG30: NA | HH30: NA | HI30: NA | HJ30: NA | HK30: NA | HL30: NA | HM30: NA | HN30: NA | HO30: NA | HP30: NA | HQ30: NA | HR30: NA | HS30: NA | HT30: NA | HU30: NA | HV30: NA | HW30: NA | HX30: NA | HY30: NA | HZ30: NA | IA30: NA | IB30: NA | IC30: NA | ID30: NA | IE30: NA | IF30: NA | IG30: NA | IH30: NA | II30: NA | IJ30: NA | IK30: NA | IL30: NA | IM30: NA | IN30: NA | IO30: NA | IP30: NA | IQ30: NA | IR30: NA | IS30: NA | IT30: NA | IU30: NA | IV30: NA | IW30: NA | IX30: NA | IY30: NA | IZ30: NA | JA30: NA | JB30: NA | JC30: NA
A31: NA | B31: NA | C31: Avon Products Inc. | D31: Avon Products | E31: NA | F31: NA | G31: Financial | H31: NA | I31: NA | J31: NA | K31: NA | L31: NA | M31: NA | N31: NA | O31: Operations | P31: NA | Q31: NA | R31: NA | S31: NA | T31: NA | U31: NA | V31: NA | W31: NA | X31: NA | Y31: NA | Z31: Web Site Summary | AA31: NA | AB31: NA | AC31: NA | AD31: NA | AE31: NA | AF31: Customer Satisfaction5 | AG31: NA | AH31: NA | AI31: NA | AJ31: Performance6 | AK31: NA | AL31: NA | AM31: NA | AN31: Marketing | AO31: NA | AP31: NA | AQ31: NA | AR31: NA | AS31: NA | AT31: NA | AU31: NA | AV31: NA | AW31: NA | AX31: NA | AY31: NA | AZ31: NA | BA31: NA | BB31: NA | BC31: NA | BD31: NA | BE31: NA | BF31: NA | BG31: NA | BH31: NA | BI31: NA | BJ31: NA | BK31: NA | BL31: NA | BM31: NA | BN31: NA | BO31: NA | BP31: NA | BQ31: NA | BR31: NA | BS31: NA | BT31: NA | BU31: NA | BV31: NA | BW31: NA | BX31: Corporate Information | BY31: NA | BZ31: NA | CA31: NA | CB31: NA | CC31: NA | CD31: NA | CE31: NA | CF31: NA | CG31: NA | CH31: NA | CI31: NA | CJ31: NA | CK31: NA | CL31: NA | CM31: NA | CN31: NA | CO31: NA | CP31: NA | CQ31: NA | CR31: NA | CS31: NA | CT31: NA | CU31: NA | CV31: NA | CW31: NA | CX31: NA | CY31: NA | CZ31: NA | DA31: NA | DB31: NA | DC31: NA | DD31: NA | DE31: NA | DF31: NA | DG31: NA | DH31: NA | DI31: NA | DJ31: NA | DK31: NA | DL31: NA | DM31: NA | DN31: NA | DO31: NA | DP31: NA | DQ31: NA | DR31: NA | DS31: NA | DT31: NA | DU31: NA | DV31: NA | DW31: NA | DX31: NA | DY31: NA | DZ31: NA | EA31: NA | EB31: NA | EC31: NA | ED31: NA | EE31: NA | EF31: NA | EG31: NA | EH31: NA | EI31: NA | EJ31: NA | EK31: NA | EL31: NA | EM31: NA | EN31: NA | EO31: NA | EP31: NA | EQ31: NA | ER31: NA | ES31: NA | ET31: NA | EU31: NA | EV31: NA | EW31: NA | EX31: NA | EY31: NA | EZ31: NA | FA31: NA | FB31: NA | FC31: NA | FD31: NA | FE31: NA | FF31: NA | FG31: NA | FH31: NA | FI31: NA | FJ31: NA | FK31: NA | FL31: NA | FM31: NA | FN31: NA | FO31: NA | FP31: NA | FQ31: NA | FR31: NA | FS31: NA | FT31: NA | FU31: NA | FV31: NA | FW31: NA | FX31: NA | FY31: NA | FZ31: NA | GA31: NA | GB31: NA | GC31: NA | GD31: NA | GE31: NA | GF31: NA | GG31: NA | GH31: NA | GI31: NA | GJ31: NA | GK31: NA | GL31: NA | GM31: NA | GN31: NA | GO31: NA | GP31: NA | GQ31: NA | GR31: NA | GS31: NA | GT31: NA | GU31: NA | GV31: NA | GW31: NA | GX31: NA | GY31: NA | GZ31: NA | HA31: NA | HB31: NA | HC31: NA | HD31: NA | HE31: NA | HF31: NA | HG31: NA | HH31: NA | HI31: NA | HJ31: NA | HK31: NA | HL31: NA | HM31: NA | HN31: NA | HO31: NA | HP31: NA | HQ31: NA | HR31: NA | HS31: NA | HT31: NA | HU31: NA | HV31: NA | HW31: NA | HX31: NA | HY31: NA | HZ31: NA | IA31: NA | IB31: NA | IC31: NA | ID31: NA | IE31: NA | IF31: NA | IG31: NA | IH31: NA | II31: NA | IJ31: NA | IK31: NA | IL31: NA | IM31: NA | IN31: NA | IO31: NA | IP31: NA | IQ31: NA | IR31: NA | IS31: NA | IT31: NA | IU31: NA | IV31: NA | IW31: NA | IX31: NA | IY31: NA | IZ31: NA | JA31: NA | JB31: NA | JC31: NA
A32: NA | B32: NA | C32: Redcats USA | D32: Redcats USA | E32: NA | F32: NA | G32: Financial | H32: NA | I32: NA | J32: NA | K32: NA | L32: NA | M32: NA | N32: NA | O32: Operations | P32: NA | Q32: NA | R32: NA | S32: NA | T32: NA | U32: NA | V32: NA | W32: NA | X32: NA | Y32: NA | Z32: Web Site Summary | AA32: NA | AB32: NA | AC32: NA | AD32: NA | AE32: NA | AF32: Customer Satisfaction5 | AG32: NA | AH32: NA | AI32: NA | AJ32: Performance6 | AK32: NA | AL32: NA | AM32: NA | AN32: Marketing | AO32: NA | AP32: NA | AQ32: NA | AR32: NA | AS32: NA | AT32: NA | AU32: NA | AV32: NA | AW32: NA | AX32: NA | AY32: NA | AZ32: NA | BA32: NA | BB32: NA | BC32: NA | BD32: NA | BE32: NA | BF32: NA | BG32: NA | BH32: NA | BI32: NA | BJ32: NA | BK32: NA | BL32: NA | BM32: NA | BN32: NA | BO32: NA | BP32: NA | BQ32: NA | BR32: NA | BS32: NA | BT32: NA | BU32: NA | BV32: NA | BW32: NA | BX32: Corporate Information | BY32: NA | BZ32: NA | CA32: NA | CB32: NA | CC32: NA | CD32: NA | CE32: NA | CF32: NA | CG32: NA | CH32: NA | CI32: NA | CJ32: NA | CK32: NA | CL32: NA | CM32: NA | CN32: NA | CO32: NA | CP32: NA | CQ32: NA | CR32: NA | CS32: NA | CT32: NA | CU32: NA | CV32: NA | CW32: NA | CX32: NA | CY32: NA | CZ32: NA | DA32: NA | DB32: NA | DC32: NA | DD32: NA | DE32: NA | DF32: NA | DG32: NA | DH32: NA | DI32: NA | DJ32: NA | DK32: NA | DL32: NA | DM32: NA | DN32: NA | DO32: NA | DP32: NA | DQ32: NA | DR32: NA | DS32: NA | DT32: NA | DU32: NA | DV32: NA | DW32: NA | DX32: NA | DY32: NA | DZ32: NA | EA32: NA | EB32: NA | EC32: NA | ED32: NA | EE32: NA | EF32: NA | EG32: NA | EH32: NA | EI32: NA | EJ32: NA | EK32: NA | EL32: NA | EM32: NA | EN32: NA | EO32: NA | EP32: NA | EQ32: NA | ER32: NA | ES32: NA | ET32: NA | EU32: NA | EV32: NA | EW32: NA | EX32: NA | EY32: NA | EZ32: NA | FA32: NA | FB32: NA | FC32: NA | FD32: NA | FE32: NA | FF32: NA | FG32: NA | FH32: NA | FI32: NA | FJ32: NA | FK32: NA | FL32: NA | FM32: NA | FN32: NA | FO32: NA | FP32: NA | FQ32: NA | FR32: NA | FS32: NA | FT32: NA | FU32: NA | FV32: NA | FW32: NA | FX32: NA | FY32: NA | FZ32: NA | GA32: NA | GB32: NA | GC32: NA | GD32: NA | GE32: NA | GF32: NA | GG32: NA | GH32: NA | GI32: NA | GJ32: NA | GK32: NA | GL32: NA | GM32: NA | GN32: NA | GO32: NA | GP32: NA | GQ32: NA | GR32: NA | GS32: NA | GT32: NA | GU32: NA | GV32: NA | GW32: NA | GX32: NA | GY32: NA | GZ32: NA | HA32: NA | HB32: NA | HC32: NA | HD32: NA | HE32: NA | HF32: NA | HG32: NA | HH32: NA | HI32: NA | HJ32: NA | HK32: NA | HL32: NA | HM32: NA | HN32: NA | HO32: NA | HP32: NA | HQ32: NA | HR32: NA | HS32: NA | HT32: NA | HU32: NA | HV32: NA | HW32: NA | HX32: NA | HY32: NA | HZ32: NA | IA32: NA | IB32: NA | IC32: NA | ID32: NA | IE32: NA | IF32: NA | IG32: NA | IH32: NA | II32: NA | IJ32: NA | IK32: NA | IL32: NA | IM32: NA | IN32: NA | IO32: NA | IP32: NA | IQ32: NA | IR32: NA | IS32: NA | IT32: NA | IU32: NA | IV32: NA | IW32: NA | IX32: NA | IY32: NA | IZ32: NA | JA32: NA | JB32: NA | JC32: NA
A33: NA | B33: NA | C33: Buy.com Inc. | D33: Buy.com | E33: NA | F33: NA | G33: Financial | H33: NA | I33: NA | J33: NA | K33: NA | L33: NA | M33: NA | N33: NA | O33: Operations | P33: NA | Q33: NA | R33: NA | S33: NA | T33: NA | U33: NA | V33: NA | W33: NA | X33: NA | Y33: NA | Z33: Web Site Summary | AA33: NA | AB33: NA | AC33: NA | AD33: NA | AE33: NA | AF33: Customer Satisfaction5 | AG33: NA | AH33: NA | AI33: NA | AJ33: Performance6 | AK33: NA | AL33: NA | AM33: NA | AN33: Marketing | AO33: NA | AP33: NA | AQ33: NA | AR33: NA | AS33: NA | AT33: NA | AU33: NA | AV33: NA | AW33: NA | AX33: NA | AY33: NA | AZ33: NA | BA33: NA | BB33: NA | BC33: NA | BD33: NA | BE33: NA | BF33: NA | BG33: NA | BH33: NA | BI33: NA | BJ33: NA | BK33: NA | BL33: NA | BM33: NA | BN33: NA | BO33: NA | BP33: NA | BQ33: NA | BR33: NA | BS33: NA | BT33: NA | BU33: NA | BV33: NA | BW33: NA | BX33: Corporate Information | BY33: NA | BZ33: NA | CA33: NA | CB33: NA | CC33: NA | CD33: NA | CE33: NA | CF33: NA | CG33: NA | CH33: NA | CI33: NA | CJ33: NA | CK33: NA | CL33: NA | CM33: NA | CN33: NA | CO33: NA | CP33: NA | CQ33: NA | CR33: NA | CS33: NA | CT33: NA | CU33: NA | CV33: NA | CW33: NA | CX33: NA | CY33: NA | CZ33: NA | DA33: NA | DB33: NA | DC33: NA | DD33: NA | DE33: NA | DF33: NA | DG33: NA | DH33: NA | DI33: NA | DJ33: NA | DK33: NA | DL33: NA | DM33: NA | DN33: NA | DO33: NA | DP33: NA | DQ33: NA | DR33: NA | DS33: NA | DT33: NA | DU33: NA | DV33: NA | DW33: NA | DX33: NA | DY33: NA | DZ33: NA | EA33: NA | EB33: NA | EC33: NA | ED33: NA | EE33: NA | EF33: NA | EG33: NA | EH33: NA | EI33: NA | EJ33: NA | EK33: NA | EL33: NA | EM33: NA | EN33: NA | EO33: NA | EP33: NA | EQ33: NA | ER33: NA | ES33: NA | ET33: NA | EU33: NA | EV33: NA | EW33: NA | EX33: NA | EY33: NA | EZ33: NA | FA33: NA | FB33: NA | FC33: NA | FD33: NA | FE33: NA | FF33: NA | FG33: NA | FH33: NA | FI33: NA | FJ33: NA | FK33: NA | FL33: NA | FM33: NA | FN33: NA | FO33: NA | FP33: NA | FQ33: NA | FR33: NA | FS33: NA | FT33: NA | FU33: NA | FV33: NA | FW33: NA | FX33: NA | FY33: NA | FZ33: NA | GA33: NA | GB33: NA | GC33: NA | GD33: NA | GE33: NA | GF33: NA | GG33: NA | GH33: NA | GI33: NA | GJ33: NA | GK33: NA | GL33: NA | GM33: NA | GN33: NA | GO33: NA | GP33: NA | GQ33: NA | GR33: NA | GS33: NA | GT33: NA | GU33: NA | GV33: NA | GW33: NA | GX33: NA | GY33: NA | GZ33: NA | HA33: NA | HB33: NA | HC33: NA | HD33: NA | HE33: NA | HF33: NA | HG33: NA | HH33: NA | HI33: NA | HJ33: NA | HK33: NA | HL33: NA | HM33: NA | HN33: NA | HO33: NA | HP33: NA | HQ33: NA | HR33: NA | HS33: NA | HT33: NA | HU33: NA | HV33: NA | HW33: NA | HX33: NA | HY33: NA | HZ33: NA | IA33: NA | IB33: NA | IC33: NA | ID33: NA | IE33: NA | IF33: NA | IG33: NA | IH33: NA | II33: NA | IJ33: NA | IK33: NA | IL33: NA | IM33: NA | IN33: NA | IO33: NA | IP33: NA | IQ33: NA | IR33: NA | IS33: NA | IT33: NA | IU33: NA | IV33: NA | IW33: NA | IX33: NA | IY33: NA | IZ33: NA | JA33: NA | JB33: NA | JC33: NA
A34: NA | B34: NA | C34: Symantec Corp. | D34: Symantec | E34: NA | F34: NA | G34: Financial | H34: NA | I34: NA | J34: NA | K34: NA | L34: NA | M34: NA | N34: NA | O34: Operations | P34: NA | Q34: NA | R34: NA | S34: NA | T34: NA | U34: NA | V34: NA | W34: NA | X34: NA | Y34: NA | Z34: Web Site Summary | AA34: NA | AB34: NA | AC34: NA | AD34: NA | AE34: NA | AF34: Customer Satisfaction5 | AG34: NA | AH34: NA | AI34: NA | AJ34: Performance6 | AK34: NA | AL34: NA | AM34: NA | AN34: Marketing | AO34: NA | AP34: NA | AQ34: NA | AR34: NA | AS34: NA | AT34: NA | AU34: NA | AV34: NA | AW34: NA | AX34: NA | AY34: NA | AZ34: NA | BA34: NA | BB34: NA | BC34: NA | BD34: NA | BE34: NA | BF34: NA | BG34: NA | BH34: NA | BI34: NA | BJ34: NA | BK34: NA | BL34: NA | BM34: NA | BN34: NA | BO34: NA | BP34: NA | BQ34: NA | BR34: NA | BS34: NA | BT34: NA | BU34: NA | BV34: NA | BW34: NA | BX34: Corporate Information | BY34: NA | BZ34: NA | CA34: NA | CB34: NA | CC34: NA | CD34: NA | CE34: NA | CF34: NA | CG34: NA | CH34: NA | CI34: NA | CJ34: NA | CK34: NA | CL34: NA | CM34: NA | CN34: NA | CO34: NA | CP34: NA | CQ34: NA | CR34: NA | CS34: NA | CT34: NA | CU34: NA | CV34: NA | CW34: NA | CX34: NA | CY34: NA | CZ34: NA | DA34: NA | DB34: NA | DC34: NA | DD34: NA | DE34: NA | DF34: NA | DG34: NA | DH34: NA | DI34: NA | DJ34: NA | DK34: NA | DL34: NA | DM34: NA | DN34: NA | DO34: NA | DP34: NA | DQ34: NA | DR34: NA | DS34: NA | DT34: NA | DU34: NA | DV34: NA | DW34: NA | DX34: NA | DY34: NA | DZ34: NA | EA34: NA | EB34: NA | EC34: NA | ED34: NA | EE34: NA | EF34: NA | EG34: NA | EH34: NA | EI34: NA | EJ34: NA | EK34: NA | EL34: NA | EM34: NA | EN34: NA | EO34: NA | EP34: NA | EQ34: NA | ER34: NA | ES34: NA | ET34: NA | EU34: NA | EV34: NA | EW34: NA | EX34: NA | EY34: NA | EZ34: NA | FA34: NA | FB34: NA | FC34: NA | FD34: NA | FE34: NA | FF34: NA | FG34: NA | FH34: NA | FI34: NA | FJ34: NA | FK34: NA | FL34: NA | FM34: NA | FN34: NA | FO34: NA | FP34: NA | FQ34: NA | FR34: NA | FS34: NA | FT34: NA | FU34: NA | FV34: NA | FW34: NA | FX34: NA | FY34: NA | FZ34: NA | GA34: NA | GB34: NA | GC34: NA | GD34: NA | GE34: NA | GF34: NA | GG34: NA | GH34: NA | GI34: NA | GJ34: NA | GK34: NA | GL34: NA | GM34: NA | GN34: NA | GO34: NA | GP34: NA | GQ34: NA | GR34: NA | GS34: NA | GT34: NA | GU34: NA | GV34: NA | GW34: NA | GX34: NA | GY34: NA | GZ34: NA | HA34: NA | HB34: NA | HC34: NA | HD34: NA | HE34: NA | HF34: NA | HG34: NA | HH34: NA | HI34: NA | HJ34: NA | HK34: NA | HL34: NA | HM34: NA | HN34: NA | HO34: NA | HP34: NA | HQ34: NA | HR34: NA | HS34: NA | HT34: NA | HU34: NA | HV34: NA | HW34: NA | HX34: NA | HY34: NA | HZ34: NA | IA34: NA | IB34: NA | IC34: NA | ID34: NA | IE34: NA | IF34: NA | IG34: NA | IH34: NA | II34: NA | IJ34: NA | IK34: NA | IL34: NA | IM34: NA | IN34: NA | IO34: NA | IP34: NA | IQ34: NA | IR34: NA | IS34: NA | IT34: NA | IU34: NA | IV34: NA | IW34: NA | IX34: NA | IY34: NA | IZ34: NA | JA34: NA | JB34: NA | JC34: NA
A35: NA | B35: NA | C35: Blockbuster Inc. | D35: Blockbuster | E35: NA | F35: NA | G35: Financial | H35: NA | I35: NA | J35: NA | K35: NA | L35: NA | M35: NA | N35: NA | O35: Operations | P35: NA | Q35: NA | R35: NA | S35: NA | T35: NA | U35: NA | V35: NA | W35: NA | X35: NA | Y35: NA | Z35: Web Site Summary | AA35: NA | AB35: NA | AC35: NA | AD35: NA | AE35: NA | AF35: Customer Satisfaction5 | AG35: NA | AH35: NA | AI35: NA | AJ35: Performance6 | AK35: NA | AL35: NA | AM35: NA | AN35: Marketing | AO35: NA | AP35: NA | AQ35: NA | AR35: NA | AS35: NA | AT35: NA | AU35: NA | AV35: NA | AW35: NA | AX35: NA | AY35: NA | AZ35: NA | BA35: NA | BB35: NA | BC35: NA | BD35: NA | BE35: NA | BF35: NA | BG35: NA | BH35: NA | BI35: NA | BJ35: NA | BK35: NA | BL35: NA | BM35: NA | BN35: NA | BO35: NA | BP35: NA | BQ35: NA | BR35: NA | BS35: NA | BT35: NA | BU35: NA | BV35: NA | BW35: NA | BX35: Corporate Information | BY35: NA | BZ35: NA | CA35: NA | CB35: NA | CC35: NA | CD35: NA | CE35: NA | CF35: NA | CG35: NA | CH35: NA | CI35: NA | CJ35: NA | CK35: NA | CL35: NA | CM35: NA | CN35: NA | CO35: NA | CP35: NA | CQ35: NA | CR35: NA | CS35: NA | CT35: NA | CU35: NA | CV35: NA | CW35: NA | CX35: NA | CY35: NA | CZ35: NA | DA35: NA | DB35: NA | DC35: NA | DD35: NA | DE35: NA | DF35: NA | DG35: NA | DH35: NA | DI35: NA | DJ35: NA | DK35: NA | DL35: NA | DM35: NA | DN35: NA | DO35: NA | DP35: NA | DQ35: NA | DR35: NA | DS35: NA | DT35: NA | DU35: NA | DV35: NA | DW35: NA | DX35: NA | DY35: NA | DZ35: NA | EA35: NA | EB35: NA | EC35: NA | ED35: NA | EE35: NA | EF35: NA | EG35: NA | EH35: NA | EI35: NA | EJ35: NA | EK35: NA | EL35: NA | EM35: NA | EN35: NA | EO35: NA | EP35: NA | EQ35: NA | ER35: NA | ES35: NA | ET35: NA | EU35: NA | EV35: NA | EW35: NA | EX35: NA | EY35: NA | EZ35: NA | FA35: NA | FB35: NA | FC35: NA | FD35: NA | FE35: NA | FF35: NA | FG35: NA | FH35: NA | FI35: NA | FJ35: NA | FK35: NA | FL35: NA | FM35: NA | FN35: NA | FO35: NA | FP35: NA | FQ35: NA | FR35: NA | FS35: NA | FT35: NA | FU35: NA | FV35: NA | FW35: NA | FX35: NA | FY35: NA | FZ35: NA | GA35: NA | GB35: NA | GC35: NA | GD35: NA | GE35: NA | GF35: NA | GG35: NA | GH35: NA | GI35: NA | GJ35: NA | GK35: NA | GL35: NA | GM35: NA | GN35: NA | GO35: NA | GP35: NA | GQ35: NA | GR35: NA | GS35: NA | GT35: NA | GU35: NA | GV35: NA | GW35: NA | GX35: NA | GY35: NA | GZ35: NA | HA35: NA | HB35: NA | HC35: NA | HD35: NA | HE35: NA | HF35: NA | HG35: NA | HH35: NA | HI35: NA | HJ35: NA | HK35: NA | HL35: NA | HM35: NA | HN35: NA | HO35: NA | HP35: NA | HQ35: NA | HR35: NA | HS35: NA | HT35: NA | HU35: NA | HV35: NA | HW35: NA | HX35: NA | HY35: NA | HZ35: NA | IA35: NA | IB35: NA | IC35: NA | ID35: NA | IE35: NA | IF35: NA | IG35: NA | IH35: NA | II35: NA | IJ35: NA | IK35: NA | IL35: NA | IM35: NA | IN35: NA | IO35: NA | IP35: NA | IQ35: NA | IR35: NA | IS35: NA | IT35: NA | IU35: NA | IV35: NA | IW35: NA | IX35: NA | IY35: NA | IZ35: NA | JA35: NA | JB35: NA | JC35: NA
A36: NA | B36: NA | C36: Cabela's Inc. | D36: Cabela's | E36: NA | F36: NA | G36: Financial | H36: NA | I36: NA | J36: NA | K36: NA | L36: NA | M36: NA | N36: NA | O36: Operations | P36: NA | Q36: NA | R36: NA | S36: NA | T36: NA | U36: NA | V36: NA | W36: NA | X36: NA | Y36: NA | Z36: Web Site Summary | AA36: NA | AB36: NA | AC36: NA | AD36: NA | AE36: NA | AF36: Customer Satisfaction5 | AG36: NA | AH36: NA | AI36: NA | AJ36: Performance6 | AK36: NA | AL36: NA | AM36: NA | AN36: Marketing | AO36: NA | AP36: NA | AQ36: NA | AR36: NA | AS36: NA | AT36: NA | AU36: NA | AV36: NA | AW36: NA | AX36: NA | AY36: NA | AZ36: NA | BA36: NA | BB36: NA | BC36: NA | BD36: NA | BE36: NA | BF36: NA | BG36: NA | BH36: NA | BI36: NA | BJ36: NA | BK36: NA | BL36: NA | BM36: NA | BN36: NA | BO36: NA | BP36: NA | BQ36: NA | BR36: NA | BS36: NA | BT36: NA | BU36: NA | BV36: NA | BW36: NA | BX36: Corporate Information | BY36: NA | BZ36: NA | CA36: NA | CB36: NA | CC36: NA | CD36: NA | CE36: NA | CF36: NA | CG36: NA | CH36: NA | CI36: NA | CJ36: NA | CK36: NA | CL36: NA | CM36: NA | CN36: NA | CO36: NA | CP36: NA | CQ36: NA | CR36: NA | CS36: NA | CT36: NA | CU36: NA | CV36: NA | CW36: NA | CX36: NA | CY36: NA | CZ36: NA | DA36: NA | DB36: NA | DC36: NA | DD36: NA | DE36: NA | DF36: NA | DG36: NA | DH36: NA | DI36: NA | DJ36: NA | DK36: NA | DL36: NA | DM36: NA | DN36: NA | DO36: NA | DP36: NA | DQ36: NA | DR36: NA | DS36: NA | DT36: NA | DU36: NA | DV36: NA | DW36: NA | DX36: NA | DY36: NA | DZ36: NA | EA36: NA | EB36: NA | EC36: NA | ED36: NA | EE36: NA | EF36: NA | EG36: NA | EH36: NA | EI36: NA | EJ36: NA | EK36: NA | EL36: NA | EM36: NA | EN36: NA | EO36: NA | EP36: NA | EQ36: NA | ER36: NA | ES36: NA | ET36: NA | EU36: NA | EV36: NA | EW36: NA | EX36: NA | EY36: NA | EZ36: NA | FA36: NA | FB36: NA | FC36: NA | FD36: NA | FE36: NA | FF36: NA | FG36: NA | FH36: NA | FI36: NA | FJ36: NA | FK36: NA | FL36: NA | FM36: NA | FN36: NA | FO36: NA | FP36: NA | FQ36: NA | FR36: NA | FS36: NA | FT36: NA | FU36: NA | FV36: NA | FW36: NA | FX36: NA | FY36: NA | FZ36: NA | GA36: NA | GB36: NA | GC36: NA | GD36: NA | GE36: NA | GF36: NA | GG36: NA | GH36: NA | GI36: NA | GJ36: NA | GK36: NA | GL36: NA | GM36: NA | GN36: NA | GO36: NA | GP36: NA | GQ36: NA | GR36: NA | GS36: NA | GT36: NA | GU36: NA | GV36: NA | GW36: NA | GX36: NA | GY36: NA | GZ36: NA | HA36: NA | HB36: NA | HC36: NA | HD36: NA | HE36: NA | HF36: NA | HG36: NA | HH36: NA | HI36: NA | HJ36: NA | HK36: NA | HL36: NA | HM36: NA | HN36: NA | HO36: NA | HP36: NA | HQ36: NA | HR36: NA | HS36: NA | HT36: NA | HU36: NA | HV36: NA | HW36: NA | HX36: NA | HY36: NA | HZ36: NA | IA36: NA | IB36: NA | IC36: NA | ID36: NA | IE36: NA | IF36: NA | IG36: NA | IH36: NA | II36: NA | IJ36: NA | IK36: NA | IL36: NA | IM36: NA | IN36: NA | IO36: NA | IP36: NA | IQ36: NA | IR36: NA | IS36: NA | IT36: NA | IU36: NA | IV36: NA | IW36: NA | IX36: NA | IY36: NA | IZ36: NA | JA36: NA | JB36: NA | JC36: NA
A37: NA | B37: NA | C37: Vistaprint Ltd. | D37: Vistaprint Ltd. | E37: NA | F37: NA | G37: Financial | H37: NA | I37: NA | J37: NA | K37: NA | L37: NA | M37: NA | N37: NA | O37: Operations | P37: NA | Q37: NA | R37: NA | S37: NA | T37: NA | U37: NA | V37: NA | W37: NA | X37: NA | Y37: NA | Z37: Web Site Summary | AA37: NA | AB37: NA | AC37: NA | AD37: NA | AE37: NA | AF37: Customer Satisfaction5 | AG37: NA | AH37: NA | AI37: NA | AJ37: Performance6 | AK37: NA | AL37: NA | AM37: NA | AN37: Marketing | AO37: NA | AP37: NA | AQ37: NA | AR37: NA | AS37: NA | AT37: NA | AU37: NA | AV37: NA | AW37: NA | AX37: NA | AY37: NA | AZ37: NA | BA37: NA | BB37: NA | BC37: NA | BD37: NA | BE37: NA | BF37: NA | BG37: NA | BH37: NA | BI37: NA | BJ37: NA | BK37: NA | BL37: NA | BM37: NA | BN37: NA | BO37: NA | BP37: NA | BQ37: NA | BR37: NA | BS37: NA | BT37: NA | BU37: NA | BV37: NA | BW37: NA | BX37: Corporate Information | BY37: NA | BZ37: NA | CA37: NA | CB37: NA | CC37: NA | CD37: NA | CE37: NA | CF37: NA | CG37: NA | CH37: NA | CI37: NA | CJ37: NA | CK37: NA | CL37: NA | CM37: NA | CN37: NA | CO37: NA | CP37: NA | CQ37: NA | CR37: NA | CS37: NA | CT37: NA | CU37: NA | CV37: NA | CW37: NA | CX37: NA | CY37: NA | CZ37: NA | DA37: NA | DB37: NA | DC37: NA | DD37: NA | DE37: NA | DF37: NA | DG37: NA | DH37: NA | DI37: NA | DJ37: NA | DK37: NA | DL37: NA | DM37: NA | DN37: NA | DO37: NA | DP37: NA | DQ37: NA | DR37: NA | DS37: NA | DT37: NA | DU37: NA | DV37: NA | DW37: NA | DX37: NA | DY37: NA | DZ37: NA | EA37: NA | EB37: NA | EC37: NA | ED37: NA | EE37: NA | EF37: NA | EG37: NA | EH37: NA | EI37: NA | EJ37: NA | EK37: NA | EL37: NA | EM37: NA | EN37: NA | EO37: NA | EP37: NA | EQ37: NA | ER37: NA | ES37: NA | ET37: NA | EU37: NA | EV37: NA | EW37: NA | EX37: NA | EY37: NA | EZ37: NA | FA37: NA | FB37: NA | FC37: NA | FD37: NA | FE37: NA | FF37: NA | FG37: NA | FH37: NA | FI37: NA | FJ37: NA | FK37: NA | FL37: NA | FM37: NA | FN37: NA | FO37: NA | FP37: NA | FQ37: NA | FR37: NA | FS37: NA | FT37: NA | FU37: NA | FV37: NA | FW37: NA | FX37: NA | FY37: NA | FZ37: NA | GA37: NA | GB37: NA | GC37: NA | GD37: NA | GE37: NA | GF37: NA | GG37: NA | GH37: NA | GI37: NA | GJ37: NA | GK37: NA | GL37: NA | GM37: NA | GN37: NA | GO37: NA | GP37: NA | GQ37: NA | GR37: NA | GS37: NA | GT37: NA | GU37: NA | GV37: NA | GW37: NA | GX37: NA | GY37: NA | GZ37: NA | HA37: NA | HB37: NA | HC37: NA | HD37: NA | HE37: NA | HF37: NA | HG37: NA | HH37: NA | HI37: NA | HJ37: NA | HK37: NA | HL37: NA | HM37: NA | HN37: NA | HO37: NA | HP37: NA | HQ37: NA | HR37: NA | HS37: NA | HT37: NA | HU37: NA | HV37: NA | HW37: NA | HX37: NA | HY37: NA | HZ37: NA | IA37: NA | IB37: NA | IC37: NA | ID37: NA | IE37: NA | IF37: NA | IG37: NA | IH37: NA | II37: NA | IJ37: NA | IK37: NA | IL37: NA | IM37: NA | IN37: NA | IO37: NA | IP37: NA | IQ37: NA | IR37: NA | IS37: NA | IT37: NA | IU37: NA | IV37: NA | IW37: NA | IX37: NA | IY37: NA | IZ37: NA | JA37: NA | JB37: NA | JC37: NA
A38: NA | B38: NA | C38: Toys 'R' Us Inc. | D38: Toys 'R' Us | E38: NA | F38: NA | G38: Financial | H38: NA | I38: NA | J38: NA | K38: NA | L38: NA | M38: NA | N38: NA | O38: Operations | P38: NA | Q38: NA | R38: NA | S38: NA | T38: NA | U38: NA | V38: NA | W38: NA | X38: NA | Y38: NA | Z38: Web Site Summary | AA38: NA | AB38: NA | AC38: NA | AD38: NA | AE38: NA | AF38: Customer Satisfaction5 | AG38: NA | AH38: NA | AI38: NA | AJ38: Performance6 | AK38: NA | AL38: NA | AM38: NA | AN38: Marketing | AO38: NA | AP38: NA | AQ38: NA | AR38: NA | AS38: NA | AT38: NA | AU38: NA | AV38: NA | AW38: NA | AX38: NA | AY38: NA | AZ38: NA | BA38: NA | BB38: NA | BC38: NA | BD38: NA | BE38: NA | BF38: NA | BG38: NA | BH38: NA | BI38: NA | BJ38: NA | BK38: NA | BL38: NA | BM38: NA | BN38: NA | BO38: NA | BP38: NA | BQ38: NA | BR38: NA | BS38: NA | BT38: NA | BU38: NA | BV38: NA | BW38: NA | BX38: Corporate Information | BY38: NA | BZ38: NA | CA38: NA | CB38: NA | CC38: NA | CD38: NA | CE38: NA | CF38: NA | CG38: NA | CH38: NA | CI38: NA | CJ38: NA | CK38: NA | CL38: NA | CM38: NA | CN38: NA | CO38: NA | CP38: NA | CQ38: NA | CR38: NA | CS38: NA | CT38: NA | CU38: NA | CV38: NA | CW38: NA | CX38: NA | CY38: NA | CZ38: NA | DA38: NA | DB38: NA | DC38: NA | DD38: NA | DE38: NA | DF38: NA | DG38: NA | DH38: NA | DI38: NA | DJ38: NA | DK38: NA | DL38: NA | DM38: NA | DN38: NA | DO38: NA | DP38: NA | DQ38: NA | DR38: NA | DS38: NA | DT38: NA | DU38: NA | DV38: NA | DW38: NA | DX38: NA | DY38: NA | DZ38: NA | EA38: NA | EB38: NA | EC38: NA | ED38: NA | EE38: NA | EF38: NA | EG38: NA | EH38: NA | EI38: NA | EJ38: NA | EK38: NA | EL38: NA | EM38: NA | EN38: NA | EO38: NA | EP38: NA | EQ38: NA | ER38: NA | ES38: NA | ET38: NA | EU38: NA | EV38: NA | EW38: NA | EX38: NA | EY38: NA | EZ38: NA | FA38: NA | FB38: NA | FC38: NA | FD38: NA | FE38: NA | FF38: NA | FG38: NA | FH38: NA | FI38: NA | FJ38: NA | FK38: NA | FL38: NA | FM38: NA | FN38: NA | FO38: NA | FP38: NA | FQ38: NA | FR38: NA | FS38: NA | FT38: NA | FU38: NA | FV38: NA | FW38: NA | FX38: NA | FY38: NA | FZ38: NA | GA38: NA | GB38: NA | GC38: NA | GD38: NA | GE38: NA | GF38: NA | GG38: NA | GH38: NA | GI38: NA | GJ38: NA | GK38: NA | GL38: NA | GM38: NA | GN38: NA | GO38: NA | GP38: NA | GQ38: NA | GR38: NA | GS38: NA | GT38: NA | GU38: NA | GV38: NA | GW38: NA | GX38: NA | GY38: NA | GZ38: NA | HA38: NA | HB38: NA | HC38: NA | HD38: NA | HE38: NA | HF38: NA | HG38: NA | HH38: NA | HI38: NA | HJ38: NA | HK38: NA | HL38: NA | HM38: NA | HN38: NA | HO38: NA | HP38: NA | HQ38: NA | HR38: NA | HS38: NA | HT38: NA | HU38: NA | HV38: NA | HW38: NA | HX38: NA | HY38: NA | HZ38: NA | IA38: NA | IB38: NA | IC38: NA | ID38: NA | IE38: NA | IF38: NA | IG38: NA | IH38: NA | II38: NA | IJ38: NA | IK38: NA | IL38: NA | IM38: NA | IN38: NA | IO38: NA | IP38: NA | IQ38: NA | IR38: NA | IS38: NA | IT38: NA | IU38: NA | IV38: NA | IW38: NA | IX38: NA | IY38: NA | IZ38: NA | JA38: NA | JB38: NA | JC38: NA
A39: NA | B39: NA | C39: Musician's Friend Inc. | D39: Musician's Friend | E39: NA | F39: NA | G39: Financial | H39: NA | I39: NA | J39: NA | K39: NA | L39: NA | M39: NA | N39: NA | O39: Operations | P39: NA | Q39: NA | R39: NA | S39: NA | T39: NA | U39: NA | V39: NA | W39: NA | X39: NA | Y39: NA | Z39: Web Site Summary | AA39: NA | AB39: NA | AC39: NA | AD39: NA | AE39: NA | AF39: Customer Satisfaction5 | AG39: NA | AH39: NA | AI39: NA | AJ39: Performance6 | AK39: NA | AL39: NA | AM39: NA | AN39: Marketing | AO39: NA | AP39: NA | AQ39: NA | AR39: NA | AS39: NA | AT39: NA | AU39: NA | AV39: NA | AW39: NA | AX39: NA | AY39: NA | AZ39: NA | BA39: NA | BB39: NA | BC39: NA | BD39: NA | BE39: NA | BF39: NA | BG39: NA | BH39: NA | BI39: NA | BJ39: NA | BK39: NA | BL39: NA | BM39: NA | BN39: NA | BO39: NA | BP39: NA | BQ39: NA | BR39: NA | BS39: NA | BT39: NA | BU39: NA | BV39: NA | BW39: NA | BX39: Corporate Information | BY39: NA | BZ39: NA | CA39: NA | CB39: NA | CC39: NA | CD39: NA | CE39: NA | CF39: NA | CG39: NA | CH39: NA | CI39: NA | CJ39: NA | CK39: NA | CL39: NA | CM39: NA | CN39: NA | CO39: NA | CP39: NA | CQ39: NA | CR39: NA | CS39: NA | CT39: NA | CU39: NA | CV39: NA | CW39: NA | CX39: NA | CY39: NA | CZ39: NA | DA39: NA | DB39: NA | DC39: NA | DD39: NA | DE39: NA | DF39: NA | DG39: NA | DH39: NA | DI39: NA | DJ39: NA | DK39: NA | DL39: NA | DM39: NA | DN39: NA | DO39: NA | DP39: NA | DQ39: NA | DR39: NA | DS39: NA | DT39: NA | DU39: NA | DV39: NA | DW39: NA | DX39: NA | DY39: NA | DZ39: NA | EA39: NA | EB39: NA | EC39: NA | ED39: NA | EE39: NA | EF39: NA | EG39: NA | EH39: NA | EI39: NA | EJ39: NA | EK39: NA | EL39: NA | EM39: NA | EN39: NA | EO39: NA | EP39: NA | EQ39: NA | ER39: NA | ES39: NA | ET39: NA | EU39: NA | EV39: NA | EW39: NA | EX39: NA | EY39: NA | EZ39: NA | FA39: NA | FB39: NA | FC39: NA | FD39: NA | FE39: NA | FF39: NA | FG39: NA | FH39: NA | FI39: NA | FJ39: NA | FK39: NA | FL39: NA | FM39: NA | FN39: NA | FO39: NA | FP39: NA | FQ39: NA | FR39: NA | FS39: NA | FT39: NA | FU39: NA | FV39: NA | FW39: NA | FX39: NA | FY39: NA | FZ39: NA | GA39: NA | GB39: NA | GC39: NA | GD39: NA | GE39: NA | GF39: NA | GG39: NA | GH39: NA | GI39: NA | GJ39: NA | GK39: NA | GL39: NA | GM39: NA | GN39: NA | GO39: NA | GP39: NA | GQ39: NA | GR39: NA | GS39: NA | GT39: NA | GU39: NA | GV39: NA | GW39: NA | GX39: NA | GY39: NA | GZ39: NA | HA39: NA | HB39: NA | HC39: NA | HD39: NA | HE39: NA | HF39: NA | HG39: NA | HH39: NA | HI39: NA | HJ39: NA | HK39: NA | HL39: NA | HM39: NA | HN39: NA | HO39: NA | HP39: NA | HQ39: NA | HR39: NA | HS39: NA | HT39: NA | HU39: NA | HV39: NA | HW39: NA | HX39: NA | HY39: NA | HZ39: NA | IA39: NA | IB39: NA | IC39: NA | ID39: NA | IE39: NA | IF39: NA | IG39: NA | IH39: NA | II39: NA | IJ39: NA | IK39: NA | IL39: NA | IM39: NA | IN39: NA | IO39: NA | IP39: NA | IQ39: NA | IR39: NA | IS39: NA | IT39: NA | IU39: NA | IV39: NA | IW39: NA | IX39: NA | IY39: NA | IZ39: NA | JA39: NA | JB39: NA | JC39: NA
A40: NA | B40: NA | C40: The Home Depot Inc. | D40: The Home Depot | E40: NA | F40: NA | G40: Financial | H40: NA | I40: NA | J40: NA | K40: NA | L40: NA | M40: NA | N40: NA | O40: Operations | P40: NA | Q40: NA | R40: NA | S40: NA | T40: NA | U40: NA | V40: NA | W40: NA | X40: NA | Y40: NA | Z40: Web Site Summary | AA40: NA | AB40: NA | AC40: NA | AD40: NA | AE40: NA | AF40: Customer Satisfaction5 | AG40: NA | AH40: NA | AI40: NA | AJ40: Performance6 | AK40: NA | AL40: NA | AM40: NA | AN40: Marketing | AO40: NA | AP40: NA | AQ40: NA | AR40: NA | AS40: NA | AT40: NA | AU40: NA | AV40: NA | AW40: NA | AX40: NA | AY40: NA | AZ40: NA | BA40: NA | BB40: NA | BC40: NA | BD40: NA | BE40: NA | BF40: NA | BG40: NA | BH40: NA | BI40: NA | BJ40: NA | BK40: NA | BL40: NA | BM40: NA | BN40: NA | BO40: NA | BP40: NA | BQ40: NA | BR40: NA | BS40: NA | BT40: NA | BU40: NA | BV40: NA | BW40: NA | BX40: Corporate Information | BY40: NA | BZ40: NA | CA40: NA | CB40: NA | CC40: NA | CD40: NA | CE40: NA | CF40: NA | CG40: NA | CH40: NA | CI40: NA | CJ40: NA | CK40: NA | CL40: NA | CM40: NA | CN40: NA | CO40: NA | CP40: NA | CQ40: NA | CR40: NA | CS40: NA | CT40: NA | CU40: NA | CV40: NA | CW40: NA | CX40: NA | CY40: NA | CZ40: NA | DA40: NA | DB40: NA | DC40: NA | DD40: NA | DE40: NA | DF40: NA | DG40: NA | DH40: NA | DI40: NA | DJ40: NA | DK40: NA | DL40: NA | DM40: NA | DN40: NA | DO40: NA | DP40: NA | DQ40: NA | DR40: NA | DS40: NA | DT40: NA | DU40: NA | DV40: NA | DW40: NA | DX40: NA | DY40: NA | DZ40: NA | EA40: NA | EB40: NA | EC40: NA | ED40: NA | EE40: NA | EF40: NA | EG40: NA | EH40: NA | EI40: NA | EJ40: NA | EK40: NA | EL40: NA | EM40: NA | EN40: NA | EO40: NA | EP40: NA | EQ40: NA | ER40: NA | ES40: NA | ET40: NA | EU40: NA | EV40: NA | EW40: NA | EX40: NA | EY40: NA | EZ40: NA | FA40: NA | FB40: NA | FC40: NA | FD40: NA | FE40: NA | FF40: NA | FG40: NA | FH40: NA | FI40: NA | FJ40: NA | FK40: NA | FL40: NA | FM40: NA | FN40: NA | FO40: NA | FP40: NA | FQ40: NA | FR40: NA | FS40: NA | FT40: NA | FU40: NA | FV40: NA | FW40: NA | FX40: NA | FY40: NA | FZ40: NA | GA40: NA | GB40: NA | GC40: NA | GD40: NA | GE40: NA | GF40: NA | GG40: NA | GH40: NA | GI40: NA | GJ40: NA | GK40: NA | GL40: NA | GM40: NA | GN40: NA | GO40: NA | GP40: NA | GQ40: NA | GR40: NA | GS40: NA | GT40: NA | GU40: NA | GV40: NA | GW40: NA | GX40: NA | GY40: NA | GZ40: NA | HA40: NA | HB40: NA | HC40: NA | HD40: NA | HE40: NA | HF40: NA | HG40: NA | HH40: NA | HI40: NA | HJ40: NA | HK40: NA | HL40: NA | HM40: NA | HN40: NA | HO40: NA | HP40: NA | HQ40: NA | HR40: NA | HS40: NA | HT40: NA | HU40: NA | HV40: NA | HW40: NA | HX40: NA | HY40: NA | HZ40: NA | IA40: NA | IB40: NA | IC40: NA | ID40: NA | IE40: NA | IF40: NA | IG40: NA | IH40: NA | II40: NA | IJ40: NA | IK40: NA | IL40: NA | IM40: NA | IN40: NA | IO40: NA | IP40: NA | IQ40: NA | IR40: NA | IS40: NA | IT40: NA | IU40: NA | IV40: NA | IW40: NA | IX40: NA | IY40: NA | IZ40: NA | JA40: NA | JB40: NA | JC40: NA
A41: NA | B41: NA | C41: 1-800-Flowers.com Inc. | D41: 1-800-Flowers.com | E41: NA | F41: NA | G41: Financial | H41: NA | I41: NA | J41: NA | K41: NA | L41: NA | M41: NA | N41: NA | O41: Operations | P41: NA | Q41: NA | R41: NA | S41: NA | T41: NA | U41: NA | V41: NA | W41: NA | X41: NA | Y41: NA | Z41: Web Site Summary | AA41: NA | AB41: NA | AC41: NA | AD41: NA | AE41: NA | AF41: Customer Satisfaction5 | AG41: NA | AH41: NA | AI41: NA | AJ41: Performance6 | AK41: NA | AL41: NA | AM41: NA | AN41: Marketing | AO41: NA | AP41: NA | AQ41: NA | AR41: NA | AS41: NA | AT41: NA | AU41: NA | AV41: NA | AW41: NA | AX41: NA | AY41: NA | AZ41: NA | BA41: NA | BB41: NA | BC41: NA | BD41: NA | BE41: NA | BF41: NA | BG41: NA | BH41: NA | BI41: NA | BJ41: NA | BK41: NA | BL41: NA | BM41: NA | BN41: NA | BO41: NA | BP41: NA | BQ41: NA | BR41: NA | BS41: NA | BT41: NA | BU41: NA | BV41: NA | BW41: NA | BX41: Corporate Information | BY41: NA | BZ41: NA | CA41: NA | CB41: NA | CC41: NA | CD41: NA | CE41: NA | CF41: NA | CG41: NA | CH41: NA | CI41: NA | CJ41: NA | CK41: NA | CL41: NA | CM41: NA | CN41: NA | CO41: NA | CP41: NA | CQ41: NA | CR41: NA | CS41: NA | CT41: NA | CU41: NA | CV41: NA | CW41: NA | CX41: NA | CY41: NA | CZ41: NA | DA41: NA | DB41: NA | DC41: NA | DD41: NA | DE41: NA | DF41: NA | DG41: NA | DH41: NA | DI41: NA | DJ41: NA | DK41: NA | DL41: NA | DM41: NA | DN41: NA | DO41: NA | DP41: NA | DQ41: NA | DR41: NA | DS41: NA | DT41: NA | DU41: NA | DV41: NA | DW41: NA | DX41: NA | DY41: NA | DZ41: NA | EA41: NA | EB41: NA | EC41: NA | ED41: NA | EE41: NA | EF41: NA | EG41: NA | EH41: NA | EI41: NA | EJ41: NA | EK41: NA | EL41: NA | EM41: NA | EN41: NA | EO41: NA | EP41: NA | EQ41: NA | ER41: NA | ES41: NA | ET41: NA | EU41: NA | EV41: NA | EW41: NA | EX41: NA | EY41: NA | EZ41: NA | FA41: NA | FB41: NA | FC41: NA | FD41: NA | FE41: NA | FF41: NA | FG41: NA | FH41: NA | FI41: NA | FJ41: NA | FK41: NA | FL41: NA | FM41: NA | FN41: NA | FO41: NA | FP41: NA | FQ41: NA | FR41: NA | FS41: NA | FT41: NA | FU41: NA | FV41: NA | FW41: NA | FX41: NA | FY41: NA | FZ41: NA | GA41: NA | GB41: NA | GC41: NA | GD41: NA | GE41: NA | GF41: NA | GG41: NA | GH41: NA | GI41: NA | GJ41: NA | GK41: NA | GL41: NA | GM41: NA | GN41: NA | GO41: NA | GP41: NA | GQ41: NA | GR41: NA | GS41: NA | GT41: NA | GU41: NA | GV41: NA | GW41: NA | GX41: NA | GY41: NA | GZ41: NA | HA41: NA | HB41: NA | HC41: NA | HD41: NA | HE41: NA | HF41: NA | HG41: NA | HH41: NA | HI41: NA | HJ41: NA | HK41: NA | HL41: NA | HM41: NA | HN41: NA | HO41: NA | HP41: NA | HQ41: NA | HR41: NA | HS41: NA | HT41: NA | HU41: NA | HV41: NA | HW41: NA | HX41: NA | HY41: NA | HZ41: NA | IA41: NA | IB41: NA | IC41: NA | ID41: NA | IE41: NA | IF41: NA | IG41: NA | IH41: NA | II41: NA | IJ41: NA | IK41: NA | IL41: NA | IM41: NA | IN41: NA | IO41: NA | IP41: NA | IQ41: NA | IR41: NA | IS41: NA | IT41: NA | IU41: NA | IV41: NA | IW41: NA | IX41: NA | IY41: NA | IZ41: NA | JA41: NA | JB41: NA | JC41: NA
A42: NA | B42: NA | C42: The Neiman Marcus Group Inc. | D42: The Neiman Marcus Group | E42: NA | F42: NA | G42: Financial | H42: NA | I42: NA | J42: NA | K42: NA | L42: NA | M42: NA | N42: NA | O42: Operations | P42: NA | Q42: NA | R42: NA | S42: NA | T42: NA | U42: NA | V42: NA | W42: NA | X42: NA | Y42: NA | Z42: Web Site Summary | AA42: NA | AB42: NA | AC42: NA | AD42: NA | AE42: NA | AF42: Customer Satisfaction5 | AG42: NA | AH42: NA | AI42: NA | AJ42: Performance6 | AK42: NA | AL42: NA | AM42: NA | AN42: Marketing | AO42: NA | AP42: NA | AQ42: NA | AR42: NA | AS42: NA | AT42: NA | AU42: NA | AV42: NA | AW42: NA | AX42: NA | AY42: NA | AZ42: NA | BA42: NA | BB42: NA | BC42: NA | BD42: NA | BE42: NA | BF42: NA | BG42: NA | BH42: NA | BI42: NA | BJ42: NA | BK42: NA | BL42: NA | BM42: NA | BN42: NA | BO42: NA | BP42: NA | BQ42: NA | BR42: NA | BS42: NA | BT42: NA | BU42: NA | BV42: NA | BW42: NA | BX42: Corporate Information | BY42: NA | BZ42: NA | CA42: NA | CB42: NA | CC42: NA | CD42: NA | CE42: NA | CF42: NA | CG42: NA | CH42: NA | CI42: NA | CJ42: NA | CK42: NA | CL42: NA | CM42: NA | CN42: NA | CO42: NA | CP42: NA | CQ42: NA | CR42: NA | CS42: NA | CT42: NA | CU42: NA | CV42: NA | CW42: NA | CX42: NA | CY42: NA | CZ42: NA | DA42: NA | DB42: NA | DC42: NA | DD42: NA | DE42: NA | DF42: NA | DG42: NA | DH42: NA | DI42: NA | DJ42: NA | DK42: NA | DL42: NA | DM42: NA | DN42: NA | DO42: NA | DP42: NA | DQ42: NA | DR42: NA | DS42: NA | DT42: NA | DU42: NA | DV42: NA | DW42: NA | DX42: NA | DY42: NA | DZ42: NA | EA42: NA | EB42: NA | EC42: NA | ED42: NA | EE42: NA | EF42: NA | EG42: NA | EH42: NA | EI42: NA | EJ42: NA | EK42: NA | EL42: NA | EM42: NA | EN42: NA | EO42: NA | EP42: NA | EQ42: NA | ER42: NA | ES42: NA | ET42: NA | EU42: NA | EV42: NA | EW42: NA | EX42: NA | EY42: NA | EZ42: NA | FA42: NA | FB42: NA | FC42: NA | FD42: NA | FE42: NA | FF42: NA | FG42: NA | FH42: NA | FI42: NA | FJ42: NA | FK42: NA | FL42: NA | FM42: NA | FN42: NA | FO42: NA | FP42: NA | FQ42: NA | FR42: NA | FS42: NA | FT42: NA | FU42: NA | FV42: NA | FW42: NA | FX42: NA | FY42: NA | FZ42: NA | GA42: NA | GB42: NA | GC42: NA | GD42: NA | GE42: NA | GF42: NA | GG42: NA | GH42: NA | GI42: NA | GJ42: NA | GK42: NA | GL42: NA | GM42: NA | GN42: NA | GO42: NA | GP42: NA | GQ42: NA | GR42: NA | GS42: NA | GT42: NA | GU42: NA | GV42: NA | GW42: NA | GX42: NA | GY42: NA | GZ42: NA | HA42: NA | HB42: NA | HC42: NA | HD42: NA | HE42: NA | HF42: NA | HG42: NA | HH42: NA | HI42: NA | HJ42: NA | HK42: NA | HL42: NA | HM42: NA | HN42: NA | HO42: NA | HP42: NA | HQ42: NA | HR42: NA | HS42: NA | HT42: NA | HU42: NA | HV42: NA | HW42: NA | HX42: NA | HY42: NA | HZ42: NA | IA42: NA | IB42: NA | IC42: NA | ID42: NA | IE42: NA | IF42: NA | IG42: NA | IH42: NA | II42: NA | IJ42: NA | IK42: NA | IL42: NA | IM42: NA | IN42: NA | IO42: NA | IP42: NA | IQ42: NA | IR42: NA | IS42: NA | IT42: NA | IU42: NA | IV42: NA | IW42: NA | IX42: NA | IY42: NA | IZ42: NA | JA42: NA | JB42: NA | JC42: NA
A43: NA | B43: NA | C43: BarnesandNoble.com Inc. | D43: BarnesandNoble.com | E43: NA | F43: NA | G43: Financial | H43: NA | I43: NA | J43: NA | K43: NA | L43: NA | M43: NA | N43: NA | O43: Operations | P43: NA | Q43: NA | R43: NA | S43: NA | T43: NA | U43: NA | V43: NA | W43: NA | X43: NA | Y43: NA | Z43: Web Site Summary | AA43: NA | AB43: NA | AC43: NA | AD43: NA | AE43: NA | AF43: Customer Satisfaction5 | AG43: NA | AH43: NA | AI43: NA | AJ43: Performance6 | AK43: NA | AL43: NA | AM43: NA | AN43: Marketing | AO43: NA | AP43: NA | AQ43: NA | AR43: NA | AS43: NA | AT43: NA | AU43: NA | AV43: NA | AW43: NA | AX43: NA | AY43: NA | AZ43: NA | BA43: NA | BB43: NA | BC43: NA | BD43: NA | BE43: NA | BF43: NA | BG43: NA | BH43: NA | BI43: NA | BJ43: NA | BK43: NA | BL43: NA | BM43: NA | BN43: NA | BO43: NA | BP43: NA | BQ43: NA | BR43: NA | BS43: NA | BT43: NA | BU43: NA | BV43: NA | BW43: NA | BX43: Corporate Information | BY43: NA | BZ43: NA | CA43: NA | CB43: NA | CC43: NA | CD43: NA | CE43: NA | CF43: NA | CG43: NA | CH43: NA | CI43: NA | CJ43: NA | CK43: NA | CL43: NA | CM43: NA | CN43: NA | CO43: NA | CP43: NA | CQ43: NA | CR43: NA | CS43: NA | CT43: NA | CU43: NA | CV43: NA | CW43: NA | CX43: NA | CY43: NA | CZ43: NA | DA43: NA | DB43: NA | DC43: NA | DD43: NA | DE43: NA | DF43: NA | DG43: NA | DH43: NA | DI43: NA | DJ43: NA | DK43: NA | DL43: NA | DM43: NA | DN43: NA | DO43: NA | DP43: NA | DQ43: NA | DR43: NA | DS43: NA | DT43: NA | DU43: NA | DV43: NA | DW43: NA | DX43: NA | DY43: NA | DZ43: NA | EA43: NA | EB43: NA | EC43: NA | ED43: NA | EE43: NA | EF43: NA | EG43: NA | EH43: NA | EI43: NA | EJ43: NA | EK43: NA | EL43: NA | EM43: NA | EN43: NA | EO43: NA | EP43: NA | EQ43: NA | ER43: NA | ES43: NA | ET43: NA | EU43: NA | EV43: NA | EW43: NA | EX43: NA | EY43: NA | EZ43: NA | FA43: NA | FB43: NA | FC43: NA | FD43: NA | FE43: NA | FF43: NA | FG43: NA | FH43: NA | FI43: NA | FJ43: NA | FK43: NA | FL43: NA | FM43: NA | FN43: NA | FO43: NA | FP43: NA | FQ43: NA | FR43: NA | FS43: NA | FT43: NA | FU43: NA | FV43: NA | FW43: NA | FX43: NA | FY43: NA | FZ43: NA | GA43: NA | GB43: NA | GC43: NA | GD43: NA | GE43: NA | GF43: NA | GG43: NA | GH43: NA | GI43: NA | GJ43: NA | GK43: NA | GL43: NA | GM43: NA | GN43: NA | GO43: NA | GP43: NA | GQ43: NA | GR43: NA | GS43: NA | GT43: NA | GU43: NA | GV43: NA | GW43: NA | GX43: NA | GY43: NA | GZ43: NA | HA43: NA | HB43: NA | HC43: NA | HD43: NA | HE43: NA | HF43: NA | HG43: NA | HH43: NA | HI43: NA | HJ43: NA | HK43: NA | HL43: NA | HM43: NA | HN43: NA | HO43: NA | HP43: NA | HQ43: NA | HR43: NA | HS43: NA | HT43: NA | HU43: NA | HV43: NA | HW43: NA | HX43: NA | HY43: NA | HZ43: NA | IA43: NA | IB43: NA | IC43: NA | ID43: NA | IE43: NA | IF43: NA | IG43: NA | IH43: NA | II43: NA | IJ43: NA | IK43: NA | IL43: NA | IM43: NA | IN43: NA | IO43: NA | IP43: NA | IQ43: NA | IR43: NA | IS43: NA | IT43: NA | IU43: NA | IV43: NA | IW43: NA | IX43: NA | IY43: NA | IZ43: NA | JA43: NA | JB43: NA | JC43: NA
A44: NA | B44: NA | C44: Kohl's Corp. | D44: Kohl's | E44: NA | F44: NA | G44: Financial | H44: NA | I44: NA | J44: NA | K44: NA | L44: NA | M44: NA | N44: NA | O44: Operations | P44: NA | Q44: NA | R44: NA | S44: NA | T44: NA | U44: NA | V44: NA | W44: NA | X44: NA | Y44: NA | Z44: Web Site Summary | AA44: NA | AB44: NA | AC44: NA | AD44: NA | AE44: NA | AF44: Customer Satisfaction5 | AG44: NA | AH44: NA | AI44: NA | AJ44: Performance6 | AK44: NA | AL44: NA | AM44: NA | AN44: Marketing | AO44: NA | AP44: NA | AQ44: NA | AR44: NA | AS44: NA | AT44: NA | AU44: NA | AV44: NA | AW44: NA | AX44: NA | AY44: NA | AZ44: NA | BA44: NA | BB44: NA | BC44: NA | BD44: NA | BE44: NA | BF44: NA | BG44: NA | BH44: NA | BI44: NA | BJ44: NA | BK44: NA | BL44: NA | BM44: NA | BN44: NA | BO44: NA | BP44: NA | BQ44: NA | BR44: NA | BS44: NA | BT44: NA | BU44: NA | BV44: NA | BW44: NA | BX44: Corporate Information | BY44: NA | BZ44: NA | CA44: NA | CB44: NA | CC44: NA | CD44: NA | CE44: NA | CF44: NA | CG44: NA | CH44: NA | CI44: NA | CJ44: NA | CK44: NA | CL44: NA | CM44: NA | CN44: NA | CO44: NA | CP44: NA | CQ44: NA | CR44: NA | CS44: NA | CT44: NA | CU44: NA | CV44: NA | CW44: NA | CX44: NA | CY44: NA | CZ44: NA | DA44: NA | DB44: NA | DC44: NA | DD44: NA | DE44: NA | DF44: NA | DG44: NA | DH44: NA | DI44: NA | DJ44: NA | DK44: NA | DL44: NA | DM44: NA | DN44: NA | DO44: NA | DP44: NA | DQ44: NA | DR44: NA | DS44: NA | DT44: NA | DU44: NA | DV44: NA | DW44: NA | DX44: NA | DY44: NA | DZ44: NA | EA44: NA | EB44: NA | EC44: NA | ED44: NA | EE44: NA | EF44: NA | EG44: NA | EH44: NA | EI44: NA | EJ44: NA | EK44: NA | EL44: NA | EM44: NA | EN44: NA | EO44: NA | EP44: NA | EQ44: NA | ER44: NA | ES44: NA | ET44: NA | EU44: NA | EV44: NA | EW44: NA | EX44: NA | EY44: NA | EZ44: NA | FA44: NA | FB44: NA | FC44: NA | FD44: NA | FE44: NA | FF44: NA | FG44: NA | FH44: NA | FI44: NA | FJ44: NA | FK44: NA | FL44: NA | FM44: NA | FN44: NA | FO44: NA | FP44: NA | FQ44: NA | FR44: NA | FS44: NA | FT44: NA | FU44: NA | FV44: NA | FW44: NA | FX44: NA | FY44: NA | FZ44: NA | GA44: NA | GB44: NA | GC44: NA | GD44: NA | GE44: NA | GF44: NA | GG44: NA | GH44: NA | GI44: NA | GJ44: NA | GK44: NA | GL44: NA | GM44: NA | GN44: NA | GO44: NA | GP44: NA | GQ44: NA | GR44: NA | GS44: NA | GT44: NA | GU44: NA | GV44: NA | GW44: NA | GX44: NA | GY44: NA | GZ44: NA | HA44: NA | HB44: NA | HC44: NA | HD44: NA | HE44: NA | HF44: NA | HG44: NA | HH44: NA | HI44: NA | HJ44: NA | HK44: NA | HL44: NA | HM44: NA | HN44: NA | HO44: NA | HP44: NA | HQ44: NA | HR44: NA | HS44: NA | HT44: NA | HU44: NA | HV44: NA | HW44: NA | HX44: NA | HY44: NA | HZ44: NA | IA44: NA | IB44: NA | IC44: NA | ID44: NA | IE44: NA | IF44: NA | IG44: NA | IH44: NA | II44: NA | IJ44: NA | IK44: NA | IL44: NA | IM44: NA | IN44: NA | IO44: NA | IP44: NA | IQ44: NA | IR44: NA | IS44: NA | IT44: NA | IU44: NA | IV44: NA | IW44: NA | IX44: NA | IY44: NA | IZ44: NA | JA44: NA | JB44: NA | JC44: NA
A45: NA | B45: NA | C45: PC Connection Inc. | D45: PC Connection | E45: NA | F45: NA | G45: Financial | H45: NA | I45: NA | J45: NA | K45: NA | L45: NA | M45: NA | N45: NA | O45: Operations | P45: NA | Q45: NA | R45: NA | S45: NA | T45: NA | U45: NA | V45: NA | W45: NA | X45: NA | Y45: NA | Z45: Web Site Summary | AA45: NA | AB45: NA | AC45: NA | AD45: NA | AE45: NA | AF45: Customer Satisfaction5 | AG45: NA | AH45: NA | AI45: NA | AJ45: Performance6 | AK45: NA | AL45: NA | AM45: NA | AN45: Marketing | AO45: NA | AP45: NA | AQ45: NA | AR45: NA | AS45: NA | AT45: NA | AU45: NA | AV45: NA | AW45: NA | AX45: NA | AY45: NA | AZ45: NA | BA45: NA | BB45: NA | BC45: NA | BD45: NA | BE45: NA | BF45: NA | BG45: NA | BH45: NA | BI45: NA | BJ45: NA | BK45: NA | BL45: NA | BM45: NA | BN45: NA | BO45: NA | BP45: NA | BQ45: NA | BR45: NA | BS45: NA | BT45: NA | BU45: NA | BV45: NA | BW45: NA | BX45: Corporate Information | BY45: NA | BZ45: NA | CA45: NA | CB45: NA | CC45: NA | CD45: NA | CE45: NA | CF45: NA | CG45: NA | CH45: NA | CI45: NA | CJ45: NA | CK45: NA | CL45: NA | CM45: NA | CN45: NA | CO45: NA | CP45: NA | CQ45: NA | CR45: NA | CS45: NA | CT45: NA | CU45: NA | CV45: NA | CW45: NA | CX45: NA | CY45: NA | CZ45: NA | DA45: NA | DB45: NA | DC45: NA | DD45: NA | DE45: NA | DF45: NA | DG45: NA | DH45: NA | DI45: NA | DJ45: NA | DK45: NA | DL45: NA | DM45: NA | DN45: NA | DO45: NA | DP45: NA | DQ45: NA | DR45: NA | DS45: NA | DT45: NA | DU45: NA | DV45: NA | DW45: NA | DX45: NA | DY45: NA | DZ45: NA | EA45: NA | EB45: NA | EC45: NA | ED45: NA | EE45: NA | EF45: NA | EG45: NA | EH45: NA | EI45: NA | EJ45: NA | EK45: NA | EL45: NA | EM45: NA | EN45: NA | EO45: NA | EP45: NA | EQ45: NA | ER45: NA | ES45: NA | ET45: NA | EU45: NA | EV45: NA | EW45: NA | EX45: NA | EY45: NA | EZ45: NA | FA45: NA | FB45: NA | FC45: NA | FD45: NA | FE45: NA | FF45: NA | FG45: NA | FH45: NA | FI45: NA | FJ45: NA | FK45: NA | FL45: NA | FM45: NA | FN45: NA | FO45: NA | FP45: NA | FQ45: NA | FR45: NA | FS45: NA | FT45: NA | FU45: NA | FV45: NA | FW45: NA | FX45: NA | FY45: NA | FZ45: NA | GA45: NA | GB45: NA | GC45: NA | GD45: NA | GE45: NA | GF45: NA | GG45: NA | GH45: NA | GI45: NA | GJ45: NA | GK45: NA | GL45: NA | GM45: NA | GN45: NA | GO45: NA | GP45: NA | GQ45: NA | GR45: NA | GS45: NA | GT45: NA | GU45: NA | GV45: NA | GW45: NA | GX45: NA | GY45: NA | GZ45: NA | HA45: NA | HB45: NA | HC45: NA | HD45: NA | HE45: NA | HF45: NA | HG45: NA | HH45: NA | HI45: NA | HJ45: NA | HK45: NA | HL45: NA | HM45: NA | HN45: NA | HO45: NA | HP45: NA | HQ45: NA | HR45: NA | HS45: NA | HT45: NA | HU45: NA | HV45: NA | HW45: NA | HX45: NA | HY45: NA | HZ45: NA | IA45: NA | IB45: NA | IC45: NA | ID45: NA | IE45: NA | IF45: NA | IG45: NA | IH45: NA | II45: NA | IJ45: NA | IK45: NA | IL45: NA | IM45: NA | IN45: NA | IO45: NA | IP45: NA | IQ45: NA | IR45: NA | IS45: NA | IT45: NA | IU45: NA | IV45: NA | IW45: NA | IX45: NA | IY45: NA | IZ45: NA | JA45: NA | JB45: NA | JC45: NA
A46: NA | B46: NA | C46: Saks Direct | D46: Saks Direct | E46: NA | F46: NA | G46: Financial | H46: NA | I46: NA | J46: NA | K46: NA | L46: NA | M46: NA | N46: NA | O46: Operations | P46: NA | Q46: NA | R46: NA | S46: NA | T46: NA | U46: NA | V46: NA | W46: NA | X46: NA | Y46: NA | Z46: Web Site Summary | AA46: NA | AB46: NA | AC46: NA | AD46: NA | AE46: NA | AF46: Customer Satisfaction5 | AG46: NA | AH46: NA | AI46: NA | AJ46: Performance6 | AK46: NA | AL46: NA | AM46: NA | AN46: Marketing | AO46: NA | AP46: NA | AQ46: NA | AR46: NA | AS46: NA | AT46: NA | AU46: NA | AV46: NA | AW46: NA | AX46: NA | AY46: NA | AZ46: NA | BA46: NA | BB46: NA | BC46: NA | BD46: NA | BE46: NA | BF46: NA | BG46: NA | BH46: NA | BI46: NA | BJ46: NA | BK46: NA | BL46: NA | BM46: NA | BN46: NA | BO46: NA | BP46: NA | BQ46: NA | BR46: NA | BS46: NA | BT46: NA | BU46: NA | BV46: NA | BW46: NA | BX46: Corporate Information | BY46: NA | BZ46: NA | CA46: NA | CB46: NA | CC46: NA | CD46: NA | CE46: NA | CF46: NA | CG46: NA | CH46: NA | CI46: NA | CJ46: NA | CK46: NA | CL46: NA | CM46: NA | CN46: NA | CO46: NA | CP46: NA | CQ46: NA | CR46: NA | CS46: NA | CT46: NA | CU46: NA | CV46: NA | CW46: NA | CX46: NA | CY46: NA | CZ46: NA | DA46: NA | DB46: NA | DC46: NA | DD46: NA | DE46: NA | DF46: NA | DG46: NA | DH46: NA | DI46: NA | DJ46: NA | DK46: NA | DL46: NA | DM46: NA | DN46: NA | DO46: NA | DP46: NA | DQ46: NA | DR46: NA | DS46: NA | DT46: NA | DU46: NA | DV46: NA | DW46: NA | DX46: NA | DY46: NA | DZ46: NA | EA46: NA | EB46: NA | EC46: NA | ED46: NA | EE46: NA | EF46: NA | EG46: NA | EH46: NA | EI46: NA | EJ46: NA | EK46: NA | EL46: NA | EM46: NA | EN46: NA | EO46: NA | EP46: NA | EQ46: NA | ER46: NA | ES46: NA | ET46: NA | EU46: NA | EV46: NA | EW46: NA | EX46: NA | EY46: NA | EZ46: NA | FA46: NA | FB46: NA | FC46: NA | FD46: NA | FE46: NA | FF46: NA | FG46: NA | FH46: NA | FI46: NA | FJ46: NA | FK46: NA | FL46: NA | FM46: NA | FN46: NA | FO46: NA | FP46: NA | FQ46: NA | FR46: NA | FS46: NA | FT46: NA | FU46: NA | FV46: NA | FW46: NA | FX46: NA | FY46: NA | FZ46: NA | GA46: NA | GB46: NA | GC46: NA | GD46: NA | GE46: NA | GF46: NA | GG46: NA | GH46: NA | GI46: NA | GJ46: NA | GK46: NA | GL46: NA | GM46: NA | GN46: NA | GO46: NA | GP46: NA | GQ46: NA | GR46: NA | GS46: NA | GT46: NA | GU46: NA | GV46: NA | GW46: NA | GX46: NA | GY46: NA | GZ46: NA | HA46: NA | HB46: NA | HC46: NA | HD46: NA | HE46: NA | HF46: NA | HG46: NA | HH46: NA | HI46: NA | HJ46: NA | HK46: NA | HL46: NA | HM46: NA | HN46: NA | HO46: NA | HP46: NA | HQ46: NA | HR46: NA | HS46: NA | HT46: NA | HU46: NA | HV46: NA | HW46: NA | HX46: NA | HY46: NA | HZ46: NA | IA46: NA | IB46: NA | IC46: NA | ID46: NA | IE46: NA | IF46: NA | IG46: NA | IH46: NA | II46: NA | IJ46: NA | IK46: NA | IL46: NA | IM46: NA | IN46: NA | IO46: NA | IP46: NA | IQ46: NA | IR46: NA | IS46: NA | IT46: NA | IU46: NA | IV46: NA | IW46: NA | IX46: NA | IY46: NA | IZ46: NA | JA46: NA | JB46: NA | JC46: NA
A47: NA | B47: NA | C47: drugstore.com Inc. | D47: drugstore.com | E47: NA | F47: NA | G47: Financial | H47: NA | I47: NA | J47: NA | K47: NA | L47: NA | M47: NA | N47: NA | O47: Operations | P47: NA | Q47: NA | R47: NA | S47: NA | T47: NA | U47: NA | V47: NA | W47: NA | X47: NA | Y47: NA | Z47: Web Site Summary | AA47: NA | AB47: NA | AC47: NA | AD47: NA | AE47: NA | AF47: Customer Satisfaction5 | AG47: NA | AH47: NA | AI47: NA | AJ47: Performance6 | AK47: NA | AL47: NA | AM47: NA | AN47: Marketing | AO47: NA | AP47: NA | AQ47: NA | AR47: NA | AS47: NA | AT47: NA | AU47: NA | AV47: NA | AW47: NA | AX47: NA | AY47: NA | AZ47: NA | BA47: NA | BB47: NA | BC47: NA | BD47: NA | BE47: NA | BF47: NA | BG47: NA | BH47: NA | BI47: NA | BJ47: NA | BK47: NA | BL47: NA | BM47: NA | BN47: NA | BO47: NA | BP47: NA | BQ47: NA | BR47: NA | BS47: NA | BT47: NA | BU47: NA | BV47: NA | BW47: NA | BX47: Corporate Information | BY47: NA | BZ47: NA | CA47: NA | CB47: NA | CC47: NA | CD47: NA | CE47: NA | CF47: NA | CG47: NA | CH47: NA | CI47: NA | CJ47: NA | CK47: NA | CL47: NA | CM47: NA | CN47: NA | CO47: NA | CP47: NA | CQ47: NA | CR47: NA | CS47: NA | CT47: NA | CU47: NA | CV47: NA | CW47: NA | CX47: NA | CY47: NA | CZ47: NA | DA47: NA | DB47: NA | DC47: NA | DD47: NA | DE47: NA | DF47: NA | DG47: NA | DH47: NA | DI47: NA | DJ47: NA | DK47: NA | DL47: NA | DM47: NA | DN47: NA | DO47: NA | DP47: NA | DQ47: NA | DR47: NA | DS47: NA | DT47: NA | DU47: NA | DV47: NA | DW47: NA | DX47: NA | DY47: NA | DZ47: NA | EA47: NA | EB47: NA | EC47: NA | ED47: NA | EE47: NA | EF47: NA | EG47: NA | EH47: NA | EI47: NA | EJ47: NA | EK47: NA | EL47: NA | EM47: NA | EN47: NA | EO47: NA | EP47: NA | EQ47: NA | ER47: NA | ES47: NA | ET47: NA | EU47: NA | EV47: NA | EW47: NA | EX47: NA | EY47: NA | EZ47: NA | FA47: NA | FB47: NA | FC47: NA | FD47: NA | FE47: NA | FF47: NA | FG47: NA | FH47: NA | FI47: NA | FJ47: NA | FK47: NA | FL47: NA | FM47: NA | FN47: NA | FO47: NA | FP47: NA | FQ47: NA | FR47: NA | FS47: NA | FT47: NA | FU47: NA | FV47: NA | FW47: NA | FX47: NA | FY47: NA | FZ47: NA | GA47: NA | GB47: NA | GC47: NA | GD47: NA | GE47: NA | GF47: NA | GG47: NA | GH47: NA | GI47: NA | GJ47: NA | GK47: NA | GL47: NA | GM47: NA | GN47: NA | GO47: NA | GP47: NA | GQ47: NA | GR47: NA | GS47: NA | GT47: NA | GU47: NA | GV47: NA | GW47: NA | GX47: NA | GY47: NA | GZ47: NA | HA47: NA | HB47: NA | HC47: NA | HD47: NA | HE47: NA | HF47: NA | HG47: NA | HH47: NA | HI47: NA | HJ47: NA | HK47: NA | HL47: NA | HM47: NA | HN47: NA | HO47: NA | HP47: NA | HQ47: NA | HR47: NA | HS47: NA | HT47: NA | HU47: NA | HV47: NA | HW47: NA | HX47: NA | HY47: NA | HZ47: NA | IA47: NA | IB47: NA | IC47: NA | ID47: NA | IE47: NA | IF47: NA | IG47: NA | IH47: NA | II47: NA | IJ47: NA | IK47: NA | IL47: NA | IM47: NA | IN47: NA | IO47: NA | IP47: NA | IQ47: NA | IR47: NA | IS47: NA | IT47: NA | IU47: NA | IV47: NA | IW47: NA | IX47: NA | IY47: NA | IZ47: NA | JA47: NA | JB47: NA | JC47: NA
A48: NA | B48: NA | C48: Peapod LLC | D48: Peapod | E48: NA | F48: NA | G48: Financial | H48: NA | I48: NA | J48: NA | K48: NA | L48: NA | M48: NA | N48: NA | O48: Operations | P48: NA | Q48: NA | R48: NA | S48: NA | T48: NA | U48: NA | V48: NA | W48: NA | X48: NA | Y48: NA | Z48: Web Site Summary | AA48: NA | AB48: NA | AC48: NA | AD48: NA | AE48: NA | AF48: Customer Satisfaction5 | AG48: NA | AH48: NA | AI48: NA | AJ48: Performance6 | AK48: NA | AL48: NA | AM48: NA | AN48: Marketing | AO48: NA | AP48: NA | AQ48: NA | AR48: NA | AS48: NA | AT48: NA | AU48: NA | AV48: NA | AW48: NA | AX48: NA | AY48: NA | AZ48: NA | BA48: NA | BB48: NA | BC48: NA | BD48: NA | BE48: NA | BF48: NA | BG48: NA | BH48: NA | BI48: NA | BJ48: NA | BK48: NA | BL48: NA | BM48: NA | BN48: NA | BO48: NA | BP48: NA | BQ48: NA | BR48: NA | BS48: NA | BT48: NA | BU48: NA | BV48: NA | BW48: NA | BX48: Corporate Information | BY48: NA | BZ48: NA | CA48: NA | CB48: NA | CC48: NA | CD48: NA | CE48: NA | CF48: NA | CG48: NA | CH48: NA | CI48: NA | CJ48: NA | CK48: NA | CL48: NA | CM48: NA | CN48: NA | CO48: NA | CP48: NA | CQ48: NA | CR48: NA | CS48: NA | CT48: NA | CU48: NA | CV48: NA | CW48: NA | CX48: NA | CY48: NA | CZ48: NA | DA48: NA | DB48: NA | DC48: NA | DD48: NA | DE48: NA | DF48: NA | DG48: NA | DH48: NA | DI48: NA | DJ48: NA | DK48: NA | DL48: NA | DM48: NA | DN48: NA | DO48: NA | DP48: NA | DQ48: NA | DR48: NA | DS48: NA | DT48: NA | DU48: NA | DV48: NA | DW48: NA | DX48: NA | DY48: NA | DZ48: NA | EA48: NA | EB48: NA | EC48: NA | ED48: NA | EE48: NA | EF48: NA | EG48: NA | EH48: NA | EI48: NA | EJ48: NA | EK48: NA | EL48: NA | EM48: NA | EN48: NA | EO48: NA | EP48: NA | EQ48: NA | ER48: NA | ES48: NA | ET48: NA | EU48: NA | EV48: NA | EW48: NA | EX48: NA | EY48: NA | EZ48: NA | FA48: NA | FB48: NA | FC48: NA | FD48: NA | FE48: NA | FF48: NA | FG48: NA | FH48: NA | FI48: NA | FJ48: NA | FK48: NA | FL48: NA | FM48: NA | FN48: NA | FO48: NA | FP48: NA | FQ48: NA | FR48: NA | FS48: NA | FT48: NA | FU48: NA | FV48: NA | FW48: NA | FX48: NA | FY48: NA | FZ48: NA | GA48: NA | GB48: NA | GC48: NA | GD48: NA | GE48: NA | GF48: NA | GG48: NA | GH48: NA | GI48: NA | GJ48: NA | GK48: NA | GL48: NA | GM48: NA | GN48: NA | GO48: NA | GP48: NA | GQ48: NA | GR48: NA | GS48: NA | GT48: NA | GU48: NA | GV48: NA | GW48: NA | GX48: NA | GY48: NA | GZ48: NA | HA48: NA | HB48: NA | HC48: NA | HD48: NA | HE48: NA | HF48: NA | HG48: NA | HH48: NA | HI48: NA | HJ48: NA | HK48: NA | HL48: NA | HM48: NA | HN48: NA | HO48: NA | HP48: NA | HQ48: NA | HR48: NA | HS48: NA | HT48: NA | HU48: NA | HV48: NA | HW48: NA | HX48: NA | HY48: NA | HZ48: NA | IA48: NA | IB48: NA | IC48: NA | ID48: NA | IE48: NA | IF48: NA | IG48: NA | IH48: NA | II48: NA | IJ48: NA | IK48: NA | IL48: NA | IM48: NA | IN48: NA | IO48: NA | IP48: NA | IQ48: NA | IR48: NA | IS48: NA | IT48: NA | IU48: NA | IV48: NA | IW48: NA | IX48: NA | IY48: NA | IZ48: NA | JA48: NA | JB48: NA | JC48: NA
A49: NA | B49: NA | C49: Nike Inc. | D49: Nike | E49: NA | F49: NA | G49: Financial | H49: NA | I49: NA | J49: NA | K49: NA | L49: NA | M49: NA | N49: NA | O49: Operations | P49: NA | Q49: NA | R49: NA | S49: NA | T49: NA | U49: NA | V49: NA | W49: NA | X49: NA | Y49: NA | Z49: Web Site Summary | AA49: NA | AB49: NA | AC49: NA | AD49: NA | AE49: NA | AF49: Customer Satisfaction5 | AG49: NA | AH49: NA | AI49: NA | AJ49: Performance6 | AK49: NA | AL49: NA | AM49: NA | AN49: Marketing | AO49: NA | AP49: NA | AQ49: NA | AR49: NA | AS49: NA | AT49: NA | AU49: NA | AV49: NA | AW49: NA | AX49: NA | AY49: NA | AZ49: NA | BA49: NA | BB49: NA | BC49: NA | BD49: NA | BE49: NA | BF49: NA | BG49: NA | BH49: NA | BI49: NA | BJ49: NA | BK49: NA | BL49: NA | BM49: NA | BN49: NA | BO49: NA | BP49: NA | BQ49: NA | BR49: NA | BS49: NA | BT49: NA | BU49: NA | BV49: NA | BW49: NA | BX49: Corporate Information | BY49: NA | BZ49: NA | CA49: NA | CB49: NA | CC49: NA | CD49: NA | CE49: NA | CF49: NA | CG49: NA | CH49: NA | CI49: NA | CJ49: NA | CK49: NA | CL49: NA | CM49: NA | CN49: NA | CO49: NA | CP49: NA | CQ49: NA | CR49: NA | CS49: NA | CT49: NA | CU49: NA | CV49: NA | CW49: NA | CX49: NA | CY49: NA | CZ49: NA | DA49: NA | DB49: NA | DC49: NA | DD49: NA | DE49: NA | DF49: NA | DG49: NA | DH49: NA | DI49: NA | DJ49: NA | DK49: NA | DL49: NA | DM49: NA | DN49: NA | DO49: NA | DP49: NA | DQ49: NA | DR49: NA | DS49: NA | DT49: NA | DU49: NA | DV49: NA | DW49: NA | DX49: NA | DY49: NA | DZ49: NA | EA49: NA | EB49: NA | EC49: NA | ED49: NA | EE49: NA | EF49: NA | EG49: NA | EH49: NA | EI49: NA | EJ49: NA | EK49: NA | EL49: NA | EM49: NA | EN49: NA | EO49: NA | EP49: NA | EQ49: NA | ER49: NA | ES49: NA | ET49: NA | EU49: NA | EV49: NA | EW49: NA | EX49: NA | EY49: NA | EZ49: NA | FA49: NA | FB49: NA | FC49: NA | FD49: NA | FE49: NA | FF49: NA | FG49: NA | FH49: NA | FI49: NA | FJ49: NA | FK49: NA | FL49: NA | FM49: NA | FN49: NA | FO49: NA | FP49: NA | FQ49: NA | FR49: NA | FS49: NA | FT49: NA | FU49: NA | FV49: NA | FW49: NA | FX49: NA | FY49: NA | FZ49: NA | GA49: NA | GB49: NA | GC49: NA | GD49: NA | GE49: NA | GF49: NA | GG49: NA | GH49: NA | GI49: NA | GJ49: NA | GK49: NA | GL49: NA | GM49: NA | GN49: NA | GO49: NA | GP49: NA | GQ49: NA | GR49: NA | GS49: NA | GT49: NA | GU49: NA | GV49: NA | GW49: NA | GX49: NA | GY49: NA | GZ49: NA | HA49: NA | HB49: NA | HC49: NA | HD49: NA | HE49: NA | HF49: NA | HG49: NA | HH49: NA | HI49: NA | HJ49: NA | HK49: NA | HL49: NA | HM49: NA | HN49: NA | HO49: NA | HP49: NA | HQ49: NA | HR49: NA | HS49: NA | HT49: NA | HU49: NA | HV49: NA | HW49: NA | HX49: NA | HY49: NA | HZ49: NA | IA49: NA | IB49: NA | IC49: NA | ID49: NA | IE49: NA | IF49: NA | IG49: NA | IH49: NA | II49: NA | IJ49: NA | IK49: NA | IL49: NA | IM49: NA | IN49: NA | IO49: NA | IP49: NA | IQ49: NA | IR49: NA | IS49: NA | IT49: NA | IU49: NA | IV49: NA | IW49: NA | IX49: NA | IY49: NA | IZ49: NA | JA49: NA | JB49: NA | JC49: NA
A50: NA | B50: NA | C50: Scholastic Inc. | D50: Scholastic | E50: NA | F50: NA | G50: Financial | H50: NA | I50: NA | J50: NA | K50: NA | L50: NA | M50: NA | N50: NA | O50: Operations | P50: NA | Q50: NA | R50: NA | S50: NA | T50: NA | U50: NA | V50: NA | W50: NA | X50: NA | Y50: NA | Z50: Web Site Summary | AA50: NA | AB50: NA | AC50: NA | AD50: NA | AE50: NA | AF50: Customer Satisfaction5 | AG50: NA | AH50: NA | AI50: NA | AJ50: Performance6 | AK50: NA | AL50: NA | AM50: NA | AN50: Marketing | AO50: NA | AP50: NA | AQ50: NA | AR50: NA | AS50: NA | AT50: NA | AU50: NA | AV50: NA | AW50: NA | AX50: NA | AY50: NA | AZ50: NA | BA50: NA | BB50: NA | BC50: NA | BD50: NA | BE50: NA | BF50: NA | BG50: NA | BH50: NA | BI50: NA | BJ50: NA | BK50: NA | BL50: NA | BM50: NA | BN50: NA | BO50: NA | BP50: NA | BQ50: NA | BR50: NA | BS50: NA | BT50: NA | BU50: NA | BV50: NA | BW50: NA | BX50: Corporate Information | BY50: NA | BZ50: NA | CA50: NA | CB50: NA | CC50: NA | CD50: NA | CE50: NA | CF50: NA | CG50: NA | CH50: NA | CI50: NA | CJ50: NA | CK50: NA | CL50: NA | CM50: NA | CN50: NA | CO50: NA | CP50: NA | CQ50: NA | CR50: NA | CS50: NA | CT50: NA | CU50: NA | CV50: NA | CW50: NA | CX50: NA | CY50: NA | CZ50: NA | DA50: NA | DB50: NA | DC50: NA | DD50: NA | DE50: NA | DF50: NA | DG50: NA | DH50: NA | DI50: NA | DJ50: NA | DK50: NA | DL50: NA | DM50: NA | DN50: NA | DO50: NA | DP50: NA | DQ50: NA | DR50: NA | DS50: NA | DT50: NA | DU50: NA | DV50: NA | DW50: NA | DX50: NA | DY50: NA | DZ50: NA | EA50: NA | EB50: NA | EC50: NA | ED50: NA | EE50: NA | EF50: NA | EG50: NA | EH50: NA | EI50: NA | EJ50: NA | EK50: NA | EL50: NA | EM50: NA | EN50: NA | EO50: NA | EP50: NA | EQ50: NA | ER50: NA | ES50: NA | ET50: NA | EU50: NA | EV50: NA | EW50: NA | EX50: NA | EY50: NA | EZ50: NA | FA50: NA | FB50: NA | FC50: NA | FD50: NA | FE50: NA | FF50: NA | FG50: NA | FH50: NA | FI50: NA | FJ50: NA | FK50: NA | FL50: NA | FM50: NA | FN50: NA | FO50: NA | FP50: NA | FQ50: NA | FR50: NA | FS50: NA | FT50: NA | FU50: NA | FV50: NA | FW50: NA | FX50: NA | FY50: NA | FZ50: NA | GA50: NA | GB50: NA | GC50: NA | GD50: NA | GE50: NA | GF50: NA | GG50: NA | GH50: NA | GI50: NA | GJ50: NA | GK50: NA | GL50: NA | GM50: NA | GN50: NA | GO50: NA | GP50: NA | GQ50: NA | GR50: NA | GS50: NA | GT50: NA | GU50: NA | GV50: NA | GW50: NA | GX50: NA | GY50: NA | GZ50: NA | HA50: NA | HB50: NA | HC50: NA | HD50: NA | HE50: NA | HF50: NA | HG50: NA | HH50: NA | HI50: NA | HJ50: NA | HK50: NA | HL50: NA | HM50: NA | HN50: NA | HO50: NA | HP50: NA | HQ50: NA | HR50: NA | HS50: NA | HT50: NA | HU50: NA | HV50: NA | HW50: NA | HX50: NA | HY50: NA | HZ50: NA | IA50: NA | IB50: NA | IC50: NA | ID50: NA | IE50: NA | IF50: NA | IG50: NA | IH50: NA | II50: NA | IJ50: NA | IK50: NA | IL50: NA | IM50: NA | IN50: NA | IO50: NA | IP50: NA | IQ50: NA | IR50: NA | IS50: NA | IT50: NA | IU50: NA | IV50: NA | IW50: NA | IX50: NA | IY50: NA | IZ50: NA | JA50: NA | JB50: NA | JC50: NA
A51: NA | B51: NA | C51: J. Crew Group Inc. | D51: J. Crew Group | E51: NA | F51: NA | G51: Financial | H51: NA | I51: NA | J51: NA | K51: NA | L51: NA | M51: NA | N51: NA | O51: Operations | P51: NA | Q51: NA | R51: NA | S51: NA | T51: NA | U51: NA | V51: NA | W51: NA | X51: NA | Y51: NA | Z51: Web Site Summary | AA51: NA | AB51: NA | AC51: NA | AD51: NA | AE51: NA | AF51: Customer Satisfaction5 | AG51: NA | AH51: NA | AI51: NA | AJ51: Performance6 | AK51: NA | AL51: NA | AM51: NA | AN51: Marketing | AO51: NA | AP51: NA | AQ51: NA | AR51: NA | AS51: NA | AT51: NA | AU51: NA | AV51: NA | AW51: NA | AX51: NA | AY51: NA | AZ51: NA | BA51: NA | BB51: NA | BC51: NA | BD51: NA | BE51: NA | BF51: NA | BG51: NA | BH51: NA | BI51: NA | BJ51: NA | BK51: NA | BL51: NA | BM51: NA | BN51: NA | BO51: NA | BP51: NA | BQ51: NA | BR51: NA | BS51: NA | BT51: NA | BU51: NA | BV51: NA | BW51: NA | BX51: Corporate Information | BY51: NA | BZ51: NA | CA51: NA | CB51: NA | CC51: NA | CD51: NA | CE51: NA | CF51: NA | CG51: NA | CH51: NA | CI51: NA | CJ51: NA | CK51: NA | CL51: NA | CM51: NA | CN51: NA | CO51: NA | CP51: NA | CQ51: NA | CR51: NA | CS51: NA | CT51: NA | CU51: NA | CV51: NA | CW51: NA | CX51: NA | CY51: NA | CZ51: NA | DA51: NA | DB51: NA | DC51: NA | DD51: NA | DE51: NA | DF51: NA | DG51: NA | DH51: NA | DI51: NA | DJ51: NA | DK51: NA | DL51: NA | DM51: NA | DN51: NA | DO51: NA | DP51: NA | DQ51: NA | DR51: NA | DS51: NA | DT51: NA | DU51: NA | DV51: NA | DW51: NA | DX51: NA | DY51: NA | DZ51: NA | EA51: NA | EB51: NA | EC51: NA | ED51: NA | EE51: NA | EF51: NA | EG51: NA | EH51: NA | EI51: NA | EJ51: NA | EK51: NA | EL51: NA | EM51: NA | EN51: NA | EO51: NA | EP51: NA | EQ51: NA | ER51: NA | ES51: NA | ET51: NA | EU51: NA | EV51: NA | EW51: NA | EX51: NA | EY51: NA | EZ51: NA | FA51: NA | FB51: NA | FC51: NA | FD51: NA | FE51: NA | FF51: NA | FG51: NA | FH51: NA | FI51: NA | FJ51: NA | FK51: NA | FL51: NA | FM51: NA | FN51: NA | FO51: NA | FP51: NA | FQ51: NA | FR51: NA | FS51: NA | FT51: NA | FU51: NA | FV51: NA | FW51: NA | FX51: NA | FY51: NA | FZ51: NA | GA51: NA | GB51: NA | GC51: NA | GD51: NA | GE51: NA | GF51: NA | GG51: NA | GH51: NA | GI51: NA | GJ51: NA | GK51: NA | GL51: NA | GM51: NA | GN51: NA | GO51: NA | GP51: NA | GQ51: NA | GR51: NA | GS51: NA | GT51: NA | GU51: NA | GV51: NA | GW51: NA | GX51: NA | GY51: NA | GZ51: NA | HA51: NA | HB51: NA | HC51: NA | HD51: NA | HE51: NA | HF51: NA | HG51: NA | HH51: NA | HI51: NA | HJ51: NA | HK51: NA | HL51: NA | HM51: NA | HN51: NA | HO51: NA | HP51: NA | HQ51: NA | HR51: NA | HS51: NA | HT51: NA | HU51: NA | HV51: NA | HW51: NA | HX51: NA | HY51: NA | HZ51: NA | IA51: NA | IB51: NA | IC51: NA | ID51: NA | IE51: NA | IF51: NA | IG51: NA | IH51: NA | II51: NA | IJ51: NA | IK51: NA | IL51: NA | IM51: NA | IN51: NA | IO51: NA | IP51: NA | IQ51: NA | IR51: NA | IS51: NA | IT51: NA | IU51: NA | IV51: NA | IW51: NA | IX51: NA | IY51: NA | IZ51: NA | JA51: NA | JB51: NA | JC51: NA
A52: NA | B52: NA | C52: American Eagle Outfitters Inc. | D52: American Eagle Outfitters | E52: NA | F52: NA | G52: Financial | H52: NA | I52: NA | J52: NA | K52: NA | L52: NA | M52: NA | N52: NA | O52: Operations | P52: NA | Q52: NA | R52: NA | S52: NA | T52: NA | U52: NA | V52: NA | W52: NA | X52: NA | Y52: NA | Z52: Web Site Summary | AA52: NA | AB52: NA | AC52: NA | AD52: NA | AE52: NA | AF52: Customer Satisfaction5 | AG52: NA | AH52: NA | AI52: NA | AJ52: Performance6 | AK52: NA | AL52: NA | AM52: NA | AN52: Marketing | AO52: NA | AP52: NA | AQ52: NA | AR52: NA | AS52: NA | AT52: NA | AU52: NA | AV52: NA | AW52: NA | AX52: NA | AY52: NA | AZ52: NA | BA52: NA | BB52: NA | BC52: NA | BD52: NA | BE52: NA | BF52: NA | BG52: NA | BH52: NA | BI52: NA | BJ52: NA | BK52: NA | BL52: NA | BM52: NA | BN52: NA | BO52: NA | BP52: NA | BQ52: NA | BR52: NA | BS52: NA | BT52: NA | BU52: NA | BV52: NA | BW52: NA | BX52: Corporate Information | BY52: NA | BZ52: NA | CA52: NA | CB52: NA | CC52: NA | CD52: NA | CE52: NA | CF52: NA | CG52: NA | CH52: NA | CI52: NA | CJ52: NA | CK52: NA | CL52: NA | CM52: NA | CN52: NA | CO52: NA | CP52: NA | CQ52: NA | CR52: NA | CS52: NA | CT52: NA | CU52: NA | CV52: NA | CW52: NA | CX52: NA | CY52: NA | CZ52: NA | DA52: NA | DB52: NA | DC52: NA | DD52: NA | DE52: NA | DF52: NA | DG52: NA | DH52: NA | DI52: NA | DJ52: NA | DK52: NA | DL52: NA | DM52: NA | DN52: NA | DO52: NA | DP52: NA | DQ52: NA | DR52: NA | DS52: NA | DT52: NA | DU52: NA | DV52: NA | DW52: NA | DX52: NA | DY52: NA | DZ52: NA | EA52: NA | EB52: NA | EC52: NA | ED52: NA | EE52: NA | EF52: NA | EG52: NA | EH52: NA | EI52: NA | EJ52: NA | EK52: NA | EL52: NA | EM52: NA | EN52: NA | EO52: NA | EP52: NA | EQ52: NA | ER52: NA | ES52: NA | ET52: NA | EU52: NA | EV52: NA | EW52: NA | EX52: NA | EY52: NA | EZ52: NA | FA52: NA | FB52: NA | FC52: NA | FD52: NA | FE52: NA | FF52: NA | FG52: NA | FH52: NA | FI52: NA | FJ52: NA | FK52: NA | FL52: NA | FM52: NA | FN52: NA | FO52: NA | FP52: NA | FQ52: NA | FR52: NA | FS52: NA | FT52: NA | FU52: NA | FV52: NA | FW52: NA | FX52: NA | FY52: NA | FZ52: NA | GA52: NA | GB52: NA | GC52: NA | GD52: NA | GE52: NA | GF52: NA | GG52: NA | GH52: NA | GI52: NA | GJ52: NA | GK52: NA | GL52: NA | GM52: NA | GN52: NA | GO52: NA | GP52: NA | GQ52: NA | GR52: NA | GS52: NA | GT52: NA | GU52: NA | GV52: NA | GW52: NA | GX52: NA | GY52: NA | GZ52: NA | HA52: NA | HB52: NA | HC52: NA | HD52: NA | HE52: NA | HF52: NA | HG52: NA | HH52: NA | HI52: NA | HJ52: NA | HK52: NA | HL52: NA | HM52: NA | HN52: NA | HO52: NA | HP52: NA | HQ52: NA | HR52: NA | HS52: NA | HT52: NA | HU52: NA | HV52: NA | HW52: NA | HX52: NA | HY52: NA | HZ52: NA | IA52: NA | IB52: NA | IC52: NA | ID52: NA | IE52: NA | IF52: NA | IG52: NA | IH52: NA | II52: NA | IJ52: NA | IK52: NA | IL52: NA | IM52: NA | IN52: NA | IO52: NA | IP52: NA | IQ52: NA | IR52: NA | IS52: NA | IT52: NA | IU52: NA | IV52: NA | IW52: NA | IX52: NA | IY52: NA | IZ52: NA | JA52: NA | JB52: NA | JC52: NA
A53: NA | B53: NA | C53: Foot Locker Inc. | D53: Foot Locker | E53: NA | F53: NA | G53: Financial | H53: NA | I53: NA | J53: NA | K53: NA | L53: NA | M53: NA | N53: NA | O53: Operations | P53: NA | Q53: NA | R53: NA | S53: NA | T53: NA | U53: NA | V53: NA | W53: NA | X53: NA | Y53: NA | Z53: Web Site Summary | AA53: NA | AB53: NA | AC53: NA | AD53: NA | AE53: NA | AF53: Customer Satisfaction5 | AG53: NA | AH53: NA | AI53: NA | AJ53: Performance6 | AK53: NA | AL53: NA | AM53: NA | AN53: Marketing | AO53: NA | AP53: NA | AQ53: NA | AR53: NA | AS53: NA | AT53: NA | AU53: NA | AV53: NA | AW53: NA | AX53: NA | AY53: NA | AZ53: NA | BA53: NA | BB53: NA | BC53: NA | BD53: NA | BE53: NA | BF53: NA | BG53: NA | BH53: NA | BI53: NA | BJ53: NA | BK53: NA | BL53: NA | BM53: NA | BN53: NA | BO53: NA | BP53: NA | BQ53: NA | BR53: NA | BS53: NA | BT53: NA | BU53: NA | BV53: NA | BW53: NA | BX53: Corporate Information | BY53: NA | BZ53: NA | CA53: NA | CB53: NA | CC53: NA | CD53: NA | CE53: NA | CF53: NA | CG53: NA | CH53: NA | CI53: NA | CJ53: NA | CK53: NA | CL53: NA | CM53: NA | CN53: NA | CO53: NA | CP53: NA | CQ53: NA | CR53: NA | CS53: NA | CT53: NA | CU53: NA | CV53: NA | CW53: NA | CX53: NA | CY53: NA | CZ53: NA | DA53: NA | DB53: NA | DC53: NA | DD53: NA | DE53: NA | DF53: NA | DG53: NA | DH53: NA | DI53: NA | DJ53: NA | DK53: NA | DL53: NA | DM53: NA | DN53: NA | DO53: NA | DP53: NA | DQ53: NA | DR53: NA | DS53: NA | DT53: NA | DU53: NA | DV53: NA | DW53: NA | DX53: NA | DY53: NA | DZ53: NA | EA53: NA | EB53: NA | EC53: NA | ED53: NA | EE53: NA | EF53: NA | EG53: NA | EH53: NA | EI53: NA | EJ53: NA | EK53: NA | EL53: NA | EM53: NA | EN53: NA | EO53: NA | EP53: NA | EQ53: NA | ER53: NA | ES53: NA | ET53: NA | EU53: NA | EV53: NA | EW53: NA | EX53: NA | EY53: NA | EZ53: NA | FA53: NA | FB53: NA | FC53: NA | FD53: NA | FE53: NA | FF53: NA | FG53: NA | FH53: NA | FI53: NA | FJ53: NA | FK53: NA | FL53: NA | FM53: NA | FN53: NA | FO53: NA | FP53: NA | FQ53: NA | FR53: NA | FS53: NA | FT53: NA | FU53: NA | FV53: NA | FW53: NA | FX53: NA | FY53: NA | FZ53: NA | GA53: NA | GB53: NA | GC53: NA | GD53: NA | GE53: NA | GF53: NA | GG53: NA | GH53: NA | GI53: NA | GJ53: NA | GK53: NA | GL53: NA | GM53: NA | GN53: NA | GO53: NA | GP53: NA | GQ53: NA | GR53: NA | GS53: NA | GT53: NA | GU53: NA | GV53: NA | GW53: NA | GX53: NA | GY53: NA | GZ53: NA | HA53: NA | HB53: NA | HC53: NA | HD53: NA | HE53: NA | HF53: NA | HG53: NA | HH53: NA | HI53: NA | HJ53: NA | HK53: NA | HL53: NA | HM53: NA | HN53: NA | HO53: NA | HP53: NA | HQ53: NA | HR53: NA | HS53: NA | HT53: NA | HU53: NA | HV53: NA | HW53: NA | HX53: NA | HY53: NA | HZ53: NA | IA53: NA | IB53: NA | IC53: NA | ID53: NA | IE53: NA | IF53: NA | IG53: NA | IH53: NA | II53: NA | IJ53: NA | IK53: NA | IL53: NA | IM53: NA | IN53: NA | IO53: NA | IP53: NA | IQ53: NA | IR53: NA | IS53: NA | IT53: NA | IU53: NA | IV53: NA | IW53: NA | IX53: NA | IY53: NA | IZ53: NA | JA53: NA | JB53: NA | JC53: NA
A54: NA | B54: NA | C54: Urban Outfitters Inc. | D54: Urban Outfitters | E54: NA | F54: NA | G54: Financial | H54: NA | I54: NA | J54: NA | K54: NA | L54: NA | M54: NA | N54: NA | O54: Operations | P54: NA | Q54: NA | R54: NA | S54: NA | T54: NA | U54: NA | V54: NA | W54: NA | X54: NA | Y54: NA | Z54: Web Site Summary | AA54: NA | AB54: NA | AC54: NA | AD54: NA | AE54: NA | AF54: Customer Satisfaction5 | AG54: NA | AH54: NA | AI54: NA | AJ54: Performance6 | AK54: NA | AL54: NA | AM54: NA | AN54: Marketing | AO54: NA | AP54: NA | AQ54: NA | AR54: NA | AS54: NA | AT54: NA | AU54: NA | AV54: NA | AW54: NA | AX54: NA | AY54: NA | AZ54: NA | BA54: NA | BB54: NA | BC54: NA | BD54: NA | BE54: NA | BF54: NA | BG54: NA | BH54: NA | BI54: NA | BJ54: NA | BK54: NA | BL54: NA | BM54: NA | BN54: NA | BO54: NA | BP54: NA | BQ54: NA | BR54: NA | BS54: NA | BT54: NA | BU54: NA | BV54: NA | BW54: NA | BX54: Corporate Information | BY54: NA | BZ54: NA | CA54: NA | CB54: NA | CC54: NA | CD54: NA | CE54: NA | CF54: NA | CG54: NA | CH54: NA | CI54: NA | CJ54: NA | CK54: NA | CL54: NA | CM54: NA | CN54: NA | CO54: NA | CP54: NA | CQ54: NA | CR54: NA | CS54: NA | CT54: NA | CU54: NA | CV54: NA | CW54: NA | CX54: NA | CY54: NA | CZ54: NA | DA54: NA | DB54: NA | DC54: NA | DD54: NA | DE54: NA | DF54: NA | DG54: NA | DH54: NA | DI54: NA | DJ54: NA | DK54: NA | DL54: NA | DM54: NA | DN54: NA | DO54: NA | DP54: NA | DQ54: NA | DR54: NA | DS54: NA | DT54: NA | DU54: NA | DV54: NA | DW54: NA | DX54: NA | DY54: NA | DZ54: NA | EA54: NA | EB54: NA | EC54: NA | ED54: NA | EE54: NA | EF54: NA | EG54: NA | EH54: NA | EI54: NA | EJ54: NA | EK54: NA | EL54: NA | EM54: NA | EN54: NA | EO54: NA | EP54: NA | EQ54: NA | ER54: NA | ES54: NA | ET54: NA | EU54: NA | EV54: NA | EW54: NA | EX54: NA | EY54: NA | EZ54: NA | FA54: NA | FB54: NA | FC54: NA | FD54: NA | FE54: NA | FF54: NA | FG54: NA | FH54: NA | FI54: NA | FJ54: NA | FK54: NA | FL54: NA | FM54: NA | FN54: NA | FO54: NA | FP54: NA | FQ54: NA | FR54: NA | FS54: NA | FT54: NA | FU54: NA | FV54: NA | FW54: NA | FX54: NA | FY54: NA | FZ54: NA | GA54: NA | GB54: NA | GC54: NA | GD54: NA | GE54: NA | GF54: NA | GG54: NA | GH54: NA | GI54: NA | GJ54: NA | GK54: NA | GL54: NA | GM54: NA | GN54: NA | GO54: NA | GP54: NA | GQ54: NA | GR54: NA | GS54: NA | GT54: NA | GU54: NA | GV54: NA | GW54: NA | GX54: NA | GY54: NA | GZ54: NA | HA54: NA | HB54: NA | HC54: NA | HD54: NA | HE54: NA | HF54: NA | HG54: NA | HH54: NA | HI54: NA | HJ54: NA | HK54: NA | HL54: NA | HM54: NA | HN54: NA | HO54: NA | HP54: NA | HQ54: NA | HR54: NA | HS54: NA | HT54: NA | HU54: NA | HV54: NA | HW54: NA | HX54: NA | HY54: NA | HZ54: NA | IA54: NA | IB54: NA | IC54: NA | ID54: NA | IE54: NA | IF54: NA | IG54: NA | IH54: NA | II54: NA | IJ54: NA | IK54: NA | IL54: NA | IM54: NA | IN54: NA | IO54: NA | IP54: NA | IQ54: NA | IR54: NA | IS54: NA | IT54: NA | IU54: NA | IV54: NA | IW54: NA | IX54: NA | IY54: NA | IZ54: NA | JA54: NA | JB54: NA | JC54: NA
A55: NA | B55: NA | C55: Market America | D55: Market America | E55: NA | F55: NA | G55: Financial | H55: NA | I55: NA | J55: NA | K55: NA | L55: NA | M55: NA | N55: NA | O55: Operations | P55: NA | Q55: NA | R55: NA | S55: NA | T55: NA | U55: NA | V55: NA | W55: NA | X55: NA | Y55: NA | Z55: Web Site Summary | AA55: NA | AB55: NA | AC55: NA | AD55: NA | AE55: NA | AF55: Customer Satisfaction5 | AG55: NA | AH55: NA | AI55: NA | AJ55: Performance6 | AK55: NA | AL55: NA | AM55: NA | AN55: Marketing | AO55: NA | AP55: NA | AQ55: NA | AR55: NA | AS55: NA | AT55: NA | AU55: NA | AV55: NA | AW55: NA | AX55: NA | AY55: NA | AZ55: NA | BA55: NA | BB55: NA | BC55: NA | BD55: NA | BE55: NA | BF55: NA | BG55: NA | BH55: NA | BI55: NA | BJ55: NA | BK55: NA | BL55: NA | BM55: NA | BN55: NA | BO55: NA | BP55: NA | BQ55: NA | BR55: NA | BS55: NA | BT55: NA | BU55: NA | BV55: NA | BW55: NA | BX55: Corporate Information | BY55: NA | BZ55: NA | CA55: NA | CB55: NA | CC55: NA | CD55: NA | CE55: NA | CF55: NA | CG55: NA | CH55: NA | CI55: NA | CJ55: NA | CK55: NA | CL55: NA | CM55: NA | CN55: NA | CO55: NA | CP55: NA | CQ55: NA | CR55: NA | CS55: NA | CT55: NA | CU55: NA | CV55: NA | CW55: NA | CX55: NA | CY55: NA | CZ55: NA | DA55: NA | DB55: NA | DC55: NA | DD55: NA | DE55: NA | DF55: NA | DG55: NA | DH55: NA | DI55: NA | DJ55: NA | DK55: NA | DL55: NA | DM55: NA | DN55: NA | DO55: NA | DP55: NA | DQ55: NA | DR55: NA | DS55: NA | DT55: NA | DU55: NA | DV55: NA | DW55: NA | DX55: NA | DY55: NA | DZ55: NA | EA55: NA | EB55: NA | EC55: NA | ED55: NA | EE55: NA | EF55: NA | EG55: NA | EH55: NA | EI55: NA | EJ55: NA | EK55: NA | EL55: NA | EM55: NA | EN55: NA | EO55: NA | EP55: NA | EQ55: NA | ER55: NA | ES55: NA | ET55: NA | EU55: NA | EV55: NA | EW55: NA | EX55: NA | EY55: NA | EZ55: NA | FA55: NA | FB55: NA | FC55: NA | FD55: NA | FE55: NA | FF55: NA | FG55: NA | FH55: NA | FI55: NA | FJ55: NA | FK55: NA | FL55: NA | FM55: NA | FN55: NA | FO55: NA | FP55: NA | FQ55: NA | FR55: NA | FS55: NA | FT55: NA | FU55: NA | FV55: NA | FW55: NA | FX55: NA | FY55: NA | FZ55: NA | GA55: NA | GB55: NA | GC55: NA | GD55: NA | GE55: NA | GF55: NA | GG55: NA | GH55: NA | GI55: NA | GJ55: NA | GK55: NA | GL55: NA | GM55: NA | GN55: NA | GO55: NA | GP55: NA | GQ55: NA | GR55: NA | GS55: NA | GT55: NA | GU55: NA | GV55: NA | GW55: NA | GX55: NA | GY55: NA | GZ55: NA | HA55: NA | HB55: NA | HC55: NA | HD55: NA | HE55: NA | HF55: NA | HG55: NA | HH55: NA | HI55: NA | HJ55: NA | HK55: NA | HL55: NA | HM55: NA | HN55: NA | HO55: NA | HP55: NA | HQ55: NA | HR55: NA | HS55: NA | HT55: NA | HU55: NA | HV55: NA | HW55: NA | HX55: NA | HY55: NA | HZ55: NA | IA55: NA | IB55: NA | IC55: NA | ID55: NA | IE55: NA | IF55: NA | IG55: NA | IH55: NA | II55: NA | IJ55: NA | IK55: NA | IL55: NA | IM55: NA | IN55: NA | IO55: NA | IP55: NA | IQ55: NA | IR55: NA | IS55: NA | IT55: NA | IU55: NA | IV55: NA | IW55: NA | IX55: NA | IY55: NA | IZ55: NA | JA55: NA | JB55: NA | JC55: NA
A56: NA | B56: NA | C56: Follett Higher Education Group | D56: Follett Higher Education Group | E56: NA | F56: NA | G56: Financial | H56: NA | I56: NA | J56: NA | K56: NA | L56: NA | M56: NA | N56: NA | O56: Operations | P56: NA | Q56: NA | R56: NA | S56: NA | T56: NA | U56: NA | V56: NA | W56: NA | X56: NA | Y56: NA | Z56: Web Site Summary | AA56: NA | AB56: NA | AC56: NA | AD56: NA | AE56: NA | AF56: Customer Satisfaction5 | AG56: NA | AH56: NA | AI56: NA | AJ56: Performance6 | AK56: NA | AL56: NA | AM56: NA | AN56: Marketing | AO56: NA | AP56: NA | AQ56: NA | AR56: NA | AS56: NA | AT56: NA | AU56: NA | AV56: NA | AW56: NA | AX56: NA | AY56: NA | AZ56: NA | BA56: NA | BB56: NA | BC56: NA | BD56: NA | BE56: NA | BF56: NA | BG56: NA | BH56: NA | BI56: NA | BJ56: NA | BK56: NA | BL56: NA | BM56: NA | BN56: NA | BO56: NA | BP56: NA | BQ56: NA | BR56: NA | BS56: NA | BT56: NA | BU56: NA | BV56: NA | BW56: NA | BX56: Corporate Information | BY56: NA | BZ56: NA | CA56: NA | CB56: NA | CC56: NA | CD56: NA | CE56: NA | CF56: NA | CG56: NA | CH56: NA | CI56: NA | CJ56: NA | CK56: NA | CL56: NA | CM56: NA | CN56: NA | CO56: NA | CP56: NA | CQ56: NA | CR56: NA | CS56: NA | CT56: NA | CU56: NA | CV56: NA | CW56: NA | CX56: NA | CY56: NA | CZ56: NA | DA56: NA | DB56: NA | DC56: NA | DD56: NA | DE56: NA | DF56: NA | DG56: NA | DH56: NA | DI56: NA | DJ56: NA | DK56: NA | DL56: NA | DM56: NA | DN56: NA | DO56: NA | DP56: NA | DQ56: NA | DR56: NA | DS56: NA | DT56: NA | DU56: NA | DV56: NA | DW56: NA | DX56: NA | DY56: NA | DZ56: NA | EA56: NA | EB56: NA | EC56: NA | ED56: NA | EE56: NA | EF56: NA | EG56: NA | EH56: NA | EI56: NA | EJ56: NA | EK56: NA | EL56: NA | EM56: NA | EN56: NA | EO56: NA | EP56: NA | EQ56: NA | ER56: NA | ES56: NA | ET56: NA | EU56: NA | EV56: NA | EW56: NA | EX56: NA | EY56: NA | EZ56: NA | FA56: NA | FB56: NA | FC56: NA | FD56: NA | FE56: NA | FF56: NA | FG56: NA | FH56: NA | FI56: NA | FJ56: NA | FK56: NA | FL56: NA | FM56: NA | FN56: NA | FO56: NA | FP56: NA | FQ56: NA | FR56: NA | FS56: NA | FT56: NA | FU56: NA | FV56: NA | FW56: NA | FX56: NA | FY56: NA | FZ56: NA | GA56: NA | GB56: NA | GC56: NA | GD56: NA | GE56: NA | GF56: NA | GG56: NA | GH56: NA | GI56: NA | GJ56: NA | GK56: NA | GL56: NA | GM56: NA | GN56: NA | GO56: NA | GP56: NA | GQ56: NA | GR56: NA | GS56: NA | GT56: NA | GU56: NA | GV56: NA | GW56: NA | GX56: NA | GY56: NA | GZ56: NA | HA56: NA | HB56: NA | HC56: NA | HD56: NA | HE56: NA | HF56: NA | HG56: NA | HH56: NA | HI56: NA | HJ56: NA | HK56: NA | HL56: NA | HM56: NA | HN56: NA | HO56: NA | HP56: NA | HQ56: NA | HR56: NA | HS56: NA | HT56: NA | HU56: NA | HV56: NA | HW56: NA | HX56: NA | HY56: NA | HZ56: NA | IA56: NA | IB56: NA | IC56: NA | ID56: NA | IE56: NA | IF56: NA | IG56: NA | IH56: NA | II56: NA | IJ56: NA | IK56: NA | IL56: NA | IM56: NA | IN56: NA | IO56: NA | IP56: NA | IQ56: NA | IR56: NA | IS56: NA | IT56: NA | IU56: NA | IV56: NA | IW56: NA | IX56: NA | IY56: NA | IZ56: NA | JA56: NA | JB56: NA | JC56: NA
A57: NA | B57: NA | C57: NutriSystem Inc. | D57: NutriSystem | E57: NA | F57: NA | G57: Financial | H57: NA | I57: NA | J57: NA | K57: NA | L57: NA | M57: NA | N57: NA | O57: Operations | P57: NA | Q57: NA | R57: NA | S57: NA | T57: NA | U57: NA | V57: NA | W57: NA | X57: NA | Y57: NA | Z57: Web Site Summary | AA57: NA | AB57: NA | AC57: NA | AD57: NA | AE57: NA | AF57: Customer Satisfaction5 | AG57: NA | AH57: NA | AI57: NA | AJ57: Performance6 | AK57: NA | AL57: NA | AM57: NA | AN57: Marketing | AO57: NA | AP57: NA | AQ57: NA | AR57: NA | AS57: NA | AT57: NA | AU57: NA | AV57: NA | AW57: NA | AX57: NA | AY57: NA | AZ57: NA | BA57: NA | BB57: NA | BC57: NA | BD57: NA | BE57: NA | BF57: NA | BG57: NA | BH57: NA | BI57: NA | BJ57: NA | BK57: NA | BL57: NA | BM57: NA | BN57: NA | BO57: NA | BP57: NA | BQ57: NA | BR57: NA | BS57: NA | BT57: NA | BU57: NA | BV57: NA | BW57: NA | BX57: Corporate Information | BY57: NA | BZ57: NA | CA57: NA | CB57: NA | CC57: NA | CD57: NA | CE57: NA | CF57: NA | CG57: NA | CH57: NA | CI57: NA | CJ57: NA | CK57: NA | CL57: NA | CM57: NA | CN57: NA | CO57: NA | CP57: NA | CQ57: NA | CR57: NA | CS57: NA | CT57: NA | CU57: NA | CV57: NA | CW57: NA | CX57: NA | CY57: NA | CZ57: NA | DA57: NA | DB57: NA | DC57: NA | DD57: NA | DE57: NA | DF57: NA | DG57: NA | DH57: NA | DI57: NA | DJ57: NA | DK57: NA | DL57: NA | DM57: NA | DN57: NA | DO57: NA | DP57: NA | DQ57: NA | DR57: NA | DS57: NA | DT57: NA | DU57: NA | DV57: NA | DW57: NA | DX57: NA | DY57: NA | DZ57: NA | EA57: NA | EB57: NA | EC57: NA | ED57: NA | EE57: NA | EF57: NA | EG57: NA | EH57: NA | EI57: NA | EJ57: NA | EK57: NA | EL57: NA | EM57: NA | EN57: NA | EO57: NA | EP57: NA | EQ57: NA | ER57: NA | ES57: NA | ET57: NA | EU57: NA | EV57: NA | EW57: NA | EX57: NA | EY57: NA | EZ57: NA | FA57: NA | FB57: NA | FC57: NA | FD57: NA | FE57: NA | FF57: NA | FG57: NA | FH57: NA | FI57: NA | FJ57: NA | FK57: NA | FL57: NA | FM57: NA | FN57: NA | FO57: NA | FP57: NA | FQ57: NA | FR57: NA | FS57: NA | FT57: NA | FU57: NA | FV57: NA | FW57: NA | FX57: NA | FY57: NA | FZ57: NA | GA57: NA | GB57: NA | GC57: NA | GD57: NA | GE57: NA | GF57: NA | GG57: NA | GH57: NA | GI57: NA | GJ57: NA | GK57: NA | GL57: NA | GM57: NA | GN57: NA | GO57: NA | GP57: NA | GQ57: NA | GR57: NA | GS57: NA | GT57: NA | GU57: NA | GV57: NA | GW57: NA | GX57: NA | GY57: NA | GZ57: NA | HA57: NA | HB57: NA | HC57: NA | HD57: NA | HE57: NA | HF57: NA | HG57: NA | HH57: NA | HI57: NA | HJ57: NA | HK57: NA | HL57: NA | HM57: NA | HN57: NA | HO57: NA | HP57: NA | HQ57: NA | HR57: NA | HS57: NA | HT57: NA | HU57: NA | HV57: NA | HW57: NA | HX57: NA | HY57: NA | HZ57: NA | IA57: NA | IB57: NA | IC57: NA | ID57: NA | IE57: NA | IF57: NA | IG57: NA | IH57: NA | II57: NA | IJ57: NA | IK57: NA | IL57: NA | IM57: NA | IN57: NA | IO57: NA | IP57: NA | IQ57: NA | IR57: NA | IS57: NA | IT57: NA | IU57: NA | IV57: NA | IW57: NA | IX57: NA | IY57: NA | IZ57: NA | JA57: NA | JB57: NA | JC57: NA
A58: NA | B58: NA | C58: Oriental Trading Co. Inc. | D58: Oriental Trading | E58: NA | F58: NA | G58: Financial | H58: NA | I58: NA | J58: NA | K58: NA | L58: NA | M58: NA | N58: NA | O58: Operations | P58: NA | Q58: NA | R58: NA | S58: NA | T58: NA | U58: NA | V58: NA | W58: NA | X58: NA | Y58: NA | Z58: Web Site Summary | AA58: NA | AB58: NA | AC58: NA | AD58: NA | AE58: NA | AF58: Customer Satisfaction5 | AG58: NA | AH58: NA | AI58: NA | AJ58: Performance6 | AK58: NA | AL58: NA | AM58: NA | AN58: Marketing | AO58: NA | AP58: NA | AQ58: NA | AR58: NA | AS58: NA | AT58: NA | AU58: NA | AV58: NA | AW58: NA | AX58: NA | AY58: NA | AZ58: NA | BA58: NA | BB58: NA | BC58: NA | BD58: NA | BE58: NA | BF58: NA | BG58: NA | BH58: NA | BI58: NA | BJ58: NA | BK58: NA | BL58: NA | BM58: NA | BN58: NA | BO58: NA | BP58: NA | BQ58: NA | BR58: NA | BS58: NA | BT58: NA | BU58: NA | BV58: NA | BW58: NA | BX58: Corporate Information | BY58: NA | BZ58: NA | CA58: NA | CB58: NA | CC58: NA | CD58: NA | CE58: NA | CF58: NA | CG58: NA | CH58: NA | CI58: NA | CJ58: NA | CK58: NA | CL58: NA | CM58: NA | CN58: NA | CO58: NA | CP58: NA | CQ58: NA | CR58: NA | CS58: NA | CT58: NA | CU58: NA | CV58: NA | CW58: NA | CX58: NA | CY58: NA | CZ58: NA | DA58: NA | DB58: NA | DC58: NA | DD58: NA | DE58: NA | DF58: NA | DG58: NA | DH58: NA | DI58: NA | DJ58: NA | DK58: NA | DL58: NA | DM58: NA | DN58: NA | DO58: NA | DP58: NA | DQ58: NA | DR58: NA | DS58: NA | DT58: NA | DU58: NA | DV58: NA | DW58: NA | DX58: NA | DY58: NA | DZ58: NA | EA58: NA | EB58: NA | EC58: NA | ED58: NA | EE58: NA | EF58: NA | EG58: NA | EH58: NA | EI58: NA | EJ58: NA | EK58: NA | EL58: NA | EM58: NA | EN58: NA | EO58: NA | EP58: NA | EQ58: NA | ER58: NA | ES58: NA | ET58: NA | EU58: NA | EV58: NA | EW58: NA | EX58: NA | EY58: NA | EZ58: NA | FA58: NA | FB58: NA | FC58: NA | FD58: NA | FE58: NA | FF58: NA | FG58: NA | FH58: NA | FI58: NA | FJ58: NA | FK58: NA | FL58: NA | FM58: NA | FN58: NA | FO58: NA | FP58: NA | FQ58: NA | FR58: NA | FS58: NA | FT58: NA | FU58: NA | FV58: NA | FW58: NA | FX58: NA | FY58: NA | FZ58: NA | GA58: NA | GB58: NA | GC58: NA | GD58: NA | GE58: NA | GF58: NA | GG58: NA | GH58: NA | GI58: NA | GJ58: NA | GK58: NA | GL58: NA | GM58: NA | GN58: NA | GO58: NA | GP58: NA | GQ58: NA | GR58: NA | GS58: NA | GT58: NA | GU58: NA | GV58: NA | GW58: NA | GX58: NA | GY58: NA | GZ58: NA | HA58: NA | HB58: NA | HC58: NA | HD58: NA | HE58: NA | HF58: NA | HG58: NA | HH58: NA | HI58: NA | HJ58: NA | HK58: NA | HL58: NA | HM58: NA | HN58: NA | HO58: NA | HP58: NA | HQ58: NA | HR58: NA | HS58: NA | HT58: NA | HU58: NA | HV58: NA | HW58: NA | HX58: NA | HY58: NA | HZ58: NA | IA58: NA | IB58: NA | IC58: NA | ID58: NA | IE58: NA | IF58: NA | IG58: NA | IH58: NA | II58: NA | IJ58: NA | IK58: NA | IL58: NA | IM58: NA | IN58: NA | IO58: NA | IP58: NA | IQ58: NA | IR58: NA | IS58: NA | IT58: NA | IU58: NA | IV58: NA | IW58: NA | IX58: NA | IY58: NA | IZ58: NA | JA58: NA | JB58: NA | JC58: NA
A59: NA | B59: NA | C59: Blue Nile Inc. | D59: Blue Nile | E59: NA | F59: NA | G59: Financial | H59: NA | I59: NA | J59: NA | K59: NA | L59: NA | M59: NA | N59: NA | O59: Operations | P59: NA | Q59: NA | R59: NA | S59: NA | T59: NA | U59: NA | V59: NA | W59: NA | X59: NA | Y59: NA | Z59: Web Site Summary | AA59: NA | AB59: NA | AC59: NA | AD59: NA | AE59: NA | AF59: Customer Satisfaction5 | AG59: NA | AH59: NA | AI59: NA | AJ59: Performance6 | AK59: NA | AL59: NA | AM59: NA | AN59: Marketing | AO59: NA | AP59: NA | AQ59: NA | AR59: NA | AS59: NA | AT59: NA | AU59: NA | AV59: NA | AW59: NA | AX59: NA | AY59: NA | AZ59: NA | BA59: NA | BB59: NA | BC59: NA | BD59: NA | BE59: NA | BF59: NA | BG59: NA | BH59: NA | BI59: NA | BJ59: NA | BK59: NA | BL59: NA | BM59: NA | BN59: NA | BO59: NA | BP59: NA | BQ59: NA | BR59: NA | BS59: NA | BT59: NA | BU59: NA | BV59: NA | BW59: NA | BX59: Corporate Information | BY59: NA | BZ59: NA | CA59: NA | CB59: NA | CC59: NA | CD59: NA | CE59: NA | CF59: NA | CG59: NA | CH59: NA | CI59: NA | CJ59: NA | CK59: NA | CL59: NA | CM59: NA | CN59: NA | CO59: NA | CP59: NA | CQ59: NA | CR59: NA | CS59: NA | CT59: NA | CU59: NA | CV59: NA | CW59: NA | CX59: NA | CY59: NA | CZ59: NA | DA59: NA | DB59: NA | DC59: NA | DD59: NA | DE59: NA | DF59: NA | DG59: NA | DH59: NA | DI59: NA | DJ59: NA | DK59: NA | DL59: NA | DM59: NA | DN59: NA | DO59: NA | DP59: NA | DQ59: NA | DR59: NA | DS59: NA | DT59: NA | DU59: NA | DV59: NA | DW59: NA | DX59: NA | DY59: NA | DZ59: NA | EA59: NA | EB59: NA | EC59: NA | ED59: NA | EE59: NA | EF59: NA | EG59: NA | EH59: NA | EI59: NA | EJ59: NA | EK59: NA | EL59: NA | EM59: NA | EN59: NA | EO59: NA | EP59: NA | EQ59: NA | ER59: NA | ES59: NA | ET59: NA | EU59: NA | EV59: NA | EW59: NA | EX59: NA | EY59: NA | EZ59: NA | FA59: NA | FB59: NA | FC59: NA | FD59: NA | FE59: NA | FF59: NA | FG59: NA | FH59: NA | FI59: NA | FJ59: NA | FK59: NA | FL59: NA | FM59: NA | FN59: NA | FO59: NA | FP59: NA | FQ59: NA | FR59: NA | FS59: NA | FT59: NA | FU59: NA | FV59: NA | FW59: NA | FX59: NA | FY59: NA | FZ59: NA | GA59: NA | GB59: NA | GC59: NA | GD59: NA | GE59: NA | GF59: NA | GG59: NA | GH59: NA | GI59: NA | GJ59: NA | GK59: NA | GL59: NA | GM59: NA | GN59: NA | GO59: NA | GP59: NA | GQ59: NA | GR59: NA | GS59: NA | GT59: NA | GU59: NA | GV59: NA | GW59: NA | GX59: NA | GY59: NA | GZ59: NA | HA59: NA | HB59: NA | HC59: NA | HD59: NA | HE59: NA | HF59: NA | HG59: NA | HH59: NA | HI59: NA | HJ59: NA | HK59: NA | HL59: NA | HM59: NA | HN59: NA | HO59: NA | HP59: NA | HQ59: NA | HR59: NA | HS59: NA | HT59: NA | HU59: NA | HV59: NA | HW59: NA | HX59: NA | HY59: NA | HZ59: NA | IA59: NA | IB59: NA | IC59: NA | ID59: NA | IE59: NA | IF59: NA | IG59: NA | IH59: NA | II59: NA | IJ59: NA | IK59: NA | IL59: NA | IM59: NA | IN59: NA | IO59: NA | IP59: NA | IQ59: NA | IR59: NA | IS59: NA | IT59: NA | IU59: NA | IV59: NA | IW59: NA | IX59: NA | IY59: NA | IZ59: NA | JA59: NA | JB59: NA | JC59: NA
A60: NA | B60: NA | C60: FTD Group Inc. | D60: FTD Group | E60: NA | F60: NA | G60: Financial | H60: NA | I60: NA | J60: NA | K60: NA | L60: NA | M60: NA | N60: NA | O60: Operations | P60: NA | Q60: NA | R60: NA | S60: NA | T60: NA | U60: NA | V60: NA | W60: NA | X60: NA | Y60: NA | Z60: Web Site Summary | AA60: NA | AB60: NA | AC60: NA | AD60: NA | AE60: NA | AF60: Customer Satisfaction5 | AG60: NA | AH60: NA | AI60: NA | AJ60: Performance6 | AK60: NA | AL60: NA | AM60: NA | AN60: Marketing | AO60: NA | AP60: NA | AQ60: NA | AR60: NA | AS60: NA | AT60: NA | AU60: NA | AV60: NA | AW60: NA | AX60: NA | AY60: NA | AZ60: NA | BA60: NA | BB60: NA | BC60: NA | BD60: NA | BE60: NA | BF60: NA | BG60: NA | BH60: NA | BI60: NA | BJ60: NA | BK60: NA | BL60: NA | BM60: NA | BN60: NA | BO60: NA | BP60: NA | BQ60: NA | BR60: NA | BS60: NA | BT60: NA | BU60: NA | BV60: NA | BW60: NA | BX60: Corporate Information | BY60: NA | BZ60: NA | CA60: NA | CB60: NA | CC60: NA | CD60: NA | CE60: NA | CF60: NA | CG60: NA | CH60: NA | CI60: NA | CJ60: NA | CK60: NA | CL60: NA | CM60: NA | CN60: NA | CO60: NA | CP60: NA | CQ60: NA | CR60: NA | CS60: NA | CT60: NA | CU60: NA | CV60: NA | CW60: NA | CX60: NA | CY60: NA | CZ60: NA | DA60: NA | DB60: NA | DC60: NA | DD60: NA | DE60: NA | DF60: NA | DG60: NA | DH60: NA | DI60: NA | DJ60: NA | DK60: NA | DL60: NA | DM60: NA | DN60: NA | DO60: NA | DP60: NA | DQ60: NA | DR60: NA | DS60: NA | DT60: NA | DU60: NA | DV60: NA | DW60: NA | DX60: NA | DY60: NA | DZ60: NA | EA60: NA | EB60: NA | EC60: NA | ED60: NA | EE60: NA | EF60: NA | EG60: NA | EH60: NA | EI60: NA | EJ60: NA | EK60: NA | EL60: NA | EM60: NA | EN60: NA | EO60: NA | EP60: NA | EQ60: NA | ER60: NA | ES60: NA | ET60: NA | EU60: NA | EV60: NA | EW60: NA | EX60: NA | EY60: NA | EZ60: NA | FA60: NA | FB60: NA | FC60: NA | FD60: NA | FE60: NA | FF60: NA | FG60: NA | FH60: NA | FI60: NA | FJ60: NA | FK60: NA | FL60: NA | FM60: NA | FN60: NA | FO60: NA | FP60: NA | FQ60: NA | FR60: NA | FS60: NA | FT60: NA | FU60: NA | FV60: NA | FW60: NA | FX60: NA | FY60: NA | FZ60: NA | GA60: NA | GB60: NA | GC60: NA | GD60: NA | GE60: NA | GF60: NA | GG60: NA | GH60: NA | GI60: NA | GJ60: NA | GK60: NA | GL60: NA | GM60: NA | GN60: NA | GO60: NA | GP60: NA | GQ60: NA | GR60: NA | GS60: NA | GT60: NA | GU60: NA | GV60: NA | GW60: NA | GX60: NA | GY60: NA | GZ60: NA | HA60: NA | HB60: NA | HC60: NA | HD60: NA | HE60: NA | HF60: NA | HG60: NA | HH60: NA | HI60: NA | HJ60: NA | HK60: NA | HL60: NA | HM60: NA | HN60: NA | HO60: NA | HP60: NA | HQ60: NA | HR60: NA | HS60: NA | HT60: NA | HU60: NA | HV60: NA | HW60: NA | HX60: NA | HY60: NA | HZ60: NA | IA60: NA | IB60: NA | IC60: NA | ID60: NA | IE60: NA | IF60: NA | IG60: NA | IH60: NA | II60: NA | IJ60: NA | IK60: NA | IL60: NA | IM60: NA | IN60: NA | IO60: NA | IP60: NA | IQ60: NA | IR60: NA | IS60: NA | IT60: NA | IU60: NA | IV60: NA | IW60: NA | IX60: NA | IY60: NA | IZ60: NA | JA60: NA | JB60: NA | JC60: NA
A61: NA | B61: NA | C61: Crate and Barrel | D61: Crate and Barrel | E61: NA | F61: NA | G61: Financial | H61: NA | I61: NA | J61: NA | K61: NA | L61: NA | M61: NA | N61: NA | O61: Operations | P61: NA | Q61: NA | R61: NA | S61: NA | T61: NA | U61: NA | V61: NA | W61: NA | X61: NA | Y61: NA | Z61: Web Site Summary | AA61: NA | AB61: NA | AC61: NA | AD61: NA | AE61: NA | AF61: Customer Satisfaction5 | AG61: NA | AH61: NA | AI61: NA | AJ61: Performance6 | AK61: NA | AL61: NA | AM61: NA | AN61: Marketing | AO61: NA | AP61: NA | AQ61: NA | AR61: NA | AS61: NA | AT61: NA | AU61: NA | AV61: NA | AW61: NA | AX61: NA | AY61: NA | AZ61: NA | BA61: NA | BB61: NA | BC61: NA | BD61: NA | BE61: NA | BF61: NA | BG61: NA | BH61: NA | BI61: NA | BJ61: NA | BK61: NA | BL61: NA | BM61: NA | BN61: NA | BO61: NA | BP61: NA | BQ61: NA | BR61: NA | BS61: NA | BT61: NA | BU61: NA | BV61: NA | BW61: NA | BX61: Corporate Information | BY61: NA | BZ61: NA | CA61: NA | CB61: NA | CC61: NA | CD61: NA | CE61: NA | CF61: NA | CG61: NA | CH61: NA | CI61: NA | CJ61: NA | CK61: NA | CL61: NA | CM61: NA | CN61: NA | CO61: NA | CP61: NA | CQ61: NA | CR61: NA | CS61: NA | CT61: NA | CU61: NA | CV61: NA | CW61: NA | CX61: NA | CY61: NA | CZ61: NA | DA61: NA | DB61: NA | DC61: NA | DD61: NA | DE61: NA | DF61: NA | DG61: NA | DH61: NA | DI61: NA | DJ61: NA | DK61: NA | DL61: NA | DM61: NA | DN61: NA | DO61: NA | DP61: NA | DQ61: NA | DR61: NA | DS61: NA | DT61: NA | DU61: NA | DV61: NA | DW61: NA | DX61: NA | DY61: NA | DZ61: NA | EA61: NA | EB61: NA | EC61: NA | ED61: NA | EE61: NA | EF61: NA | EG61: NA | EH61: NA | EI61: NA | EJ61: NA | EK61: NA | EL61: NA | EM61: NA | EN61: NA | EO61: NA | EP61: NA | EQ61: NA | ER61: NA | ES61: NA | ET61: NA | EU61: NA | EV61: NA | EW61: NA | EX61: NA | EY61: NA | EZ61: NA | FA61: NA | FB61: NA | FC61: NA | FD61: NA | FE61: NA | FF61: NA | FG61: NA | FH61: NA | FI61: NA | FJ61: NA | FK61: NA | FL61: NA | FM61: NA | FN61: NA | FO61: NA | FP61: NA | FQ61: NA | FR61: NA | FS61: NA | FT61: NA | FU61: NA | FV61: NA | FW61: NA | FX61: NA | FY61: NA | FZ61: NA | GA61: NA | GB61: NA | GC61: NA | GD61: NA | GE61: NA | GF61: NA | GG61: NA | GH61: NA | GI61: NA | GJ61: NA | GK61: NA | GL61: NA | GM61: NA | GN61: NA | GO61: NA | GP61: NA | GQ61: NA | GR61: NA | GS61: NA | GT61: NA | GU61: NA | GV61: NA | GW61: NA | GX61: NA | GY61: NA | GZ61: NA | HA61: NA | HB61: NA | HC61: NA | HD61: NA | HE61: NA | HF61: NA | HG61: NA | HH61: NA | HI61: NA | HJ61: NA | HK61: NA | HL61: NA | HM61: NA | HN61: NA | HO61: NA | HP61: NA | HQ61: NA | HR61: NA | HS61: NA | HT61: NA | HU61: NA | HV61: NA | HW61: NA | HX61: NA | HY61: NA | HZ61: NA | IA61: NA | IB61: NA | IC61: NA | ID61: NA | IE61: NA | IF61: NA | IG61: NA | IH61: NA | II61: NA | IJ61: NA | IK61: NA | IL61: NA | IM61: NA | IN61: NA | IO61: NA | IP61: NA | IQ61: NA | IR61: NA | IS61: NA | IT61: NA | IU61: NA | IV61: NA | IW61: NA | IX61: NA | IY61: NA | IZ61: NA | JA61: NA | JB61: NA | JC61: NA
A62: NA | B62: NA | C62: CSN Stores LLC | D62: CSN Stores | E62: NA | F62: NA | G62: Financial | H62: NA | I62: NA | J62: NA | K62: NA | L62: NA | M62: NA | N62: NA | O62: Operations | P62: NA | Q62: NA | R62: NA | S62: NA | T62: NA | U62: NA | V62: NA | W62: NA | X62: NA | Y62: NA | Z62: Web Site Summary | AA62: NA | AB62: NA | AC62: NA | AD62: NA | AE62: NA | AF62: Customer Satisfaction5 | AG62: NA | AH62: NA | AI62: NA | AJ62: Performance6 | AK62: NA | AL62: NA | AM62: NA | AN62: Marketing | AO62: NA | AP62: NA | AQ62: NA | AR62: NA | AS62: NA | AT62: NA | AU62: NA | AV62: NA | AW62: NA | AX62: NA | AY62: NA | AZ62: NA | BA62: NA | BB62: NA | BC62: NA | BD62: NA | BE62: NA | BF62: NA | BG62: NA | BH62: NA | BI62: NA | BJ62: NA | BK62: NA | BL62: NA | BM62: NA | BN62: NA | BO62: NA | BP62: NA | BQ62: NA | BR62: NA | BS62: NA | BT62: NA | BU62: NA | BV62: NA | BW62: NA | BX62: Corporate Information | BY62: NA | BZ62: NA | CA62: NA | CB62: NA | CC62: NA | CD62: NA | CE62: NA | CF62: NA | CG62: NA | CH62: NA | CI62: NA | CJ62: NA | CK62: NA | CL62: NA | CM62: NA | CN62: NA | CO62: NA | CP62: NA | CQ62: NA | CR62: NA | CS62: NA | CT62: NA | CU62: NA | CV62: NA | CW62: NA | CX62: NA | CY62: NA | CZ62: NA | DA62: NA | DB62: NA | DC62: NA | DD62: NA | DE62: NA | DF62: NA | DG62: NA | DH62: NA | DI62: NA | DJ62: NA | DK62: NA | DL62: NA | DM62: NA | DN62: NA | DO62: NA | DP62: NA | DQ62: NA | DR62: NA | DS62: NA | DT62: NA | DU62: NA | DV62: NA | DW62: NA | DX62: NA | DY62: NA | DZ62: NA | EA62: NA | EB62: NA | EC62: NA | ED62: NA | EE62: NA | EF62: NA | EG62: NA | EH62: NA | EI62: NA | EJ62: NA | EK62: NA | EL62: NA | EM62: NA | EN62: NA | EO62: NA | EP62: NA | EQ62: NA | ER62: NA | ES62: NA | ET62: NA | EU62: NA | EV62: NA | EW62: NA | EX62: NA | EY62: NA | EZ62: NA | FA62: NA | FB62: NA | FC62: NA | FD62: NA | FE62: NA | FF62: NA | FG62: NA | FH62: NA | FI62: NA | FJ62: NA | FK62: NA | FL62: NA | FM62: NA | FN62: NA | FO62: NA | FP62: NA | FQ62: NA | FR62: NA | FS62: NA | FT62: NA | FU62: NA | FV62: NA | FW62: NA | FX62: NA | FY62: NA | FZ62: NA | GA62: NA | GB62: NA | GC62: NA | GD62: NA | GE62: NA | GF62: NA | GG62: NA | GH62: NA | GI62: NA | GJ62: NA | GK62: NA | GL62: NA | GM62: NA | GN62: NA | GO62: NA | GP62: NA | GQ62: NA | GR62: NA | GS62: NA | GT62: NA | GU62: NA | GV62: NA | GW62: NA | GX62: NA | GY62: NA | GZ62: NA | HA62: NA | HB62: NA | HC62: NA | HD62: NA | HE62: NA | HF62: NA | HG62: NA | HH62: NA | HI62: NA | HJ62: NA | HK62: NA | HL62: NA | HM62: NA | HN62: NA | HO62: NA | HP62: NA | HQ62: NA | HR62: NA | HS62: NA | HT62: NA | HU62: NA | HV62: NA | HW62: NA | HX62: NA | HY62: NA | HZ62: NA | IA62: NA | IB62: NA | IC62: NA | ID62: NA | IE62: NA | IF62: NA | IG62: NA | IH62: NA | II62: NA | IJ62: NA | IK62: NA | IL62: NA | IM62: NA | IN62: NA | IO62: NA | IP62: NA | IQ62: NA | IR62: NA | IS62: NA | IT62: NA | IU62: NA | IV62: NA | IW62: NA | IX62: NA | IY62: NA | IZ62: NA | JA62: NA | JB62: NA | JC62: NA
A63: NA | B63: NA | C63: Recreational Equipment Inc. | D63: Recreational Equipment | E63: NA | F63: NA | G63: Financial | H63: NA | I63: NA | J63: NA | K63: NA | L63: NA | M63: NA | N63: NA | O63: Operations | P63: NA | Q63: NA | R63: NA | S63: NA | T63: NA | U63: NA | V63: NA | W63: NA | X63: NA | Y63: NA | Z63: Web Site Summary | AA63: NA | AB63: NA | AC63: NA | AD63: NA | AE63: NA | AF63: Customer Satisfaction5 | AG63: NA | AH63: NA | AI63: NA | AJ63: Performance6 | AK63: NA | AL63: NA | AM63: NA | AN63: Marketing | AO63: NA | AP63: NA | AQ63: NA | AR63: NA | AS63: NA | AT63: NA | AU63: NA | AV63: NA | AW63: NA | AX63: NA | AY63: NA | AZ63: NA | BA63: NA | BB63: NA | BC63: NA | BD63: NA | BE63: NA | BF63: NA | BG63: NA | BH63: NA | BI63: NA | BJ63: NA | BK63: NA | BL63: NA | BM63: NA | BN63: NA | BO63: NA | BP63: NA | BQ63: NA | BR63: NA | BS63: NA | BT63: NA | BU63: NA | BV63: NA | BW63: NA | BX63: Corporate Information | BY63: NA | BZ63: NA | CA63: NA | CB63: NA | CC63: NA | CD63: NA | CE63: NA | CF63: NA | CG63: NA | CH63: NA | CI63: NA | CJ63: NA | CK63: NA | CL63: NA | CM63: NA | CN63: NA | CO63: NA | CP63: NA | CQ63: NA | CR63: NA | CS63: NA | CT63: NA | CU63: NA | CV63: NA | CW63: NA | CX63: NA | CY63: NA | CZ63: NA | DA63: NA | DB63: NA | DC63: NA | DD63: NA | DE63: NA | DF63: NA | DG63: NA | DH63: NA | DI63: NA | DJ63: NA | DK63: NA | DL63: NA | DM63: NA | DN63: NA | DO63: NA | DP63: NA | DQ63: NA | DR63: NA | DS63: NA | DT63: NA | DU63: NA | DV63: NA | DW63: NA | DX63: NA | DY63: NA | DZ63: NA | EA63: NA | EB63: NA | EC63: NA | ED63: NA | EE63: NA | EF63: NA | EG63: NA | EH63: NA | EI63: NA | EJ63: NA | EK63: NA | EL63: NA | EM63: NA | EN63: NA | EO63: NA | EP63: NA | EQ63: NA | ER63: NA | ES63: NA | ET63: NA | EU63: NA | EV63: NA | EW63: NA | EX63: NA | EY63: NA | EZ63: NA | FA63: NA | FB63: NA | FC63: NA | FD63: NA | FE63: NA | FF63: NA | FG63: NA | FH63: NA | FI63: NA | FJ63: NA | FK63: NA | FL63: NA | FM63: NA | FN63: NA | FO63: NA | FP63: NA | FQ63: NA | FR63: NA | FS63: NA | FT63: NA | FU63: NA | FV63: NA | FW63: NA | FX63: NA | FY63: NA | FZ63: NA | GA63: NA | GB63: NA | GC63: NA | GD63: NA | GE63: NA | GF63: NA | GG63: NA | GH63: NA | GI63: NA | GJ63: NA | GK63: NA | GL63: NA | GM63: NA | GN63: NA | GO63: NA | GP63: NA | GQ63: NA | GR63: NA | GS63: NA | GT63: NA | GU63: NA | GV63: NA | GW63: NA | GX63: NA | GY63: NA | GZ63: NA | HA63: NA | HB63: NA | HC63: NA | HD63: NA | HE63: NA | HF63: NA | HG63: NA | HH63: NA | HI63: NA | HJ63: NA | HK63: NA | HL63: NA | HM63: NA | HN63: NA | HO63: NA | HP63: NA | HQ63: NA | HR63: NA | HS63: NA | HT63: NA | HU63: NA | HV63: NA | HW63: NA | HX63: NA | HY63: NA | HZ63: NA | IA63: NA | IB63: NA | IC63: NA | ID63: NA | IE63: NA | IF63: NA | IG63: NA | IH63: NA | II63: NA | IJ63: NA | IK63: NA | IL63: NA | IM63: NA | IN63: NA | IO63: NA | IP63: NA | IQ63: NA | IR63: NA | IS63: NA | IT63: NA | IU63: NA | IV63: NA | IW63: NA | IX63: NA | IY63: NA | IZ63: NA | JA63: NA | JB63: NA | JC63: NA
A64: NA | B64: NA | C64: Orchard Brands Corp. | D64: Orchard Brands | E64: NA | F64: NA | G64: Financial | H64: NA | I64: NA | J64: NA | K64: NA | L64: NA | M64: NA | N64: NA | O64: Operations | P64: NA | Q64: NA | R64: NA | S64: NA | T64: NA | U64: NA | V64: NA | W64: NA | X64: NA | Y64: NA | Z64: Web Site Summary | AA64: NA | AB64: NA | AC64: NA | AD64: NA | AE64: NA | AF64: Customer Satisfaction5 | AG64: NA | AH64: NA | AI64: NA | AJ64: Performance6 | AK64: NA | AL64: NA | AM64: NA | AN64: Marketing | AO64: NA | AP64: NA | AQ64: NA | AR64: NA | AS64: NA | AT64: NA | AU64: NA | AV64: NA | AW64: NA | AX64: NA | AY64: NA | AZ64: NA | BA64: NA | BB64: NA | BC64: NA | BD64: NA | BE64: NA | BF64: NA | BG64: NA | BH64: NA | BI64: NA | BJ64: NA | BK64: NA | BL64: NA | BM64: NA | BN64: NA | BO64: NA | BP64: NA | BQ64: NA | BR64: NA | BS64: NA | BT64: NA | BU64: NA | BV64: NA | BW64: NA | BX64: Corporate Information | BY64: NA | BZ64: NA | CA64: NA | CB64: NA | CC64: NA | CD64: NA | CE64: NA | CF64: NA | CG64: NA | CH64: NA | CI64: NA | CJ64: NA | CK64: NA | CL64: NA | CM64: NA | CN64: NA | CO64: NA | CP64: NA | CQ64: NA | CR64: NA | CS64: NA | CT64: NA | CU64: NA | CV64: NA | CW64: NA | CX64: NA | CY64: NA | CZ64: NA | DA64: NA | DB64: NA | DC64: NA | DD64: NA | DE64: NA | DF64: NA | DG64: NA | DH64: NA | DI64: NA | DJ64: NA | DK64: NA | DL64: NA | DM64: NA | DN64: NA | DO64: NA | DP64: NA | DQ64: NA | DR64: NA | DS64: NA | DT64: NA | DU64: NA | DV64: NA | DW64: NA | DX64: NA | DY64: NA | DZ64: NA | EA64: NA | EB64: NA | EC64: NA | ED64: NA | EE64: NA | EF64: NA | EG64: NA | EH64: NA | EI64: NA | EJ64: NA | EK64: NA | EL64: NA | EM64: NA | EN64: NA | EO64: NA | EP64: NA | EQ64: NA | ER64: NA | ES64: NA | ET64: NA | EU64: NA | EV64: NA | EW64: NA | EX64: NA | EY64: NA | EZ64: NA | FA64: NA | FB64: NA | FC64: NA | FD64: NA | FE64: NA | FF64: NA | FG64: NA | FH64: NA | FI64: NA | FJ64: NA | FK64: NA | FL64: NA | FM64: NA | FN64: NA | FO64: NA | FP64: NA | FQ64: NA | FR64: NA | FS64: NA | FT64: NA | FU64: NA | FV64: NA | FW64: NA | FX64: NA | FY64: NA | FZ64: NA | GA64: NA | GB64: NA | GC64: NA | GD64: NA | GE64: NA | GF64: NA | GG64: NA | GH64: NA | GI64: NA | GJ64: NA | GK64: NA | GL64: NA | GM64: NA | GN64: NA | GO64: NA | GP64: NA | GQ64: NA | GR64: NA | GS64: NA | GT64: NA | GU64: NA | GV64: NA | GW64: NA | GX64: NA | GY64: NA | GZ64: NA | HA64: NA | HB64: NA | HC64: NA | HD64: NA | HE64: NA | HF64: NA | HG64: NA | HH64: NA | HI64: NA | HJ64: NA | HK64: NA | HL64: NA | HM64: NA | HN64: NA | HO64: NA | HP64: NA | HQ64: NA | HR64: NA | HS64: NA | HT64: NA | HU64: NA | HV64: NA | HW64: NA | HX64: NA | HY64: NA | HZ64: NA | IA64: NA | IB64: NA | IC64: NA | ID64: NA | IE64: NA | IF64: NA | IG64: NA | IH64: NA | II64: NA | IJ64: NA | IK64: NA | IL64: NA | IM64: NA | IN64: NA | IO64: NA | IP64: NA | IQ64: NA | IR64: NA | IS64: NA | IT64: NA | IU64: NA | IV64: NA | IW64: NA | IX64: NA | IY64: NA | IZ64: NA | JA64: NA | JB64: NA | JC64: NA
A65: NA | B65: NA | C65: Signature Styles LLC | D65: Signature Styles | E65: NA | F65: NA | G65: Financial | H65: NA | I65: NA | J65: NA | K65: NA | L65: NA | M65: NA | N65: NA | O65: Operations | P65: NA | Q65: NA | R65: NA | S65: NA | T65: NA | U65: NA | V65: NA | W65: NA | X65: NA | Y65: NA | Z65: Web Site Summary | AA65: NA | AB65: NA | AC65: NA | AD65: NA | AE65: NA | AF65: Customer Satisfaction5 | AG65: NA | AH65: NA | AI65: NA | AJ65: Performance6 | AK65: NA | AL65: NA | AM65: NA | AN65: Marketing | AO65: NA | AP65: NA | AQ65: NA | AR65: NA | AS65: NA | AT65: NA | AU65: NA | AV65: NA | AW65: NA | AX65: NA | AY65: NA | AZ65: NA | BA65: NA | BB65: NA | BC65: NA | BD65: NA | BE65: NA | BF65: NA | BG65: NA | BH65: NA | BI65: NA | BJ65: NA | BK65: NA | BL65: NA | BM65: NA | BN65: NA | BO65: NA | BP65: NA | BQ65: NA | BR65: NA | BS65: NA | BT65: NA | BU65: NA | BV65: NA | BW65: NA | BX65: Corporate Information | BY65: NA | BZ65: NA | CA65: NA | CB65: NA | CC65: NA | CD65: NA | CE65: NA | CF65: NA | CG65: NA | CH65: NA | CI65: NA | CJ65: NA | CK65: NA | CL65: NA | CM65: NA | CN65: NA | CO65: NA | CP65: NA | CQ65: NA | CR65: NA | CS65: NA | CT65: NA | CU65: NA | CV65: NA | CW65: NA | CX65: NA | CY65: NA | CZ65: NA | DA65: NA | DB65: NA | DC65: NA | DD65: NA | DE65: NA | DF65: NA | DG65: NA | DH65: NA | DI65: NA | DJ65: NA | DK65: NA | DL65: NA | DM65: NA | DN65: NA | DO65: NA | DP65: NA | DQ65: NA | DR65: NA | DS65: NA | DT65: NA | DU65: NA | DV65: NA | DW65: NA | DX65: NA | DY65: NA | DZ65: NA | EA65: NA | EB65: NA | EC65: NA | ED65: NA | EE65: NA | EF65: NA | EG65: NA | EH65: NA | EI65: NA | EJ65: NA | EK65: NA | EL65: NA | EM65: NA | EN65: NA | EO65: NA | EP65: NA | EQ65: NA | ER65: NA | ES65: NA | ET65: NA | EU65: NA | EV65: NA | EW65: NA | EX65: NA | EY65: NA | EZ65: NA | FA65: NA | FB65: NA | FC65: NA | FD65: NA | FE65: NA | FF65: NA | FG65: NA | FH65: NA | FI65: NA | FJ65: NA | FK65: NA | FL65: NA | FM65: NA | FN65: NA | FO65: NA | FP65: NA | FQ65: NA | FR65: NA | FS65: NA | FT65: NA | FU65: NA | FV65: NA | FW65: NA | FX65: NA | FY65: NA | FZ65: NA | GA65: NA | GB65: NA | GC65: NA | GD65: NA | GE65: NA | GF65: NA | GG65: NA | GH65: NA | GI65: NA | GJ65: NA | GK65: NA | GL65: NA | GM65: NA | GN65: NA | GO65: NA | GP65: NA | GQ65: NA | GR65: NA | GS65: NA | GT65: NA | GU65: NA | GV65: NA | GW65: NA | GX65: NA | GY65: NA | GZ65: NA | HA65: NA | HB65: NA | HC65: NA | HD65: NA | HE65: NA | HF65: NA | HG65: NA | HH65: NA | HI65: NA | HJ65: NA | HK65: NA | HL65: NA | HM65: NA | HN65: NA | HO65: NA | HP65: NA | HQ65: NA | HR65: NA | HS65: NA | HT65: NA | HU65: NA | HV65: NA | HW65: NA | HX65: NA | HY65: NA | HZ65: NA | IA65: NA | IB65: NA | IC65: NA | ID65: NA | IE65: NA | IF65: NA | IG65: NA | IH65: NA | II65: NA | IJ65: NA | IK65: NA | IL65: NA | IM65: NA | IN65: NA | IO65: NA | IP65: NA | IQ65: NA | IR65: NA | IS65: NA | IT65: NA | IU65: NA | IV65: NA | IW65: NA | IX65: NA | IY65: NA | IZ65: NA | JA65: NA | JB65: NA | JC65: NA
A66: NA | B66: NA | C66: Abercrombie & Fitch Co. | D66: Abercrombie & Fitch | E66: NA | F66: NA | G66: Financial | H66: NA | I66: NA | J66: NA | K66: NA | L66: NA | M66: NA | N66: NA | O66: Operations | P66: NA | Q66: NA | R66: NA | S66: NA | T66: NA | U66: NA | V66: NA | W66: NA | X66: NA | Y66: NA | Z66: Web Site Summary | AA66: NA | AB66: NA | AC66: NA | AD66: NA | AE66: NA | AF66: Customer Satisfaction5 | AG66: NA | AH66: NA | AI66: NA | AJ66: Performance6 | AK66: NA | AL66: NA | AM66: NA | AN66: Marketing | AO66: NA | AP66: NA | AQ66: NA | AR66: NA | AS66: NA | AT66: NA | AU66: NA | AV66: NA | AW66: NA | AX66: NA | AY66: NA | AZ66: NA | BA66: NA | BB66: NA | BC66: NA | BD66: NA | BE66: NA | BF66: NA | BG66: NA | BH66: NA | BI66: NA | BJ66: NA | BK66: NA | BL66: NA | BM66: NA | BN66: NA | BO66: NA | BP66: NA | BQ66: NA | BR66: NA | BS66: NA | BT66: NA | BU66: NA | BV66: NA | BW66: NA | BX66: Corporate Information | BY66: NA | BZ66: NA | CA66: NA | CB66: NA | CC66: NA | CD66: NA | CE66: NA | CF66: NA | CG66: NA | CH66: NA | CI66: NA | CJ66: NA | CK66: NA | CL66: NA | CM66: NA | CN66: NA | CO66: NA | CP66: NA | CQ66: NA | CR66: NA | CS66: NA | CT66: NA | CU66: NA | CV66: NA | CW66: NA | CX66: NA | CY66: NA | CZ66: NA | DA66: NA | DB66: NA | DC66: NA | DD66: NA | DE66: NA | DF66: NA | DG66: NA | DH66: NA | DI66: NA | DJ66: NA | DK66: NA | DL66: NA | DM66: NA | DN66: NA | DO66: NA | DP66: NA | DQ66: NA | DR66: NA | DS66: NA | DT66: NA | DU66: NA | DV66: NA | DW66: NA | DX66: NA | DY66: NA | DZ66: NA | EA66: NA | EB66: NA | EC66: NA | ED66: NA | EE66: NA | EF66: NA | EG66: NA | EH66: NA | EI66: NA | EJ66: NA | EK66: NA | EL66: NA | EM66: NA | EN66: NA | EO66: NA | EP66: NA | EQ66: NA | ER66: NA | ES66: NA | ET66: NA | EU66: NA | EV66: NA | EW66: NA | EX66: NA | EY66: NA | EZ66: NA | FA66: NA | FB66: NA | FC66: NA | FD66: NA | FE66: NA | FF66: NA | FG66: NA | FH66: NA | FI66: NA | FJ66: NA | FK66: NA | FL66: NA | FM66: NA | FN66: NA | FO66: NA | FP66: NA | FQ66: NA | FR66: NA | FS66: NA | FT66: NA | FU66: NA | FV66: NA | FW66: NA | FX66: NA | FY66: NA | FZ66: NA | GA66: NA | GB66: NA | GC66: NA | GD66: NA | GE66: NA | GF66: NA | GG66: NA | GH66: NA | GI66: NA | GJ66: NA | GK66: NA | GL66: NA | GM66: NA | GN66: NA | GO66: NA | GP66: NA | GQ66: NA | GR66: NA | GS66: NA | GT66: NA | GU66: NA | GV66: NA | GW66: NA | GX66: NA | GY66: NA | GZ66: NA | HA66: NA | HB66: NA | HC66: NA | HD66: NA | HE66: NA | HF66: NA | HG66: NA | HH66: NA | HI66: NA | HJ66: NA | HK66: NA | HL66: NA | HM66: NA | HN66: NA | HO66: NA | HP66: NA | HQ66: NA | HR66: NA | HS66: NA | HT66: NA | HU66: NA | HV66: NA | HW66: NA | HX66: NA | HY66: NA | HZ66: NA | IA66: NA | IB66: NA | IC66: NA | ID66: NA | IE66: NA | IF66: NA | IG66: NA | IH66: NA | II66: NA | IJ66: NA | IK66: NA | IL66: NA | IM66: NA | IN66: NA | IO66: NA | IP66: NA | IQ66: NA | IR66: NA | IS66: NA | IT66: NA | IU66: NA | IV66: NA | IW66: NA | IX66: NA | IY66: NA | IZ66: NA | JA66: NA | JB66: NA | JC66: NA
A67: NA | B67: NA | C67: Disney Shopping Inc. | D67: Disney Shopping | E67: NA | F67: NA | G67: Financial | H67: NA | I67: NA | J67: NA | K67: NA | L67: NA | M67: NA | N67: NA | O67: Operations | P67: NA | Q67: NA | R67: NA | S67: NA | T67: NA | U67: NA | V67: NA | W67: NA | X67: NA | Y67: NA | Z67: Web Site Summary | AA67: NA | AB67: NA | AC67: NA | AD67: NA | AE67: NA | AF67: Customer Satisfaction5 | AG67: NA | AH67: NA | AI67: NA | AJ67: Performance6 | AK67: NA | AL67: NA | AM67: NA | AN67: Marketing | AO67: NA | AP67: NA | AQ67: NA | AR67: NA | AS67: NA | AT67: NA | AU67: NA | AV67: NA | AW67: NA | AX67: NA | AY67: NA | AZ67: NA | BA67: NA | BB67: NA | BC67: NA | BD67: NA | BE67: NA | BF67: NA | BG67: NA | BH67: NA | BI67: NA | BJ67: NA | BK67: NA | BL67: NA | BM67: NA | BN67: NA | BO67: NA | BP67: NA | BQ67: NA | BR67: NA | BS67: NA | BT67: NA | BU67: NA | BV67: NA | BW67: NA | BX67: Corporate Information | BY67: NA | BZ67: NA | CA67: NA | CB67: NA | CC67: NA | CD67: NA | CE67: NA | CF67: NA | CG67: NA | CH67: NA | CI67: NA | CJ67: NA | CK67: NA | CL67: NA | CM67: NA | CN67: NA | CO67: NA | CP67: NA | CQ67: NA | CR67: NA | CS67: NA | CT67: NA | CU67: NA | CV67: NA | CW67: NA | CX67: NA | CY67: NA | CZ67: NA | DA67: NA | DB67: NA | DC67: NA | DD67: NA | DE67: NA | DF67: NA | DG67: NA | DH67: NA | DI67: NA | DJ67: NA | DK67: NA | DL67: NA | DM67: NA | DN67: NA | DO67: NA | DP67: NA | DQ67: NA | DR67: NA | DS67: NA | DT67: NA | DU67: NA | DV67: NA | DW67: NA | DX67: NA | DY67: NA | DZ67: NA | EA67: NA | EB67: NA | EC67: NA | ED67: NA | EE67: NA | EF67: NA | EG67: NA | EH67: NA | EI67: NA | EJ67: NA | EK67: NA | EL67: NA | EM67: NA | EN67: NA | EO67: NA | EP67: NA | EQ67: NA | ER67: NA | ES67: NA | ET67: NA | EU67: NA | EV67: NA | EW67: NA | EX67: NA | EY67: NA | EZ67: NA | FA67: NA | FB67: NA | FC67: NA | FD67: NA | FE67: NA | FF67: NA | FG67: NA | FH67: NA | FI67: NA | FJ67: NA | FK67: NA | FL67: NA | FM67: NA | FN67: NA | FO67: NA | FP67: NA | FQ67: NA | FR67: NA | FS67: NA | FT67: NA | FU67: NA | FV67: NA | FW67: NA | FX67: NA | FY67: NA | FZ67: NA | GA67: NA | GB67: NA | GC67: NA | GD67: NA | GE67: NA | GF67: NA | GG67: NA | GH67: NA | GI67: NA | GJ67: NA | GK67: NA | GL67: NA | GM67: NA | GN67: NA | GO67: NA | GP67: NA | GQ67: NA | GR67: NA | GS67: NA | GT67: NA | GU67: NA | GV67: NA | GW67: NA | GX67: NA | GY67: NA | GZ67: NA | HA67: NA | HB67: NA | HC67: NA | HD67: NA | HE67: NA | HF67: NA | HG67: NA | HH67: NA | HI67: NA | HJ67: NA | HK67: NA | HL67: NA | HM67: NA | HN67: NA | HO67: NA | HP67: NA | HQ67: NA | HR67: NA | HS67: NA | HT67: NA | HU67: NA | HV67: NA | HW67: NA | HX67: NA | HY67: NA | HZ67: NA | IA67: NA | IB67: NA | IC67: NA | ID67: NA | IE67: NA | IF67: NA | IG67: NA | IH67: NA | II67: NA | IJ67: NA | IK67: NA | IL67: NA | IM67: NA | IN67: NA | IO67: NA | IP67: NA | IQ67: NA | IR67: NA | IS67: NA | IT67: NA | IU67: NA | IV67: NA | IW67: NA | IX67: NA | IY67: NA | IZ67: NA | JA67: NA | JB67: NA | JC67: NA
A68: NA | B68: NA | C68: Shutterfly Inc. | D68: Shutterfly | E68: NA | F68: NA | G68: Financial | H68: NA | I68: NA | J68: NA | K68: NA | L68: NA | M68: NA | N68: NA | O68: Operations | P68: NA | Q68: NA | R68: NA | S68: NA | T68: NA | U68: NA | V68: NA | W68: NA | X68: NA | Y68: NA | Z68: Web Site Summary | AA68: NA | AB68: NA | AC68: NA | AD68: NA | AE68: NA | AF68: Customer Satisfaction5 | AG68: NA | AH68: NA | AI68: NA | AJ68: Performance6 | AK68: NA | AL68: NA | AM68: NA | AN68: Marketing | AO68: NA | AP68: NA | AQ68: NA | AR68: NA | AS68: NA | AT68: NA | AU68: NA | AV68: NA | AW68: NA | AX68: NA | AY68: NA | AZ68: NA | BA68: NA | BB68: NA | BC68: NA | BD68: NA | BE68: NA | BF68: NA | BG68: NA | BH68: NA | BI68: NA | BJ68: NA | BK68: NA | BL68: NA | BM68: NA | BN68: NA | BO68: NA | BP68: NA | BQ68: NA | BR68: NA | BS68: NA | BT68: NA | BU68: NA | BV68: NA | BW68: NA | BX68: Corporate Information | BY68: NA | BZ68: NA | CA68: NA | CB68: NA | CC68: NA | CD68: NA | CE68: NA | CF68: NA | CG68: NA | CH68: NA | CI68: NA | CJ68: NA | CK68: NA | CL68: NA | CM68: NA | CN68: NA | CO68: NA | CP68: NA | CQ68: NA | CR68: NA | CS68: NA | CT68: NA | CU68: NA | CV68: NA | CW68: NA | CX68: NA | CY68: NA | CZ68: NA | DA68: NA | DB68: NA | DC68: NA | DD68: NA | DE68: NA | DF68: NA | DG68: NA | DH68: NA | DI68: NA | DJ68: NA | DK68: NA | DL68: NA | DM68: NA | DN68: NA | DO68: NA | DP68: NA | DQ68: NA | DR68: NA | DS68: NA | DT68: NA | DU68: NA | DV68: NA | DW68: NA | DX68: NA | DY68: NA | DZ68: NA | EA68: NA | EB68: NA | EC68: NA | ED68: NA | EE68: NA | EF68: NA | EG68: NA | EH68: NA | EI68: NA | EJ68: NA | EK68: NA | EL68: NA | EM68: NA | EN68: NA | EO68: NA | EP68: NA | EQ68: NA | ER68: NA | ES68: NA | ET68: NA | EU68: NA | EV68: NA | EW68: NA | EX68: NA | EY68: NA | EZ68: NA | FA68: NA | FB68: NA | FC68: NA | FD68: NA | FE68: NA | FF68: NA | FG68: NA | FH68: NA | FI68: NA | FJ68: NA | FK68: NA | FL68: NA | FM68: NA | FN68: NA | FO68: NA | FP68: NA | FQ68: NA | FR68: NA | FS68: NA | FT68: NA | FU68: NA | FV68: NA | FW68: NA | FX68: NA | FY68: NA | FZ68: NA | GA68: NA | GB68: NA | GC68: NA | GD68: NA | GE68: NA | GF68: NA | GG68: NA | GH68: NA | GI68: NA | GJ68: NA | GK68: NA | GL68: NA | GM68: NA | GN68: NA | GO68: NA | GP68: NA | GQ68: NA | GR68: NA | GS68: NA | GT68: NA | GU68: NA | GV68: NA | GW68: NA | GX68: NA | GY68: NA | GZ68: NA | HA68: NA | HB68: NA | HC68: NA | HD68: NA | HE68: NA | HF68: NA | HG68: NA | HH68: NA | HI68: NA | HJ68: NA | HK68: NA | HL68: NA | HM68: NA | HN68: NA | HO68: NA | HP68: NA | HQ68: NA | HR68: NA | HS68: NA | HT68: NA | HU68: NA | HV68: NA | HW68: NA | HX68: NA | HY68: NA | HZ68: NA | IA68: NA | IB68: NA | IC68: NA | ID68: NA | IE68: NA | IF68: NA | IG68: NA | IH68: NA | II68: NA | IJ68: NA | IK68: NA | IL68: NA | IM68: NA | IN68: NA | IO68: NA | IP68: NA | IQ68: NA | IR68: NA | IS68: NA | IT68: NA | IU68: NA | IV68: NA | IW68: NA | IX68: NA | IY68: NA | IZ68: NA | JA68: NA | JB68: NA | JC68: NA
A69: NA | B69: NA | C69: Walgreen Co. | D69: Walgreen | E69: NA | F69: NA | G69: Financial | H69: NA | I69: NA | J69: NA | K69: NA | L69: NA | M69: NA | N69: NA | O69: Operations | P69: NA | Q69: NA | R69: NA | S69: NA | T69: NA | U69: NA | V69: NA | W69: NA | X69: NA | Y69: NA | Z69: Web Site Summary | AA69: NA | AB69: NA | AC69: NA | AD69: NA | AE69: NA | AF69: Customer Satisfaction5 | AG69: NA | AH69: NA | AI69: NA | AJ69: Performance6 | AK69: NA | AL69: NA | AM69: NA | AN69: Marketing | AO69: NA | AP69: NA | AQ69: NA | AR69: NA | AS69: NA | AT69: NA | AU69: NA | AV69: NA | AW69: NA | AX69: NA | AY69: NA | AZ69: NA | BA69: NA | BB69: NA | BC69: NA | BD69: NA | BE69: NA | BF69: NA | BG69: NA | BH69: NA | BI69: NA | BJ69: NA | BK69: NA | BL69: NA | BM69: NA | BN69: NA | BO69: NA | BP69: NA | BQ69: NA | BR69: NA | BS69: NA | BT69: NA | BU69: NA | BV69: NA | BW69: NA | BX69: Corporate Information | BY69: NA | BZ69: NA | CA69: NA | CB69: NA | CC69: NA | CD69: NA | CE69: NA | CF69: NA | CG69: NA | CH69: NA | CI69: NA | CJ69: NA | CK69: NA | CL69: NA | CM69: NA | CN69: NA | CO69: NA | CP69: NA | CQ69: NA | CR69: NA | CS69: NA | CT69: NA | CU69: NA | CV69: NA | CW69: NA | CX69: NA | CY69: NA | CZ69: NA | DA69: NA | DB69: NA | DC69: NA | DD69: NA | DE69: NA | DF69: NA | DG69: NA | DH69: NA | DI69: NA | DJ69: NA | DK69: NA | DL69: NA | DM69: NA | DN69: NA | DO69: NA | DP69: NA | DQ69: NA | DR69: NA | DS69: NA | DT69: NA | DU69: NA | DV69: NA | DW69: NA | DX69: NA | DY69: NA | DZ69: NA | EA69: NA | EB69: NA | EC69: NA | ED69: NA | EE69: NA | EF69: NA | EG69: NA | EH69: NA | EI69: NA | EJ69: NA | EK69: NA | EL69: NA | EM69: NA | EN69: NA | EO69: NA | EP69: NA | EQ69: NA | ER69: NA | ES69: NA | ET69: NA | EU69: NA | EV69: NA | EW69: NA | EX69: NA | EY69: NA | EZ69: NA | FA69: NA | FB69: NA | FC69: NA | FD69: NA | FE69: NA | FF69: NA | FG69: NA | FH69: NA | FI69: NA | FJ69: NA | FK69: NA | FL69: NA | FM69: NA | FN69: NA | FO69: NA | FP69: NA | FQ69: NA | FR69: NA | FS69: NA | FT69: NA | FU69: NA | FV69: NA | FW69: NA | FX69: NA | FY69: NA | FZ69: NA | GA69: NA | GB69: NA | GC69: NA | GD69: NA | GE69: NA | GF69: NA | GG69: NA | GH69: NA | GI69: NA | GJ69: NA | GK69: NA | GL69: NA | GM69: NA | GN69: NA | GO69: NA | GP69: NA | GQ69: NA | GR69: NA | GS69: NA | GT69: NA | GU69: NA | GV69: NA | GW69: NA | GX69: NA | GY69: NA | GZ69: NA | HA69: NA | HB69: NA | HC69: NA | HD69: NA | HE69: NA | HF69: NA | HG69: NA | HH69: NA | HI69: NA | HJ69: NA | HK69: NA | HL69: NA | HM69: NA | HN69: NA | HO69: NA | HP69: NA | HQ69: NA | HR69: NA | HS69: NA | HT69: NA | HU69: NA | HV69: NA | HW69: NA | HX69: NA | HY69: NA | HZ69: NA | IA69: NA | IB69: NA | IC69: NA | ID69: NA | IE69: NA | IF69: NA | IG69: NA | IH69: NA | II69: NA | IJ69: NA | IK69: NA | IL69: NA | IM69: NA | IN69: NA | IO69: NA | IP69: NA | IQ69: NA | IR69: NA | IS69: NA | IT69: NA | IU69: NA | IV69: NA | IW69: NA | IX69: NA | IY69: NA | IZ69: NA | JA69: NA | JB69: NA | JC69: NA
A70: NA | B70: NA | C70: Hayneedle Inc. | D70: Hayneedle | E70: NA | F70: NA | G70: Financial | H70: NA | I70: NA | J70: NA | K70: NA | L70: NA | M70: NA | N70: NA | O70: Operations | P70: NA | Q70: NA | R70: NA | S70: NA | T70: NA | U70: NA | V70: NA | W70: NA | X70: NA | Y70: NA | Z70: Web Site Summary | AA70: NA | AB70: NA | AC70: NA | AD70: NA | AE70: NA | AF70: Customer Satisfaction5 | AG70: NA | AH70: NA | AI70: NA | AJ70: Performance6 | AK70: NA | AL70: NA | AM70: NA | AN70: Marketing | AO70: NA | AP70: NA | AQ70: NA | AR70: NA | AS70: NA | AT70: NA | AU70: NA | AV70: NA | AW70: NA | AX70: NA | AY70: NA | AZ70: NA | BA70: NA | BB70: NA | BC70: NA | BD70: NA | BE70: NA | BF70: NA | BG70: NA | BH70: NA | BI70: NA | BJ70: NA | BK70: NA | BL70: NA | BM70: NA | BN70: NA | BO70: NA | BP70: NA | BQ70: NA | BR70: NA | BS70: NA | BT70: NA | BU70: NA | BV70: NA | BW70: NA | BX70: Corporate Information | BY70: NA | BZ70: NA | CA70: NA | CB70: NA | CC70: NA | CD70: NA | CE70: NA | CF70: NA | CG70: NA | CH70: NA | CI70: NA | CJ70: NA | CK70: NA | CL70: NA | CM70: NA | CN70: NA | CO70: NA | CP70: NA | CQ70: NA | CR70: NA | CS70: NA | CT70: NA | CU70: NA | CV70: NA | CW70: NA | CX70: NA | CY70: NA | CZ70: NA | DA70: NA | DB70: NA | DC70: NA | DD70: NA | DE70: NA | DF70: NA | DG70: NA | DH70: NA | DI70: NA | DJ70: NA | DK70: NA | DL70: NA | DM70: NA | DN70: NA | DO70: NA | DP70: NA | DQ70: NA | DR70: NA | DS70: NA | DT70: NA | DU70: NA | DV70: NA | DW70: NA | DX70: NA | DY70: NA | DZ70: NA | EA70: NA | EB70: NA | EC70: NA | ED70: NA | EE70: NA | EF70: NA | EG70: NA | EH70: NA | EI70: NA | EJ70: NA | EK70: NA | EL70: NA | EM70: NA | EN70: NA | EO70: NA | EP70: NA | EQ70: NA | ER70: NA | ES70: NA | ET70: NA | EU70: NA | EV70: NA | EW70: NA | EX70: NA | EY70: NA | EZ70: NA | FA70: NA | FB70: NA | FC70: NA | FD70: NA | FE70: NA | FF70: NA | FG70: NA | FH70: NA | FI70: NA | FJ70: NA | FK70: NA | FL70: NA | FM70: NA | FN70: NA | FO70: NA | FP70: NA | FQ70: NA | FR70: NA | FS70: NA | FT70: NA | FU70: NA | FV70: NA | FW70: NA | FX70: NA | FY70: NA | FZ70: NA | GA70: NA | GB70: NA | GC70: NA | GD70: NA | GE70: NA | GF70: NA | GG70: NA | GH70: NA | GI70: NA | GJ70: NA | GK70: NA | GL70: NA | GM70: NA | GN70: NA | GO70: NA | GP70: NA | GQ70: NA | GR70: NA | GS70: NA | GT70: NA | GU70: NA | GV70: NA | GW70: NA | GX70: NA | GY70: NA | GZ70: NA | HA70: NA | HB70: NA | HC70: NA | HD70: NA | HE70: NA | HF70: NA | HG70: NA | HH70: NA | HI70: NA | HJ70: NA | HK70: NA | HL70: NA | HM70: NA | HN70: NA | HO70: NA | HP70: NA | HQ70: NA | HR70: NA | HS70: NA | HT70: NA | HU70: NA | HV70: NA | HW70: NA | HX70: NA | HY70: NA | HZ70: NA | IA70: NA | IB70: NA | IC70: NA | ID70: NA | IE70: NA | IF70: NA | IG70: NA | IH70: NA | II70: NA | IJ70: NA | IK70: NA | IL70: NA | IM70: NA | IN70: NA | IO70: NA | IP70: NA | IQ70: NA | IR70: NA | IS70: NA | IT70: NA | IU70: NA | IV70: NA | IW70: NA | IX70: NA | IY70: NA | IZ70: NA | JA70: NA | JB70: NA | JC70: NA
A71: NA | B71: NA | C71: FreshDirect LLC | D71: FreshDirect | E71: NA | F71: NA | G71: Financial | H71: NA | I71: NA | J71: NA | K71: NA | L71: NA | M71: NA | N71: NA | O71: Operations | P71: NA | Q71: NA | R71: NA | S71: NA | T71: NA | U71: NA | V71: NA | W71: NA | X71: NA | Y71: NA | Z71: Web Site Summary | AA71: NA | AB71: NA | AC71: NA | AD71: NA | AE71: NA | AF71: Customer Satisfaction5 | AG71: NA | AH71: NA | AI71: NA | AJ71: Performance6 | AK71: NA | AL71: NA | AM71: NA | AN71: Marketing | AO71: NA | AP71: NA | AQ71: NA | AR71: NA | AS71: NA | AT71: NA | AU71: NA | AV71: NA | AW71: NA | AX71: NA | AY71: NA | AZ71: NA | BA71: NA | BB71: NA | BC71: NA | BD71: NA | BE71: NA | BF71: NA | BG71: NA | BH71: NA | BI71: NA | BJ71: NA | BK71: NA | BL71: NA | BM71: NA | BN71: NA | BO71: NA | BP71: NA | BQ71: NA | BR71: NA | BS71: NA | BT71: NA | BU71: NA | BV71: NA | BW71: NA | BX71: Corporate Information | BY71: NA | BZ71: NA | CA71: NA | CB71: NA | CC71: NA | CD71: NA | CE71: NA | CF71: NA | CG71: NA | CH71: NA | CI71: NA | CJ71: NA | CK71: NA | CL71: NA | CM71: NA | CN71: NA | CO71: NA | CP71: NA | CQ71: NA | CR71: NA | CS71: NA | CT71: NA | CU71: NA | CV71: NA | CW71: NA | CX71: NA | CY71: NA | CZ71: NA | DA71: NA | DB71: NA | DC71: NA | DD71: NA | DE71: NA | DF71: NA | DG71: NA | DH71: NA | DI71: NA | DJ71: NA | DK71: NA | DL71: NA | DM71: NA | DN71: NA | DO71: NA | DP71: NA | DQ71: NA | DR71: NA | DS71: NA | DT71: NA | DU71: NA | DV71: NA | DW71: NA | DX71: NA | DY71: NA | DZ71: NA | EA71: NA | EB71: NA | EC71: NA | ED71: NA | EE71: NA | EF71: NA | EG71: NA | EH71: NA | EI71: NA | EJ71: NA | EK71: NA | EL71: NA | EM71: NA | EN71: NA | EO71: NA | EP71: NA | EQ71: NA | ER71: NA | ES71: NA | ET71: NA | EU71: NA | EV71: NA | EW71: NA | EX71: NA | EY71: NA | EZ71: NA | FA71: NA | FB71: NA | FC71: NA | FD71: NA | FE71: NA | FF71: NA | FG71: NA | FH71: NA | FI71: NA | FJ71: NA | FK71: NA | FL71: NA | FM71: NA | FN71: NA | FO71: NA | FP71: NA | FQ71: NA | FR71: NA | FS71: NA | FT71: NA | FU71: NA | FV71: NA | FW71: NA | FX71: NA | FY71: NA | FZ71: NA | GA71: NA | GB71: NA | GC71: NA | GD71: NA | GE71: NA | GF71: NA | GG71: NA | GH71: NA | GI71: NA | GJ71: NA | GK71: NA | GL71: NA | GM71: NA | GN71: NA | GO71: NA | GP71: NA | GQ71: NA | GR71: NA | GS71: NA | GT71: NA | GU71: NA | GV71: NA | GW71: NA | GX71: NA | GY71: NA | GZ71: NA | HA71: NA | HB71: NA | HC71: NA | HD71: NA | HE71: NA | HF71: NA | HG71: NA | HH71: NA | HI71: NA | HJ71: NA | HK71: NA | HL71: NA | HM71: NA | HN71: NA | HO71: NA | HP71: NA | HQ71: NA | HR71: NA | HS71: NA | HT71: NA | HU71: NA | HV71: NA | HW71: NA | HX71: NA | HY71: NA | HZ71: NA | IA71: NA | IB71: NA | IC71: NA | ID71: NA | IE71: NA | IF71: NA | IG71: NA | IH71: NA | II71: NA | IJ71: NA | IK71: NA | IL71: NA | IM71: NA | IN71: NA | IO71: NA | IP71: NA | IQ71: NA | IR71: NA | IS71: NA | IT71: NA | IU71: NA | IV71: NA | IW71: NA | IX71: NA | IY71: NA | IZ71: NA | JA71: NA | JB71: NA | JC71: NA
A72: NA | B72: NA | C72: Northern Tool + Equipment Co. | D72: Northern Tool + Equipment | E72: NA | F72: NA | G72: Financial | H72: NA | I72: NA | J72: NA | K72: NA | L72: NA | M72: NA | N72: NA | O72: Operations | P72: NA | Q72: NA | R72: NA | S72: NA | T72: NA | U72: NA | V72: NA | W72: NA | X72: NA | Y72: NA | Z72: Web Site Summary | AA72: NA | AB72: NA | AC72: NA | AD72: NA | AE72: NA | AF72: Customer Satisfaction5 | AG72: NA | AH72: NA | AI72: NA | AJ72: Performance6 | AK72: NA | AL72: NA | AM72: NA | AN72: Marketing | AO72: NA | AP72: NA | AQ72: NA | AR72: NA | AS72: NA | AT72: NA | AU72: NA | AV72: NA | AW72: NA | AX72: NA | AY72: NA | AZ72: NA | BA72: NA | BB72: NA | BC72: NA | BD72: NA | BE72: NA | BF72: NA | BG72: NA | BH72: NA | BI72: NA | BJ72: NA | BK72: NA | BL72: NA | BM72: NA | BN72: NA | BO72: NA | BP72: NA | BQ72: NA | BR72: NA | BS72: NA | BT72: NA | BU72: NA | BV72: NA | BW72: NA | BX72: Corporate Information | BY72: NA | BZ72: NA | CA72: NA | CB72: NA | CC72: NA | CD72: NA | CE72: NA | CF72: NA | CG72: NA | CH72: NA | CI72: NA | CJ72: NA | CK72: NA | CL72: NA | CM72: NA | CN72: NA | CO72: NA | CP72: NA | CQ72: NA | CR72: NA | CS72: NA | CT72: NA | CU72: NA | CV72: NA | CW72: NA | CX72: NA | CY72: NA | CZ72: NA | DA72: NA | DB72: NA | DC72: NA | DD72: NA | DE72: NA | DF72: NA | DG72: NA | DH72: NA | DI72: NA | DJ72: NA | DK72: NA | DL72: NA | DM72: NA | DN72: NA | DO72: NA | DP72: NA | DQ72: NA | DR72: NA | DS72: NA | DT72: NA | DU72: NA | DV72: NA | DW72: NA | DX72: NA | DY72: NA | DZ72: NA | EA72: NA | EB72: NA | EC72: NA | ED72: NA | EE72: NA | EF72: NA | EG72: NA | EH72: NA | EI72: NA | EJ72: NA | EK72: NA | EL72: NA | EM72: NA | EN72: NA | EO72: NA | EP72: NA | EQ72: NA | ER72: NA | ES72: NA | ET72: NA | EU72: NA | EV72: NA | EW72: NA | EX72: NA | EY72: NA | EZ72: NA | FA72: NA | FB72: NA | FC72: NA | FD72: NA | FE72: NA | FF72: NA | FG72: NA | FH72: NA | FI72: NA | FJ72: NA | FK72: NA | FL72: NA | FM72: NA | FN72: NA | FO72: NA | FP72: NA | FQ72: NA | FR72: NA | FS72: NA | FT72: NA | FU72: NA | FV72: NA | FW72: NA | FX72: NA | FY72: NA | FZ72: NA | GA72: NA | GB72: NA | GC72: NA | GD72: NA | GE72: NA | GF72: NA | GG72: NA | GH72: NA | GI72: NA | GJ72: NA | GK72: NA | GL72: NA | GM72: NA | GN72: NA | GO72: NA | GP72: NA | GQ72: NA | GR72: NA | GS72: NA | GT72: NA | GU72: NA | GV72: NA | GW72: NA | GX72: NA | GY72: NA | GZ72: NA | HA72: NA | HB72: NA | HC72: NA | HD72: NA | HE72: NA | HF72: NA | HG72: NA | HH72: NA | HI72: NA | HJ72: NA | HK72: NA | HL72: NA | HM72: NA | HN72: NA | HO72: NA | HP72: NA | HQ72: NA | HR72: NA | HS72: NA | HT72: NA | HU72: NA | HV72: NA | HW72: NA | HX72: NA | HY72: NA | HZ72: NA | IA72: NA | IB72: NA | IC72: NA | ID72: NA | IE72: NA | IF72: NA | IG72: NA | IH72: NA | II72: NA | IJ72: NA | IK72: NA | IL72: NA | IM72: NA | IN72: NA | IO72: NA | IP72: NA | IQ72: NA | IR72: NA | IS72: NA | IT72: NA | IU72: NA | IV72: NA | IW72: NA | IX72: NA | IY72: NA | IZ72: NA | JA72: NA | JB72: NA | JC72: NA
A73: NA | B73: NA | C73: Bass Pro Outdoor Online LLC | D73: Bass Pro Outdoor Online | E73: NA | F73: NA | G73: Financial | H73: NA | I73: NA | J73: NA | K73: NA | L73: NA | M73: NA | N73: NA | O73: Operations | P73: NA | Q73: NA | R73: NA | S73: NA | T73: NA | U73: NA | V73: NA | W73: NA | X73: NA | Y73: NA | Z73: Web Site Summary | AA73: NA | AB73: NA | AC73: NA | AD73: NA | AE73: NA | AF73: Customer Satisfaction5 | AG73: NA | AH73: NA | AI73: NA | AJ73: Performance6 | AK73: NA | AL73: NA | AM73: NA | AN73: Marketing | AO73: NA | AP73: NA | AQ73: NA | AR73: NA | AS73: NA | AT73: NA | AU73: NA | AV73: NA | AW73: NA | AX73: NA | AY73: NA | AZ73: NA | BA73: NA | BB73: NA | BC73: NA | BD73: NA | BE73: NA | BF73: NA | BG73: NA | BH73: NA | BI73: NA | BJ73: NA | BK73: NA | BL73: NA | BM73: NA | BN73: NA | BO73: NA | BP73: NA | BQ73: NA | BR73: NA | BS73: NA | BT73: NA | BU73: NA | BV73: NA | BW73: NA | BX73: Corporate Information | BY73: NA | BZ73: NA | CA73: NA | CB73: NA | CC73: NA | CD73: NA | CE73: NA | CF73: NA | CG73: NA | CH73: NA | CI73: NA | CJ73: NA | CK73: NA | CL73: NA | CM73: NA | CN73: NA | CO73: NA | CP73: NA | CQ73: NA | CR73: NA | CS73: NA | CT73: NA | CU73: NA | CV73: NA | CW73: NA | CX73: NA | CY73: NA | CZ73: NA | DA73: NA | DB73: NA | DC73: NA | DD73: NA | DE73: NA | DF73: NA | DG73: NA | DH73: NA | DI73: NA | DJ73: NA | DK73: NA | DL73: NA | DM73: NA | DN73: NA | DO73: NA | DP73: NA | DQ73: NA | DR73: NA | DS73: NA | DT73: NA | DU73: NA | DV73: NA | DW73: NA | DX73: NA | DY73: NA | DZ73: NA | EA73: NA | EB73: NA | EC73: NA | ED73: NA | EE73: NA | EF73: NA | EG73: NA | EH73: NA | EI73: NA | EJ73: NA | EK73: NA | EL73: NA | EM73: NA | EN73: NA | EO73: NA | EP73: NA | EQ73: NA | ER73: NA | ES73: NA | ET73: NA | EU73: NA | EV73: NA | EW73: NA | EX73: NA | EY73: NA | EZ73: NA | FA73: NA | FB73: NA | FC73: NA | FD73: NA | FE73: NA | FF73: NA | FG73: NA | FH73: NA | FI73: NA | FJ73: NA | FK73: NA | FL73: NA | FM73: NA | FN73: NA | FO73: NA | FP73: NA | FQ73: NA | FR73: NA | FS73: NA | FT73: NA | FU73: NA | FV73: NA | FW73: NA | FX73: NA | FY73: NA | FZ73: NA | GA73: NA | GB73: NA | GC73: NA | GD73: NA | GE73: NA | GF73: NA | GG73: NA | GH73: NA | GI73: NA | GJ73: NA | GK73: NA | GL73: NA | GM73: NA | GN73: NA | GO73: NA | GP73: NA | GQ73: NA | GR73: NA | GS73: NA | GT73: NA | GU73: NA | GV73: NA | GW73: NA | GX73: NA | GY73: NA | GZ73: NA | HA73: NA | HB73: NA | HC73: NA | HD73: NA | HE73: NA | HF73: NA | HG73: NA | HH73: NA | HI73: NA | HJ73: NA | HK73: NA | HL73: NA | HM73: NA | HN73: NA | HO73: NA | HP73: NA | HQ73: NA | HR73: NA | HS73: NA | HT73: NA | HU73: NA | HV73: NA | HW73: NA | HX73: NA | HY73: NA | HZ73: NA | IA73: NA | IB73: NA | IC73: NA | ID73: NA | IE73: NA | IF73: NA | IG73: NA | IH73: NA | II73: NA | IJ73: NA | IK73: NA | IL73: NA | IM73: NA | IN73: NA | IO73: NA | IP73: NA | IQ73: NA | IR73: NA | IS73: NA | IT73: NA | IU73: NA | IV73: NA | IW73: NA | IX73: NA | IY73: NA | IZ73: NA | JA73: NA | JB73: NA | JC73: NA
A74: NA | B74: NA | C74: CVS Caremark Corp. | D74: CVS Caremark | E74: NA | F74: NA | G74: Financial | H74: NA | I74: NA | J74: NA | K74: NA | L74: NA | M74: NA | N74: NA | O74: Operations | P74: NA | Q74: NA | R74: NA | S74: NA | T74: NA | U74: NA | V74: NA | W74: NA | X74: NA | Y74: NA | Z74: Web Site Summary | AA74: NA | AB74: NA | AC74: NA | AD74: NA | AE74: NA | AF74: Customer Satisfaction5 | AG74: NA | AH74: NA | AI74: NA | AJ74: Performance6 | AK74: NA | AL74: NA | AM74: NA | AN74: Marketing | AO74: NA | AP74: NA | AQ74: NA | AR74: NA | AS74: NA | AT74: NA | AU74: NA | AV74: NA | AW74: NA | AX74: NA | AY74: NA | AZ74: NA | BA74: NA | BB74: NA | BC74: NA | BD74: NA | BE74: NA | BF74: NA | BG74: NA | BH74: NA | BI74: NA | BJ74: NA | BK74: NA | BL74: NA | BM74: NA | BN74: NA | BO74: NA | BP74: NA | BQ74: NA | BR74: NA | BS74: NA | BT74: NA | BU74: NA | BV74: NA | BW74: NA | BX74: Corporate Information | BY74: NA | BZ74: NA | CA74: NA | CB74: NA | CC74: NA | CD74: NA | CE74: NA | CF74: NA | CG74: NA | CH74: NA | CI74: NA | CJ74: NA | CK74: NA | CL74: NA | CM74: NA | CN74: NA | CO74: NA | CP74: NA | CQ74: NA | CR74: NA | CS74: NA | CT74: NA | CU74: NA | CV74: NA | CW74: NA | CX74: NA | CY74: NA | CZ74: NA | DA74: NA | DB74: NA | DC74: NA | DD74: NA | DE74: NA | DF74: NA | DG74: NA | DH74: NA | DI74: NA | DJ74: NA | DK74: NA | DL74: NA | DM74: NA | DN74: NA | DO74: NA | DP74: NA | DQ74: NA | DR74: NA | DS74: NA | DT74: NA | DU74: NA | DV74: NA | DW74: NA | DX74: NA | DY74: NA | DZ74: NA | EA74: NA | EB74: NA | EC74: NA | ED74: NA | EE74: NA | EF74: NA | EG74: NA | EH74: NA | EI74: NA | EJ74: NA | EK74: NA | EL74: NA | EM74: NA | EN74: NA | EO74: NA | EP74: NA | EQ74: NA | ER74: NA | ES74: NA | ET74: NA | EU74: NA | EV74: NA | EW74: NA | EX74: NA | EY74: NA | EZ74: NA | FA74: NA | FB74: NA | FC74: NA | FD74: NA | FE74: NA | FF74: NA | FG74: NA | FH74: NA | FI74: NA | FJ74: NA | FK74: NA | FL74: NA | FM74: NA | FN74: NA | FO74: NA | FP74: NA | FQ74: NA | FR74: NA | FS74: NA | FT74: NA | FU74: NA | FV74: NA | FW74: NA | FX74: NA | FY74: NA | FZ74: NA | GA74: NA | GB74: NA | GC74: NA | GD74: NA | GE74: NA | GF74: NA | GG74: NA | GH74: NA | GI74: NA | GJ74: NA | GK74: NA | GL74: NA | GM74: NA | GN74: NA | GO74: NA | GP74: NA | GQ74: NA | GR74: NA | GS74: NA | GT74: NA | GU74: NA | GV74: NA | GW74: NA | GX74: NA | GY74: NA | GZ74: NA | HA74: NA | HB74: NA | HC74: NA | HD74: NA | HE74: NA | HF74: NA | HG74: NA | HH74: NA | HI74: NA | HJ74: NA | HK74: NA | HL74: NA | HM74: NA | HN74: NA | HO74: NA | HP74: NA | HQ74: NA | HR74: NA | HS74: NA | HT74: NA | HU74: NA | HV74: NA | HW74: NA | HX74: NA | HY74: NA | HZ74: NA | IA74: NA | IB74: NA | IC74: NA | ID74: NA | IE74: NA | IF74: NA | IG74: NA | IH74: NA | II74: NA | IJ74: NA | IK74: NA | IL74: NA | IM74: NA | IN74: NA | IO74: NA | IP74: NA | IQ74: NA | IR74: NA | IS74: NA | IT74: NA | IU74: NA | IV74: NA | IW74: NA | IX74: NA | IY74: NA | IZ74: NA | JA74: NA | JB74: NA | JC74: NA
A75: NA | B75: NA | C75: Sierra Trading Post Inc. | D75: Sierra Trading Post | E75: NA | F75: NA | G75: Financial | H75: NA | I75: NA | J75: NA | K75: NA | L75: NA | M75: NA | N75: NA | O75: Operations | P75: NA | Q75: NA | R75: NA | S75: NA | T75: NA | U75: NA | V75: NA | W75: NA | X75: NA | Y75: NA | Z75: Web Site Summary | AA75: NA | AB75: NA | AC75: NA | AD75: NA | AE75: NA | AF75: Customer Satisfaction5 | AG75: NA | AH75: NA | AI75: NA | AJ75: Performance6 | AK75: NA | AL75: NA | AM75: NA | AN75: Marketing | AO75: NA | AP75: NA | AQ75: NA | AR75: NA | AS75: NA | AT75: NA | AU75: NA | AV75: NA | AW75: NA | AX75: NA | AY75: NA | AZ75: NA | BA75: NA | BB75: NA | BC75: NA | BD75: NA | BE75: NA | BF75: NA | BG75: NA | BH75: NA | BI75: NA | BJ75: NA | BK75: NA | BL75: NA | BM75: NA | BN75: NA | BO75: NA | BP75: NA | BQ75: NA | BR75: NA | BS75: NA | BT75: NA | BU75: NA | BV75: NA | BW75: NA | BX75: Corporate Information | BY75: NA | BZ75: NA | CA75: NA | CB75: NA | CC75: NA | CD75: NA | CE75: NA | CF75: NA | CG75: NA | CH75: NA | CI75: NA | CJ75: NA | CK75: NA | CL75: NA | CM75: NA | CN75: NA | CO75: NA | CP75: NA | CQ75: NA | CR75: NA | CS75: NA | CT75: NA | CU75: NA | CV75: NA | CW75: NA | CX75: NA | CY75: NA | CZ75: NA | DA75: NA | DB75: NA | DC75: NA | DD75: NA | DE75: NA | DF75: NA | DG75: NA | DH75: NA | DI75: NA | DJ75: NA | DK75: NA | DL75: NA | DM75: NA | DN75: NA | DO75: NA | DP75: NA | DQ75: NA | DR75: NA | DS75: NA | DT75: NA | DU75: NA | DV75: NA | DW75: NA | DX75: NA | DY75: NA | DZ75: NA | EA75: NA | EB75: NA | EC75: NA | ED75: NA | EE75: NA | EF75: NA | EG75: NA | EH75: NA | EI75: NA | EJ75: NA | EK75: NA | EL75: NA | EM75: NA | EN75: NA | EO75: NA | EP75: NA | EQ75: NA | ER75: NA | ES75: NA | ET75: NA | EU75: NA | EV75: NA | EW75: NA | EX75: NA | EY75: NA | EZ75: NA | FA75: NA | FB75: NA | FC75: NA | FD75: NA | FE75: NA | FF75: NA | FG75: NA | FH75: NA | FI75: NA | FJ75: NA | FK75: NA | FL75: NA | FM75: NA | FN75: NA | FO75: NA | FP75: NA | FQ75: NA | FR75: NA | FS75: NA | FT75: NA | FU75: NA | FV75: NA | FW75: NA | FX75: NA | FY75: NA | FZ75: NA | GA75: NA | GB75: NA | GC75: NA | GD75: NA | GE75: NA | GF75: NA | GG75: NA | GH75: NA | GI75: NA | GJ75: NA | GK75: NA | GL75: NA | GM75: NA | GN75: NA | GO75: NA | GP75: NA | GQ75: NA | GR75: NA | GS75: NA | GT75: NA | GU75: NA | GV75: NA | GW75: NA | GX75: NA | GY75: NA | GZ75: NA | HA75: NA | HB75: NA | HC75: NA | HD75: NA | HE75: NA | HF75: NA | HG75: NA | HH75: NA | HI75: NA | HJ75: NA | HK75: NA | HL75: NA | HM75: NA | HN75: NA | HO75: NA | HP75: NA | HQ75: NA | HR75: NA | HS75: NA | HT75: NA | HU75: NA | HV75: NA | HW75: NA | HX75: NA | HY75: NA | HZ75: NA | IA75: NA | IB75: NA | IC75: NA | ID75: NA | IE75: NA | IF75: NA | IG75: NA | IH75: NA | II75: NA | IJ75: NA | IK75: NA | IL75: NA | IM75: NA | IN75: NA | IO75: NA | IP75: NA | IQ75: NA | IR75: NA | IS75: NA | IT75: NA | IU75: NA | IV75: NA | IW75: NA | IX75: NA | IY75: NA | IZ75: NA | JA75: NA | JB75: NA | JC75: NA
A76: NA | B76: NA | C76: Army & Air Force Exchange Service | D76: Army & Air Force Exchange Service | E76: NA | F76: NA | G76: Financial | H76: NA | I76: NA | J76: NA | K76: NA | L76: NA | M76: NA | N76: NA | O76: Operations | P76: NA | Q76: NA | R76: NA | S76: NA | T76: NA | U76: NA | V76: NA | W76: NA | X76: NA | Y76: NA | Z76: Web Site Summary | AA76: NA | AB76: NA | AC76: NA | AD76: NA | AE76: NA | AF76: Customer Satisfaction5 | AG76: NA | AH76: NA | AI76: NA | AJ76: Performance6 | AK76: NA | AL76: NA | AM76: NA | AN76: Marketing | AO76: NA | AP76: NA | AQ76: NA | AR76: NA | AS76: NA | AT76: NA | AU76: NA | AV76: NA | AW76: NA | AX76: NA | AY76: NA | AZ76: NA | BA76: NA | BB76: NA | BC76: NA | BD76: NA | BE76: NA | BF76: NA | BG76: NA | BH76: NA | BI76: NA | BJ76: NA | BK76: NA | BL76: NA | BM76: NA | BN76: NA | BO76: NA | BP76: NA | BQ76: NA | BR76: NA | BS76: NA | BT76: NA | BU76: NA | BV76: NA | BW76: NA | BX76: Corporate Information | BY76: NA | BZ76: NA | CA76: NA | CB76: NA | CC76: NA | CD76: NA | CE76: NA | CF76: NA | CG76: NA | CH76: NA | CI76: NA | CJ76: NA | CK76: NA | CL76: NA | CM76: NA | CN76: NA | CO76: NA | CP76: NA | CQ76: NA | CR76: NA | CS76: NA | CT76: NA | CU76: NA | CV76: NA | CW76: NA | CX76: NA | CY76: NA | CZ76: NA | DA76: NA | DB76: NA | DC76: NA | DD76: NA | DE76: NA | DF76: NA | DG76: NA | DH76: NA | DI76: NA | DJ76: NA | DK76: NA | DL76: NA | DM76: NA | DN76: NA | DO76: NA | DP76: NA | DQ76: NA | DR76: NA | DS76: NA | DT76: NA | DU76: NA | DV76: NA | DW76: NA | DX76: NA | DY76: NA | DZ76: NA | EA76: NA | EB76: NA | EC76: NA | ED76: NA | EE76: NA | EF76: NA | EG76: NA | EH76: NA | EI76: NA | EJ76: NA | EK76: NA | EL76: NA | EM76: NA | EN76: NA | EO76: NA | EP76: NA | EQ76: NA | ER76: NA | ES76: NA | ET76: NA | EU76: NA | EV76: NA | EW76: NA | EX76: NA | EY76: NA | EZ76: NA | FA76: NA | FB76: NA | FC76: NA | FD76: NA | FE76: NA | FF76: NA | FG76: NA | FH76: NA | FI76: NA | FJ76: NA | FK76: NA | FL76: NA | FM76: NA | FN76: NA | FO76: NA | FP76: NA | FQ76: NA | FR76: NA | FS76: NA | FT76: NA | FU76: NA | FV76: NA | FW76: NA | FX76: NA | FY76: NA | FZ76: NA | GA76: NA | GB76: NA | GC76: NA | GD76: NA | GE76: NA | GF76: NA | GG76: NA | GH76: NA | GI76: NA | GJ76: NA | GK76: NA | GL76: NA | GM76: NA | GN76: NA | GO76: NA | GP76: NA | GQ76: NA | GR76: NA | GS76: NA | GT76: NA | GU76: NA | GV76: NA | GW76: NA | GX76: NA | GY76: NA | GZ76: NA | HA76: NA | HB76: NA | HC76: NA | HD76: NA | HE76: NA | HF76: NA | HG76: NA | HH76: NA | HI76: NA | HJ76: NA | HK76: NA | HL76: NA | HM76: NA | HN76: NA | HO76: NA | HP76: NA | HQ76: NA | HR76: NA | HS76: NA | HT76: NA | HU76: NA | HV76: NA | HW76: NA | HX76: NA | HY76: NA | HZ76: NA | IA76: NA | IB76: NA | IC76: NA | ID76: NA | IE76: NA | IF76: NA | IG76: NA | IH76: NA | II76: NA | IJ76: NA | IK76: NA | IL76: NA | IM76: NA | IN76: NA | IO76: NA | IP76: NA | IQ76: NA | IR76: NA | IS76: NA | IT76: NA | IU76: NA | IV76: NA | IW76: NA | IX76: NA | IY76: NA | IZ76: NA | JA76: NA | JB76: NA | JC76: NA
A77: NA | B77: NA | C77: Ralph Lauren Media LLC | D77: Ralph Lauren Media | E77: NA | F77: NA | G77: Financial | H77: NA | I77: NA | J77: NA | K77: NA | L77: NA | M77: NA | N77: NA | O77: Operations | P77: NA | Q77: NA | R77: NA | S77: NA | T77: NA | U77: NA | V77: NA | W77: NA | X77: NA | Y77: NA | Z77: Web Site Summary | AA77: NA | AB77: NA | AC77: NA | AD77: NA | AE77: NA | AF77: Customer Satisfaction5 | AG77: NA | AH77: NA | AI77: NA | AJ77: Performance6 | AK77: NA | AL77: NA | AM77: NA | AN77: Marketing | AO77: NA | AP77: NA | AQ77: NA | AR77: NA | AS77: NA | AT77: NA | AU77: NA | AV77: NA | AW77: NA | AX77: NA | AY77: NA | AZ77: NA | BA77: NA | BB77: NA | BC77: NA | BD77: NA | BE77: NA | BF77: NA | BG77: NA | BH77: NA | BI77: NA | BJ77: NA | BK77: NA | BL77: NA | BM77: NA | BN77: NA | BO77: NA | BP77: NA | BQ77: NA | BR77: NA | BS77: NA | BT77: NA | BU77: NA | BV77: NA | BW77: NA | BX77: Corporate Information | BY77: NA | BZ77: NA | CA77: NA | CB77: NA | CC77: NA | CD77: NA | CE77: NA | CF77: NA | CG77: NA | CH77: NA | CI77: NA | CJ77: NA | CK77: NA | CL77: NA | CM77: NA | CN77: NA | CO77: NA | CP77: NA | CQ77: NA | CR77: NA | CS77: NA | CT77: NA | CU77: NA | CV77: NA | CW77: NA | CX77: NA | CY77: NA | CZ77: NA | DA77: NA | DB77: NA | DC77: NA | DD77: NA | DE77: NA | DF77: NA | DG77: NA | DH77: NA | DI77: NA | DJ77: NA | DK77: NA | DL77: NA | DM77: NA | DN77: NA | DO77: NA | DP77: NA | DQ77: NA | DR77: NA | DS77: NA | DT77: NA | DU77: NA | DV77: NA | DW77: NA | DX77: NA | DY77: NA | DZ77: NA | EA77: NA | EB77: NA | EC77: NA | ED77: NA | EE77: NA | EF77: NA | EG77: NA | EH77: NA | EI77: NA | EJ77: NA | EK77: NA | EL77: NA | EM77: NA | EN77: NA | EO77: NA | EP77: NA | EQ77: NA | ER77: NA | ES77: NA | ET77: NA | EU77: NA | EV77: NA | EW77: NA | EX77: NA | EY77: NA | EZ77: NA | FA77: NA | FB77: NA | FC77: NA | FD77: NA | FE77: NA | FF77: NA | FG77: NA | FH77: NA | FI77: NA | FJ77: NA | FK77: NA | FL77: NA | FM77: NA | FN77: NA | FO77: NA | FP77: NA | FQ77: NA | FR77: NA | FS77: NA | FT77: NA | FU77: NA | FV77: NA | FW77: NA | FX77: NA | FY77: NA | FZ77: NA | GA77: NA | GB77: NA | GC77: NA | GD77: NA | GE77: NA | GF77: NA | GG77: NA | GH77: NA | GI77: NA | GJ77: NA | GK77: NA | GL77: NA | GM77: NA | GN77: NA | GO77: NA | GP77: NA | GQ77: NA | GR77: NA | GS77: NA | GT77: NA | GU77: NA | GV77: NA | GW77: NA | GX77: NA | GY77: NA | GZ77: NA | HA77: NA | HB77: NA | HC77: NA | HD77: NA | HE77: NA | HF77: NA | HG77: NA | HH77: NA | HI77: NA | HJ77: NA | HK77: NA | HL77: NA | HM77: NA | HN77: NA | HO77: NA | HP77: NA | HQ77: NA | HR77: NA | HS77: NA | HT77: NA | HU77: NA | HV77: NA | HW77: NA | HX77: NA | HY77: NA | HZ77: NA | IA77: NA | IB77: NA | IC77: NA | ID77: NA | IE77: NA | IF77: NA | IG77: NA | IH77: NA | II77: NA | IJ77: NA | IK77: NA | IL77: NA | IM77: NA | IN77: NA | IO77: NA | IP77: NA | IQ77: NA | IR77: NA | IS77: NA | IT77: NA | IU77: NA | IV77: NA | IW77: NA | IX77: NA | IY77: NA | IZ77: NA | JA77: NA | JB77: NA | JC77: NA
A78: NA | B78: NA | C78: Shoebuy.com Inc. | D78: Shoebuy.com | E78: NA | F78: NA | G78: Financial | H78: NA | I78: NA | J78: NA | K78: NA | L78: NA | M78: NA | N78: NA | O78: Operations | P78: NA | Q78: NA | R78: NA | S78: NA | T78: NA | U78: NA | V78: NA | W78: NA | X78: NA | Y78: NA | Z78: Web Site Summary | AA78: NA | AB78: NA | AC78: NA | AD78: NA | AE78: NA | AF78: Customer Satisfaction5 | AG78: NA | AH78: NA | AI78: NA | AJ78: Performance6 | AK78: NA | AL78: NA | AM78: NA | AN78: Marketing | AO78: NA | AP78: NA | AQ78: NA | AR78: NA | AS78: NA | AT78: NA | AU78: NA | AV78: NA | AW78: NA | AX78: NA | AY78: NA | AZ78: NA | BA78: NA | BB78: NA | BC78: NA | BD78: NA | BE78: NA | BF78: NA | BG78: NA | BH78: NA | BI78: NA | BJ78: NA | BK78: NA | BL78: NA | BM78: NA | BN78: NA | BO78: NA | BP78: NA | BQ78: NA | BR78: NA | BS78: NA | BT78: NA | BU78: NA | BV78: NA | BW78: NA | BX78: Corporate Information | BY78: NA | BZ78: NA | CA78: NA | CB78: NA | CC78: NA | CD78: NA | CE78: NA | CF78: NA | CG78: NA | CH78: NA | CI78: NA | CJ78: NA | CK78: NA | CL78: NA | CM78: NA | CN78: NA | CO78: NA | CP78: NA | CQ78: NA | CR78: NA | CS78: NA | CT78: NA | CU78: NA | CV78: NA | CW78: NA | CX78: NA | CY78: NA | CZ78: NA | DA78: NA | DB78: NA | DC78: NA | DD78: NA | DE78: NA | DF78: NA | DG78: NA | DH78: NA | DI78: NA | DJ78: NA | DK78: NA | DL78: NA | DM78: NA | DN78: NA | DO78: NA | DP78: NA | DQ78: NA | DR78: NA | DS78: NA | DT78: NA | DU78: NA | DV78: NA | DW78: NA | DX78: NA | DY78: NA | DZ78: NA | EA78: NA | EB78: NA | EC78: NA | ED78: NA | EE78: NA | EF78: NA | EG78: NA | EH78: NA | EI78: NA | EJ78: NA | EK78: NA | EL78: NA | EM78: NA | EN78: NA | EO78: NA | EP78: NA | EQ78: NA | ER78: NA | ES78: NA | ET78: NA | EU78: NA | EV78: NA | EW78: NA | EX78: NA | EY78: NA | EZ78: NA | FA78: NA | FB78: NA | FC78: NA | FD78: NA | FE78: NA | FF78: NA | FG78: NA | FH78: NA | FI78: NA | FJ78: NA | FK78: NA | FL78: NA | FM78: NA | FN78: NA | FO78: NA | FP78: NA | FQ78: NA | FR78: NA | FS78: NA | FT78: NA | FU78: NA | FV78: NA | FW78: NA | FX78: NA | FY78: NA | FZ78: NA | GA78: NA | GB78: NA | GC78: NA | GD78: NA | GE78: NA | GF78: NA | GG78: NA | GH78: NA | GI78: NA | GJ78: NA | GK78: NA | GL78: NA | GM78: NA | GN78: NA | GO78: NA | GP78: NA | GQ78: NA | GR78: NA | GS78: NA | GT78: NA | GU78: NA | GV78: NA | GW78: NA | GX78: NA | GY78: NA | GZ78: NA | HA78: NA | HB78: NA | HC78: NA | HD78: NA | HE78: NA | HF78: NA | HG78: NA | HH78: NA | HI78: NA | HJ78: NA | HK78: NA | HL78: NA | HM78: NA | HN78: NA | HO78: NA | HP78: NA | HQ78: NA | HR78: NA | HS78: NA | HT78: NA | HU78: NA | HV78: NA | HW78: NA | HX78: NA | HY78: NA | HZ78: NA | IA78: NA | IB78: NA | IC78: NA | ID78: NA | IE78: NA | IF78: NA | IG78: NA | IH78: NA | II78: NA | IJ78: NA | IK78: NA | IL78: NA | IM78: NA | IN78: NA | IO78: NA | IP78: NA | IQ78: NA | IR78: NA | IS78: NA | IT78: NA | IU78: NA | IV78: NA | IW78: NA | IX78: NA | IY78: NA | IZ78: NA | JA78: NA | JB78: NA | JC78: NA
A79: NA | B79: NA | C79: Coldwater Creek Inc. | D79: Coldwater Creek | E79: NA | F79: NA | G79: Financial | H79: NA | I79: NA | J79: NA | K79: NA | L79: NA | M79: NA | N79: NA | O79: Operations | P79: NA | Q79: NA | R79: NA | S79: NA | T79: NA | U79: NA | V79: NA | W79: NA | X79: NA | Y79: NA | Z79: Web Site Summary | AA79: NA | AB79: NA | AC79: NA | AD79: NA | AE79: NA | AF79: Customer Satisfaction5 | AG79: NA | AH79: NA | AI79: NA | AJ79: Performance6 | AK79: NA | AL79: NA | AM79: NA | AN79: Marketing | AO79: NA | AP79: NA | AQ79: NA | AR79: NA | AS79: NA | AT79: NA | AU79: NA | AV79: NA | AW79: NA | AX79: NA | AY79: NA | AZ79: NA | BA79: NA | BB79: NA | BC79: NA | BD79: NA | BE79: NA | BF79: NA | BG79: NA | BH79: NA | BI79: NA | BJ79: NA | BK79: NA | BL79: NA | BM79: NA | BN79: NA | BO79: NA | BP79: NA | BQ79: NA | BR79: NA | BS79: NA | BT79: NA | BU79: NA | BV79: NA | BW79: NA | BX79: Corporate Information | BY79: NA | BZ79: NA | CA79: NA | CB79: NA | CC79: NA | CD79: NA | CE79: NA | CF79: NA | CG79: NA | CH79: NA | CI79: NA | CJ79: NA | CK79: NA | CL79: NA | CM79: NA | CN79: NA | CO79: NA | CP79: NA | CQ79: NA | CR79: NA | CS79: NA | CT79: NA | CU79: NA | CV79: NA | CW79: NA | CX79: NA | CY79: NA | CZ79: NA | DA79: NA | DB79: NA | DC79: NA | DD79: NA | DE79: NA | DF79: NA | DG79: NA | DH79: NA | DI79: NA | DJ79: NA | DK79: NA | DL79: NA | DM79: NA | DN79: NA | DO79: NA | DP79: NA | DQ79: NA | DR79: NA | DS79: NA | DT79: NA | DU79: NA | DV79: NA | DW79: NA | DX79: NA | DY79: NA | DZ79: NA | EA79: NA | EB79: NA | EC79: NA | ED79: NA | EE79: NA | EF79: NA | EG79: NA | EH79: NA | EI79: NA | EJ79: NA | EK79: NA | EL79: NA | EM79: NA | EN79: NA | EO79: NA | EP79: NA | EQ79: NA | ER79: NA | ES79: NA | ET79: NA | EU79: NA | EV79: NA | EW79: NA | EX79: NA | EY79: NA | EZ79: NA | FA79: NA | FB79: NA | FC79: NA | FD79: NA | FE79: NA | FF79: NA | FG79: NA | FH79: NA | FI79: NA | FJ79: NA | FK79: NA | FL79: NA | FM79: NA | FN79: NA | FO79: NA | FP79: NA | FQ79: NA | FR79: NA | FS79: NA | FT79: NA | FU79: NA | FV79: NA | FW79: NA | FX79: NA | FY79: NA | FZ79: NA | GA79: NA | GB79: NA | GC79: NA | GD79: NA | GE79: NA | GF79: NA | GG79: NA | GH79: NA | GI79: NA | GJ79: NA | GK79: NA | GL79: NA | GM79: NA | GN79: NA | GO79: NA | GP79: NA | GQ79: NA | GR79: NA | GS79: NA | GT79: NA | GU79: NA | GV79: NA | GW79: NA | GX79: NA | GY79: NA | GZ79: NA | HA79: NA | HB79: NA | HC79: NA | HD79: NA | HE79: NA | HF79: NA | HG79: NA | HH79: NA | HI79: NA | HJ79: NA | HK79: NA | HL79: NA | HM79: NA | HN79: NA | HO79: NA | HP79: NA | HQ79: NA | HR79: NA | HS79: NA | HT79: NA | HU79: NA | HV79: NA | HW79: NA | HX79: NA | HY79: NA | HZ79: NA | IA79: NA | IB79: NA | IC79: NA | ID79: NA | IE79: NA | IF79: NA | IG79: NA | IH79: NA | II79: NA | IJ79: NA | IK79: NA | IL79: NA | IM79: NA | IN79: NA | IO79: NA | IP79: NA | IQ79: NA | IR79: NA | IS79: NA | IT79: NA | IU79: NA | IV79: NA | IW79: NA | IX79: NA | IY79: NA | IZ79: NA | JA79: NA | JB79: NA | JC79: NA
A80: NA | B80: NA | C80: Weight Watchers International Inc. | D80: Weight Watchers International | E80: NA | F80: NA | G80: Financial | H80: NA | I80: NA | J80: NA | K80: NA | L80: NA | M80: NA | N80: NA | O80: Operations | P80: NA | Q80: NA | R80: NA | S80: NA | T80: NA | U80: NA | V80: NA | W80: NA | X80: NA | Y80: NA | Z80: Web Site Summary | AA80: NA | AB80: NA | AC80: NA | AD80: NA | AE80: NA | AF80: Customer Satisfaction5 | AG80: NA | AH80: NA | AI80: NA | AJ80: Performance6 | AK80: NA | AL80: NA | AM80: NA | AN80: Marketing | AO80: NA | AP80: NA | AQ80: NA | AR80: NA | AS80: NA | AT80: NA | AU80: NA | AV80: NA | AW80: NA | AX80: NA | AY80: NA | AZ80: NA | BA80: NA | BB80: NA | BC80: NA | BD80: NA | BE80: NA | BF80: NA | BG80: NA | BH80: NA | BI80: NA | BJ80: NA | BK80: NA | BL80: NA | BM80: NA | BN80: NA | BO80: NA | BP80: NA | BQ80: NA | BR80: NA | BS80: NA | BT80: NA | BU80: NA | BV80: NA | BW80: NA | BX80: Corporate Information | BY80: NA | BZ80: NA | CA80: NA | CB80: NA | CC80: NA | CD80: NA | CE80: NA | CF80: NA | CG80: NA | CH80: NA | CI80: NA | CJ80: NA | CK80: NA | CL80: NA | CM80: NA | CN80: NA | CO80: NA | CP80: NA | CQ80: NA | CR80: NA | CS80: NA | CT80: NA | CU80: NA | CV80: NA | CW80: NA | CX80: NA | CY80: NA | CZ80: NA | DA80: NA | DB80: NA | DC80: NA | DD80: NA | DE80: NA | DF80: NA | DG80: NA | DH80: NA | DI80: NA | DJ80: NA | DK80: NA | DL80: NA | DM80: NA | DN80: NA | DO80: NA | DP80: NA | DQ80: NA | DR80: NA | DS80: NA | DT80: NA | DU80: NA | DV80: NA | DW80: NA | DX80: NA | DY80: NA | DZ80: NA | EA80: NA | EB80: NA | EC80: NA | ED80: NA | EE80: NA | EF80: NA | EG80: NA | EH80: NA | EI80: NA | EJ80: NA | EK80: NA | EL80: NA | EM80: NA | EN80: NA | EO80: NA | EP80: NA | EQ80: NA | ER80: NA | ES80: NA | ET80: NA | EU80: NA | EV80: NA | EW80: NA | EX80: NA | EY80: NA | EZ80: NA | FA80: NA | FB80: NA | FC80: NA | FD80: NA | FE80: NA | FF80: NA | FG80: NA | FH80: NA | FI80: NA | FJ80: NA | FK80: NA | FL80: NA | FM80: NA | FN80: NA | FO80: NA | FP80: NA | FQ80: NA | FR80: NA | FS80: NA | FT80: NA | FU80: NA | FV80: NA | FW80: NA | FX80: NA | FY80: NA | FZ80: NA | GA80: NA | GB80: NA | GC80: NA | GD80: NA | GE80: NA | GF80: NA | GG80: NA | GH80: NA | GI80: NA | GJ80: NA | GK80: NA | GL80: NA | GM80: NA | GN80: NA | GO80: NA | GP80: NA | GQ80: NA | GR80: NA | GS80: NA | GT80: NA | GU80: NA | GV80: NA | GW80: NA | GX80: NA | GY80: NA | GZ80: NA | HA80: NA | HB80: NA | HC80: NA | HD80: NA | HE80: NA | HF80: NA | HG80: NA | HH80: NA | HI80: NA | HJ80: NA | HK80: NA | HL80: NA | HM80: NA | HN80: NA | HO80: NA | HP80: NA | HQ80: NA | HR80: NA | HS80: NA | HT80: NA | HU80: NA | HV80: NA | HW80: NA | HX80: NA | HY80: NA | HZ80: NA | IA80: NA | IB80: NA | IC80: NA | ID80: NA | IE80: NA | IF80: NA | IG80: NA | IH80: NA | II80: NA | IJ80: NA | IK80: NA | IL80: NA | IM80: NA | IN80: NA | IO80: NA | IP80: NA | IQ80: NA | IR80: NA | IS80: NA | IT80: NA | IU80: NA | IV80: NA | IW80: NA | IX80: NA | IY80: NA | IZ80: NA | JA80: NA | JB80: NA | JC80: NA
A81: NA | B81: NA | C81: Vitacost.com Inc. | D81: Vitacost.com | E81: NA | F81: NA | G81: Financial | H81: NA | I81: NA | J81: NA | K81: NA | L81: NA | M81: NA | N81: NA | O81: Operations | P81: NA | Q81: NA | R81: NA | S81: NA | T81: NA | U81: NA | V81: NA | W81: NA | X81: NA | Y81: NA | Z81: Web Site Summary | AA81: NA | AB81: NA | AC81: NA | AD81: NA | AE81: NA | AF81: Customer Satisfaction5 | AG81: NA | AH81: NA | AI81: NA | AJ81: Performance6 | AK81: NA | AL81: NA | AM81: NA | AN81: Marketing | AO81: NA | AP81: NA | AQ81: NA | AR81: NA | AS81: NA | AT81: NA | AU81: NA | AV81: NA | AW81: NA | AX81: NA | AY81: NA | AZ81: NA | BA81: NA | BB81: NA | BC81: NA | BD81: NA | BE81: NA | BF81: NA | BG81: NA | BH81: NA | BI81: NA | BJ81: NA | BK81: NA | BL81: NA | BM81: NA | BN81: NA | BO81: NA | BP81: NA | BQ81: NA | BR81: NA | BS81: NA | BT81: NA | BU81: NA | BV81: NA | BW81: NA | BX81: Corporate Information | BY81: NA | BZ81: NA | CA81: NA | CB81: NA | CC81: NA | CD81: NA | CE81: NA | CF81: NA | CG81: NA | CH81: NA | CI81: NA | CJ81: NA | CK81: NA | CL81: NA | CM81: NA | CN81: NA | CO81: NA | CP81: NA | CQ81: NA | CR81: NA | CS81: NA | CT81: NA | CU81: NA | CV81: NA | CW81: NA | CX81: NA | CY81: NA | CZ81: NA | DA81: NA | DB81: NA | DC81: NA | DD81: NA | DE81: NA | DF81: NA | DG81: NA | DH81: NA | DI81: NA | DJ81: NA | DK81: NA | DL81: NA | DM81: NA | DN81: NA | DO81: NA | DP81: NA | DQ81: NA | DR81: NA | DS81: NA | DT81: NA | DU81: NA | DV81: NA | DW81: NA | DX81: NA | DY81: NA | DZ81: NA | EA81: NA | EB81: NA | EC81: NA | ED81: NA | EE81: NA | EF81: NA | EG81: NA | EH81: NA | EI81: NA | EJ81: NA | EK81: NA | EL81: NA | EM81: NA | EN81: NA | EO81: NA | EP81: NA | EQ81: NA | ER81: NA | ES81: NA | ET81: NA | EU81: NA | EV81: NA | EW81: NA | EX81: NA | EY81: NA | EZ81: NA | FA81: NA | FB81: NA | FC81: NA | FD81: NA | FE81: NA | FF81: NA | FG81: NA | FH81: NA | FI81: NA | FJ81: NA | FK81: NA | FL81: NA | FM81: NA | FN81: NA | FO81: NA | FP81: NA | FQ81: NA | FR81: NA | FS81: NA | FT81: NA | FU81: NA | FV81: NA | FW81: NA | FX81: NA | FY81: NA | FZ81: NA | GA81: NA | GB81: NA | GC81: NA | GD81: NA | GE81: NA | GF81: NA | GG81: NA | GH81: NA | GI81: NA | GJ81: NA | GK81: NA | GL81: NA | GM81: NA | GN81: NA | GO81: NA | GP81: NA | GQ81: NA | GR81: NA | GS81: NA | GT81: NA | GU81: NA | GV81: NA | GW81: NA | GX81: NA | GY81: NA | GZ81: NA | HA81: NA | HB81: NA | HC81: NA | HD81: NA | HE81: NA | HF81: NA | HG81: NA | HH81: NA | HI81: NA | HJ81: NA | HK81: NA | HL81: NA | HM81: NA | HN81: NA | HO81: NA | HP81: NA | HQ81: NA | HR81: NA | HS81: NA | HT81: NA | HU81: NA | HV81: NA | HW81: NA | HX81: NA | HY81: NA | HZ81: NA | IA81: NA | IB81: NA | IC81: NA | ID81: NA | IE81: NA | IF81: NA | IG81: NA | IH81: NA | II81: NA | IJ81: NA | IK81: NA | IL81: NA | IM81: NA | IN81: NA | IO81: NA | IP81: NA | IQ81: NA | IR81: NA | IS81: NA | IT81: NA | IU81: NA | IV81: NA | IW81: NA | IX81: NA | IY81: NA | IZ81: NA | JA81: NA | JB81: NA | JC81: NA
A82: NA | B82: NA | C82: Lowe's Cos. Inc. | D82: Lowe's Cos. | E82: NA | F82: NA | G82: Financial | H82: NA | I82: NA | J82: NA | K82: NA | L82: NA | M82: NA | N82: NA | O82: Operations | P82: NA | Q82: NA | R82: NA | S82: NA | T82: NA | U82: NA | V82: NA | W82: NA | X82: NA | Y82: NA | Z82: Web Site Summary | AA82: NA | AB82: NA | AC82: NA | AD82: NA | AE82: NA | AF82: Customer Satisfaction5 | AG82: NA | AH82: NA | AI82: NA | AJ82: Performance6 | AK82: NA | AL82: NA | AM82: NA | AN82: Marketing | AO82: NA | AP82: NA | AQ82: NA | AR82: NA | AS82: NA | AT82: NA | AU82: NA | AV82: NA | AW82: NA | AX82: NA | AY82: NA | AZ82: NA | BA82: NA | BB82: NA | BC82: NA | BD82: NA | BE82: NA | BF82: NA | BG82: NA | BH82: NA | BI82: NA | BJ82: NA | BK82: NA | BL82: NA | BM82: NA | BN82: NA | BO82: NA | BP82: NA | BQ82: NA | BR82: NA | BS82: NA | BT82: NA | BU82: NA | BV82: NA | BW82: NA | BX82: Corporate Information | BY82: NA | BZ82: NA | CA82: NA | CB82: NA | CC82: NA | CD82: NA | CE82: NA | CF82: NA | CG82: NA | CH82: NA | CI82: NA | CJ82: NA | CK82: NA | CL82: NA | CM82: NA | CN82: NA | CO82: NA | CP82: NA | CQ82: NA | CR82: NA | CS82: NA | CT82: NA | CU82: NA | CV82: NA | CW82: NA | CX82: NA | CY82: NA | CZ82: NA | DA82: NA | DB82: NA | DC82: NA | DD82: NA | DE82: NA | DF82: NA | DG82: NA | DH82: NA | DI82: NA | DJ82: NA | DK82: NA | DL82: NA | DM82: NA | DN82: NA | DO82: NA | DP82: NA | DQ82: NA | DR82: NA | DS82: NA | DT82: NA | DU82: NA | DV82: NA | DW82: NA | DX82: NA | DY82: NA | DZ82: NA | EA82: NA | EB82: NA | EC82: NA | ED82: NA | EE82: NA | EF82: NA | EG82: NA | EH82: NA | EI82: NA | EJ82: NA | EK82: NA | EL82: NA | EM82: NA | EN82: NA | EO82: NA | EP82: NA | EQ82: NA | ER82: NA | ES82: NA | ET82: NA | EU82: NA | EV82: NA | EW82: NA | EX82: NA | EY82: NA | EZ82: NA | FA82: NA | FB82: NA | FC82: NA | FD82: NA | FE82: NA | FF82: NA | FG82: NA | FH82: NA | FI82: NA | FJ82: NA | FK82: NA | FL82: NA | FM82: NA | FN82: NA | FO82: NA | FP82: NA | FQ82: NA | FR82: NA | FS82: NA | FT82: NA | FU82: NA | FV82: NA | FW82: NA | FX82: NA | FY82: NA | FZ82: NA | GA82: NA | GB82: NA | GC82: NA | GD82: NA | GE82: NA | GF82: NA | GG82: NA | GH82: NA | GI82: NA | GJ82: NA | GK82: NA | GL82: NA | GM82: NA | GN82: NA | GO82: NA | GP82: NA | GQ82: NA | GR82: NA | GS82: NA | GT82: NA | GU82: NA | GV82: NA | GW82: NA | GX82: NA | GY82: NA | GZ82: NA | HA82: NA | HB82: NA | HC82: NA | HD82: NA | HE82: NA | HF82: NA | HG82: NA | HH82: NA | HI82: NA | HJ82: NA | HK82: NA | HL82: NA | HM82: NA | HN82: NA | HO82: NA | HP82: NA | HQ82: NA | HR82: NA | HS82: NA | HT82: NA | HU82: NA | HV82: NA | HW82: NA | HX82: NA | HY82: NA | HZ82: NA | IA82: NA | IB82: NA | IC82: NA | ID82: NA | IE82: NA | IF82: NA | IG82: NA | IH82: NA | II82: NA | IJ82: NA | IK82: NA | IL82: NA | IM82: NA | IN82: NA | IO82: NA | IP82: NA | IQ82: NA | IR82: NA | IS82: NA | IT82: NA | IU82: NA | IV82: NA | IW82: NA | IX82: NA | IY82: NA | IZ82: NA | JA82: NA | JB82: NA | JC82: NA
A83: NA | B83: NA | C83: Etronics Inc. | D83: Etronics | E83: NA | F83: NA | G83: Financial | H83: NA | I83: NA | J83: NA | K83: NA | L83: NA | M83: NA | N83: NA | O83: Operations | P83: NA | Q83: NA | R83: NA | S83: NA | T83: NA | U83: NA | V83: NA | W83: NA | X83: NA | Y83: NA | Z83: Web Site Summary | AA83: NA | AB83: NA | AC83: NA | AD83: NA | AE83: NA | AF83: Customer Satisfaction5 | AG83: NA | AH83: NA | AI83: NA | AJ83: Performance6 | AK83: NA | AL83: NA | AM83: NA | AN83: Marketing | AO83: NA | AP83: NA | AQ83: NA | AR83: NA | AS83: NA | AT83: NA | AU83: NA | AV83: NA | AW83: NA | AX83: NA | AY83: NA | AZ83: NA | BA83: NA | BB83: NA | BC83: NA | BD83: NA | BE83: NA | BF83: NA | BG83: NA | BH83: NA | BI83: NA | BJ83: NA | BK83: NA | BL83: NA | BM83: NA | BN83: NA | BO83: NA | BP83: NA | BQ83: NA | BR83: NA | BS83: NA | BT83: NA | BU83: NA | BV83: NA | BW83: NA | BX83: Corporate Information | BY83: NA | BZ83: NA | CA83: NA | CB83: NA | CC83: NA | CD83: NA | CE83: NA | CF83: NA | CG83: NA | CH83: NA | CI83: NA | CJ83: NA | CK83: NA | CL83: NA | CM83: NA | CN83: NA | CO83: NA | CP83: NA | CQ83: NA | CR83: NA | CS83: NA | CT83: NA | CU83: NA | CV83: NA | CW83: NA | CX83: NA | CY83: NA | CZ83: NA | DA83: NA | DB83: NA | DC83: NA | DD83: NA | DE83: NA | DF83: NA | DG83: NA | DH83: NA | DI83: NA | DJ83: NA | DK83: NA | DL83: NA | DM83: NA | DN83: NA | DO83: NA | DP83: NA | DQ83: NA | DR83: NA | DS83: NA | DT83: NA | DU83: NA | DV83: NA | DW83: NA | DX83: NA | DY83: NA | DZ83: NA | EA83: NA | EB83: NA | EC83: NA | ED83: NA | EE83: NA | EF83: NA | EG83: NA | EH83: NA | EI83: NA | EJ83: NA | EK83: NA | EL83: NA | EM83: NA | EN83: NA | EO83: NA | EP83: NA | EQ83: NA | ER83: NA | ES83: NA | ET83: NA | EU83: NA | EV83: NA | EW83: NA | EX83: NA | EY83: NA | EZ83: NA | FA83: NA | FB83: NA | FC83: NA | FD83: NA | FE83: NA | FF83: NA | FG83: NA | FH83: NA | FI83: NA | FJ83: NA | FK83: NA | FL83: NA | FM83: NA | FN83: NA | FO83: NA | FP83: NA | FQ83: NA | FR83: NA | FS83: NA | FT83: NA | FU83: NA | FV83: NA | FW83: NA | FX83: NA | FY83: NA | FZ83: NA | GA83: NA | GB83: NA | GC83: NA | GD83: NA | GE83: NA | GF83: NA | GG83: NA | GH83: NA | GI83: NA | GJ83: NA | GK83: NA | GL83: NA | GM83: NA | GN83: NA | GO83: NA | GP83: NA | GQ83: NA | GR83: NA | GS83: NA | GT83: NA | GU83: NA | GV83: NA | GW83: NA | GX83: NA | GY83: NA | GZ83: NA | HA83: NA | HB83: NA | HC83: NA | HD83: NA | HE83: NA | HF83: NA | HG83: NA | HH83: NA | HI83: NA | HJ83: NA | HK83: NA | HL83: NA | HM83: NA | HN83: NA | HO83: NA | HP83: NA | HQ83: NA | HR83: NA | HS83: NA | HT83: NA | HU83: NA | HV83: NA | HW83: NA | HX83: NA | HY83: NA | HZ83: NA | IA83: NA | IB83: NA | IC83: NA | ID83: NA | IE83: NA | IF83: NA | IG83: NA | IH83: NA | II83: NA | IJ83: NA | IK83: NA | IL83: NA | IM83: NA | IN83: NA | IO83: NA | IP83: NA | IQ83: NA | IR83: NA | IS83: NA | IT83: NA | IU83: NA | IV83: NA | IW83: NA | IX83: NA | IY83: NA | IZ83: NA | JA83: NA | JB83: NA | JC83: NA
